Workbook

Sheet W01-W04
B2: Weight overview mice W01, W02, W03, W04
I4: gram | X4: gram
D5: W01 | E5: 21.2 | H5: ml | I5: soy to | J5: gram | L5: W02 | M5: 21.8 | P5: ml | Q5: ml | S5: W03 | T5: 20.9 | W5: ml | X5: soy to | Y5: gram | AA5: W04 | AB5: 22.3 | AE5: ml | AF5: ml
B6: Day | C6: Age | D6: Weight | E6: Ref | F6: % | G6: Drops | H6: Task | I6: chow | J6: Suppl | K6: Total | L6: Weight | M6: Ref | N6: % | O6: Drops | P6: Task | Q6: Suppl | R6: Total | S6: Weight | T6: Ref | U6: % | V6: Drops | W6: Task | X6: chow | Y6: Suppl | Z6: Total | AA6: Weight | AB6: Ref | AC6: % | AD6: Drops | AE6: Task | AF6: Suppl | AG6: Total
B7: 2016-12-12 | C7: 41 | D7: 22.1 | E7: 22.3 | F7: =D7/E7 -> 0.9910313901 | L7: 23 | M7: 22.5 | N7: =L7/M7 -> 1.022222222 | S7: 22.9 | T7: 23 | U7: =S7/T7 -> 0.9956521739 | AA7: 20.8 | AB7: 21 | AC7: =AA7/AB7 -> 0.9904761905
B8: 2016-12-13 | C8: 42 | D8: 22.9 | E8: 22.3 | F8: 1.02690583 | L8: 23 | M8: 22.5 | N8: 1.022222222 | S8: 23.5 | T8: 23 | U8: 1.02173913 | AA8: 21.6 | AB8: 21 | AC8: 1.028571429
B9: 2016-12-14 | C9: 43 | D9: 21.8 | E9: 22.3 | F9: 0.9775784753 | L9: 21.6 | M9: 22.5 | N9: 0.96 | S9: 22.7 | T9: 23 | U9: 0.9869565217 | AA9: 20.7 | AB9: 21 | AC9: 0.9857142857
B10: 2016-12-15 | C10: 44 | D10: 22 | E10: 22.3 | F10: 0.9865470852 | L10: 21.7 | M10: 22.5 | N10: 0.9644444444 | S10: 20.8 | T10: 23 | U10: 0.9043478261 | AA10: 19.3 | AB10: 21 | AC10: 0.919047619
B11: 2016-12-16 | C11: 45 | D11: 22.8 | E11: 22.3 | F11: 1.022421525 | L11: 22.9 | M11: 22.5 | N11: 1.017777778 | S11: 22.1 | T11: 23 | U11: 0.9608695652 | AA11: 20.6 | AB11: 21 | AC11: 0.980952381
B12: 2016-12-17 | C12: 46 | D12: 23 | E12: 22.3 | F12: 1.031390135 | L12: 23.1 | M12: 22.5 | N12: 1.026666667 | S12: 23.1 | T12: 23 | U12: 1.004347826 | AA12: 19.8 | AB12: 21 | AC12: 0.9428571429
B13: 2016-12-18 | C13: 47 | D13: 23.6 | E13: 22.3 | F13: 1.058295964 | L13: 23.5 | M13: 22.5 | N13: 1.044444444 | S13: 23.5 | T13: 23 | U13: 1.02173913 | AA13: 21.5 | AB13: 21 | AC13: 1.023809524
B14: 2016-12-19 | C14: 48 | D14: 23.3 | E14: 22.3 | F14: 1.044843049 | L14: 24.1 | M14: 22.5 | N14: 1.071111111 | S14: 23.4 | T14: 23 | U14: 1.017391304 | AA14: 22.8 | AB14: 21 | AC14: 1.085714286
B15: 2016-12-20 | C15: 49 | D15: 24.3 | E15: 22.3 | F15: 1.089686099 | L15: 24.4 | M15: 22.5 | N15: 1.084444444 | S15: 23.8 | T15: 23 | U15: 1.034782609 | AA15: 23 | AB15: 21 | AC15: 1.095238095
B16: 2016-12-21 | C16: 50 | D16: 23.8 | E16: 22.3 | F16: 1.067264574 | L16: 24.6 | M16: 22.5 | N16: 1.093333333 | S16: 24.1 | T16: 23 | U16: 1.047826087 | AA16: 23.4 | AB16: 21 | AC16: 1.114285714
B17: 2016-12-22 | C17: 51 | D17: 23.4 | E17: 22.3 | F17: 1.049327354 | L17: 24.4 | M17: 22.5 | N17: 1.084444444 | S17: 23.5 | T17: 23 | U17: 1.02173913 | AA17: 23.2 | AB17: 21 | AC17: 1.104761905
B18: 2016-12-23 | C18: 52 | D18: 24.4 | E18: 22.3 | F18: 1.094170404 | L18: 24.9 | M18: 22.5 | N18: 1.106666667 | S18: 23.8 | T18: 23 | U18: 1.034782609 | AA18: 23.2 | AB18: 21 | AC18: 1.104761905
B19: 2016-12-24 | C19: 53
B20: 2016-12-25 | C20: 54
B21: 2016-12-26 | C21: 55
B22: 2016-12-27 | C22: 56
B23: 2016-12-28 | C23: 57
B24: 2016-12-29 | C24: 58
B25: 2016-12-30 | C25: 59
B26: 2016-12-31 | C26: 60
B27: 2017-01-01 | C27: 61
B28: 2017-01-02 | C28: 62 | D28: 24.9 | E28: 24.9 | F28: 1 | J28: 2 | K28: =(I28)+J28 -> 2 | L28: 25.7 | M28: 25.7 | N28: 1 | Q28: 1.57 | R28: =(P28)+Q28 -> 1.57 | S28: 24.6 | T28: 24.6 | U28: 1 | Y28: 2 | Z28: =(X28)+Y28 -> 2 | AA28: 26.2 | AB28: 26.2 | AC28: 1 | AF28: 1.57 | AG28: =(AE28)+AF28 -> 1.57
B29: 2017-01-03 | C29: 63 | D29: 21.8 | E29: 24.9 | F29: 0.875502008 | J29: 2.7 | K29: =(I29)+J29 -> 2.7 | L29: 23.2 | M29: 25.7 | N29: 0.9027237354 | Q29: 1.57 | R29: 1.57 | S29: 21.3 | T29: 24.6 | U29: 0.8658536585 | Y29: 3 | Z29: =(X29)+Y29 -> 3 | AA29: 22.3 | AB29: 26.2 | AC29: 0.8511450382 | AF29: 2.2 | AG29: =(AE29)+AF29 -> 2.2
B30: 2017-01-04 | C30: 64 | D30: 21.5 | E30: 24.9 | F30: 0.8634538153 | J30: 3.3 | K30: 3.3 | L30: 22.9 | M30: 25.7 | N30: 0.8910505837 | Q30: 1.4 | R30: 1.4 | S30: 20.9 | T30: 24.6 | U30: 0.8495934959 | Y30: 3.1 | Z30: 3.1 | AA30: 21.3 | AB30: 26.2 | AC30: 0.8129770992 | AF30: 2.4 | AG30: 2.4
B31: 2017-01-05 | C31: 65 | D31: 21 | E31: 24.9 | F31: 0.843373494 | H31: 0 | I31: =H31*0.2043 -> 0 | J31: 3.2 | K31: 3.2 | L31: 22.4 | M31: 25.7 | N31: 0.8715953307 | P31: 0.5 | Q31: 1 | R31: 1.5 | S31: 20.9 | T31: 24.6 | U31: 0.8495934959 | W31: 0.4 | X31: =W31*0.2043 -> 0.08172 | Y31: 3 | Z31: 3.08172 | AA31: 21 | AB31: 26.2 | AC31: 0.8015267176 | AE31: 0.5 | AF31: 2.3 | AG31: 2.8
B32: 2017-01-06 | C32: 66 | D32: 21 | E32: 24.9 | F32: 0.843373494 | H32: 0.6 | I32: =H32*0.2043 -> 0.12258 | J32: 3.1 | K32: 3.22258 | L32: 22 | M32: 25.7 | N32: 0.8560311284 | P32: 0.97 | Q32: 0.6 | R32: 1.57 | S32: 20.9 | T32: 24.6 | U32: 0.8495934959 | W32: 0.6 | X32: =W32*0.2043 -> 0.12258 | Y32: 2.9 | Z32: 3.02258 | AA32: 21.7 | AB32: 26.2 | AC32: 0.8282442748 | AE32: 0.5 | AF32: 2.3 | AG32: 2.8
B33: 2017-01-07 | C33: 67 | D33: 21 | E33: 24.9 | F33: 0.843373494 | H33: 0.6 | I33: 0.12258 | J33: 3.3 | K33: 3.42258 | L33: 22.1 | M33: 25.7 | N33: 0.859922179 | P33: 1 | Q33: 0.57 | R33: 1.57 | S33: 20.2 | T33: 24.6 | U33: 0.8211382114 | W33: 0.8 | X33: 0.16344 | Y33: 3.5 | Z33: 3.66344 | AA33: 21.7 | AB33: 26.2 | AC33: 0.8282442748 | AE33: 0.7 | AF33: 2.3 | AG33: 3
B34: 2017-01-08 | C34: 68 | D34: 21.4 | E34: 24.9 | F34: 0.859437751 | J34: 3.5 | K34: 3.5 | L34: 22 | M34: 25.7 | N34: 0.8560311284 | Q34: 1.6 | R34: 1.6 | S34: 20.9 | T34: 24.6 | U34: 0.8495934959 | X34: 0 | Y34: 3 | Z34: 3 | AA34: 22.2 | AB34: 26.2 | AC34: 0.8473282443 | AF34: 2.3 | AG34: 2.3
B35: 2017-01-09 | C35: 69 | D35: 21.1 | E35: 24.9 | F35: 0.8473895582 | H35: 0.5 | I35: 0.10215 | J35: 3.2 | K35: 3.30215 | L35: 22.6 | M35: 25.7 | N35: 0.8793774319 | P35: 0.95 | Q35: 0.62 | R35: 1.57 | S35: 20.6 | T35: 24.6 | U35: 0.837398374 | W35: 0.5 | X35: 0.10215 | Y35: 3.2 | Z35: 3.30215 | AA35: 21.7 | AB35: 26.2 | AC35: 0.8282442748 | AE35: 0.75 | AF35: 1.82 | AG35: 2.57
B36: 2017-01-10 | C36: 70 | D36: 21 | E36: 24.9 | F36: 0.843373494 | H36: 0.4 | I36: 0.08172 | J36: 3.2 | K36: 3.28172 | L36: 22.9 | M36: 25.7 | N36: 0.8910505837 | P36: 0.75 | Q36: 0.65 | R36: 1.4 | S36: 20.8 | T36: 24.6 | U36: 0.8455284553 | W36: 0.65 | X36: 0.132795 | Y36: 2.99 | Z36: 3.122795 | AA36: 22 | AB36: 26.2 | AC36: 0.8396946565 | AE36: 0.65 | AF36: 1.95 | AG36: 2.6
B37: 2017-01-11 | C37: 71 | D37: 21.1 | E37: 24.9 | F37: 0.8473895582 | H37: 0.35 | I37: 0.071505 | J37: 3.5 | K37: 3.571505 | L37: 22.9 | M37: 25.7 | N37: 0.8910505837 | P37: 1 | Q37: 0.3 | R37: 1.3 | S37: 20.7 | T37: 24.6 | U37: 0.8414634146 | W37: 0.5 | X37: 0.10215 | Y37: 3.4 | Z37: 3.50215 | AA37: 21.9 | AB37: 26.2 | AC37: 0.8358778626 | AE37: 1 | AF37: 2.5 | AG37: 3.5
B38: 2017-01-12 | C38: 72 | D38: 21 | E38: 24.9 | F38: 0.843373494 | H38: 0.95 | I38: 0.194085 | J38: 3 | K38: 3.194085 | L38: 22.6 | M38: 25.7 | N38: 0.8793774319 | P38: 1 | Q38: 0.4 | R38: 1.4 | S38: 20.9 | T38: 24.6 | U38: 0.8495934959 | W38: 0.68 | X38: 0.138924 | Y38: 3 | Z38: 3.138924 | AA38: 22.4 | AB38: 26.2 | AC38: 0.8549618321 | AE38: 0.6 | AF38: 2.2 | AG38: 2.8
B39: 2017-01-13 | C39: 73 | D39: 21.2 | E39: 24.9 | F39: 0.8514056225 | H39: 1.25 | I39: 0.255375 | J39: 2.65 | K39: 2.905375 | L39: 23 | M39: 25.7 | N39: 0.8949416342 | P39: 1.3 | Q39: =R39-P39 -> 0 | R39: 1.3 | S39: 20.7 | T39: 24.6 | U39: 0.8414634146 | W39: 1.45 | X39: 0.296235 | Y39: 2.35 | Z39: 2.646235 | AA39: 22.4 | AB39: 26.2 | AC39: 0.8549618321 | AE39: 0.6 | AF39: =AG39-AE39 -> 2.2 | AG39: 2.8
B40: 2017-01-14 | C40: 74 | D40: 21.3 | E40: 24.9 | F40: 0.8554216867 | H40: 1 | I40: 0.2043 | J40: 3.1 | K40: 3.3043 | L40: 22.8 | M40: 25.7 | N40: 0.8871595331 | P40: 1 | Q40: 0.3 | R40: 1.3 | S40: 20.3 | T40: 24.6 | U40: 0.825203252 | W40: 1.2 | X40: 0.24516 | Y40: 3.7 | Z40: 3.94516 | AA40: 22.8 | AB40: 26.2 | AC40: 0.8702290076 | AE40: 0.6 | AF40: 2.2 | AG40: 2.8
B41: 2017-01-15 | C41: 75 | D41: 21 | E41: 24.9 | F41: 0.843373494 | H41: 1.3 | I41: 0.26559 | J41: 3.1 | K41: 3.36559 | L41: 22.8 | M41: 25.7 | N41: 0.8871595331 | P41: 1.3 | Q41: =R41-P41 -> 0 | R41: 1.3 | S41: 20.9 | T41: 24.6 | U41: 0.8495934959 | W41: 1.8 | X41: 0.36774 | Y41: 3.1 | Z41: 3.46774 | AA41: 22.7 | AB41: 26.2 | AC41: 0.8664122137 | AE41: 0.55 | AF41: =AG41-AE41 -> 2.25 | AG41: 2.8
B42: 2017-01-16 | C42: 76 | D42: 20.9 | E42: 24.9 | F42: 0.8393574297 | H42: 1.35 | I42: 0.275805 | J42: 3.2 | K42: 3.475805 | L42: 22.7 | M42: 25.7 | N42: 0.8832684825 | P42: 1.1 | Q42: 0.2 | R42: 1.3 | S42: 20.8 | T42: 24.6 | U42: 0.8455284553 | W42: 1.7 | X42: 0.34731 | Y42: 3.4 | Z42: 3.74731 | AA42: 22.5 | AB42: 26.2 | AC42: 0.858778626 | AE42: 0.7 | AF42: 2.1 | AG42: 2.8
B43: 2017-01-17 | C43: 77 | D43: 20.7 | E43: 24.9 | F43: 0.8313253012 | H43: 2.78 | I43: 0.567954 | J43: 3.22 | K43: 3.787954 | L43: 22.5 | M43: 25.7 | N43: =L43/M43 -> 0.8754863813 | P43: 0.81 | Q43: 0.49 | R43: 1.3 | S43: 20.8 | T43: 24.6 | U43: 0.8455284553 | W43: 2.9 | X43: 0.59247 | Y43: 3.2 | Z43: 3.79247 | AA43: 22.2 | AB43: 26.2 | AC43: 0.8473282443 | AE43: 0 | AF43: 2.8 | AG43: 2.8
B44: 2017-01-18 | C44: 78 | D44: 21.4 | E44: 24.9 | F44: 0.859437751 | H44: 2.14 | I44: 0.437202 | J44: =K44-I44 -> 3.162798 | K44: 3.6 | L44: 22.5 | M44: 25.7 | N44: =L44/M44 -> 0.8754863813 | P44: 0.38 | Q44: 0.87 | R44: 1.25 | S44: 21.5 | T44: 24.6 | U44: 0.8739837398 | W44: 2.11 | X44: 0.431073 | Y44: =Z44-X44 -> 2.968927 | Z44: 3.4 | AA44: 22.7 | AB44: 26.2 | AC44: 0.8664122137 | AE44: 0.06 | AF44: 2.64 | AG44: 2.7
B45: 2017-01-19 | C45: 79 | D45: 21.5 | E45: 24.9 | F45: 0.8634538153 | H45: 2.43 | I45: 0.496449 | J45: =K45-I45 -> 3.003551 | K45: 3.5 | L45: 22.4 | M45: 25.7 | N45: 0.8715953307 | P45: 0.53 | Q45: 0.67 | R45: 1.2 | S45: 21.3 | T45: 24.6 | U45: 0.8658536585 | W45: 3.25 | X45: 0.663975 | Y45: =Z45-X45 -> 2.736025 | Z45: 3.4 | AA45: 22.7 | AB45: 26.2 | AC45: 0.8664122137 | AE45: 0.02 | AF45: 2.48 | AG45: 2.5
B46: 2017-01-20 | C46: 80 | D46: 21.6 | E46: 24.9 | F46: 0.8674698795 | H46: 2.54 | I46: 0.518922 | J46: 2.881078 | K46: 3.4 | L46: 22.4 | M46: 25.7 | N46: 0.8715953307 | P46: 0.59 | Q46: 0.51 | R46: 1.1 | S46: 21 | T46: 24.6 | U46: 0.8536585366 | W46: 2.29 | X46: 0.467847 | Y46: 3.032153 | Z46: 3.5 | AA46: 21.3 | AB46: 26.2 | AC46: 0.8129770992 | AE46: 0.01 | AF46: 2.79 | AG46: 2.8
B47: 2017-01-21 | C47: 81 | D47: 22.3 | E47: 24.9 | F47: 0.8955823293 | H47: 2.57 | I47: 0.525051 | J47: 2.774949 | K47: 3.3 | L47: 22.1 | M47: 25.7 | N47: 0.859922179 | P47: 0.55 | Q47: 0.55 | R47: 1.1 | S47: 21.2 | T47: 24.6 | U47: 0.8617886179 | W47: 3.31 | X47: 0.676233 | Y47: 2.723767 | Z47: 3.4 | AA47: 22.3 | AB47: 26.2 | AC47: 0.8511450382 | AE47: 0.01 | AF47: 2.69 | AG47: 2.7
B48: 2017-01-22 | C48: 82 | D48: 21.8 | E48: 24.9 | F48: 0.875502008 | I48: 0 | J48: 3.3 | K48: 3.3 | L48: 22 | M48: 25.7 | N48: 0.8560311284 | Q48: 1.1 | R48: 1.1 | S48: 21.1 | T48: 24.6 | U48: 0.8577235772 | X48: 0 | Y48: 3.4 | Z48: 3.4 | AA48: 22.2 | AB48: 26.2 | AC48: 0.8473282443 | AF48: 2.7 | AG48: 2.7
B49: 2017-01-23 | C49: 83 | D49: 21.7 | E49: 24.9 | F49: 0.8714859438 | H49: 2.35 | I49: 0.480105 | J49: 2.819895 | K49: 3.3 | L49: 21.8 | M49: 25.7 | N49: 0.8482490272 | P49: 0.83 | Q49: 0.37 | R49: 1.2 | S49: 21.3 | T49: 24.6 | U49: 0.8658536585 | W49: 2.68 | X49: 0.547524 | Y49: 2.852476 | Z49: 3.4 | AA49: 22.3 | AB49: 26.2 | AC49: 0.8511450382 | AE49: 0.53 | AF49: 1 | AG49: 1.53
B50: 2017-01-24 | C50: 84 | D50: 21.9 | E50: 24.9 | F50: 0.8795180723 | H50: 2.95 | I50: 0.602685 | J50: 2.647315 | K50: 3.25 | L50: 21.6 | M50: 25.7 | N50: 0.8404669261 | P50: 0.99 | Q50: 0.26 | R50: 1.25 | S50: 21 | T50: 24.6 | U50: 0.8536585366 | W50: 3.03 | X50: 0.619029 | Y50: 2.780971 | Z50: 3.4 | AA50: 21.3 | AB50: 26.2 | AC50: 0.8129770992 | AE50: 0.66 | AF50: 2.34 | AG50: 3
B51: 2017-01-25 | C51: 85 | D51: 22.2 | E51: 24.9 | F51: 0.8915662651 | H51: 1.69 | I51: 0.345267 | J51: 2.804733 | K51: 3.15 | L51: 21.6 | M51: 25.7 | N51: 0.8404669261 | P51: 0.88 | Q51: 0.47 | R51: 1.35 | S51: 21.2 | T51: 24.6 | U51: 0.8617886179 | W51: 3.32 | X51: 0.678276 | Y51: 2.721724 | Z51: 3.4 | AA51: 22.2 | AB51: 26.2 | AC51: 0.8473282443 | AE51: 0.29 | AF51: 2.51 | AG51: 2.8
B52: 2017-01-26 | C52: 86 | D52: 21.9 | E52: 24.9 | F52: 0.8795180723 | H52: 2.65 | I52: 0.541395 | J52: 2.558605 | K52: 3.1 | L52: 21.6 | M52: 25.7 | N52: 0.8404669261 | P52: 0.69 | Q52: 0.71 | R52: 1.4 | S52: 21.3 | T52: 24.6 | U52: 0.8658536585 | W52: 3.03 | X52: 0.619029 | Y52: 2.780971 | Z52: 3.4 | AA52: 22.6 | AB52: 26.2 | AC52: 0.8625954198 | AE52: 0.1 | AF52: 2.6 | AG52: 2.7
B53: 2017-01-27 | C53: 87 | D53: 21.9 | E53: 24.9 | F53: 0.8795180723 | G53: 209 | H53: =G53*0.0085 -> 1.7765 | I53: =H53*0.2043 -> 0.36293895 | J53: 2.63706105 | K53: 3 | L53: 21.9 | M53: 25.7 | N53: 0.8521400778 | O53: 112 | P53: =O53*0.0084 -> 0.9408 | Q53: 0.4092 | R53: 1.35 | S53: 21.2 | T53: 24.6 | U53: 0.8617886179 | V53: 242 | W53: =V53*0.0085 -> 2.057 | X53: 0.4202451 | Y53: 2.9797549 | Z53: 3.4 | AA53: 22.7 | AB53: 26.2 | AC53: 0.8664122137 | AD53: 42 | AE53: =AD53*0.009 -> 0.378 | AF53: 2.222 | AG53: 2.6
B54: 2017-01-28 | C54: 88 | D54: 21.9 | E54: 24.9 | F54: 0.8795180723 | G54: 215 | H54: =G54*0.0085 -> 1.8275 | I54: 0.37335825 | J54: 2.52664175 | K54: 2.9 | L54: 21.6 | M54: 25.7 | N54: 0.8404669261 | O54: 139 | P54: =O54*0.0084 -> 1.1676 | Q54: 0.2324 | R54: 1.4 | S54: 21.5 | T54: 24.6 | U54: 0.8739837398 | V54: 272 | W54: =V54*0.0085 -> 2.312 | X54: 0.4723416 | Y54: 2.8276584 | Z54: 3.3 | AA54: 22.4 | AB54: 26.2 | AC54: 0.8549618321 | AD54: 52 | AE54: =AD54*0.009 -> 0.468 | AF54: 2.182 | AG54: 2.65
B55: 2017-01-29 | C55: 89 | D55: 21.8 | E55: 24.9 | F55: 0.875502008 | I55: 0 | J55: 2.8 | K55: 2.8 | L55: 21.5 | M55: 25.7 | N55: 0.8365758755 | Q55: 1.4 | R55: 1.4 | S55: 21.5 | T55: 24.6 | U55: 0.8739837398 | Y55: 3.2 | Z55: 3.2 | AA55: 23 | AB55: 26.2 | AC55: 0.8778625954 | AF55: 2.5 | AG55: 2.5
B56: 2017-01-30 | C56: 90 | D56: 21.4 | E56: 24.9 | F56: 0.859437751 | G56: 83 | H56: 0.7055 | I56: 0.14413365 | J56: 2.70586635 | K56: 2.85 | L56: 21.9 | M56: 25.7 | N56: 0.8521400778 | O56: 145 | P56: 1.218 | Q56: 0.182 | R56: 1.4 | S56: 21.1 | T56: 24.6 | U56: 0.8577235772 | V56: 98 | W56: 0.833 | X56: 0.1701819 | Y56: 3.1298181 | Z56: 3.3 | AA56: 22.5 | AB56: 26.2 | AC56: 0.858778626 | AD56: 68 | AE56: 0.612 | AF56: 1.938 | AG56: 2.55
B57: 2017-01-31 | C57: 91 | D57: 21.5 | E57: 24.9 | F57: 0.8634538153 | G57: 84 | H57: 0.714 | I57: 0.1458702 | J57: 2.6541298 | K57: 2.8 | L57: 21.8 | M57: 25.7 | N57: 0.8482490272 | O57: 145 | P57: 1.218 | Q57: 0.182 | R57: 1.4 | S57: 21.5 | T57: 24.6 | U57: 0.8739837398 | V57: 118 | W57: 1.003 | X57: 0.2049129 | Y57: 2.9950871 | Z57: 3.2 | AA57: 22.7 | AB57: 26.2 | AC57: 0.8664122137 | AD57: 19 | AE57: 0.171 | AF57: 2.329 | AG57: 2.5
B58: 2017-02-01 | C58: 92 | D58: 21.2 | E58: 24.9 | F58: 0.8514056225 | G58: 97 | H58: 0.8245 | I58: 0.16844535 | J58: 2.68155465 | K58: 2.85 | L58: 21.6 | M58: 25.7 | N58: 0.8404669261 | O58: 200 | P58: 1.68 | Q58: 0 | R58: 1.68 | S58: 21.1 | T58: 24.6 | U58: 0.8577235772 | V58: 70 | W58: 0.595 | X58: 0.1215585 | Y58: 3.1284415 | Z58: 3.25 | AA58: 22.8 | AB58: 26.2 | AC58: 0.8702290076 | AD58: 43 | AE58: 0.387 | AF58: 2.013 | AG58: 2.4
B59: 2017-02-02 | C59: 93 | D59: 21 | E59: 24.9 | F59: 0.843373494 | G59: 141 | H59: 1.1985 | I59: 0.24485355 | J59: 2.60514645 | K59: 2.85 | L59: 21.7 | M59: 25.7 | N59: 0.8443579767 | O59: 150 | P59: 1.26 | Q59: 0.14 | R59: 1.4 | S59: 21 | T59: 24.6 | U59: 0.8536585366 | V59: 91 | W59: 0.7735 | X59: 0.15802605 | Y59: 3.09197395 | Z59: 3.25 | AA59: 22.5 | AB59: 26.2 | AC59: 0.858778626 | AD59: 12 | AE59: 0.108 | AF59: 2.292 | AG59: 2.4
B60: 2017-02-03 | C60: 94 | D60: 20.7 | E60: 24.9 | F60: =D60/E60 -> 0.8313253012 | G60: 125 | H60: 1.0625 | I60: 0.21706875 | J60: 2.68293125 | K60: 2.9 | L60: 21.6 | M60: 25.7 | N60: =L60/M60 -> 0.8404669261 | O60: 145 | P60: 1.218 | Q60: 0.232 | R60: 1.45 | S60: 21.2 | T60: 24.6 | U60: =S60/T60 -> 0.8617886179 | V60: 123 | W60: 1.0455 | X60: 0.21359565 | Y60: 2.98640435 | Z60: 3.2 | AA60: 22.9 | AB60: 26.2 | AC60: =AA60/AB60 -> 0.8740458015 | AD60: 11 | AE60: 0.099 | AF60: 2.201 | AG60: 2.3
B61: 2017-02-04 | C61: 95 | D61: 20.7 | E61: 24.9 | F61: 0.8313253012 | G61: 119 | H61: 1.0115 | I61: 0.20664945 | J61: 2.74335055 | K61: 2.95 | L61: 21.6 | M61: 25.7 | N61: 0.8404669261 | O61: 66 | P61: 0.5544 | Q61: 0.8956 | R61: 1.45 | S61: 21 | T61: 24.6 | U61: 0.8536585366 | V61: 108 | W61: 0.918 | X61: 0.1875474 | Y61: 3.0124526 | Z61: 3.2 | AA61: 23 | AB61: 26.2 | AC61: 0.8778625954 | AD61: 25 | AE61: 0.225 | AF61: 1.975 | AG61: 2.2
B62: 2017-02-05 | C62: 96 | D62: 20.5 | E62: 24.9 | F62: 0.8232931727 | I62: 0 | J62: 3.05 | K62: 3.05 | L62: 21.8 | M62: 25.7 | N62: 0.8482490272 | Q62: 1.45 | R62: 1.45 | S62: 21.1 | T62: 24.6 | U62: 0.8577235772 | Y62: 3.2 | Z62: 3.2 | AA62: 22.9 | AB62: 26.2 | AC62: 0.8740458015 | AF62: 2.15 | AG62: 2.15
B63: 2017-02-06 | C63: 97 | D63: 20.7 | E63: 24.9 | F63: 0.8313253012 | G63: 133 | H63: 1.1305 | I63: 0.23096115 | J63: 2.81903885 | K63: 3.05 | L63: 22.2 | M63: 25.7 | N63: 0.8638132296 | O63: 66 | P63: 0.5544 | Q63: 0.8456 | R63: 1.4 | S63: 21.1 | T63: 24.6 | U63: 0.8577235772 | V63: 118 | W63: 1.003 | X63: 0.2049129 | Y63: 2.9950871 | Z63: 3.2 | AA63: 22.7 | AB63: 26.2 | AC63: 0.8664122137 | AD63: 18 | AE63: 0.162 | AF63: 1.938 | AG63: 2.1
B64: 2017-02-07 | C64: 98 | D64: 20.6 | E64: 24.9 | F64: 0.8273092369 | G64: 140 | H64: 1.19 | I64: 0.243117 | J64: 2.906883 | K64: 3.15 | L64: 22.3 | M64: 25.7 | N64: 0.8677042802 | O64: 75 | P64: 0.63 | Q64: 0.72 | R64: 1.35 | S64: 21 | T64: 24.6 | U64: 0.8536585366 | V64: 115 | W64: 0.9775 | X64: 0.19970325 | Y64: 3.00029675 | Z64: 3.2 | AA64: 22.6 | AB64: 26.2 | AC64: 0.8625954198 | AD64: 109 | AE64: 0.981 | AF64: 1.119 | AG64: 2.1
B65: 2017-02-08 | C65: 99 | D65: 20.7 | E65: 24.9 | F65: 0.8313253012 | G65: 145 | H65: 1.2325 | I65: 0.25179975 | J65: 2.89820025 | K65: 3.15 | L65: 22.1 | M65: 25.7 | N65: 0.859922179 | O65: 121 | P65: 1.0164 | Q65: 0.3336 | R65: 1.35 | S65: 20.9 | T65: 24.6 | U65: 0.8495934959 | V65: 109 | W65: 0.9265 | X65: 0.18928395 | Y65: 3.01071605 | Z65: 3.2 | AA65: 22.1 | AB65: 26.2 | AC65: 0.8435114504 | AD65: 72 | AE65: 0.648 | AF65: 1.552 | AG65: 2.2
B66: 2017-02-09 | C66: 100 | D66: 20.3 | E66: 24.9 | F66: 0.8152610442 | G66: 146 | H66: 1.241 | I66: 0.2535363 | J66: 2.9964637 | K66: 3.25 | L66: 21.9 | M66: 25.7 | N66: 0.8521400778 | O66: 156 | P66: 1.3104 | Q66: 0.0396 | R66: 1.35 | S66: 21 | T66: 24.6 | U66: 0.8536585366 | V66: 99 | W66: 0.8415 | X66: 0.17191845 | Y66: 3.02808155 | Z66: 3.2 | AA66: 22.1 | AB66: 26.2 | AC66: 0.8435114504 | AD66: 78 | AE66: 0.702 | AF66: 1.498 | AG66: 2.2
B67: 2017-02-10 | C67: 101 | D67: 20.9 | E67: 24.9 | F67: 0.8393574297 | G67: 133 | H67: 1.1305 | I67: 0.23096115 | J67: 2.96903885 | K67: 3.2 | L67: 21.6 | M67: 25.7 | N67: 0.8404669261 | O67: 154 | P67: 1.2936 | Q67: 0.1064 | R67: 1.4 | S67: 20.8 | T67: 24.6 | U67: 0.8455284553 | V67: 117 | W67: 0.9945 | X67: 0.20317635 | Y67: 2.99682365 | Z67: 3.2 | AA67: 22.5 | AB67: 26.2 | AC67: 0.858778626 | AD67: 77 | AE67: 0.693 | AF67: 1.457 | AG67: 2.15
B68: 2017-02-11 | C68: 102 | D68: 21 | E68: 24.9 | F68: 0.843373494 | G68: 139 | H68: 1.1815 | I68: 0.24138045 | J68: 2.97861955 | K68: 3.22 | L68: 21.4 | M68: 25.7 | N68: 0.8326848249 | O68: 168 | P68: 1.4112 | Q68: 0.0888 | R68: 1.5 | S68: 20.8 | T68: 24.6 | U68: 0.8455284553 | V68: 126 | W68: 1.071 | X68: 0.2188053 | Y68: 2.9811947 | Z68: 3.2 | AA68: 22.4 | AB68: 26.2 | AC68: 0.8549618321 | AD68: 87 | AE68: 0.783 | AF68: 1.367 | AG68: 2.15
B69: 2017-02-12 | C69: 103 | D69: 21.3 | E69: 24.9 | F69: 0.8554216867 | G69: 132 | H69: 1.122 | I69: 0.2292246 | J69: 2.9207754 | K69: 3.15 | L69: 21.2 | M69: 25.7 | N69: 0.8249027237 | O69: 164 | P69: 1.3776 | Q69: 0.2224 | R69: 1.6 | S69: 20.9 | T69: 24.6 | U69: 0.8495934959 | V69: 133 | W69: 1.1305 | X69: 0.23096115 | Y69: 2.96903885 | Z69: 3.2 | AA69: 22.5 | AB69: 26.2 | AC69: 0.858778626 | AD69: 104 | AE69: 0.936 | AF69: 1.164 | AG69: 2.1
B70: 2017-02-13 | C70: 104 | D70: 21.4 | E70: 24.9 | F70: 0.859437751 | G70: 130 | H70: 1.105 | I70: 0.2257515 | J70: 2.8742485 | K70: 3.1 | L70: 21.2 | M70: 25.7 | N70: 0.8249027237 | O70: 174 | P70: 1.4616 | Q70: 0.3384 | R70: 1.8 | S70: 21.1 | T70: 24.6 | U70: 0.8577235772 | V70: 131 | W70: 1.1135 | X70: 0.22748805 | Y70: 2.97251195 | Z70: 3.2 | AA70: 22.4 | AB70: 26.2 | AC70: 0.8549618321 | AD70: 121 | AE70: 1.089 | AF70: 1.011 | AG70: 2.1
B71: 2017-02-14 | C71: 105 | D71: 21.3 | E71: 24.9 | F71: 0.8554216867 | G71: 138 | H71: 1.173 | I71: 0.2396439 | J71: 2.8603561 | K71: 3.1 | L71: 21.4 | M71: 25.7 | N71: 0.8326848249 | O71: 180 | P71: 1.512 | Q71: 0.438 | R71: 1.95 | S71: 20.9 | T71: 24.6 | U71: 0.8495934959 | V71: 140 | W71: 1.19 | X71: 0.243117 | Y71: 2.956883 | Z71: 3.2 | AA71: 21.9 | AB71: 26.2 | AC71: 0.8358778626 | AD71: 131 | AE71: 1.179 | AF71: 1.121 | AG71: 2.3
B72: 2017-02-15 | C72: 106 | D72: 21.4 | E72: 24.9 | F72: 0.859437751 | G72: 140 | H72: 1.19 | I72: 0.243117 | J72: 2.856883 | K72: 3.1 | L72: 21.6 | M72: 25.7 | N72: 0.8404669261 | O72: 124 | P72: 1.0416 | Q72: 0.9084 | R72: 1.95 | S72: 20.9 | T72: 24.6 | U72: 0.8495934959 | V72: 132 | W72: 1.122 | X72: 0.2292246 | Y72: 2.9707754 | Z72: 3.2 | AA72: 21.9 | AB72: 26.2 | AC72: 0.8358778626 | AD72: 115 | AE72: 1.035 | AF72: 1.365 | AG72: 2.4
B73: 2017-02-16 | C73: 107 | D73: 21.7 | E73: 24.9 | F73: 0.8714859438 | G73: 111 | H73: 0.9435 | I73: 0.19275705 | J73: 2.70724295 | K73: 2.9 | L73: 22.1 | M73: 25.7 | N73: 0.859922179 | O73: 122 | P73: 1.0248 | Q73: 0.8752 | R73: 1.9 | S73: 20.9 | T73: 24.6 | U73: 0.8495934959 | V73: 179 | W73: 1.5215 | X73: 0.31084245 | Y73: 2.88915755 | Z73: 3.2 | AA73: 22.3 | AB73: 26.2 | AC73: 0.8511450382 | AD73: 123 | AE73: 1.107 | AF73: 1.193 | AG73: 2.3
B74: 2017-02-17 | C74: 108 | D74: 21.6 | E74: 24.9 | F74: 0.8674698795 | G74: 133 | H74: 1.1305 | I74: 0.23096115 | J74: 2.56903885 | K74: 2.8 | L74: 22.3 | M74: 25.7 | N74: 0.8677042802 | O74: 138 | P74: 1.1592 | Q74: 0.6908 | R74: 1.85 | S74: 21 | T74: 24.6 | U74: 0.8536585366 | V74: 203 | W74: 1.7255 | X74: 0.35251965 | Y74: 2.84748035 | Z74: 3.2 | AA74: 22.3 | AB74: 26.2 | AC74: 0.8511450382 | AD74: 123 | AE74: 1.107 | AF74: 1.193 | AG74: 2.3
B75: 2017-02-18 | C75: 109 | D75: 21.5 | E75: 24.9 | F75: 0.8634538153 | G75: 133 | H75: 1.1305 | I75: 0.23096115 | J75: 2.56903885 | K75: 2.8 | L75: 22.3 | M75: 25.7 | N75: 0.8677042802 | O75: 137 | P75: 1.1508 | Q75: 0.6492 | R75: 1.8 | S75: 21 | T75: 24.6 | U75: 0.8536585366 | V75: 202 | W75: 1.717 | X75: 0.3507831 | Y75: 2.8492169 | Z75: 3.2 | AA75: 22 | AB75: 26.2 | AC75: 0.8396946565 | AD75: 136 | AE75: 1.224 | AF75: 1.176 | AG75: 2.4
B76: 2017-02-19 | C76: 110 | D76: 21.2 | E76: 24.9 | F76: 0.8514056225 | I76: 0 | J76: 2.85 | K76: 2.85 | L76: 22.4 | M76: 25.7 | N76: 0.8715953307 | Q76: 1.7 | R76: 1.7 | S76: 20.5 | T76: 24.6 | U76: 0.8333333333 | X76: 0 | Y76: 3.3 | Z76: 3.3 | AA76: 21.8 | AB76: 26.2 | AC76: 0.8320610687 | AF76: 2.5 | AG76: 2.5
B77: 2017-02-20 | C77: 111 | D77: 21.2 | E77: 24.9 | F77: 0.8514056225 | G77: 125 | H77: 1.0625 | I77: 0.21706875 | J77: 2.63293125 | K77: 2.85 | L77: 22.9 | M77: 25.7 | N77: 0.8910505837 | O77: 144 | P77: 1.2096 | Q77: 0.3904 | R77: 1.6 | S77: 20.6 | T77: 24.6 | U77: 0.837398374 | V77: 187 | W77: 1.5895 | X77: 0.32473485 | Y77: 3.07526515 | Z77: 3.4 | AA77: 22.2 | AB77: 26.2 | AC77: 0.8473282443 | AD77: 136 | AE77: 1.224 | AF77: 1.226 | AG77: 2.45
B78: 2017-02-21 | C78: 112 | D78: 21.5 | E78: 24.9 | F78: 0.8634538153 | G78: 135 | H78: 1.1475 | I78: 0.23443425 | J78: 2.56556575 | K78: 2.8 | L78: 22.8 | M78: 25.7 | N78: 0.8871595331 | O78: 86 | P78: 0.7224 | Q78: 0.8276 | R78: 1.55 | S78: 20.8 | T78: 24.6 | U78: 0.8455284553 | V78: 205 | W78: 1.7425 | X78: 0.35599275 | Y78: 3.04400725 | Z78: 3.4 | AA78: 22.3 | AB78: 26.2 | AC78: 0.8511450382 | AD78: 136 | AE78: 1.224 | AF78: 1.226 | AG78: 2.45
B79: 2017-02-22 | C79: 113 | D79: 21.5 | E79: 24.9 | F79: =D79/E79 -> 0.8634538153 | G79: 134 | H79: 1.139 | I79: 0.2326977 | J79: 2.5173023 | K79: 2.75 | L79: 22.9 | M79: 25.7 | N79: 0.8910505837 | O79: 104 | P79: 0.8736 | Q79: 0.5764 | R79: 1.45 | S79: 20.9 | T79: 24.6 | U79: 0.8495934959 | V79: 197 | W79: 1.6745 | X79: 0.34210035 | Y79: 3.05789965 | Z79: 3.4 | AA79: 22.3 | AB79: 26.2 | AC79: 0.8511450382 | AD79: 137 | AE79: 1.233 | AF79: 1.217 | AG79: 2.45
B80: 2017-02-23 | C80: 114 | D80: 20.6 | E80: 24.9 | F80: 0.8273092369 | G80: 121 | H80: 1.0285 | I80: 0.21012255 | J80: 2.88987745 | K80: 3.1 | L80: 22.6 | M80: 25.7 | N80: 0.8793774319 | O80: 93 | P80: 0.7812 | Q80: 0.6688 | R80: 1.45 | S80: 20.8 | T80: 24.6 | U80: 0.8455284553 | V80: 175 | W80: 1.4875 | X80: 0.30389625 | Y80: 3.09610375 | Z80: 3.4 | AA80: 22.1 | AB80: 26.2 | AC80: 0.8435114504 | AD80: 142 | AE80: 1.278 | AF80: 1.172 | AG80: 2.45
B81: 2017-02-24 | C81: 115 | D81: 21.5 | E81: 24.9 | F81: 0.8634538153 | G81: 138 | H81: 1.173 | I81: 0.2396439 | J81: 2.5103561 | K81: 2.75 | L81: 22.5 | M81: 25.7 | N81: 0.8754863813 | O81: 103 | P81: 0.8652 | Q81: 0.5348 | R81: 1.4 | S81: 21.4 | T81: 24.6 | U81: 0.8699186992 | V81: 191 | W81: 1.6235 | X81: 0.33168105 | Y81: 2.96831895 | Z81: 3.3 | AA81: 22.1 | AB81: 26.2 | AC81: 0.8435114504 | AD81: 132 | AE81: 1.188 | AF81: 1.262 | AG81: 2.45
B82: 2017-02-25 | C82: 116 | D82: 21.1 | E82: 24.9 | F82: 0.8473895582 | G82: 55 | H82: 0.4675 | I82: 0.09551025 | J82: 2.75448975 | K82: 2.85 | L82: 22.4 | M82: 25.7 | N82: 0.8715953307 | O82: 157 | P82: 1.3188 | Q82: 0 | R82: 1.32 | S82: 20.8 | T82: 24.6 | U82: 0.8455284553 | V82: 187 | W82: 1.5895 | X82: 0.32473485 | Y82: 3.07526515 | Z82: 3.4 | AA82: 22.1 | AB82: 26.2 | AC82: 0.8435114504 | AD82: 141 | AE82: 1.269 | AF82: 1.181 | AG82: 2.45
B83: 2017-02-26 | C83: 117 | D83: 21.1 | E83: 24.9 | F83: 0.8473895582 | I83: 0 | J83: 2.85 | K83: 2.85 | L83: 22 | M83: 25.7 | N83: 0.8560311284 | Q83: 1.35 | R83: 1.35 | S83: 20.9 | T83: 24.6 | U83: 0.8495934959 | X83: 0 | Y83: 3.4 | Z83: 3.4 | AA83: 22 | AB83: 26.2 | AC83: 0.8396946565 | AF83: 2.5 | AG83: 2.5
B84: 2017-02-27 | C84: 118 | D84: 21 | E84: 24.9 | F84: 0.843373494 | G84: 107 | H84: 0.9095 | I84: 0.18581085 | J84: 2.71418915 | K84: 2.9 | L84: 22.4 | M84: 25.7 | N84: 0.8715953307 | O84: 147 | P84: 1.2348 | Q84: 0.0652 | R84: 1.3 | S84: 21 | T84: 24.6 | U84: 0.8536585366 | V84: 171 | W84: 1.4535 | X84: 0.29695005 | Y84: 3.05304995 | Z84: 3.35 | AA84: 22.8 | AB84: 26.2 | AC84: 0.8702290076 | AD84: 125 | AE84: 1.125 | AF84: 1.275 | AG84: 2.4
B85: 2017-02-28 | C85: 119 | D85: 21.4 | E85: 24.9 | F85: 0.859437751 | G85: 125 | H85: 1.0625 | I85: 0.21706875 | J85: 2.63293125 | K85: 2.85 | L85: 22.2 | M85: 25.7 | N85: 0.8638132296 | O85: 185 | P85: 1.554 | Q85: -0.004 | R85: 1.55 | S85: 21.1 | T85: 24.6 | U85: 0.8577235772 | V85: 160 | W85: 1.36 | X85: 0.277848 | Y85: 3.022152 | Z85: 3.3 | AA85: 22 | AB85: 26.2 | AC85: 0.8396946565 | AD85: 82 | AE85: 0.738 | AF85: 1.712 | AG85: 2.45
B86: 2017-03-01 | C86: 120 | D86: 20.5 | E86: 24.9 | F86: =D86/E86 -> 0.8232931727 | G86: 102 | H86: =G86*0.0085 -> 0.867 | I86: =H86*0.2043 -> 0.1771281 | J86: =K86-I86 -> 2.8228719 | K86: 3 | L86: 22 | M86: 25.7 | N86: =L86/M86 -> 0.8560311284 | O86: 175 | P86: =O86*0.0084 -> 1.47 | Q86: =R86-P86 -> 0 | R86: 1.47 | S86: 21 | T86: 24.6 | U86: =S86/T86 -> 0.8536585366 | V86: 134 | W86: =V86*0.0085 -> 1.139 | X86: =W86*0.2043 -> 0.2326977 | Y86: =Z86-X86 -> 3.0673023 | Z86: 3.3 | AA86: 23.2 | AB86: 26.2 | AC86: =AA86/AB86 -> 0.8854961832 | AD86: 81 | AE86: =AD86*0.009 -> 0.729 | AF86: =AG86-AE86 -> 1.571 | AG86: 2.3
B87: 2017-03-02 | C87: 121 | D87: 21.1 | E87: 24.9 | F87: 0.8473895582 | G87: 70 | H87: 0.595 | I87: 0.1215585 | J87: 2.7784415 | K87: 2.9 | L87: 21.7 | M87: 25.7 | N87: 0.8443579767 | O87: 171 | P87: 1.4364 | Q87: 0.0036 | R87: 1.44 | S87: 20.7 | T87: 24.6 | U87: 0.8414634146 | V87: 128 | W87: 1.088 | X87: 0.2222784 | Y87: 3.1277216 | Z87: 3.35 | AA87: 23.1 | AB87: 26.2 | AC87: 0.8816793893 | AD87: 57 | AE87: 0.513 | AF87: 1.787 | AG87: 2.3
B88: 2017-03-03 | C88: 122 | D88: 21.1 | E88: 24.9 | F88: 0.8473895582 | G88: 117 | H88: 0.9945 | I88: 0.20317635 | J88: 2.69682365 | K88: 2.9 | L88: 21.7 | M88: 25.7 | N88: 0.8443579767 | O88: 158 | P88: 1.3272 | Q88: 0.1228 | R88: 1.45 | S88: 20.8 | T88: 24.6 | U88: 0.8455284553 | V88: 147 | W88: 1.2495 | X88: 0.25527285 | Y88: 3.09472715 | Z88: 3.35 | AA88: 22.8 | AB88: 26.2 | AC88: 0.8702290076 | AD88: 61 | AE88: 0.549 | AF88: 1.751 | AG88: 2.3
B89: 2017-03-04 | C89: 123 | D89: 20.7 | E89: 24.9 | F89: 0.8313253012 | I89: 0 | J89: 3 | K89: 3 | L89: 21.5 | M89: 25.7 | N89: 0.8365758755 | Q89: 1.5 | R89: 1.5 | S89: 20.3 | T89: 24.6 | U89: 0.825203252 | X89: 0 | Y89: 3.5 | Z89: 3.5 | AA89: 22.6 | AB89: 26.2 | AC89: 0.8625954198 | AF89: 2.3 | AG89: 2.3
B90: 2017-03-05 | C90: 124 | D90: 20.9 | E90: 24.9 | F90: 0.8393574297 | I90: 0 | J90: 3 | K90: 3 | L90: 21.9 | M90: 25.7 | N90: 0.8521400778 | Q90: 1.45 | R90: 1.45 | S90: 20.4 | T90: 24.6 | U90: 0.8292682927 | X90: 0 | Y90: 3.5 | Z90: 3.5 | AA90: 23.1 | AB90: 26.2 | AC90: 0.8816793893 | AF90: 2.2 | AG90: 2.2
B91: 2017-03-06 | C91: 125 | D91: 21.3 | E91: 24.9 | F91: 0.8554216867 | G91: 109 | H91: 0.9265 | I91: 0.18928395 | J91: 2.71071605 | K91: 2.9 | L91: 22.4 | M91: 25.7 | N91: 0.8715953307 | O91: 216 | P91: =O91*0.004 -> 0.864 | Q91: 0.336 | R91: 1.2 | S91: 20.5 | T91: 24.6 | U91: 0.8333333333 | V91: 383 | W91: 3.2555 | X91: 0.66509865 | Y91: 2.83490135 | Z91: 3.5 | AA91: 23 | AB91: 26.2 | AC91: 0.8778625954 | AD91: 52 | AE91: =AD91*0.004 -> 0.208 | AF91: 1.892 | AG91: 2.1
B92: 2017-03-07 | C92: 126 | D92: 21.7 | E92: 24.9 | F92: 0.8714859438 | G92: 118 | H92: 1.003 | I92: 0.2049129 | K92: ad lib | L92: 21.9 | M92: 25.7 | N92: 0.8521400778 | O92: 173 | P92: 1.4532 | Q92: -0.0032 | R92: 1.45 | S92: 20.9 | T92: 24.6 | U92: 0.8495934959 | V92: 148 | W92: 1.258 | X92: 0.2570094 | Z92: ad lib | AA92: 23.2 | AB92: 26.2 | AC92: 0.8854961832 | AD92: 80 | AE92: 0.72 | AF92: 1.08 | AG92: 1.8
B93: 2017-03-08 | C93: 127 | D93: 26.6 | E93: 24.9 | F93: 1.068273092 | L93: 22.2 | M93: 25.7 | N93: 0.8638132296 | O93: 237 | P93: 1.9908 | Q93: -0.0008 | R93: 1.99 | S93: 25.4 | T93: 24.6 | U93: 1.032520325 | AA93: 22.4 | AB93: 26.2 | AC93: 0.8549618321 | AD93: 35 | AE93: 0.315 | AF93: 1.685 | AG93: 2
B94: 2017-03-09 | C94: 128 | D94: 26.9 | E94: 24.9 | F94: 1.080321285 | G94: 14 | H94: 0.119 | I94: 0.0243117 | L94: 21.9 | M94: 25.7 | N94: 0.8521400778 | O94: 218 | P94: 1.8312 | R94: ad lib | S94: 27 | T94: 24.6 | U94: 1.097560976 | V94: 56 | W94: 0.476 | X94: 0.0972468 | AA94: 22.6 | AB94: 26.2 | AC94: 0.8625954198 | AD94: 149 | AE94: 1.341 | AG94: ad lib
B95: 2017-03-10 | C95: 129 | D95: 28.1 | E95: 24.9 | F95: 1.128514056 | L95: 26.2 | M95: 25.7 | N95: 1.019455253 | S95: 27.8 | T95: 24.6 | U95: 1.130081301 | AA95: 24.6 | AB95: 26.2 | AC95: 0.9389312977
B96: 2017-03-11 | C96: 130
B97: 2017-03-12 | C97: 131
B98: 2017-03-13 | C98: 132 | D98: 27.4 | E98: 24.9 | F98: =D98/E98 -> 1.100401606 | L98: 27.8 | M98: 25.7 | N98: =L98/M98 -> 1.081712062 | S98: 28 | T98: 24.6 | U98: =S98/T98 -> 1.138211382 | AA98: 27 | AB98: 26.2 | AC98: =AA98/AB98 -> 1.030534351
B99: 2017-03-14 | C99: 133
B100: 2017-03-15 | C100: 134 | D100: 27.4 | E100: 24.9 | F100: 1.100401606 | L100: 28 | M100: 25.7 | N100: 1.089494163 | S100: 27.4 | T100: 24.6 | U100: 1.113821138 | AA100: 27.2 | AB100: 26.2 | AC100: 1.038167939
B101: 2017-03-16 | C101: 135
B102: 2017-03-17 | C102: 136 | D102: 27.9 | E102: 24.9 | F102: =D102/E102 -> 1.120481928 | L102: 28.1 | M102: 25.7 | N102: =L102/M102 -> 1.093385214 | S102: 28.9 | T102: 24.6 | U102: =S102/T102 -> 1.174796748 | AA102: 27 | AB102: 26.2 | AC102: =AA102/AB102 -> 1.030534351
B103: 2017-03-18 | C103: 137
B104: 2017-03-19 | C104: 138
B105: 2017-03-20 | C105: 139 | D105: 28.8 | E105: 24.9 | F105: =D105/E105 -> 1.156626506 | L105: 28.2 | M105: 25.7 | N105: =L105/M105 -> 1.097276265 | S105: 29.3 | T105: 24.6 | U105: =S105/T105 -> 1.191056911 | AA105: 27.5 | AB105: 26.2 | AC105: =AA105/AB105 -> 1.049618321
B106: 2017-03-21 | C106: 139
B107: 2017-03-22 | C107: 139
B108: 2017-03-23 | C108: 139
B109: 2017-03-24 | C109: 139
B110: 2017-03-25 | C110: 139
B111: 2017-03-26 | C111: 139
B112: 2017-03-27 | C112: 139
B113: 2017-03-28 | C113: 139 | D113: 29.2 | E113: 24.9 | F113: =D113/E113 -> 1.172690763 | L113: 29 | M113: 25.7 | N113: =L113/M113 -> 1.128404669 | S113: 30.8 | T113: 24.6 | U113: =S113/T113 -> 1.25203252 | AA113: 28.8 | AB113: 26.2 | AC113: =AA113/AB113 -> 1.099236641

Sheet W05-W08
B2: Weight overview mice W05, W06, W07, W08
I4: gram | X4: gram
D5: W05 | H5: ml | I5: soy to | J5: gram | L5: W06 | M5: 21.2 | P5: ml | Q5: ml | S5: W07 | W5: ml | X5: soy to | Y5: gram | AA5: W08 | AB5: 21.8 | AE5: ml | AF5: ml
B6: Day | C6: Age | D6: Weight | E6: Ref | F6: % | G6: Drops | H6: Task | I6: chow | J6: Suppl | K6: Total | L6: Weight | M6: Ref | N6: % | O6: Drops | P6: Task | Q6: Suppl | R6: Total | S6: Weight | T6: Ref | U6: % | V6: Drops | W6: Task | X6: chow | Y6: Suppl | Z6: Total | AA6: Weight | AB6: Ref | AC6: % | AD6: Drops | AE6: Task | AF6: Suppl | AG6: Total
B7: 2016-12-12 | C7: 41 | D7: 22.2 | E7: 22.3 | F7: =D7/E7 -> 0.9955156951 | L7: 22.2 | M7: 22.2 | N7: =L7/M7 -> 1 | S7: 21.3 | T7: 22 | U7: =S7/T7 -> 0.9681818182 | AA7: 21.5 | AB7: 21.9 | AC7: =AA7/AB7 -> 0.9817351598
B8: 2016-12-13 | C8: 42 | D8: 22.7 | E8: 22.3 | F8: 1.01793722 | L8: 22.7 | M8: 22.2 | N8: 1.022522523 | S8: 22.4 | T8: 22 | U8: 1.018181818 | AA8: 22.1 | AB8: 21.9 | AC8: 1.00913242
B9: 2016-12-14 | C9: 43 | D9: 22.1 | E9: 22.3 | F9: 0.9910313901 | L9: 21.7 | M9: 22.2 | N9: 0.9774774775 | S9: 22.9 | T9: 22 | U9: 1.040909091 | AA9: 22.8 | AB9: 21.9 | AC9: 1.04109589
B10: 2016-12-15 | C10: 44 | D10: 21.3 | E10: 22.3 | F10: 0.9551569507 | L10: 20.7 | M10: 22.2 | N10: 0.9324324324 | S10: 21.5 | T10: 22 | U10: 0.9772727273 | AA10: 21.2 | AB10: 21.9 | AC10: 0.9680365297
B11: 2016-12-16 | C11: 45 | D11: 21.5 | E11: 22.3 | F11: 0.9641255605 | L11: 21.5 | M11: 22.2 | N11: 0.9684684685 | S11: 20.8 | T11: 22 | U11: 0.9454545455 | AA11: 19.6 | AB11: 21.9 | AC11: 0.8949771689
B12: 2016-12-17 | C12: 46 | D12: 22.6 | E12: 22.3 | F12: 1.013452915 | L12: 21.6 | M12: 22.2 | N12: 0.972972973 | S12: 21.7 | T12: 22 | U12: 0.9863636364 | AA12: 21.6 | AB12: 21.9 | AC12: 0.9863013699
B13: 2016-12-18 | C13: 47 | D13: 23.1 | E13: 22.3 | F13: 1.035874439 | L13: 21.8 | M13: 22.2 | N13: 0.981981982 | S13: 22.3 | T13: 22 | U13: 1.013636364 | AA13: 22.8 | AB13: 21.9 | AC13: 1.04109589
B14: 2016-12-19 | C14: 48 | D14: 24.2 | E14: 22.3 | F14: 1.085201794 | L14: 22.2 | M14: 22.2 | N14: 1 | S14: 23.1 | T14: 22 | U14: 1.05 | AA14: 23.4 | AB14: 21.9 | AC14: 1.068493151
B15: 2016-12-20 | C15: 49 | D15: 24.1 | E15: 22.3 | F15: 1.080717489 | L15: 23.8 | M15: 22.2 | N15: 1.072072072 | S15: 22.7 | T15: 22 | U15: 1.031818182 | AA15: 24.1 | AB15: 21.9 | AC15: 1.100456621
B16: 2016-12-21 | C16: 50 | D16: 24.6 | E16: 22.3 | F16: 1.103139013 | L16: 23 | M16: 22.2 | N16: 1.036036036 | S16: 23.1 | T16: 22 | U16: 1.05 | AA16: 24.1 | AB16: 21.9 | AC16: 1.100456621
B17: 2016-12-22 | C17: 51 | D17: 22.9 | E17: 22.3 | F17: 1.02690583 | L17: 22.8 | M17: 22.2 | N17: 1.027027027 | S17: 22.7 | T17: 22 | U17: 1.031818182 | AA17: 24.4 | AB17: 21.9 | AC17: 1.114155251
B18: 2016-12-23 | C18: 52 | D18: 21.8 | E18: 22.3 | F18: 0.9775784753 | L18: 23.3 | M18: 22.2 | N18: 1.04954955 | S18: 22.9 | T18: 22 | U18: 1.040909091 | AA18: 23.7 | AB18: 21.9 | AC18: 1.082191781
B19: 2016-12-24 | C19: 53 | D19: 24.1 | E19: 22.3 | F19: 1.080717489
B20: 2016-12-25 | C20: 54
B21: 2016-12-26 | C21: 55
B22: 2016-12-27 | C22: 56
B23: 2016-12-28 | C23: 57
B24: 2016-12-29 | C24: 58
B25: 2016-12-30 | C25: 59
B26: 2016-12-31 | C26: 60
B27: 2017-01-01 | C27: 61
B28: 2017-01-02 | C28: 62 | D28: 25.9 | E28: 25.9 | F28: 1 | J28: 2 | K28: =(I28)+J28 -> 2 | L28: 24.9 | M28: 24.9 | N28: 1 | Q28: 1.57 | R28: =(P28)+Q28 -> 1.57 | S28: 23.3 | T28: 23.3 | U28: 1 | Y28: 2 | Z28: =(X28)+Y28 -> 2 | AA28: 25.7 | AB28: 25.7 | AC28: 1 | AF28: 1.57 | AG28: =(AE28)+AF28 -> 1.57
B29: 2017-01-03 | C29: 63 | D29: 22.5 | E29: 25.9 | F29: 0.8687258687 | J29: 3 | K29: =(I29)+J29 -> 3 | L29: 22.6 | M29: 24.9 | N29: 0.9076305221 | Q29: 1.57 | R29: =(P29)+Q29 -> 1.57 | S29: 21 | T29: 23.3 | U29: 0.9012875536 | Y29: 2.2 | Z29: =(X29)+Y29 -> 2.2 | AA29: 23.2 | AB29: 25.7 | AC29: 0.9027237354 | AF29: 1.57 | AG29: =(AE29)+AF29 -> 1.57
B30: 2017-01-04 | C30: 64 | D30: 22.4 | E30: 25.9 | F30: 0.8648648649 | J30: 2.8 | K30: 2.8 | L30: 22.2 | M30: 24.9 | N30: 0.8915662651 | Q30: 1.5 | R30: 1.5 | S30: 20.4 | T30: 23.3 | U30: 0.8755364807 | Y30: 2.7 | Z30: 2.7 | AA30: 22.9 | AB30: 25.7 | AC30: 0.8910505837 | AF30: 1.4 | AG30: 1.4
B31: 2017-01-05 | C31: 65 | D31: 21.6 | E31: 25.9 | F31: 0.833976834 | H31: 0.4 | I31: =H31*0.2043 -> 0.08172 | J31: 3.1 | K31: 3.18172 | L31: 21.8 | M31: 24.9 | N31: 0.875502008 | P31: 0.4 | Q31: 1.17 | R31: 1.57 | S31: 19.9 | T31: 23.3 | U31: 0.8540772532 | W31: 0.4 | X31: =W31*0.2043 -> 0.08172 | Y31: 2.9 | Z31: 2.98172 | AA31: 22.1 | AB31: 25.7 | AC31: 0.859922179 | AE31: 0.4 | AF31: 1.17 | AG31: 1.57
B32: 2017-01-06 | C32: 66 | D32: 22 | E32: 25.9 | F32: 0.8494208494 | H32: 0.7 | I32: =H32*0.2043 -> 0.14301 | J32: 3.1 | K32: 3.24301 | L32: 21.4 | M32: 24.9 | N32: 0.859437751 | P32: 0.4 | Q32: 1.17 | R32: 1.57 | S32: 20 | T32: 23.3 | U32: 0.8583690987 | W32: 0.5 | X32: =W32*0.2043 -> 0.10215 | Y32: 2.6 | Z32: 2.70215 | AA32: 22.2 | AB32: 25.7 | AC32: 0.8638132296 | AE32: 0.7 | AF32: 0.87 | AG32: 1.57
B33: 2017-01-07 | C33: 67 | D33: 21.6 | E33: 25.9 | F33: 0.833976834 | H33: 0.7 | I33: 0.14301 | J33: 3.3 | K33: 3.44301 | L33: 21.5 | M33: 24.9 | N33: 0.8634538153 | P33: 0.5 | Q33: 1.07 | R33: 1.57 | S33: 19.5 | T33: 23.3 | U33: 0.8369098712 | W33: 0.55 | X33: 0.112365 | Y33: 3.1 | Z33: 3.212365 | AA33: 22 | AB33: 25.7 | AC33: 0.8560311284 | AE33: 0.75 | AF33: 0.82 | AG33: 1.57
B34: 2017-01-08 | C34: 68 | D34: 22.6 | E34: 25.9 | F34: 0.8725868726 | I34: 0 | J34: 3 | K34: 3 | L34: 21.5 | M34: 24.9 | N34: 0.8634538153 | Q34: 1.57 | R34: 1.57 | S34: 20.6 | T34: 23.3 | U34: 0.8841201717 | X34: 0 | Y34: 3 | Z34: 3 | AA34: 21.9 | AB34: 25.7 | AC34: 0.8521400778 | AF34: 1.57 | AG34: 1.57
B35: 2017-01-09 | C35: 69 | D35: 21.9 | E35: 25.9 | F35: 0.8455598456 | H35: 0.5 | I35: 0.10215 | J35: 3.2 | K35: 3.30215 | L35: 21.8 | M35: 24.9 | N35: 0.875502008 | P35: 0.7 | Q35: 0.87 | R35: 1.57 | S35: 19.8 | T35: 23.3 | U35: 0.8497854077 | W35: 0.55 | X35: 0.112365 | Y35: 3.1 | Z35: 3.212365 | AA35: 21.9 | AB35: 25.7 | AC35: 0.8521400778 | AE35: 0.8 | AF35: 0.77 | AG35: 1.57
B36: 2017-01-10 | C36: 70 | D36: 22.3 | E36: 25.9 | F36: 0.861003861 | H36: 0.65 | I36: 0.132795 | J36: 3.01 | K36: 3.142795 | L36: 21.6 | M36: 24.9 | N36: 0.8674698795 | P36: 0.6 | Q36: 1 | R36: 1.6 | S36: 20.2 | T36: 23.3 | U36: 0.8669527897 | W36: 0.5 | X36: 0.10215 | Y36: 2.9 | Z36: 3.00215 | AA36: 22.1 | AB36: 25.7 | AC36: 0.859922179 | AE36: 0.45 | AF36: 1.05 | AG36: 1.5
B37: 2017-01-11 | C37: 71 | D37: 22 | E37: 25.9 | F37: 0.8494208494 | H37: 0.45 | I37: 0.091935 | J37: 3.3 | K37: 3.391935 | L37: 21.8 | M37: 24.9 | N37: 0.875502008 | P37: 0.75 | Q37: 0.65 | R37: 1.4 | S37: 19.9 | T37: 23.3 | U37: 0.8540772532 | W37: 0.45 | X37: 0.091935 | Y37: 3.5 | Z37: 3.591935 | AA37: 22.1 | AB37: 25.7 | AC37: 0.859922179 | AE37: 0.83 | AF37: 0.67 | AG37: 1.5
B38: 2017-01-12 | C38: 72 | D38: 22 | E38: 25.9 | F38: 0.8494208494 | H38: 0.55 | I38: 0.112365 | J38: 3.2 | K38: 3.312365 | L38: 21.6 | M38: 24.9 | N38: 0.8674698795 | P38: 0.95 | Q38: 0.5 | R38: 1.45 | S38: 20 | T38: 23.3 | U38: 0.8583690987 | W38: 0.65 | X38: 0.132795 | Y38: 3.28 | Z38: 3.412795 | AA38: 22.1 | AB38: 25.7 | AC38: 0.859922179 | AE38: 0.85 | AF38: 0.65 | AG38: 1.5
B39: 2017-01-13 | C39: 73 | D39: 22.5 | E39: 25.9 | F39: 0.8687258687 | H39: 1.4 | I39: 0.28602 | J39: 2.1 | K39: 2.38602 | L39: 21.6 | M39: 24.9 | N39: 0.8674698795 | P39: 0.9 | Q39: =R39-P39 -> 0.5 | R39: 1.4 | S39: 20.3 | T39: 23.3 | U39: 0.8712446352 | W39: 1.4 | X39: 0.28602 | Y39: 2.4 | Z39: 2.68602 | AA39: 22.1 | AB39: 25.7 | AC39: 0.859922179 | AE39: 0.9 | AF39: =AG39-AE39 -> 0.55 | AG39: 1.45
B40: 2017-01-14 | C40: 74 | D40: 22 | E40: 25.9 | F40: 0.8494208494 | H40: 1 | I40: 0.2043 | J40: 3.1 | K40: 3.3043 | L40: 21.5 | M40: 24.9 | N40: 0.8634538153 | P40: 0.85 | Q40: 0.45 | R40: 1.3 | S40: 20.1 | T40: 23.3 | U40: 0.8626609442 | W40: 1 | X40: 0.2043 | Y40: 3 | Z40: 3.2043 | AA40: 22 | AB40: 25.7 | AC40: 0.8560311284 | AE40: 0.65 | AF40: 0.9 | AG40: 1.55
B41: 2017-01-15 | C41: 75 | D41: 22.2 | E41: 25.9 | F41: 0.8571428571 | H41: 1.75 | I41: 0.357525 | J41: 2.45 | K41: 2.807525 | L41: 21.5 | M41: 24.9 | N41: 0.8634538153 | P41: 1 | Q41: =R41-P41 -> 0.3 | R41: 1.3 | S41: 20.1 | T41: 23.3 | U41: 0.8626609442 | W41: 1.75 | X41: 0.357525 | Y41: 2.5 | Z41: 2.857525 | AA41: 22.2 | AB41: 25.7 | AC41: 0.8638132296 | AE41: 0.6 | AF41: =AG41-AE41 -> 0.85 | AG41: 1.45
B42: 2017-01-16 | C42: 76 | D42: 22.1 | E42: 25.9 | F42: 0.8532818533 | H42: 2 | I42: 0.4086 | J42: 2.3 | K42: 2.7086 | L42: 21.2 | M42: 24.9 | N42: 0.8514056225 | P42: 0.9 | Q42: 0.5 | R42: 1.4 | S42: 19.6 | T42: 23.3 | U42: 0.8412017167 | W42: 1.7 | X42: 0.34731 | Y42: 2.7 | Z42: 3.04731 | AA42: 22.2 | AB42: 25.7 | AC42: 0.8638132296 | AE42: 0.7 | AF42: 0.75 | AG42: 1.45
B43: 2017-01-17 | C43: 77 | D43: 21.9 | E43: 25.9 | F43: 0.8455598456 | H43: 2 | I43: 0.4086 | J43: 2.5 | K43: 2.9086 | L43: 21.2 | M43: 24.9 | N43: 0.8514056225 | P43: 0 | Q43: 1.4 | R43: 1.4 | S43: 19.5 | T43: 23.3 | U43: 0.8369098712 | W43: 1.93 | X43: 0.394299 | Y43: 3.27 | Z43: 3.664299 | AA43: 22.1 | AB43: 25.7 | AC43: 0.859922179 | AE43: 1.06 | AF43: 0.39 | AG43: 1.45
B44: 2017-01-18 | C44: 78 | D44: 22 | E44: 25.9 | F44: 0.8494208494 | H44: 2.93 | I44: 0.598599 | J44: =K44-I44 -> 2.301401 | K44: 2.9 | L44: 21.2 | M44: 24.9 | N44: 0.8514056225 | P44: 0.04 | Q44: 1.36 | R44: 1.4 | S44: 20.3 | T44: 23.3 | U44: 0.8712446352 | W44: 1.94 | X44: 0.396342 | Y44: =Z44-X44 -> 2.803658 | Z44: 3.2 | AA44: 22.1 | AB44: 25.7 | AC44: 0.859922179 | AE44: 0.66 | AF44: 0.74 | AG44: 1.4
B45: 2017-01-19 | C45: 79 | D45: 21.6 | E45: 25.9 | F45: 0.833976834 | H45: 2.36 | I45: 0.482148 | J45: =K45-I45 -> 2.617852 | K45: 3.1 | L45: 21.4 | M45: 24.9 | N45: 0.859437751 | P45: 0 | Q45: 1.3 | R45: 1.3 | S45: 20 | T45: 23.3 | U45: 0.8583690987 | W45: 2.03 | X45: 0.414729 | Y45: =Z45-X45 -> 2.885271 | Z45: 3.3 | AA45: 22.3 | AB45: 25.7 | AC45: 0.8677042802 | AE45: 0.87 | AF45: 0.43 | AG45: 1.3
B46: 2017-01-20 | C46: 80 | D46: 22.1 | E46: 25.9 | F46: 0.8532818533 | H46: 3.23 | I46: 0.659889 | J46: 2.340111 | K46: 3 | L46: 20.7 | M46: 24.9 | N46: 0.8313253012 | P46: 0.05 | Q46: 1.35 | R46: 1.4 | S46: 20.3 | T46: 23.3 | U46: 0.8712446352 | W46: 1.09 | X46: 0.222687 | Y46: 2.977313 | Z46: 3.2 | AA46: 21.9 | AB46: 25.7 | AC46: 0.8521400778 | AE46: 0.33 | AF46: 1.02 | AG46: 1.35
B47: 2017-01-21 | C47: 81 | D47: 21.8 | E47: 25.9 | F47: 0.8416988417 | H47: 3.49 | I47: 0.713007 | J47: 2.376993 | K47: 3.09 | L47: 21.3 | M47: 24.9 | N47: 0.8554216867 | P47: 0.06 | Q47: 1.29 | R47: 1.35 | S47: 20.1 | T47: 23.3 | U47: 0.8626609442 | W47: 1.18 | X47: 0.241074 | Y47: 2.958926 | Z47: 3.2 | AA47: 22.8 | AB47: 25.7 | AC47: 0.8871595331 | AE47: 0.38 | AF47: 0.92 | AG47: 1.3
B48: 2017-01-22 | C48: 82 | D48: 21.8 | E48: 25.9 | F48: 0.8416988417 | I48: 0 | J48: 3.1 | K48: 3.1 | L48: 21.5 | M48: 24.9 | N48: 0.8634538153 | Q48: 1.3 | R48: 1.3 | S48: 20.5 | T48: 23.3 | U48: 0.8798283262 | X48: 0 | Y48: 3.13 | Z48: 3.13 | AA48: 22.7 | AB48: 25.7 | AC48: 0.8832684825 | AF48: 1.25 | AG48: 1.25
B49: 2017-01-23 | C49: 83 | D49: 21.8 | E49: 25.9 | F49: 0.8416988417 | H49: 3.35 | I49: 0.684405 | J49: 2.515595 | K49: 3.2 | L49: 21.5 | M49: 24.9 | N49: 0.8634538153 | P49: 0.25 | Q49: 1.05 | R49: 1.3 | S49: 20.2 | T49: 23.3 | U49: 0.8669527897 | W49: 1.24 | X49: 0.253332 | Y49: 2.946668 | Z49: 3.2 | AA49: 22.6 | AB49: 25.7 | AC49: 0.8793774319 | AE49: 0.75 | AF49: 0.5 | AG49: 1.25
B50: 2017-01-24 | C50: 84 | D50: 21.8 | E50: 25.9 | F50: 0.8416988417 | H50: 3 | I50: 0.6129 | J50: 2.6371 | K50: 3.25 | L50: 21.5 | M50: 24.9 | N50: 0.8634538153 | P50: 0.4 | Q50: 0.85 | R50: 1.25 | S50: 20.1 | T50: 23.3 | U50: 0.8626609442 | W50: 0.54 | X50: 0.110322 | Y50: 2.989678 | Z50: 3.1 | AA50: 22.4 | AB50: 25.7 | AC50: 0.8715953307 | AE50: 0.74 | AF50: 0.51 | AG50: 1.25
B51: 2017-01-25 | C51: 85 | D51: 22.2 | E51: 25.9 | F51: 0.8571428571 | H51: 2.94 | I51: 0.600642 | J51: 2.599358 | K51: 3.2 | L51: 21.8 | M51: 24.9 | N51: 0.875502008 | P51: 0.23 | Q51: 0.97 | R51: 1.2 | S51: 20.5 | T51: 23.3 | U51: 0.8798283262 | W51: 0.39 | X51: 0.079677 | Y51: 2.920323 | Z51: 3 | AA51: 22.3 | AB51: 25.7 | AC51: 0.8677042802 | AE51: 0.59 | AF51: 0.66 | AG51: 1.25
B52: 2017-01-26 | C52: 86 | D52: 22 | E52: 25.9 | F52: 0.8494208494 | H52: 3.12 | I52: 0.637416 | J52: 2.612584 | K52: 3.25 | L52: 21.7 | M52: 24.9 | N52: 0.8714859438 | P52: 0.31 | Q52: 0.84 | R52: 1.15 | S52: 20.1 | T52: 23.3 | U52: 0.8626609442 | W52: 0.37 | X52: 0.075591 | Y52: 2.924409 | Z52: 3 | AA52: 22.4 | AB52: 25.7 | AC52: 0.8715953307 | AE52: 0.53 | AF52: 0.67 | AG52: 1.2
B53: 2017-01-27 | C53: 87 | D53: 22.2 | E53: 25.9 | F53: 0.8571428571 | G53: 237 | H53: =G53*0.0085 -> 2.0145 | I53: 0.41156235 | J53: 2.83843765 | K53: 3.25 | L53: 21.5 | M53: 24.9 | N53: 0.8634538153 | O53: 61 | P53: =O53*0.0084 -> 0.5124 | Q53: 0.5876 | R53: 1.1 | S53: 20.1 | T53: 23.3 | U53: 0.8626609442 | V53: 19 | W53: =V53*0.0085 -> 0.1615 | X53: 0.03299445 | Y53: 2.76700555 | Z53: 2.8 | AA53: 22.4 | AB53: 25.7 | AC53: 0.8715953307 | AD53: 100 | AE53: =AD53*0.009 -> 0.9 | AF53: 0.25 | AG53: 1.15
B54: 2017-01-28 | C54: 88 | D54: 22.3 | E54: 25.9 | F54: 0.861003861 | G54: 270 | H54: =G54*0.0085 -> 2.295 | I54: 0.4688685 | J54: 2.7311315 | K54: 3.2 | L54: 21 | M54: 24.9 | N54: 0.843373494 | O54: 116 | P54: =O54*0.0084 -> 0.9744 | Q54: 0.2256 | R54: 1.2 | S54: 20.4 | T54: 23.3 | U54: 0.8755364807 | V54: 36 | W54: =V54*0.0085 -> 0.306 | X54: 0.0625158 | Y54: 2.6374842 | Z54: 2.7 | AA54: 22 | AB54: 25.7 | AC54: 0.8560311284 | AD54: 116 | AE54: =AD54*0.009 -> 1.044 | AF54: 0.156 | AG54: 1.2
B55: 2017-01-29 | C55: 89 | D55: 22.7 | E55: 25.9 | F55: 0.8764478764 | I55: 0 | J55: 3.1 | K55: 3.1 | L55: 20.6 | M55: 24.9 | N55: 0.8273092369 | Q55: 1.3 | R55: 1.3 | S55: 20.2 | T55: 23.3 | U55: 0.8669527897 | X55: 0 | Y55: 2.7 | Z55: 2.7 | AA55: 21.8 | AB55: 25.7 | AC55: 0.8482490272 | AF55: 1.25 | AG55: 1.25
B56: 2017-01-30 | C56: 90 | D56: 22.2 | E56: 25.9 | F56: 0.8571428571 | G56: 107 | H56: 0.9095 | I56: 0.18581085 | J56: 2.96418915 | K56: 3.15 | L56: 20.6 | M56: 24.9 | N56: 0.8273092369 | O56: 73 | P56: 0.6132 | Q56: 0.7868 | R56: 1.4 | S56: 19.7 | T56: 23.3 | U56: 0.8454935622 | V56: 66 | W56: 0.561 | X56: 0.1146123 | Y56: 2.6353877 | Z56: 2.75 | AA56: 22.3 | AB56: 25.7 | AC56: 0.8677042802 | AD56: 192 | AE56: 1.728 | AF56: 0.002 | AG56: 1.73
B57: 2017-01-31 | C57: 91 | D57: 23 | E57: 25.9 | F57: 0.888030888 | G57: 102 | H57: 0.867 | I57: 0.1771281 | J57: 2.8728719 | K57: 3.05 | L57: 20.3 | M57: 24.9 | N57: 0.8152610442 | O57: 178 | P57: 1.4952 | Q57: 0.1048 | R57: 1.6 | S57: 20.3 | T57: 23.3 | U57: 0.8712446352 | V57: 18 | W57: 0.153 | X57: 0.0312579 | Y57: 2.6187421 | Z57: 2.65 | AA57: 22.3 | AB57: 25.7 | AC57: 0.8677042802 | AD57: 137 | AE57: 1.233 | AF57: -0.003 | AG57: 1.23
B58: 2017-02-01 | C58: 92 | D58: 22.7 | E58: 25.9 | F58: 0.8764478764 | G58: 120 | H58: 1.02 | I58: 0.208386 | J58: 2.841614 | K58: 3.05 | L58: 19.9 | M58: 24.9 | N58: 0.7991967871 | O58: 164 | P58: 1.3776 | Q58: 1.0024 | R58: 2.38 | S58: 20 | T58: 23.3 | U58: 0.8583690987 | V58: 55 | W58: 0.4675 | X58: 0.09551025 | Y58: 2.60448975 | Z58: 2.7 | AA58: 22.1 | AB58: 25.7 | AC58: 0.859922179 | AD58: 180 | AE58: 1.62 | AF58: 0 | AG58: 1.62
B59: 2017-02-02 | C59: 93 | D59: 22.6 | E59: 25.9 | F59: 0.8725868726 | G59: 122 | H59: 1.037 | I59: 0.2118591 | J59: 2.7881409 | K59: 3 | L59: 20.3 | M59: 24.9 | N59: 0.8152610442 | O59: 106 | P59: 0.8904 | Q59: -0.0004 | R59: 0.89 | S59: 20.2 | T59: 23.3 | U59: 0.8669527897 | V59: 97 | W59: 0.8245 | X59: 0.16844535 | Y59: 2.48155465 | Z59: 2.65 | AA59: 22.2 | AB59: 25.7 | AC59: 0.8638132296 | AD59: 168 | AE59: 1.512 | AF59: 1.488 | AG59: 3
B60: 2017-02-03 | C60: 94 | D60: 22.7 | E60: 25.9 | F60: =D60/E60 -> 0.8764478764 | G60: 134 | H60: 1.139 | I60: 0.2326977 | J60: 2.6673023 | K60: 2.9 | L60: 19.5 | M60: 24.9 | N60: =L60/M60 -> 0.7831325301 | O60: 226 | P60: 1.8984 | Q60: 1.1016 | R60: 3 | S60: 20.5 | T60: 23.3 | U60: =S60/T60 -> 0.8798283262 | V60: 133 | W60: 1.1305 | X60: 0.23096115 | Y60: 2.31903885 | Z60: 2.55 | AA60: 23.6 | AB60: 25.7 | AC60: =AA60/AB60 -> 0.9182879377 | AD60: 108 | AE60: 0.972 | AF60: 0.178 | AG60: 1.15
B61: 2017-02-04 | C61: 95 | D61: 22.6 | E61: 25.9 | F61: 0.8725868726 | G61: 136 | H61: 1.156 | I61: 0.2361708 | J61: 2.5638292 | K61: 2.8 | L61: 20 | M61: 24.9 | N61: 0.8032128514 | O61: 134 | P61: 1.1256 | Q61: 1.8744 | R61: 3 | S61: 20.1 | T61: 23.3 | U61: 0.8626609442 | V61: 92 | W61: 0.782 | X61: 0.1597626 | Y61: 2.3902374 | Z61: 2.55 | AA61: 23 | AB61: 25.7 | AC61: 0.8949416342 | AD61: 54 | AE61: 0.486 | AF61: 0.614 | AG61: 1.1
B62: 2017-02-05 | C62: 96 | D62: 22 | E62: 25.9 | F62: 0.8494208494 | I62: 0 | J62: 2.9 | K62: 2.9 | L62: 20.3 | M62: 24.9 | N62: 0.8152610442 | Q62: 3 | R62: 3 | S62: 19.7 | T62: 23.3 | U62: 0.8454935622 | X62: 0 | Y62: 2.6 | Z62: 2.6 | AA62: 22.8 | AB62: 25.7 | AC62: 0.8871595331 | AF62: 1.1 | AG62: 1.1
B63: 2017-02-06 | C63: 97 | D63: 21.9 | E63: 25.9 | F63: 0.8455598456 | G63: 146 | H63: 1.241 | I63: 0.2535363 | J63: 2.6964637 | K63: 2.95 | L63: 21 | M63: 24.9 | N63: 0.843373494 | O63: 94 | P63: 0.7896 | Q63: 1.0104 | R63: 1.8 | S63: 19.8 | T63: 23.3 | U63: 0.8497854077 | V63: 87 | W63: 0.7395 | X63: 0.15107985 | Y63: 2.39892015 | Z63: 2.55 | AA63: 22.8 | AB63: 25.7 | AC63: 0.8871595331 | AD63: 64 | AE63: 0.576 | AF63: 0.424 | AG63: 1
B64: 2017-02-07 | C64: 98 | D64: 21.7 | E64: 25.9 | F64: 0.8378378378 | G64: 152 | H64: 1.292 | I64: 0.2639556 | J64: 2.7860444 | K64: 3.05 | L64: 20.3 | M64: 24.9 | N64: 0.8152610442 | O64: 114 | P64: 0.9576 | Q64: 1.4424 | R64: 2.4 | S64: 20.1 | T64: 23.3 | U64: 0.8626609442 | V64: 88 | W64: 0.748 | X64: 0.1528164 | Y64: 2.3471836 | Z64: 2.5 | AA64: 22.4 | AB64: 25.7 | AC64: 0.8715953307 | AD64: 130 | AE64: 1.17 | AF64: 0 | AG64: 1.17
B65: 2017-02-08 | C65: 99 | D65: 21.8 | E65: 25.9 | F65: 0.8416988417 | G65: 132 | H65: 1.122 | I65: 0.2292246 | J65: 2.8207754 | K65: 3.05 | L65: 20.5 | M65: 24.9 | N65: 0.8232931727 | O65: 140 | P65: 1.176 | Q65: 1.224 | R65: 2.4 | S65: 20.3 | T65: 23.3 | U65: 0.8712446352 | V65: 109 | W65: 0.9265 | X65: 0.18928395 | Y65: 2.21071605 | Z65: 2.4 | AA65: 21.9 | AB65: 25.7 | AC65: 0.8521400778 | AD65: 105 | AE65: 0.945 | AF65: 0.355 | AG65: 1.3
B66: 2017-02-09 | C66: 100 | D66: 21.7 | E66: 25.9 | F66: 0.8378378378 | G66: 146 | H66: 1.241 | I66: 0.2535363 | J66: 2.8464637 | K66: 3.1 | L66: 20.4 | M66: 24.9 | N66: 0.8192771084 | O66: 132 | P66: 1.1088 | Q66: 1.4912 | R66: 2.6 | S66: 19.9 | T66: 23.3 | U66: 0.8540772532 | V66: 127 | W66: 1.0795 | X66: 0.22054185 | Y66: =2.45-0.22 -> 2.23 | Z66: 2.45 | AA66: 22.1 | AB66: 25.7 | AC66: 0.859922179 | AD66: 112 | AE66: 1.008 | AF66: 0.242 | AG66: 1.25
B67: 2017-02-10 | C67: 101 | D67: 22.1 | E67: 25.9 | F67: 0.8532818533 | G67: 141 | H67: 1.1985 | I67: 0.24485355 | J67: 2.80514645 | K67: 3.05 | L67: 20.4 | M67: 24.9 | N67: 0.8192771084 | O67: 140 | P67: 1.176 | Q67: 1.624 | R67: 2.8 | S67: 20 | T67: 23.3 | U67: 0.8583690987 | V67: 120 | W67: 1.02 | X67: 0.208386 | Y67: 2.191614 | Z67: 2.4 | AA67: 21.4 | AB67: 25.7 | AC67: 0.8326848249 | AD67: 130 | AE67: 1.17 | AF67: 0.13 | AG67: 1.3
B68: 2017-02-11 | C68: 102 | D68: 22.4 | E68: 25.9 | F68: 0.8648648649 | G68: 135 | H68: 1.1475 | I68: 0.23443425 | J68: 2.76556575 | K68: 3 | L68: 20.3 | M68: 24.9 | N68: 0.8152610442 | O68: 161 | P68: 1.3524 | Q68: 1.6476 | R68: 3 | S68: 19.8 | T68: 23.3 | U68: 0.8497854077 | V68: 121 | W68: 1.0285 | X68: 0.21012255 | Y68: 2.23987745 | Z68: 2.45 | AA68: 21.2 | AB68: 25.7 | AC68: 0.8249027237 | AD68: 160 | AE68: 1.44 | AF68: 0 | AG68: 1.44
B69: 2017-02-12 | C69: 103 | D69: 22.3 | E69: 25.9 | F69: 0.861003861 | G69: 132 | H69: 1.122 | I69: 0.2292246 | J69: 2.7707754 | K69: 3 | L69: 20.3 | M69: 24.9 | N69: 0.8152610442 | O69: 170 | P69: 1.428 | Q69: 1.672 | R69: 3.1 | S69: 19.9 | T69: 23.3 | U69: 0.8540772532 | V69: 126 | W69: 1.071 | X69: 0.2188053 | Y69: 2.1811947 | Z69: 2.4 | AA69: 21.2 | AB69: 25.7 | AC69: 0.8249027237 | AD69: 168 | AE69: 1.512 | AF69: -0.002 | AG69: 1.51
B70: 2017-02-13 | C70: 104 | D70: 22.3 | E70: 25.9 | F70: 0.861003861 | G70: 140 | H70: 1.19 | I70: 0.243117 | J70: 2.706883 | K70: 2.95 | L70: 20.7 | M70: 24.9 | N70: 0.8313253012 | O70: 166 | P70: 1.3944 | Q70: 1.7056 | R70: 3.1 | S70: 19.8 | T70: 23.3 | U70: 0.8497854077 | V70: 124 | W70: 1.054 | X70: 0.2153322 | Y70: 2.2346678 | Z70: 2.45 | AA70: 21.1 | AB70: 25.7 | AC70: 0.8210116732 | AD70: 161 | AE70: 1.449 | AF70: 0.251 | AG70: 1.7
B71: 2017-02-14 | C71: 105 | D71: 22 | E71: 25.9 | F71: 0.8494208494 | G71: 135 | H71: 1.1475 | I71: 0.23443425 | J71: 2.76556575 | K71: 3 | L71: 20.9 | M71: 24.9 | N71: 0.8393574297 | O71: 106 | P71: 0.8904 | Q71: 2.3096 | R71: 3.2 | S71: 19.9 | T71: 23.3 | U71: 0.8540772532 | V71: 122 | W71: 1.037 | X71: 0.2118591 | Y71: 2.1881409 | Z71: 2.4 | AA71: 21.4 | AB71: 25.7 | AC71: 0.8326848249 | AD71: 195 | AE71: 1.755 | AF71: 0.045 | AG71: 1.8
B72: 2017-02-15 | C72: 106 | D72: 21.9 | E72: 25.9 | F72: 0.8455598456 | G72: 130 | H72: 1.105 | I72: 0.2257515 | J72: 2.8242485 | K72: 3.05 | L72: 20.9 | M72: 24.9 | N72: 0.8393574297 | O72: 137 | P72: 1.1508 | Q72: 2.1492 | R72: 3.3 | S72: 19.9 | T72: 23.3 | U72: 0.8540772532 | V72: 116 | W72: 0.986 | X72: 0.2014398 | Y72: 2.1985602 | Z72: 2.4 | AA72: 21.6 | AB72: 25.7 | AC72: 0.8404669261 | AD72: 173 | AE72: 1.557 | AF72: 0.243 | AG72: 1.8
B73: 2017-02-16 | C73: 107 | D73: 22 | E73: 25.9 | F73: 0.8494208494 | G73: 132 | H73: 1.122 | I73: 0.2292246 | J73: 2.8207754 | K73: 3.05 | L73: 20.7 | M73: 24.9 | N73: 0.8313253012 | O73: 96 | P73: 0.8064 | Q73: 2.6936 | R73: 3.5 | S73: 19.6 | T73: 23.3 | U73: 0.8412017167 | V73: 118 | W73: 1.003 | X73: 0.2049129 | Y73: 2.2450871 | Z73: 2.45 | AA73: 21.9 | AB73: 25.7 | AC73: 0.8521400778 | AD73: 150 | AE73: 1.35 | AF73: 0.4 | AG73: 1.75
B74: 2017-02-17 | C74: 108 | D74: 22.3 | E74: 25.9 | F74: 0.861003861 | G74: 135 | H74: 1.1475 | I74: 0.23443425 | J74: 2.76556575 | K74: 3 | L74: 20.7 | M74: 24.9 | N74: 0.8313253012 | O74: 93 | P74: 0.7812 | Q74: 2.9188 | R74: 3.7 | S74: 19.8 | T74: 23.3 | U74: 0.8497854077 | V74: 124 | W74: 1.054 | X74: 0.2153322 | Y74: 2.2346678 | Z74: 2.45 | AA74: 22.1 | AB74: 25.7 | AC74: 0.859922179 | AD74: 134 | AE74: 1.206 | AF74: 0.494 | AG74: 1.7
B75: 2017-02-18 | C75: 109 | D75: 22.2 | E75: 25.9 | F75: 0.8571428571 | G75: 134 | H75: 1.139 | I75: 0.2326977 | J75: 2.7673023 | K75: 3 | L75: 21.3 | M75: 24.9 | N75: 0.8554216867 | O75: 105 | P75: 0.882 | Q75: 2.718 | R75: 3.6 | S75: 19.8 | T75: 23.3 | U75: 0.8497854077 | V75: 128 | W75: 1.088 | X75: 0.2222784 | Y75: 2.2277216 | Z75: 2.45 | AA75: 22.3 | AB75: 25.7 | AC75: 0.8677042802 | AD75: 127 | AE75: 1.143 | AF75: 0.457 | AG75: 1.6
B76: 2017-02-19 | C76: 110 | D76: 22.1 | E76: 25.9 | F76: 0.8532818533 | I76: 0 | J76: 3 | K76: 3 | L76: 21.2 | M76: 24.9 | N76: 0.8514056225 | Q76: 3.65 | R76: 3.65 | S76: 19.6 | T76: 23.3 | U76: 0.8412017167 | X76: 0 | Y76: 2.5 | Z76: 2.5 | AA76: 22.3 | AB76: 25.7 | AC76: 0.8677042802 | AF76: 1.5 | AG76: 1.5
B77: 2017-02-20 | C77: 111 | D77: 22.3 | E77: 25.9 | F77: 0.861003861 | G77: 134 | H77: 1.139 | I77: 0.2326977 | J77: 2.6673023 | K77: 2.9 | L77: 21 | M77: 24.9 | N77: 0.843373494 | O77: 138 | P77: 1.1592 | Q77: 2.5408 | R77: 3.7 | S77: 19.7 | T77: 23.3 | U77: 0.8454935622 | V77: 110 | W77: 0.935 | X77: 0.1910205 | Y77: 2.3089795 | Z77: 2.5 | AA77: 22.8 | AB77: 25.7 | AC77: 0.8871595331 | AD77: 144 | AE77: 1.296 | AF77: 0.104 | AG77: 1.4
B78: 2017-02-21 | C78: 112 | D78: 22.2 | E78: 25.9 | F78: 0.8571428571 | G78: 136 | H78: 1.156 | I78: 0.2361708 | J78: 2.6638292 | K78: 2.9 | L78: 21.3 | M78: 24.9 | N78: 0.8554216867 | O78: 107 | P78: 0.8988 | Q78: 2.7512 | R78: 3.65 | S78: 20 | T78: 23.3 | U78: 0.8583690987 | V78: 125 | W78: 1.0625 | X78: 0.21706875 | Y78: 2.23293125 | Z78: 2.45 | AA78: 22.4 | AB78: 25.7 | AC78: 0.8715953307 | AD78: 163 | AE78: 1.467 | AF78: 0.003 | AG78: 1.47
B79: 2017-02-22 | C79: 113 | D79: 22.5 | E79: 25.9 | F79: 0.8687258687 | G79: 122 | H79: 1.037 | I79: 0.2118591 | J79: 2.5881409 | K79: 2.8 | L79: 21.9 | M79: 24.9 | N79: 0.8795180723 | O79: 92 | P79: 0.7728 | Q79: 2.7272 | R79: 3.5 | S79: 19.9 | T79: 23.3 | U79: 0.8540772532 | V79: 111 | W79: 0.9435 | X79: 0.19275705 | Y79: 2.25724295 | Z79: 2.45 | AA79: 22.2 | AB79: 25.7 | AC79: 0.8638132296 | AD79: 200 | AE79: 1.8 | AF79: 0 | AG79: 1.8
B80: 2017-02-23 | C80: 114 | D80: 22.1 | E80: 25.9 | F80: 0.8532818533 | G80: 121 | H80: 1.0285 | I80: 0.21012255 | J80: 2.63987745 | K80: 2.85 | L80: 21.7 | M80: 24.9 | N80: 0.8714859438 | O80: 131 | P80: 1.1004 | Q80: 2.3496 | R80: 3.45 | S80: 18.8 | T80: 23.3 | U80: 0.8068669528 | V80: 79 | W80: 0.6715 | X80: 0.13718745 | Y80: 2.71281255 | Z80: 2.85 | AA80: 22.1 | AB80: 25.7 | AC80: 0.859922179 | AD80: 166 | AE80: 1.494 | AF80: -0.004 | AG80: 1.49
B81: 2017-02-24 | C81: 115 | D81: 22.2 | E81: 25.9 | F81: 0.8571428571 | G81: 130 | H81: 1.105 | I81: 0.2257515 | J81: 2.5742485 | K81: 2.8 | L81: 21.7 | M81: 24.9 | N81: 0.8714859438 | O81: 127 | P81: 1.0668 | Q81: 2.2332 | R81: 3.3 | S81: 20 | T81: 23.3 | U81: 0.8583690987 | V81: 124 | W81: 1.054 | X81: 0.2153322 | Y81: 2.2346678 | Z81: 2.45 | AA81: 22 | AB81: 25.7 | AC81: 0.8560311284 | AD81: 165 | AE81: 1.485 | AF81: -0.005 | AG81: 1.48
B82: 2017-02-25 | C82: 116 | D82: 22.2 | E82: 25.9 | F82: 0.8571428571 | G82: 127 | H82: 1.0795 | I82: 0.22054185 | J82: 2.52945815 | K82: 2.75 | L82: 21.7 | M82: 24.9 | N82: 0.8714859438 | O82: 188 | P82: 1.5792 | Q82: 1.5208 | R82: 3.1 | S82: 19.6 | T82: 23.3 | U82: 0.8412017167 | V82: 88 | W82: 0.748 | X82: 0.1528164 | Y82: 2.3471836 | Z82: 2.5 | AA82: 22 | AB82: 25.7 | AC82: 0.8560311284 | AD82: 171 | AE82: 1.539 | AF82: 0.001 | AG82: 1.54
B83: 2017-02-26 | C83: 117 | D83: 22 | E83: 25.9 | F83: 0.8494208494 | I83: 0 | J83: 2.75 | K83: 2.75 | L83: 20.9 | M83: 24.9 | N83: 0.8393574297 | Q83: 3.2 | R83: 3.2 | S83: 19.6 | T83: 23.3 | U83: 0.8412017167 | X83: 0 | Y83: 2.55 | Z83: 2.55 | AA83: 22.1 | AB83: 25.7 | AC83: 0.859922179 | AF83: 1.45 | AG83: 1.45
B84: 2017-02-27 | C84: 118 | D84: 21.8 | E84: 25.9 | F84: 0.8416988417 | G84: 136 | H84: 1.156 | I84: 0.2361708 | J84: 2.5638292 | K84: 2.8 | L84: 21 | M84: 24.9 | N84: 0.843373494 | O84: 180 | P84: 1.512 | Q84: 1.688 | R84: 3.2 | S84: 19.4 | T84: 23.3 | U84: 0.8326180258 | V84: 105 | W84: 0.8925 | X84: 0.18233775 | Y84: 2.46766225 | Z84: 2.65 | AA84: 22.6 | AB84: 25.7 | AC84: 0.8793774319 | AD84: 192 | AE84: 1.728 | AF84: 0.002 | AG84: 1.73
B85: 2017-02-28 | C85: 119 | D85: 21.6 | E85: 25.9 | F85: 0.833976834 | G85: 122 | H85: 1.037 | I85: 0.2118591 | J85: 2.6881409 | K85: 2.9 | L85: 20.8 | M85: 24.9 | N85: 0.8353413655 | O85: 191 | P85: 1.6044 | Q85: 1.6956 | R85: 3.3 | S85: 20 | T85: 23.3 | U85: 0.8583690987 | V85: 111 | W85: 0.9435 | X85: 0.19275705 | Y85: 2.40724295 | Z85: 2.6 | AA85: 22.5 | AB85: 25.7 | AC85: 0.8754863813 | AD85: 156 | AE85: 1.404 | AF85: -0.004 | AG85: 1.4
B86: 2017-03-01 | C86: 120 | D86: 21.8 | E86: 25.9 | F86: =D86/E86 -> 0.8416988417 | G86: 115 | H86: =G86*0.0085 -> 0.9775 | I86: =H86*0.2043 -> 0.19970325 | J86: =K86-I86 -> 2.70029675 | K86: 2.9 | L86: 20.4 | M86: 24.9 | N86: =L86/M86 -> 0.8192771084 | O86: 222 | P86: =O86*0.0084 -> 1.8648 | Q86: =R86-P86 -> 1.7352 | R86: 3.6 | S86: 19.7 | T86: 23.3 | U86: =S86/T86 -> 0.8454935622 | V86: 89 | W86: =V86*0.0085 -> 0.7565 | X86: =W86*0.2043 -> 0.15455295 | Y86: =Z86-X86 -> 2.49544705 | Z86: 2.65 | AA86: 22.3 | AB86: 25.7 | AC86: =AA86/AB86 -> 0.8677042802 | AD86: 182 | AE86: =AD86*0.009 -> 1.638 | AF86: =AG86-AE86 -> 0.002 | AG86: 1.64
B87: 2017-03-02 | C87: 121 | D87: 21.8 | E87: 25.9 | F87: 0.8416988417 | G87: 128 | H87: 1.088 | I87: 0.2222784 | J87: 2.6777216 | K87: 2.9 | L87: 20.3 | M87: 24.9 | N87: 0.8152610442 | O87: 172 | P87: 1.4448 | Q87: 2.3552 | R87: 3.8 | S87: 20.2 | T87: 23.3 | U87: 0.8669527897 | V87: 118 | W87: 1.003 | X87: 0.2049129 | Y87: 2.3950871 | Z87: 2.6 | AA87: 22.3 | AB87: 25.7 | AC87: 0.8677042802 | AD87: 196 | AE87: 1.764 | AF87: -0.004 | AG87: 1.76
B88: 2017-03-03 | C88: 122 | D88: 22 | E88: 25.9 | F88: 0.8494208494 | G88: 100 | H88: 0.85 | I88: 0.173655 | J88: 2.676345 | K88: 2.85 | L88: 20.6 | M88: 24.9 | N88: 0.8273092369 | O88: 198 | P88: 1.6632 | Q88: 2.1368 | R88: 3.8 | S88: 20.1 | T88: 23.3 | U88: 0.8626609442 | V88: 129 | W88: 1.0965 | X88: 0.22401495 | Y88: 2.37598505 | Z88: 2.6 | AA88: 22.3 | AB88: 25.7 | AC88: 0.8677042802 | AD88: 177 | AE88: 1.593 | AF88: -0.003 | AG88: 1.59
B89: 2017-03-04 | C89: 123 | D89: 21.8 | E89: 25.9 | F89: 0.8416988417 | I89: 0 | J89: 2.9 | K89: 2.9 | L89: 20.6 | M89: 24.9 | N89: 0.8273092369 | Q89: 3.8 | R89: 3.8 | S89: 19.8 | T89: 23.3 | U89: 0.8497854077 | X89: 0 | Y89: 2.6 | Z89: 2.6 | AA89: 22.3 | AB89: 25.7 | AC89: 0.8677042802 | AF89: 1.4 | AG89: 1.4
B90: 2017-03-05 | C90: 124 | D90: 21.8 | E90: 25.9 | F90: 0.8416988417 | I90: 0 | J90: 2.9 | K90: 2.9 | L90: 20.8 | M90: 24.9 | N90: 0.8353413655 | Q90: 3.8 | R90: 3.8 | S90: 19.7 | T90: 23.3 | U90: 0.8454935622 | X90: 0 | Y90: 2.65 | Z90: 2.65 | AA90: 22.7 | AB90: 25.7 | AC90: 0.8832684825 | AF90: 1.3 | AG90: 1.3
B91: 2017-03-06 | C91: 125 | D91: 22.2 | E91: 25.9 | F91: 0.8571428571 | G91: 129 | H91: 1.0965 | I91: 0.22401495 | J91: 2.62598505 | K91: 2.85 | L91: 21.4 | M91: 24.9 | N91: 0.859437751 | O91: 256 | P91: =O91*0.004 -> 1.024 | Q91: 2.676 | R91: 3.7 | S91: 20.2 | T91: 23.3 | U91: 0.8669527897 | V91: 228 | W91: 1.938 | X91: 0.3959334 | Y91: 2.1540666 | Z91: 2.55 | AA91: 23 | AB91: 25.7 | AC91: 0.8949416342 | AD91: 203 | AE91: =AD91*0.004 -> 0.812 | AF91: 0.188 | AG91: 1
B92: 2017-03-07 | C92: 126 | D92: 22 | E92: 25.9 | F92: 0.8494208494 | G92: 120 | H92: 1.02 | I92: 0.208386 | K92: ad lib | L92: 21.4 | M92: 24.9 | N92: 0.859437751 | O92: 169 | P92: 1.4196 | Q92: 2.1804 | R92: 3.6 | S92: 20.2 | T92: 23.3 | U92: 0.8669527897 | V92: 119 | W92: 1.0115 | X92: 0.20664945 | Z92: ad lib | AA92: 22.4 | AB92: 25.7 | AC92: 0.8715953307 | AD92: 168 | AE92: 1.512 | AF92: -0.002 | AG92: 1.51
B93: 2017-03-08 | C93: 127 | D93: 26.2 | E93: 25.9 | F93: 1.011583012 | L93: 20.8 | M93: 24.9 | N93: 0.8353413655 | O93: 92 | P93: 0.7728 | Q93: 2.9272 | R93: 3.7 | S93: 24.8 | T93: 23.3 | U93: 1.064377682 | AA93: 22.2 | AB93: 25.7 | AC93: 0.8638132296 | AD93: 136 | AE93: 1.224 | AF93: 0.276 | AG93: 1.5
B94: 2017-03-09 | C94: 128 | D94: 27.3 | E94: 25.9 | F94: 1.054054054 | G94: 3 | H94: 0.0255 | I94: 0.00520965 | L94: 21.5 | M94: 24.9 | N94: 0.8634538153 | O94: 265 | P94: 2.226 | R94: ad lib | S94: 25.1 | T94: 23.3 | U94: 1.077253219 | V94: 42 | W94: 0.357 | X94: 0.0729351 | AA94: 22.4 | AB94: 25.7 | AC94: 0.8715953307 | AD94: 224 | AE94: 2.016 | AG94: ad lib
B95: 2017-03-10 | C95: 129 | D95: 27.1 | E95: 25.9 | F95: 1.046332046 | L95: 24.1 | M95: 24.9 | N95: 0.9678714859 | S95: 25.9 | T95: 23.3 | U95: 1.111587983 | AA95: 26.6 | AB95: 25.7 | AC95: 1.035019455
B96: 2017-03-11 | C96: 130
B97: 2017-03-12 | C97: 131
B98: 2017-03-13 | C98: 132 | D98: 27.5 | E98: 25.9 | F98: =D98/E98 -> 1.061776062 | L98: 25.8 | M98: 24.9 | N98: =L98/M98 -> 1.036144578 | S98: 26.8 | T98: 23.3 | U98: =S98/T98 -> 1.150214592 | AA98: 27.4 | AB98: 25.7 | AC98: =AA98/AB98 -> 1.06614786
B99: 2017-03-14 | C99: 133
B100: 2017-03-15 | C100: 134 | D100: 27.7 | E100: 25.9 | F100: 1.069498069 | L100: 25.8 | M100: 24.9 | N100: 1.036144578 | S100: 26.6 | T100: 23.3 | U100: 1.141630901 | AA100: 27.7 | AB100: 25.7 | AC100: 1.077821012
B101: 2017-03-16 | C101: 135
B102: 2017-03-17 | C102: 136 | D102: 27.7 | E102: 25.9 | F102: =D102/E102 -> 1.069498069 | L102: 26.4 | M102: 24.9 | N102: =L102/M102 -> 1.060240964 | S102: 27.4 | T102: 23.3 | U102: =S102/T102 -> 1.175965665 | AA102: 28.4 | AB102: 25.7 | AC102: =AA102/AB102 -> 1.105058366
B103: 2017-03-18 | C103: 137
B104: 2017-03-19 | C104: 138
B105: 2017-03-20 | C105: 139 | D105: 28.9 | E105: 25.9 | F105: =D105/E105 -> 1.115830116 | L105: 27.4 | M105: 24.9 | N105: =L105/M105 -> 1.100401606 | S105: 26.8 | T105: 23.3 | U105: =S105/T105 -> 1.150214592 | AA105: 28.5 | AB105: 25.7 | AC105: =AA105/AB105 -> 1.108949416
B106: 2017-03-21 | C106: 139
B107: 2017-03-22 | C107: 139
B108: 2017-03-23 | C108: 139
B109: 2017-03-24 | C109: 139
B110: 2017-03-25 | C110: 139
B111: 2017-03-26 | C111: 139
B112: 2017-03-27 | C112: 139
B113: 2017-03-28 | C113: 139 | D113: 28.8 | E113: 25.9 | F113: =D113/E113 -> 1.111969112 | L113: 26.6 | M113: 24.9 | N113: =L113/M113 -> 1.068273092 | S113: 27.6 | T113: 23.3 | U113: =S113/T113 -> 1.184549356 | AA113: 28.9 | AB113: 25.7 | AC113: =AA113/AB113 -> 1.124513619

Sheet W09-W12
B2: Weight overview mice W09, W10, W11, W12
I4: gram | X4: gram
D5: W09 | E5: 21.8 | H5: ml | I5: soy to | J5: gram | L5: W10 | M5: 21.3 | P5: ml | Q5: ml | S5: W11 | T5: 21.3 | W5: ml | X5: soy to | Y5: gram | AA5: W12 | AB5: 21.5 | AE5: ml | AF5: ml
B6: Day | C6: Age | D6: Weight | E6: Ref | F6: % | G6: Drops | H6: Task | I6: chow | J6: Suppl | K6: Total | L6: Weight | M6: Ref | N6: % | O6: Drops | P6: Task | Q6: Suppl | R6: Total | S6: Weight | T6: Ref | U6: % | V6: Drops | W6: Task | X6: chow | Y6: Suppl | Z6: Total | AA6: Weight | AB6: Ref | AC6: % | AD6: Drops | AE6: Task | AF6: Suppl | AG6: Total
B7: 2016-12-12 | C7: 41 | D7: 22.2 | E7: 21.9 | F7: =D7/E7 -> 1.01369863 | L7: 21.1 | M7: 22 | N7: =L7/M7 -> 0.9590909091 | S7: 21.8 | T7: 22.3 | U7: =S7/T7 -> 0.9775784753 | AA7: 21.7 | AB7: 21.7 | AC7: =AA7/AB7 -> 1
B8: 2016-12-13 | C8: 42 | D8: 22.1 | E8: 21.9 | F8: 1.00913242 | L8: 22.3 | M8: 22 | N8: 1.013636364 | S8: 22.5 | T8: 22.3 | U8: 1.00896861 | AA8: 21.8 | AB8: 21.7 | AC8: 1.004608295
B9: 2016-12-14 | C9: 43 | D9: 22.2 | E9: 21.9 | F9: 1.01369863 | L9: 22.6 | M9: 22 | N9: 1.027272727 | S9: 22.4 | T9: 22.3 | U9: 1.004484305 | AA9: 22.1 | AB9: 21.7 | AC9: 1.01843318
B10: 2016-12-15 | C10: 44 | D10: 21.1 | E10: 21.9 | F10: 0.9634703196 | L10: 21.9 | M10: 22 | N10: 0.9954545455 | S10: 22.3 | T10: 22.3 | U10: 1 | AA10: 21.3 | AB10: 21.7 | AC10: 0.9815668203
B11: 2016-12-16 | C11: 45 | D11: 20 | E11: 21.9 | F11: 0.9132420091 | L11: 20.9 | M11: 22 | N11: 0.95 | S11: 20.9 | T11: 22.3 | U11: 0.9372197309 | AA11: 20.2 | AB11: 21.7 | AC11: 0.930875576
B12: 2016-12-17 | C12: 46 | D12: 21.7 | E12: 21.9 | F12: 0.9908675799 | L12: 21.9 | M12: 22 | N12: 0.9954545455 | S12: 21.5 | T12: 22.3 | U12: 0.9641255605 | AA12: 19.9 | AB12: 21.7 | AC12: 0.9170506912
B13: 2016-12-18 | C13: 47 | D13: 22.2 | E13: 21.9 | F13: 1.01369863 | L13: 22.7 | M13: 22 | N13: 1.031818182 | S13: 22.3 | T13: 22.3 | U13: 1 | AA13: 20.8 | AB13: 21.7 | AC13: 0.9585253456
B14: 2016-12-19 | C14: 48 | D14: 22.8 | E14: 21.9 | F14: 1.04109589 | L14: 23.3 | M14: 22 | N14: 1.059090909 | S14: 23 | T14: 22.3 | U14: 1.031390135 | AA14: 21.9 | AB14: 21.7 | AC14: 1.00921659
B15: 2016-12-20 | C15: 49 | D15: 23.5 | E15: 21.9 | F15: 1.073059361 | L15: 23.8 | M15: 22 | N15: 1.081818182 | S15: 23.8 | T15: 22.3 | U15: 1.067264574 | AA15: 22.3 | AB15: 21.7 | AC15: 1.02764977
B16: 2016-12-21 | C16: 50 | D16: 23.5 | E16: 21.9 | F16: 1.073059361 | L16: 23.2 | M16: 22 | N16: 1.054545455 | S16: 23 | T16: 22.3 | U16: 1.031390135 | AA16: 22.6 | AB16: 21.7 | AC16: 1.041474654
B17: 2016-12-22 | C17: 51 | D17: 23.8 | E17: 21.9 | F17: 1.086757991 | L17: 23.4 | M17: 22 | N17: 1.063636364 | S17: 22.6 | T17: 22.3 | U17: 1.013452915 | AA17: 23.1 | AB17: 21.7 | AC17: 1.064516129
B18: 2016-12-23 | C18: 52 | D18: 23.2 | E18: 21.9 | F18: 1.059360731 | L18: 23.6 | M18: 22 | N18: 1.072727273 | S18: 23.2 | T18: 22.3 | U18: 1.040358744 | AA18: 22.8 | AB18: 21.7 | AC18: 1.050691244
B19: 2016-12-24 | C19: 53
B20: 2016-12-25 | C20: 54
B21: 2016-12-26 | C21: 55
B22: 2016-12-27 | C22: 56
B23: 2016-12-28 | C23: 57
B24: 2016-12-29 | C24: 58
B25: 2016-12-30 | C25: 59
B26: 2016-12-31 | C26: 60
B27: 2017-01-01 | C27: 61
B28: 2017-01-02 | C28: 62 | D28: 25.7 | E28: 25.7 | F28: 1 | J28: 2 | K28: =(I28)+J28 -> 2 | L28: 25.1 | M28: 25.1 | N28: 1 | Q28: 1.57 | R28: =(P28)+Q28 -> 1.57 | S28: 25 | T28: 25 | U28: 1 | Y28: 2 | Z28: =(X28)+Y28 -> 2 | AA28: 25.3 | AB28: 25.3 | AC28: 1 | AF28: 1.57 | AG28: =(AE28)+AF28 -> 1.57
B29: 2017-01-03 | C29: 63 | D29: 22 | E29: 25.7 | F29: 0.8560311284 | J29: 2.9 | K29: =(I29)+J29 -> 2.9 | L29: 23 | M29: 25.1 | N29: 0.9163346614 | Q29: 1.57 | R29: =(P29)+Q29 -> 1.57 | S29: 21.6 | T29: 25 | U29: 0.864 | Y29: 3 | Z29: =(X29)+Y29 -> 3 | AA29: 23.5 | AB29: 25.3 | AC29: 0.9288537549 | AF29: 1.57 | AG29: =(AE29)+AF29 -> 1.57
B30: 2017-01-04 | C30: 64 | D30: 22.3 | E30: 25.7 | F30: 0.8677042802 | J30: 2.6 | K30: 2.6 | L30: 22.8 | M30: 25.1 | N30: 0.9083665339 | Q30: 1.5 | R30: 1.5 | S30: 21.6 | T30: 25 | U30: 0.864 | Y30: 2.5 | Z30: 2.5 | AA30: 22.4 | AB30: 25.3 | AC30: 0.8853754941 | AF30: 1.5 | AG30: 1.5
B31: 2017-01-05 | C31: 65 | D31: 21.1 | E31: 25.7 | F31: 0.8210116732 | H31: 0.1 | I31: =H31*0.2043 -> 0.02043 | J31: 3.3 | K31: 3.32043 | L31: 22.5 | M31: 25.1 | N31: 0.8964143426 | P31: 0.4 | Q31: 1.17 | R31: 1.57 | S31: 20.3 | T31: 25 | U31: 0.812 | W31: 0.3 | X31: =W31*0.2043 -> 0.06129 | Y31: 2.9 | Z31: 2.96129 | AA31: 21.7 | AB31: 25.3 | AC31: 0.8577075099 | AE31: 0.4 | AF31: 1.17 | AG31: 1.57
B32: 2017-01-06 | C32: 66 | D32: 21.7 | E32: 25.7 | F32: 0.8443579767 | H32: 0.25 | I32: =H32*0.2043 -> 0.051075 | J32: 3.3 | K32: 3.351075 | L32: 22.1 | M32: 25.1 | N32: 0.8804780876 | P32: 0.5 | Q32: 1.07 | R32: 1.57 | S32: 20.2 | T32: 25 | U32: 0.808 | W32: 0.8 | X32: =W32*0.2043 -> 0.16344 | Y32: 3.5 | Z32: 3.66344 | AA32: 21 | AB32: 25.3 | AC32: 0.8300395257 | AE32: 0.4 | AF32: 1.9 | AG32: 2.3
B33: 2017-01-07 | C33: 67 | D33: 21.6 | E33: 25.7 | F33: 0.8404669261 | H33: 0.35 | I33: 0.071505 | J33: 3.4 | K33: 3.471505 | L33: 22.2 | M33: 25.1 | N33: 0.8844621514 | P33: 0.8 | Q33: 0.77 | R33: 1.57 | S33: 20.6 | T33: 25 | U33: 0.824 | W33: 0.8 | X33: 0.16344 | Y33: 3.6 | Z33: 3.76344 | AA33: 21.6 | AB33: 25.3 | AC33: 0.8537549407 | AE33: 0.57 | AF33: 1 | AG33: 1.57
B34: 2017-01-08 | C34: 68 | D34: 22.6 | E34: 25.7 | F34: 0.8793774319 | I34: 0 | J34: 2.7 | K34: 2.7 | L34: 22 | M34: 25.1 | N34: 0.8764940239 | Q34: 1.57 | R34: 1.57 | S34: 21.4 | T34: 25 | U34: 0.856 | X34: 0 | Y34: 3 | Z34: 3 | AA34: 21.9 | AB34: 25.3 | AC34: 0.8656126482 | AF34: 1.57 | AG34: 1.57
B35: 2017-01-09 | C35: 69 | D35: 21.7 | E35: 25.7 | F35: 0.8443579767 | H35: 0.3 | I35: 0.06129 | J35: 3 | K35: 3.06129 | L35: 22.1 | M35: 25.1 | N35: 0.8804780876 | P35: 1 | Q35: 0.57 | R35: 1.57 | S35: 20.5 | T35: 25 | U35: 0.82 | W35: 0.7 | X35: 0.14301 | Y35: 3.4 | Z35: 3.54301 | AA35: 21.9 | AB35: 25.3 | AC35: 0.8656126482 | AE35: 0.7 | AF35: 0.87 | AG35: 1.57
B36: 2017-01-10 | C36: 70 | D36: 21.9 | E36: 25.7 | F36: 0.8521400778 | H36: 0.3 | I36: 0.06129 | J36: 2.8 | K36: 2.86129 | L36: 22.1 | M36: 25.1 | N36: 0.8804780876 | P36: 0.75 | Q36: 0.65 | R36: 1.4 | S36: 20.7 | T36: 25 | U36: 0.828 | W36: 0.55 | X36: 0.112365 | Y36: 3.4 | Z36: 3.512365 | AA36: 21.8 | AB36: 25.3 | AC36: 0.8616600791 | AE36: 0.55 | AF36: 1 | AG36: 1.55
B37: 2017-01-11 | C37: 71 | D37: 21.7 | E37: 25.7 | F37: 0.8443579767 | H37: 0.15 | I37: 0.030645 | J37: 3.3 | K37: 3.330645 | L37: 22 | M37: 25.1 | N37: 0.8764940239 | P37: 0.6 | Q37: 0.8 | R37: 1.4 | S37: 21.1 | T37: 25 | U37: 0.844 | W37: 0.4 | X37: 0.08172 | Y37: 3.6 | Z37: 3.68172 | AA37: 21.8 | AB37: 25.3 | AC37: 0.8616600791 | AE37: 0.7 | AF37: 0.87 | AG37: 1.57
B38: 2017-01-12 | C38: 72 | D38: 22 | E38: 25.7 | F38: 0.8560311284 | H38: 0.6 | I38: 0.12258 | J38: 2.6 | K38: 2.72258 | L38: 21.7 | M38: 25.1 | N38: 0.8645418327 | P38: 0.7 | Q38: 0.75 | R38: 1.45 | S38: 21.2 | T38: 25 | U38: 0.848 | W38: 0.93 | X38: 0.189999 | Y38: 3 | Z38: 3.189999 | AA38: 21.8 | AB38: 25.3 | AC38: 0.8616600791 | AE38: 0.8 | AF38: 0.7 | AG38: 1.5
B39: 2017-01-13 | C39: 73 | D39: 21.8 | E39: 25.7 | F39: 0.8482490272 | H39: 0.85 | I39: 0.173655 | J39: 2.45 | K39: 2.623655 | L39: 21.5 | M39: 25.1 | N39: 0.8565737052 | P39: 0.9 | Q39: =R39-P39 -> 0.6 | R39: 1.5 | S39: 21.4 | T39: 25 | U39: 0.856 | W39: 1.4 | X39: 0.28602 | Y39: 2.4 | Z39: 2.68602 | AA39: 21.9 | AB39: 25.3 | AC39: 0.8656126482 | AE39: 0.65 | AF39: =AG39-AE39 -> 0.8 | AG39: 1.45
B40: 2017-01-14 | C40: 74 | D40: 21.5 | E40: 25.7 | F40: 0.8365758755 | H40: 0.75 | I40: 0.153225 | J40: 3.5 | K40: 3.653225 | L40: 21.6 | M40: 25.1 | N40: 0.8605577689 | P40: 0.8 | Q40: 0.7 | R40: 1.5 | S40: 20.9 | T40: 25 | U40: 0.836 | W40: 1 | X40: 0.2043 | Y40: 3.5 | Z40: 3.7043 | AA40: 21.8 | AB40: 25.3 | AC40: 0.8616600791 | AE40: 0.5 | AF40: 1 | AG40: 1.5
B41: 2017-01-15 | C41: 75 | D41: 22 | E41: 25.7 | F41: 0.8560311284 | H41: 1.8 | I41: 0.36774 | J41: 2.7 | K41: 3.06774 | L41: 21.3 | M41: 25.1 | N41: 0.8486055777 | P41: 1 | Q41: =R41-P41 -> 0.55 | R41: 1.55 | S41: 21.4 | T41: 25 | U41: 0.856 | W41: 1.95 | X41: 0.398385 | Y41: 2.85 | Z41: 3.248385 | AA41: 21.8 | AB41: 25.3 | AC41: 0.8616600791 | AE41: 0.6 | AF41: =AG41-AE41 -> 0.9 | AG41: 1.5
B42: 2017-01-16 | C42: 76 | D42: 21.9 | E42: 25.7 | F42: 0.8521400778 | H42: 1.6 | I42: 0.32688 | J42: 2.9 | K42: 3.22688 | L42: 21.3 | M42: 25.1 | N42: 0.8486055777 | P42: 0.9 | Q42: 0.65 | R42: 1.55 | S42: 21.3 | T42: 25 | U42: 0.852 | W42: 1.9 | X42: 0.38817 | Y42: 2.9 | Z42: 3.28817 | AA42: 21.9 | AB42: 25.3 | AC42: 0.8656126482 | AE42: 0.6 | AF42: 0.9 | AG42: 1.5
B43: 2017-01-17 | C43: 77 | D43: 21.1 | E43: 25.7 | F43: 0.8210116732 | H43: 0.94 | I43: 0.192042 | J43: 4.06 | K43: 4.252042 | L43: 21.2 | M43: 25.1 | N43: 0.8446215139 | P43: 0.1 | Q43: 1.5 | R43: 1.6 | S43: 20.6 | T43: 25 | U43: 0.824 | W43: 2.05 | X43: 0.418815 | Y43: 3.3 | Z43: 3.718815 | AA43: 21.8 | AB43: 25.3 | AC43: 0.8616600791 | AE43: 0.45 | AF43: 1.05 | AG43: 1.5
B44: 2017-01-18 | C44: 78 | D44: 23.2 | E44: 25.7 | F44: 0.9027237354 | H44: 0.46 | I44: 0.093978 | J44: =K44-I44 -> 3.406022 | K44: 3.5 | L44: 21.3 | M44: 25.1 | N44: 0.8486055777 | P44: 0.03 | Q44: 1.57 | R44: 1.6 | S44: 21.8 | T44: 25 | U44: 0.872 | W44: 3.13 | X44: 0.639459 | Y44: =Z44-X44 -> 2.710541 | Z44: 3.35 | AA44: 21.8 | AB44: 25.3 | AC44: 0.8616600791 | AE44: 0.14 | AF44: 1.31 | AG44: 1.45
B45: 2017-01-19 | C45: 79 | D45: 22.7 | E45: 25.7 | F45: 0.8832684825 | H45: 1.69 | I45: 0.345267 | J45: =K45-I45 -> 3.154733 | K45: 3.5 | L45: 21.3 | M45: 25.1 | N45: 0.8486055777 | P45: 0.55 | Q45: 1.05 | R45: 1.6 | S45: 21.4 | T45: 25 | U45: 0.856 | W45: 2.83 | X45: 0.578169 | Y45: =Z45-X45 -> 2.821831 | Z45: 3.4 | AA45: 21.7 | AB45: 25.3 | AC45: 0.8577075099 | AE45: 0.17 | AF45: 1.23 | AG45: 1.4
B46: 2017-01-20 | C46: 80 | D46: 23 | E46: 25.7 | F46: 0.8949416342 | H46: 1.21 | I46: 0.247203 | J46: 3.152797 | K46: 3.4 | L46: 21.4 | M46: 25.1 | N46: 0.8525896414 | P46: 0.78 | Q46: 0.82 | R46: 1.6 | S46: 21.4 | T46: 25 | U46: 0.856 | W46: 2.37 | X46: 0.484191 | Y46: 2.915809 | Z46: 3.4 | AA46: 21.7 | AB46: 25.3 | AC46: 0.8577075099 | AE46: 0.12 | AF46: 1.28 | AG46: 1.4
B47: 2017-01-21 | C47: 81 | D47: 23 | E47: 25.7 | F47: 0.8949416342 | H47: 1.58 | I47: 0.322794 | J47: 2.977206 | K47: 3.3 | L47: 21.2 | M47: 25.1 | N47: 0.8446215139 | P47: 0.6 | Q47: 1 | R47: 1.6 | S47: 21.3 | T47: 25 | U47: 0.852 | W47: 2 | X47: 0.4086 | Y47: 2.9914 | Z47: 3.4 | AA47: 21.9 | AB47: 25.3 | AC47: 0.8656126482 | AE47: 0.22 | AF47: 1.13 | AG47: 1.35
B48: 2017-01-22 | C48: 82 | D48: 23.3 | E48: 25.7 | F48: 0.906614786 | I48: 0 | J48: 3.15 | K48: 3.15 | L48: 21.4 | M48: 25.1 | N48: 0.8525896414 | Q48: 1.6 | R48: 1.6 | S48: 22 | T48: 25 | U48: 0.88 | X48: 0 | Y48: 3.3 | Z48: 3.3 | AA48: 21.8 | AB48: 25.3 | AC48: 0.8616600791 | AF48: 1.35 | AG48: 1.35
B49: 2017-01-23 | C49: 83 | D49: 23.1 | E49: 25.7 | F49: 0.8988326848 | H49: 2.46 | I49: 0.502578 | J49: 2.647422 | K49: 3.15 | L49: 21.3 | M49: 25.1 | N49: 0.8486055777 | P49: 0.42 | Q49: 1.18 | R49: 1.6 | S49: 21 | T49: 25 | U49: 0.84 | W49: 2.49 | X49: 0.508707 | Y49: 2.991293 | Z49: 3.5 | AA49: 21.7 | AB49: 25.3 | AC49: 0.8577075099 | AE49: 0.68 | AF49: 0.67 | AG49: 1.35
B50: 2017-01-24 | C50: 84 | D50: 23.2 | E50: 25.7 | F50: 0.9027237354 | H50: 1.62 | I50: 0.330966 | J50: 2.669034 | K50: 3 | L50: 21.3 | M50: 25.1 | N50: 0.8486055777 | P50: 0.68 | Q50: 0.92 | R50: 1.6 | S50: 21.3 | T50: 25 | U50: 0.852 | W50: 2.93 | X50: 0.598599 | Y50: 2.801401 | Z50: 3.4 | AA50: 21.4 | AB50: 25.3 | AC50: 0.8458498024 | AE50: 0.49 | AF50: 0.91 | AG50: 1.4
B51: 2017-01-25 | C51: 85 | D51: 23.1 | E51: 25.7 | F51: 0.8988326848 | H51: 1.5 | I51: 0.30645 | J51: 2.69355 | K51: 3 | L51: 21.5 | M51: 25.1 | N51: 0.8565737052 | P51: 0.68 | Q51: 0.92 | R51: 1.6 | S51: 21.6 | T51: 25 | U51: 0.864 | W51: 1.86 | X51: 0.379998 | Y51: 2.970002 | Z51: 3.35 | AA51: 20.9 | AB51: 25.3 | AC51: 0.8260869565 | AE51: 0.32 | AF51: 1.23 | AG51: 1.55
B52: 2017-01-26 | C52: 86 | D52: 23 | E52: 25.7 | F52: 0.8949416342 | H52: 1.55 | I52: 0.316665 | J52: 2.583335 | K52: 2.9 | L52: 21.3 | M52: 25.1 | N52: 0.8486055777 | P52: 0.5 | Q52: 1.1 | R52: 1.6 | S52: 21.7 | T52: 25 | U52: 0.868 | W52: 2.32 | X52: 0.473976 | Y52: 2.826024 | Z52: 3.3 | AA52: 21.3 | AB52: 25.3 | AC52: 0.8418972332 | AE52: 0.15 | AF52: 1.4 | AG52: 1.55
B53: 2017-01-27 | C53: 87 | D53: 22.4 | E53: 25.7 | F53: 0.8715953307 | G53: 165 | H53: =G53*0.0085 -> 1.4025 | I53: 0.28653075 | J53: 2.61346925 | K53: 2.9 | L53: 21.6 | M53: 25.1 | N53: 0.8605577689 | O53: 70 | P53: =O53*0.0084 -> 0.588 | Q53: 0.912 | R53: 1.5 | S53: 21.1 | T53: 25 | U53: 0.844 | V53: 115 | W53: =V53*0.0085 -> 0.9775 | X53: 0.19970325 | Y53: 3.15029675 | Z53: 3.35 | AA53: 21.2 | AB53: 25.3 | AC53: 0.837944664 | AD53: 72 | AE53: =AD53*0.009 -> 0.648 | AF53: 0.952 | AG53: 1.6
B54: 2017-01-28 | C54: 88 | D54: 22.4 | E54: 25.7 | F54: 0.8715953307 | G54: 243 | H54: =G54*0.0085 -> 2.0655 | I54: 0.42198165 | J54: 2.37801835 | K54: 2.8 | L54: 21.5 | M54: 25.1 | N54: 0.8565737052 | O54: 58 | P54: =O54*0.0084 -> 0.4872 | Q54: 1.0128 | R54: 1.5 | S54: 21.4 | T54: 25 | U54: 0.856 | V54: 185 | W54: =V54*0.0085 -> 1.5725 | X54: 0.32126175 | Y54: 2.97873825 | Z54: 3.3 | AA54: 21.1 | AB54: 25.3 | AC54: 0.8339920949 | AD54: 51 | AE54: =AD54*0.009 -> 0.459 | AF54: 1.191 | AG54: 1.65
B55: 2017-01-29 | C55: 89 | D55: 22.8 | E55: 25.7 | F55: 0.8871595331 | I55: 0 | J55: 2.7 | K55: 2.7 | L55: 21.6 | M55: 25.1 | N55: 0.8605577689 | Q55: 1.45 | R55: 1.45 | S55: 21.5 | T55: 25 | U55: 0.86 | X55: 0 | Y55: 3.2 | Z55: 3.2 | AA55: 21.4 | AB55: 25.3 | AC55: 0.8458498024 | AF55: 1.6 | AG55: 1.6
B56: 2017-01-30 | C56: 90 | D56: 22.1 | E56: 25.7 | F56: 0.859922179 | G56: 127 | H56: 1.0795 | I56: 0.22054185 | J56: 2.47945815 | K56: 2.7 | L56: 21.9 | M56: 25.1 | N56: 0.8725099602 | O56: 75 | P56: 0.63 | Q56: 0.77 | R56: 1.4 | S56: 20.9 | T56: 25 | U56: 0.836 | V56: 85 | W56: 0.7225 | X56: 0.14760675 | Y56: 3.15239325 | Z56: 3.3 | AA56: 21.8 | AB56: 25.3 | AC56: 0.8616600791 | AD56: 113 | AE56: 1.017 | AF56: 0.533 | AG56: 1.55
B57: 2017-01-31 | C57: 91 | D57: 22.4 | E57: 25.7 | F57: 0.8715953307 | G57: 131 | H57: 1.1135 | I57: 0.22748805 | J57: 2.42251195 | K57: 2.65 | L57: 21.8 | M57: 25.1 | N57: 0.8685258964 | O57: 73 | P57: 0.6132 | Q57: 0.7868 | R57: 1.4 | S57: 21.6 | T57: 25 | U57: 0.864 | V57: 61 | W57: 0.5185 | X57: 0.10592955 | Y57: 3.14407045 | Z57: 3.25 | AA57: 21.7 | AB57: 25.3 | AC57: 0.8577075099 | AD57: 130 | AE57: 1.17 | AF57: 0.38 | AG57: 1.55
B58: 2017-02-01 | C58: 92 | D58: 21.9 | E58: 25.7 | F58: 0.8521400778 | G58: 127 | H58: 1.0795 | I58: 0.22054185 | J58: 2.47945815 | K58: 2.7 | L58: 21.6 | M58: 25.1 | N58: 0.8605577689 | O58: 119 | P58: 0.9996 | Q58: 0.4004 | R58: 1.4 | S58: 21.1 | T58: 25 | U58: 0.844 | V58: 58 | W58: 0.493 | X58: 0.1007199 | Y58: 3.1492801 | Z58: 3.25 | AA58: 21.5 | AB58: 25.3 | AC58: 0.8498023715 | AD58: 115 | AE58: 1.035 | AF58: 0.515 | AG58: 1.55
B59: 2017-02-02 | C59: 93 | D59: 21.4 | E59: 25.7 | F59: 0.8326848249 | G59: 138 | H59: 1.173 | I59: 0.2396439 | J59: 2.5603561 | K59: 2.8 | L59: 21.4 | M59: 25.1 | N59: 0.8525896414 | O59: 162 | P59: 1.3608 | Q59: 0.0392 | R59: 1.4 | S59: 20.8 | T59: 25 | U59: 0.832 | V59: 37 | W59: 0.3145 | X59: 0.06425235 | Y59: 3.23574765 | Z59: 3.3 | AA59: 21.5 | AB59: 25.3 | AC59: 0.8498023715 | AD59: 64 | AE59: 0.576 | AF59: 0.974 | AG59: 1.55
B60: 2017-02-03 | C60: 94 | D60: 21.5 | E60: 25.7 | F60: =D60/E60 -> 0.8365758755 | G60: 138 | H60: 1.173 | I60: 0.2396439 | J60: 2.6603561 | K60: 2.9 | L60: 20.9 | M60: 25.1 | N60: =L60/M60 -> 0.8326693227 | O60: 111 | P60: 0.9324 | Q60: 0.5176 | R60: 1.45 | S60: 20.9 | T60: 25 | U60: =S60/T60 -> 0.836 | V60: 86 | W60: 0.731 | X60: 0.1493433 | Y60: 3.2006567 | Z60: 3.35 | AA60: 21.6 | AB60: 25.3 | AC60: =AA60/AB60 -> 0.8537549407 | AD60: 35 | AE60: 0.315 | AF60: 1.235 | AG60: 1.55
B61: 2017-02-04 | C61: 95 | D61: 21.6 | E61: 25.7 | F61: 0.8404669261 | G61: 144 | H61: 1.224 | I61: 0.2500632 | J61: 2.6499368 | K61: 2.9 | L61: 21 | M61: 25.1 | N61: 0.8366533865 | O61: 46 | P61: 0.3864 | Q61: 1.0636 | R61: 1.45 | S61: 21 | T61: 25 | U61: 0.84 | V61: 89 | W61: 0.7565 | X61: 0.15455295 | Y61: 3.19544705 | Z61: 3.35 | AA61: 22 | AB61: 25.3 | AC61: 0.8695652174 | AD61: 15 | AE61: 0.135 | AF61: 1.315 | AG61: 1.45
B62: 2017-02-05 | C62: 96 | D62: 21.3 | E62: 25.7 | F62: 0.8287937743 | I62: 0 | J62: 3 | K62: 3 | L62: 21.2 | M62: 25.1 | N62: 0.8446215139 | Q62: 1.45 | R62: 1.45 | S62: 21.3 | T62: 25 | U62: 0.852 | X62: 0 | Y62: 3.3 | Z62: 3.3 | AA62: 22.1 | AB62: 25.3 | AC62: 0.8735177866 | AF62: 1.4 | AG62: 1.4
B63: 2017-02-06 | C63: 97 | D63: 21.1 | E63: 25.7 | F63: 0.8210116732 | G63: 138 | H63: 1.173 | I63: 0.2396439 | J63: 2.8603561 | K63: 3.1 | L63: 21.7 | M63: 25.1 | N63: 0.8645418327 | O63: 83 | P63: 0.6972 | Q63: 0.7028 | R63: 1.4 | S63: 21 | T63: 25 | U63: 0.84 | V63: 98 | W63: 0.833 | X63: 0.1701819 | Y63: 3.1798181 | Z63: 3.35 | AA63: 22.2 | AB63: 25.3 | AC63: 0.8774703557 | AD63: 17 | AE63: 0.153 | AF63: 1.147 | AG63: 1.3
B64: 2017-02-07 | C64: 98 | D64: 21.8 | E64: 25.7 | F64: 0.8482490272 | G64: 135 | H64: 1.1475 | I64: 0.23443425 | J64: 2.81556575 | K64: 3.05 | L64: 21.4 | M64: 25.1 | N64: 0.8525896414 | O64: 133 | P64: 1.1172 | Q64: 0.3028 | R64: 1.42 | S64: 21.4 | T64: 25 | U64: 0.856 | V64: 94 | W64: 0.799 | X64: 0.1632357 | Y64: 3.1367643 | Z64: 3.3 | AA64: 22 | AB64: 25.3 | AC64: 0.8695652174 | AD64: 63 | AE64: 0.567 | AF64: 0.733 | AG64: 1.3
B65: 2017-02-08 | C65: 99 | D65: 21.7 | E65: 25.7 | F65: 0.8443579767 | G65: 140 | H65: 1.19 | I65: 0.243117 | J65: 2.836883 | K65: 3.08 | L65: 21.2 | M65: 25.1 | N65: 0.8446215139 | O65: 107 | P65: 0.8988 | Q65: 0.5512 | R65: 1.45 | S65: 22.2 | T65: 25 | U65: 0.888 | V65: 81 | W65: 0.6885 | X65: 0.14066055 | Y65: 3.05933945 | Z65: 3.2 | AA65: 21.8 | AB65: 25.3 | AC65: 0.8616600791 | AD65: 62 | AE65: 0.558 | AF65: 0.742 | AG65: 1.3
B66: 2017-02-09 | C66: 100 | D66: 21.8 | E66: 25.7 | F66: 0.8482490272 | G66: 127 | H66: 1.0795 | I66: 0.22054185 | J66: 2.85945815 | K66: 3.08 | L66: 21.1 | M66: 25.1 | N66: 0.8406374502 | O66: 144 | P66: 1.2096 | Q66: 0.2704 | R66: 1.48 | S66: 21.8 | T66: 25 | U66: 0.872 | V66: 71 | W66: 0.6035 | X66: 0.12329505 | Y66: 3.07670495 | Z66: 3.2 | AA66: 21.6 | AB66: 25.3 | AC66: 0.8537549407 | AD66: 38 | AE66: 0.342 | AF66: 1.008 | AG66: 1.35
B67: 2017-02-10 | C67: 101 | D67: 22 | E67: 25.7 | F67: 0.8560311284 | G67: 119 | H67: 1.0115 | I67: 0.20664945 | J67: 2.84335055 | K67: 3.05 | L67: 21.1 | M67: 25.1 | N67: 0.8406374502 | O67: 156 | P67: 1.3104 | Q67: 0.1696 | R67: 1.48 | S67: 22 | T67: 25 | U67: 0.88 | V67: 119 | W67: 1.0115 | X67: 0.20664945 | Y67: 2.89335055 | Z67: 3.1 | AA67: 21.6 | AB67: 25.3 | AC67: 0.8537549407 | AD67: 42 | AE67: 0.378 | AF67: 0.972 | AG67: 1.35
B68: 2017-02-11 | C68: 102 | D68: 22.1 | E68: 25.7 | F68: 0.859922179 | G68: 152 | H68: 1.292 | I68: 0.2639556 | J68: 2.7360444 | K68: 3 | L68: 20.7 | M68: 25.1 | N68: 0.8247011952 | O68: 161 | P68: 1.3524 | Q68: 0.1976 | R68: 1.55 | S68: 22 | T68: 25 | U68: 0.88 | V68: 118 | W68: 1.003 | X68: 0.2049129 | Y68: 2.7950871 | Z68: 3 | AA68: 21.6 | AB68: 25.3 | AC68: 0.8537549407 | AD68: 68 | AE68: 0.612 | AF68: 0.738 | AG68: 1.35
B69: 2017-02-12 | C69: 103 | D69: 22.1 | E69: 25.7 | F69: 0.859922179 | G69: 137 | H69: 1.1645 | I69: 0.23790735 | J69: 2.71209265 | K69: 2.95 | L69: 20.7 | M69: 25.1 | N69: 0.8247011952 | O69: 148 | P69: 1.2432 | Q69: 0.3568 | R69: 1.6 | S69: 22.1 | T69: 25 | U69: 0.884 | V69: 131 | W69: 1.1135 | X69: 0.22748805 | Y69: 2.67251195 | Z69: 2.9 | AA69: 21.5 | AB69: 25.3 | AC69: 0.8498023715 | AD69: 57 | AE69: 0.513 | AF69: 0.837 | AG69: 1.35
B70: 2017-02-13 | C70: 104 | D70: 22.1 | E70: 25.7 | F70: 0.859922179 | G70: 175 | H70: 1.4875 | I70: 0.30389625 | J70: 2.59610375 | K70: 2.9 | L70: 20.5 | M70: 25.1 | N70: 0.8167330677 | O70: 151 | P70: 1.2684 | Q70: 0.5316 | R70: 1.8 | S70: 22.1 | T70: 25 | U70: 0.884 | V70: 123 | W70: 1.0455 | X70: 0.21359565 | Y70: 2.48640435 | Z70: 2.7 | AA70: 21.4 | AB70: 25.3 | AC70: 0.8458498024 | AD70: 66 | AE70: 0.594 | AF70: 0.806 | AG70: 1.4
B71: 2017-02-14 | C71: 105 | D71: 22.2 | E71: 25.7 | F71: 0.8638132296 | G71: 174 | H71: 1.479 | I71: 0.3021597 | J71: 2.5478403 | K71: 2.85 | L71: 20.8 | M71: 25.1 | N71: 0.828685259 | O71: 165 | P71: 1.386 | Q71: 0.464 | R71: 1.85 | S71: 21.8 | T71: 25 | U71: 0.872 | V71: 167 | W71: 1.4195 | X71: 0.29000385 | Y71: 2.40999615 | Z71: 2.7 | AA71: 21.3 | AB71: 25.3 | AC71: 0.8418972332 | AD71: 115 | AE71: 1.035 | AF71: 0.415 | AG71: 1.45
B72: 2017-02-15 | C72: 106 | D72: 22.3 | E72: 25.7 | F72: 0.8677042802 | G72: 216 | H72: 1.836 | I72: 0.3750948 | J72: 2.3749052 | K72: 2.75 | L72: 20.9 | M72: 25.1 | N72: 0.8326693227 | O72: 173 | P72: 1.4532 | Q72: 0.4968 | R72: 1.95 | S72: 21.9 | T72: 25 | U72: 0.876 | V72: 147 | W72: 1.2495 | X72: 0.25527285 | Y72: 2.29472715 | Z72: 2.55 | AA72: 21 | AB72: 25.3 | AC72: 0.8300395257 | AD72: 90 | AE72: 0.81 | AF72: 0.74 | AG72: 1.55
B73: 2017-02-16 | C73: 107 | D73: 22.2 | E73: 25.7 | F73: 0.8638132296 | G73: 207 | H73: 1.7595 | I73: 0.35946585 | J73: 2.39053415 | K73: 2.75 | L73: 21 | M73: 25.1 | N73: 0.8366533865 | O73: 180 | P73: 1.512 | Q73: 0.488 | R73: 2 | S73: 21.2 | T73: 25 | U73: 0.848 | V73: 187 | W73: 1.5895 | X73: 0.32473485 | Y73: 2.37526515 | Z73: 2.7 | AA73: 21 | AB73: 25.3 | AC73: 0.8300395257 | AD73: 82 | AE73: 0.738 | AF73: 0.962 | AG73: 1.7
B74: 2017-02-17 | C74: 108 | D74: 21.9 | E74: 25.7 | F74: 0.8521400778 | G74: 237 | H74: 2.0145 | I74: 0.41156235 | J74: 2.33843765 | K74: 2.75 | L74: 20.9 | M74: 25.1 | N74: 0.8326693227 | O74: 236 | P74: 1.9824 | Q74: 0.1176 | R74: 2.1 | S74: 20.7 | T74: 25 | U74: 0.828 | V74: 188 | W74: 1.598 | X74: 0.3264714 | Y74: 2.5735286 | Z74: 2.9 | AA74: 21 | AB74: 25.3 | AC74: 0.8300395257 | AD74: 96 | AE74: 0.864 | AF74: 0.986 | AG74: 1.85
B75: 2017-02-18 | C75: 109 | D75: 22.2 | E75: 25.7 | F75: 0.8638132296 | G75: 239 | H75: 2.0315 | I75: 0.41503545 | J75: 2.28496455 | K75: 2.7 | L75: 21.1 | M75: 25.1 | N75: 0.8406374502 | O75: 188 | P75: 1.5792 | Q75: 0.5208 | R75: 2.1 | S75: 21.4 | T75: 25 | U75: 0.856 | V75: 183 | W75: 1.5555 | X75: 0.31778865 | Y75: 2.48221135 | Z75: 2.8 | AA75: 21.1 | AB75: 25.3 | AC75: 0.8339920949 | AD75: 83 | AE75: 0.747 | AF75: 1.153 | AG75: 1.9
B76: 2017-02-19 | C76: 110 | D76: 21.7 | E76: 25.7 | F76: 0.8443579767 | I76: 0 | J76: 2.75 | K76: 2.75 | L76: 21.2 | M76: 25.1 | N76: 0.8446215139 | Q76: 2.1 | R76: 2.1 | S76: 21 | T76: 25 | U76: 0.84 | X76: 0 | Y76: 2.85 | Z76: 2.85 | AA76: 21.2 | AB76: 25.3 | AC76: 0.837944664 | AF76: 1.95 | AG76: 1.95
B77: 2017-02-20 | C77: 111 | D77: 21.8 | E77: 25.7 | F77: 0.8482490272 | G77: 253 | H77: 2.1505 | I77: 0.43934715 | J77: 2.31065285 | K77: 2.75 | L77: 22.2 | M77: 25.1 | N77: 0.8844621514 | O77: 162 | P77: 1.3608 | Q77: 0.5892 | R77: 1.95 | S77: 20.1 | T77: 25 | U77: 0.804 | V77: 199 | W77: 1.6915 | X77: 0.34557345 | Y77: 2.85442655 | Z77: 3.2 | AA77: 21.7 | AB77: 25.3 | AC77: 0.8577075099 | AD77: 51 | AE77: 0.459 | AF77: 1.491 | AG77: 1.95
B78: 2017-02-21 | C78: 112 | D78: 22 | E78: 25.7 | F78: 0.8560311284 | G78: 287 | H78: 2.4395 | I78: 0.49838985 | J78: 2.25161015 | K78: 2.75 | L78: 22.2 | M78: 25.1 | N78: 0.8844621514 | O78: 196 | P78: 1.6464 | Q78: 0.2536 | R78: 1.9 | S78: 21.4 | T78: 25 | U78: 0.856 | V78: 190 | W78: 1.615 | X78: 0.3299445 | Y78: 2.5700555 | Z78: 2.9 | AA78: 21.8 | AB78: 25.3 | AC78: 0.8616600791 | AD78: 62 | AE78: 0.558 | AF78: 1.342 | AG78: 1.9
B79: 2017-02-22 | C79: 113 | D79: 21.9 | E79: 25.7 | F79: 0.8521400778 | G79: 277 | H79: 2.3545 | I79: 0.48102435 | J79: 2.26897565 | K79: 2.75 | L79: 22.2 | M79: 25.1 | N79: 0.8844621514 | O79: 200 | P79: 1.68 | Q79: 0.12 | R79: 1.8 | S79: 21.1 | T79: 25 | U79: 0.844 | V79: 214 | W79: 1.819 | X79: 0.3716217 | Y79: 2.6283783 | Z79: 3 | AA79: 21.7 | AB79: 25.3 | AC79: 0.8577075099 | AD79: 76 | AE79: 0.684 | AF79: 1.216 | AG79: 1.9
B80: 2017-02-23 | C80: 114 | D80: 21.8 | E80: 25.7 | F80: 0.8482490272 | G80: 278 | H80: 2.36 | I80: 0.482148 | J80: 2.317852 | K80: 2.8 | L80: 22 | M80: 25.1 | N80: =L80/M80 -> 0.8764940239 | O80: 159 | P80: =O80*0.0084 -> 1.3356 | Q80: 0.4144 | R80: 1.75 | S80: 21 | T80: 25 | U80: =S80/T80 -> 0.84 | V80: 195 | W80: 1.6575 | X80: 0.33862725 | Y80: 2.71137275 | Z80: 3.05 | AA80: 21.6 | AB80: 25.3 | AC80: 0.8537549407 | AD80: 80 | AE80: 0.72 | AF80: 1.18 | AG80: 1.9
B81: 2017-02-24 | C81: 115 | D81: 21.9 | E81: 25.7 | F81: 0.8521400778 | G81: 281 | H81: 2.3885 | I81: 0.48797055 | J81: 2.26202945 | K81: 2.75 | L81: 22 | M81: 25.1 | N81: 0.8764940239 | O81: 175 | P81: 1.47 | Q81: 0.18 | R81: 1.65 | S81: 21 | T81: 25 | U81: 0.84 | V81: 184 | W81: 1.564 | X81: 0.3195252 | Y81: 2.7804748 | Z81: 3.1 | AA81: 21.6 | AB81: 25.3 | AC81: 0.8537549407 | AD81: 99 | AE81: 0.891 | AF81: 0.959 | AG81: 1.85
B82: 2017-02-25 | C82: 116 | D82: 21.6 | E82: 25.7 | F82: 0.8404669261 | G82: 281 | H82: 2.3885 | I82: 0.48797055 | J82: 2.31202945 | K82: 2.8 | L82: 21.7 | M82: 25.1 | N82: 0.8645418327 | O82: 199 | P82: 1.6716 | Q82: -0.0016 | R82: 1.67 | S82: 21 | T82: 25 | U82: 0.84 | V82: 176 | W82: 1.496 | X82: 0.3056328 | Y82: 2.7943672 | Z82: 3.1 | AA82: 21.4 | AB82: 25.3 | AC82: 0.8458498024 | AD82: 72 | AE82: 0.648 | AF82: 1.252 | AG82: 1.9
B83: 2017-02-26 | C83: 117 | D83: 21.6 | E83: 25.7 | F83: 0.8404669261 | I83: 0 | J83: 2.85 | K83: 2.85 | L83: 21.7 | M83: 25.1 | N83: 0.8645418327 | Q83: 1.6 | R83: 1.6 | S83: 21.3 | T83: 25 | U83: 0.852 | X83: 0 | Y83: 3.1 | Z83: 3.1 | AA83: 21.5 | AB83: 25.3 | AC83: 0.8498023715 | AF83: 1.9 | AG83: 1.9
B84: 2017-02-27 | C84: 118 | D84: 21.8 | E84: 25.7 | F84: 0.8482490272 | G84: 244 | H84: 2.074 | I84: 0.4237182 | J84: 2.3762818 | K84: 2.8 | L84: 22.3 | M84: 25.1 | N84: 0.8884462151 | O84: 171 | P84: 1.4364 | Q84: 0.0036 | R84: 1.44 | S84: 20.8 | T84: 25 | U84: 0.832 | V84: 191 | W84: 1.6235 | X84: 0.33168105 | Y84: 2.86831895 | Z84: 3.2 | AA84: 21.4 | AB84: 25.3 | AC84: 0.8458498024 | AD84: 73 | AE84: 0.657 | AF84: 1.243 | AG84: 1.9
B85: 2017-02-28 | C85: 119 | D85: 21.9 | E85: 25.7 | F85: 0.8521400778 | G85: 258 | H85: 2.193 | I85: 0.4480299 | J85: 2.3519701 | K85: 2.8 | L85: 22.1 | M85: 25.1 | N85: 0.8804780876 | O85: 223 | P85: 1.8732 | Q85: -0.0032 | R85: 1.87 | S85: 21 | T85: 25 | U85: 0.84 | V85: 199 | W85: 1.6915 | X85: 0.34557345 | Y85: 2.85442655 | Z85: 3.2 | AA85: 21.5 | AB85: 25.3 | AC85: 0.8498023715 | AD85: 54 | AE85: 0.486 | AF85: 1.414 | AG85: 1.9
B86: 2017-03-01 | C86: 120 | D86: 21.3 | E86: 25.7 | F86: =D86/E86 -> 0.8287937743 | G86: 190 | H86: =G86*0.0085 -> 1.615 | I86: =H86*0.2043 -> 0.3299445 | J86: =K86-I86 -> 2.6700555 | K86: 3 | L86: 22.1 | M86: 25.1 | N86: =L86/M86 -> 0.8804780876 | O86: 190 | P86: =O86*0.0084 -> 1.596 | Q86: =R86-P86 -> 0.004 | R86: 1.6 | S86: 21.4 | T86: 25 | U86: =S86/T86 -> 0.856 | V86: 163 | W86: =V86*0.0085 -> 1.3855 | X86: =W86*0.2043 -> 0.28305765 | Y86: =Z86-X86 -> 2.81694235 | Z86: 3.1 | AA86: 21.6 | AB86: 25.3 | AC86: =AA86/AB86 -> 0.8537549407 | AD86: 60 | AE86: =AD86*0.009 -> 0.54 | AF86: =AG86-AE86 -> 1.31 | AG86: 1.85
B87: 2017-03-02 | C87: 121 | D87: 21.8 | E87: 25.7 | F87: 0.8482490272 | G87: 212 | H87: 1.802 | I87: 0.3681486 | J87: 2.5318514 | K87: 2.9 | L87: 22 | M87: 25.1 | N87: 0.8764940239 | O87: 175 | P87: 1.47 | Q87: 0 | R87: 1.47 | S87: 21.3 | T87: 25 | U87: 0.852 | V87: 156 | W87: 1.326 | X87: 0.2709018 | Y87: 2.8290982 | Z87: 3.1 | AA87: 21.8 | AB87: 25.3 | AC87: 0.8616600791 | AD87: 56 | AE87: 0.504 | AF87: 1.296 | AG87: 1.8
B88: 2017-03-03 | C88: 122 | D88: 21.7 | E88: 25.7 | F88: 0.8443579767 | G88: 227 | H88: 1.9295 | I88: 0.39419685 | J88: 2.50580315 | K88: 2.9 | L88: 22 | M88: 25.1 | N88: 0.8764940239 | O88: 188 | P88: 1.5792 | Q88: 0.0008 | R88: 1.58 | S88: 21.4 | T88: 25 | U88: 0.856 | V88: 144 | W88: 1.224 | X88: 0.2500632 | Y88: 2.8499368 | Z88: 3.1 | AA88: 21.9 | AB88: 25.3 | AC88: 0.8656126482 | AD88: 67 | AE88: 0.603 | AF88: 1.097 | AG88: 1.7
B89: 2017-03-04 | C89: 123 | D89: 21.3 | E89: 25.7 | F89: 0.8287937743 | I89: 0 | J89: 3.1 | K89: 3.1 | L89: 21.8 | M89: 25.1 | N89: 0.8685258964 | Q89: 1.5 | R89: 1.5 | S89: 20.7 | T89: 25 | U89: 0.828 | X89: 0 | Y89: 3.3 | Z89: 3.3 | AA89: 21.7 | AB89: 25.3 | AC89: 0.8577075099 | AF89: 1.7 | AG89: 1.7
B90: 2017-03-05 | C90: 124 | D90: 21.5 | E90: 25.7 | F90: 0.8365758755 | I90: 0 | J90: 3.1 | K90: 3.1 | L90: 22 | M90: 25.1 | N90: 0.8764940239 | Q90: 1.4 | R90: 1.4 | S90: 20.8 | T90: 25 | U90: 0.832 | X90: 0 | Y90: 3.3 | Z90: 3.3 | AA90: 21.7 | AB90: 25.3 | AC90: 0.8577075099 | AF90: 1.7 | AG90: 1.7
B91: 2017-03-06 | C91: 125 | D91: 21.7 | E91: 25.7 | F91: 0.8443579767 | G91: 228 | H91: 1.938 | I91: 0.3959334 | J91: 2.6540666 | K91: 3.05 | L91: 22.1 | M91: 25.1 | N91: 0.8804780876 | O91: 172 | P91: =O91*0.004 -> 0.688 | Q91: 0.512 | R91: 1.2 | S91: 20.7 | T91: 25 | U91: 0.828 | V91: 126 | W91: 1.071 | X91: 0.2188053 | Y91: 3.1811947 | Z91: 3.4 | AA91: 21.8 | AB91: 25.3 | AC91: 0.8616600791 | AD91: 102 | AE91: 0.918 | AF91: 0.682 | AG91: 1.6
B92: 2017-03-07 | C92: 126 | D92: 22.6 | E92: 25.7 | F92: 0.8793774319 | G92: 585 | H92: 4.9725 | I92: 1.01588175 | K92: ad lib | L92: 21 | M92: 25.1 | N92: 0.8366533865 | O92: 164 | P92: 1.3776 | Q92: 0.0024 | R92: 1.38 | S92: 22 | T92: 25 | U92: 0.88 | V92: 135 | W92: 1.1475 | X92: 0.23443425 | Z92: ad lib | AA92: 21.5 | AB92: 25.3 | AC92: 0.8498023715 | AD92: 84 | AE92: 0.756 | AF92: 0.894 | AG92: 1.65
B93: 2017-03-08 | C93: 127 | D93: 27.1 | E93: 25.7 | F93: 1.054474708 | L93: 21.4 | M93: 25.1 | N93: 0.8525896414 | O93: 135 | P93: 1.134 | Q93: 0.166 | R93: 1.3 | S93: 27.9 | T93: 25 | U93: 1.116 | AA93: 21.3 | AB93: 25.3 | AC93: 0.8418972332 | AD93: 229 | AE93: 2.061 | AF93: -0.001 | AG93: 2.06
B94: 2017-03-09 | C94: 128 | D94: 27.5 | E94: 25.7 | F94: 1.070038911 | G94: 6 | H94: 0.051 | I94: 0.0104193 | L94: 21.4 | M94: 25.1 | N94: 0.8525896414 | O94: 275 | P94: 2.31 | R94: ad lib | S94: 27.8 | T94: 25 | U94: 1.112 | V94: 9 | W94: 0.0765 | X94: 0.01562895 | AA94: 20.5 | AB94: 25.3 | AC94: 0.8102766798 | AD94: 230 | AE94: 2.07 | AG94: ad lib
B95: 2017-03-10 | C95: 129 | D95: 27.7 | E95: 25.7 | F95: 1.077821012 | L95: 26 | M95: 25.1 | N95: 1.035856574 | S95: 28.6 | T95: 25 | U95: 1.144 | AA95: 23.9 | AB95: 25.3 | AC95: 0.9446640316
B96: 2017-03-11 | C96: 130
B97: 2017-03-12 | C97: 131
B98: 2017-03-13 | C98: 132 | D98: 27.7 | E98: 25.7 | F98: =D98/E98 -> 1.077821012 | L98: 27 | M98: 25.1 | N98: =L98/M98 -> 1.075697211 | S98: 28.3 | T98: 25 | U98: =S98/T98 -> 1.132 | AA98: 25.6 | AB98: 25.3 | AC98: =AA98/AB98 -> 1.011857708
B99: 2017-03-14 | C99: 133
B100: 2017-03-15 | C100: 134 | D100: 27.6 | E100: 25.7 | F100: 1.073929961 | L100: 26.9 | M100: 25.1 | N100: 1.071713147 | S100: 28.5 | T100: 25 | U100: 1.14 | AA100: 26 | AB100: 25.3 | AC100: 1.027667984
B101: 2017-03-16 | C101: 135
B102: 2017-03-17 | C102: 136 | D102: 27.1 | E102: 25.7 | F102: =D102/E102 -> 1.054474708 | L102: 27 | M102: 25.1 | N102: =L102/M102 -> 1.075697211 | S102: 28.2 | T102: 25 | U102: =S102/T102 -> 1.128 | AA102: 26.6 | AB102: 25.3 | AC102: =AA102/AB102 -> 1.051383399
B103: 2017-03-18 | C103: 137
B104: 2017-03-19 | C104: 138
B105: 2017-03-20 | C105: 139 | D105: 28 | E105: 25.7 | F105: =D105/E105 -> 1.089494163 | L105: 27.2 | M105: 25.1 | N105: =L105/M105 -> 1.083665339 | S105: 28.6 | T105: 25 | U105: =S105/T105 -> 1.144 | AA105: 27.1 | AB105: 25.3 | AC105: =AA105/AB105 -> 1.071146245
B106: 2017-03-21 | C106: 139
B107: 2017-03-22 | C107: 139
B108: 2017-03-23 | C108: 139
B109: 2017-03-24 | C109: 139
B110: 2017-03-25 | C110: 139
B111: 2017-03-26 | C111: 139
B112: 2017-03-27 | C112: 139
B113: 2017-03-28 | C113: 139 | D113: 28 | E113: 25.7 | F113: =D113/E113 -> 1.089494163 | L113: 28.8 | M113: 25.1 | N113: =L113/M113 -> 1.147410359 | S113: 29.2 | T113: 25 | U113: =S113/T113 -> 1.168 | AA113: 28.6 | AB113: 25.3 | AC113: =AA113/AB113 -> 1.130434783

Sheet 3-6-7-14
B2: Weight overview mice 3-6-7-14
D5: 3 | L5: 6 | S5: 7 | AA5: 14
B6: Day | C6: Age | D6: Weight | E6: Ref | F6: % | G6: Task | H6: Suppl | I6: Total | L6: Weight | M6: Ref | N6: % | O6: Task | P6: Suppl | Q6: Total | S6: Weight | T6: Ref | U6: % | V6: Task | W6: Suppl | X6: Total | AA6: Weight | AB6: Ref | AC6: % | AD6: Task | AE6: Suppl | AF6: Total
B7: 2016-12-12 | C7: 41 | D7: 20.5 | E7: 21 | F7: =D7/E7 -> 0.9761904762 | L7: 21.6 | M7: 21.7 | N7: =L7/M7 -> 0.9953917051 | S7: 18.1 | T7: 18.8 | U7: =S7/T7 -> 0.9627659574 | AA7: 21.1 | AB7: 21.5 | AC7: =AA7/AB7 -> 0.9813953488
B8: 2016-12-13 | C8: 42 | D8: 21 | E8: 21 | F8: 1 | L8: 21.8 | M8: 21.7 | N8: 1.004608295 | S8: 19 | T8: 18.8 | U8: 1.010638298 | AA8: 21.6 | AB8: 21.5 | AC8: 1.004651163
B9: 2016-12-14 | C9: 43 | D9: 21.4 | E9: 21 | F9: 1.019047619 | L9: 21.6 | M9: 21.7 | N9: 0.9953917051 | S9: 19.2 | T9: 18.8 | U9: 1.021276596 | AA9: 21.8 | AB9: 21.5 | AC9: 1.013953488
B10: 2016-12-15 | C10: 44
B11: 2016-12-16 | C11: 45 | D11: 21.7 | E11: 21 | F11: 1.033333333 | L11: 19.3 | M11: 21.7 | N11: 0.8894009217 | S11: 21.1 | T11: 18.8 | U11: 1.122340426 | AA11: 22.2 | AB11: 21.5 | AC11: 1.03255814
B12: 2016-12-17 | C12: 46
B13: 2016-12-18 | C13: 47 | D13: 22.2 | E13: 21 | F13: 1.057142857 | L13: 18.9 | M13: 21.7 | N13: 0.8709677419 | S13: 21.8 | T13: 18.8 | U13: 1.159574468 | AA13: 22.6 | AB13: 21.5 | AC13: 1.051162791
B14: 2016-12-19 | C14: 48 | D14: 22.3 | E14: 21 | F14: 1.061904762 | L14: 21 | M14: 21.7 | N14: 0.9677419355 | S14: 22.5 | T14: 18.8 | U14: 1.196808511 | AA14: 22.4 | AB14: 21.5 | AC14: 1.041860465
B15: 2016-12-20 | C15: 49 | D15: 22.5 | E15: 21 | F15: 1.071428571 | L15: 23.6 | M15: 21.7 | N15: 1.087557604 | S15: 23.1 | T15: 18.8 | U15: 1.228723404 | AA15: 23.2 | AB15: 21.5 | AC15: 1.079069767
B16: 2016-12-21 | C16: 50 | D16: 22.8 | E16: 21 | F16: 1.085714286 | L16: 23.7 | M16: 21.7 | N16: 1.092165899 | S16: 23.8 | T16: 18.8 | U16: 1.265957447 | AA16: 23.1 | AB16: 21.5 | AC16: 1.074418605
B17: 2016-12-22 | C17: 51 | D17: 23 | E17: 21 | F17: 1.095238095 | L17: 24.2 | M17: 21.7 | N17: 1.115207373 | S17: 25.8 | T17: 18.8 | U17: 1.372340426 | AA17: 23.1 | AB17: 21.5 | AC17: 1.074418605
B18: 2016-12-23 | C18: 52 | D18: 22.5 | E18: 21 | F18: 1.071428571 | L18: 24 | M18: 21.7 | N18: 1.105990783 | S18: 25 | T18: 18.8 | U18: 1.329787234 | AA18: 23 | AB18: 21.5 | AC18: 1.069767442
B19: 2016-12-24 | C19: 53
B20: 2016-12-25 | C20: 54
B21: 2016-12-26 | C21: 55
B22: 2016-12-27 | C22: 56
B23: 2016-12-28 | C23: 57
B24: 2016-12-29 | C24: 58
B25: 2016-12-30 | C25: 59
B26: 2016-12-31 | C26: 60
B27: 2017-01-01 | C27: 61
B28: 2017-01-02 | C28: 62 | D28: 23.3 | E28: 23.3 | F28: 1 | I28: =(G28*0.01)+H28 -> 0 | L28: 24.7 | M28: 24.7 | N28: 1 | Q28: =(O28*0.01)+P28 -> 0 | S28: 24.6 | T28: 24.6 | U28: 1 | X28: =(V28*0.01)+W28 -> 0 | AA28: 23.8 | AB28: 23.8 | AC28: 1 | AF28: =(AD28*0.01)+AE28 -> 0
B29: 2017-01-03 | C29: 63 | D29: 24.6 | E29: 23.3 | F29: 1.055793991 | I29: 0 | L29: 25.4 | M29: 24.7 | N29: 1.028340081 | Q29: 0 | S29: 25.7 | T29: 24.6 | U29: 1.044715447 | X29: 0 | AA29: 24.8 | AB29: 23.8 | AC29: 1.042016807 | AF29: 0
B30: 2017-01-04 | C30: 64 | D30: 23.8 | E30: 23.3 | F30: 1.021459227 | I30: 0 | L30: 25.3 | M30: 24.7 | N30: 1.024291498 | Q30: 0 | S30: 25.7 | T30: 24.6 | U30: 1.044715447 | X30: 0 | AA30: 24.8 | AB30: 23.8 | AC30: 1.042016807 | AF30: 0
B31: 2017-01-05 | C31: 65 | D31: 23.8 | E31: 23.3 | F31: 1.021459227 | I31: 0 | L31: 25.3 | M31: 24.7 | N31: 1.024291498 | Q31: 0 | S31: 25.7 | T31: 24.6 | U31: 1.044715447 | X31: 0 | AA31: 24.7 | AB31: 23.8 | AC31: 1.037815126 | AF31: 0
B32: 2017-01-06 | C32: 66 | D32: 24.5 | E32: 23.3 | F32: 1.051502146 | I32: 0 | L32: 25.7 | M32: 24.7 | N32: 1.04048583 | Q32: 0 | S32: 25.7 | T32: 24.6 | U32: 1.044715447 | X32: 0 | AA32: 24.5 | AB32: 23.8 | AC32: 1.029411765 | AF32: 0
B33: 2017-01-07 | C33: 67 | D33: 24.8 | E33: 23.3 | F33: 1.064377682 | I33: 0 | L33: 25.9 | M33: 24.7 | N33: 1.048582996 | Q33: 0 | S33: 25.9 | T33: 24.6 | U33: 1.052845528 | X33: 0 | AA33: 24.4 | AB33: 23.8 | AC33: 1.025210084 | AF33: 0
B34: 2017-01-08 | C34: 68 | D34: 25 | E34: 23.3 | F34: 1.072961373 | I34: 0 | L34: 25.5 | M34: 24.7 | N34: 1.032388664 | Q34: 0 | S34: 25.7 | T34: 24.6 | U34: 1.044715447 | X34: 0 | AA34: 24.2 | AB34: 23.8 | AC34: 1.016806723 | AF34: 0
B35: 2017-01-09 | C35: 69 | D35: 24.6 | E35: 23.3 | F35: 1.055793991 | I35: 0 | L35: 25.8 | M35: 24.7 | N35: 1.044534413 | Q35: 0 | S35: 26.5 | T35: 24.6 | U35: 1.077235772 | X35: 0 | AA35: 24.7 | AB35: 23.8 | AC35: 1.037815126 | AF35: 0
B36: 2017-01-10 | C36: 70 | D36: 24.7 | E36: 23.3 | F36: 1.060085837 | I36: 0 | L36: 26 | M36: 24.7 | N36: 1.052631579 | Q36: 0 | S36: 26.1 | T36: 24.6 | U36: 1.06097561 | X36: 0 | AA36: 25 | AB36: 23.8 | AC36: 1.050420168 | AF36: 0
B37: 2017-01-11 | C37: 71 | D37: 24.7 | E37: 23.3 | F37: 1.060085837 | I37: 0 | L37: 26.1 | M37: 24.7 | N37: 1.056680162 | Q37: 0 | S37: 26 | T37: 24.6 | U37: 1.056910569 | X37: 0 | AA37: 25 | AB37: 23.8 | AC37: 1.050420168 | AF37: 0
B38: 2017-01-12 | C38: 72 | D38: 24.7 | E38: 23.3 | F38: 1.060085837 | I38: 0 | L38: 26.6 | M38: 24.7 | N38: 1.076923077 | Q38: 0 | S38: 26 | T38: 24.6 | U38: 1.056910569 | X38: 0 | AA38: 24.6 | AB38: 23.8 | AC38: 1.033613445 | AF38: 0
B39: 2017-01-13 | C39: 73 | D39: 24.8 | E39: 23.3 | F39: 1.064377682 | I39: 0 | L39: 26 | M39: 24.7 | N39: 1.052631579 | Q39: 0 | S39: 27 | T39: 24.6 | U39: 1.097560976 | X39: 0 | AA39: 25.2 | AB39: 23.8 | AC39: 1.058823529 | AF39: 0
B40: 2017-01-14 | C40: 74 | D40: 24.4 | E40: 23.3 | F40: 1.0472103 | I40: 0 | L40: 26.3 | M40: 24.7 | N40: 1.064777328 | Q40: 0 | S40: 26.5 | T40: 24.6 | U40: 1.077235772 | X40: 0 | AA40: 25 | AB40: 23.8 | AC40: 1.050420168 | AF40: 0
B41: 2017-01-15 | C41: 75 | D41: 24.6 | E41: 23.3 | F41: 1.055793991 | I41: 0 | L41: 26.1 | M41: 24.7 | N41: 1.056680162 | Q41: =(O41*0.01)+P41 -> 0 | S41: 26.5 | T41: 24.6 | U41: 1.077235772 | X41: =(V41*0.01)+W41 -> 0 | AA41: 24.9 | AB41: 23.8 | AC41: 1.046218487 | AF41: =(AD41*0.01)+AE41 -> 0
B42: 2017-01-16 | C42: 76 | D42: 25.3 | E42: 23.3 | F42: 1.08583691 | I42: 0 | L42: 26.5 | M42: 24.7 | N42: 1.072874494 | Q42: =(O42*0.01)+P42 -> 0 | S42: 26.7 | T42: 24.6 | U42: 1.085365854 | X42: =(V42*0.01)+W42 -> 0 | AA42: 24.9 | AB42: 23.8 | AC42: 1.046218487 | AF42: =(AD42*0.01)+AE42 -> 0
B43: 2017-01-17 | C43: 77 | E43: 23.3 | I43: 0 | M43: 24.7 | AF43: 0
B44: 2017-01-18 | C44: 78 | E44: 23.3 | I44: 0 | M44: 24.7 | AF44: 0
B45: 2017-01-19 | C45: 79 | E45: 23.3 | I45: 0 | M45: 24.7 | AF45: 0
B46: 2017-01-20 | C46: 80 | E46: 23.3 | I46: 0 | M46: 24.7 | AF46: 0
B47: 2017-01-21 | C47: 81 | E47: 23.3 | I47: 0 | M47: 24.7 | AF47: 0
B48: 2017-01-22 | C48: 82 | E48: 23.3 | I48: 0 | M48: 24.7 | AF48: 0
B49: 2017-01-23 | C49: 83 | D49: 25.6 | E49: 23.3 | F49: 1.098712446 | I49: 0 | L49: 27.5 | M49: 24.7 | N49: 1.113360324 | Q49: 0 | S49: 27 | T49: 24.6 | U49: 1.097560976 | X49: 0 | AA49: 25.6 | AB49: 23.8 | AC49: 1.075630252 | AF49: 0
B50: 2017-01-24 | C50: 84 | E50: 23.3 | I50: 0 | M50: 24.7 | AF50: 0
B51: 2017-01-25 | C51: 85 | E51: 23.3 | I51: 0 | M51: 24.7 | AF51: 0
B52: 2017-01-26 | C52: 86 | E52: 23.3 | I52: 0 | M52: 24.7 | AF52: 0
B53: 2017-01-27 | C53: 87 | E53: 23.3 | I53: 0 | M53: 24.7 | AF53: 0
B54: 2017-01-28 | C54: 88 | E54: 23.3 | I54: 0 | M54: 24.7 | AF54: 0
B55: 2017-01-29 | C55: 89 | E55: 23.3 | I55: 0 | M55: 24.7 | AF55: 0
B56: 2017-01-30 | C56: 90 | D56: 25.7 | E56: 23.3 | F56: 1.103004292 | I56: 0 | L56: 27 | M56: 24.7 | N56: 1.093117409 | Q56: 0 | S56: 27.2 | T56: 24.6 | U56: 1.105691057 | X56: 0 | AA56: 25.9 | AB56: 23.8 | AC56: 1.088235294 | AF56: 0
B57: 2017-01-31 | C57: 91 | E57: 23.3 | I57: 0 | M57: 24.7 | AF57: 0
B58: 2017-02-01 | C58: 92 | E58: 23.3 | I58: 0 | M58: 24.7 | AF58: 0
B59: 2017-02-02 | C59: 93 | E59: 23.3 | I59: 0 | M59: 24.7 | AF59: 0
B60: 2017-02-03 | C60: 94 | E60: 23.3 | I60: =(G60*0.01)+H60 -> 0 | M60: 24.7 | AF60: 0
B61: 2017-02-04 | C61: 95 | E61: 23.3 | I61: 0 | M61: 24.7 | AF61: 0
B62: 2017-02-05 | C62: 96 | E62: 23.3 | I62: 0 | M62: 24.7 | AF62: 0
B63: 2017-02-06 | C63: 97 | D63: 25.5 | E63: 23.3 | F63: 1.094420601 | I63: 0 | L63: 27.2 | M63: 24.7 | N63: 1.101214575 | Q63: 0 | S63: 27.2 | T63: 24.6 | U63: 1.105691057 | X63: 0 | AA63: 26.3 | AB63: 23.8 | AC63: 1.105042017 | AF63: 0
B64: 2017-02-07 | C64: 98 | E64: 23.3 | I64: 0 | M64: 24.7 | AF64: 0
B65: 2017-02-08 | C65: 99 | E65: 23.3 | I65: 0 | M65: 24.7 | AF65: 0
B66: 2017-02-09 | C66: 100 | E66: 23.3 | I66: 0 | M66: 24.7 | AF66: 0
B67: 2017-02-10 | C67: 101 | E67: 23.3 | I67: 0 | M67: 24.7 | AF67: 0
B68: 2017-02-11 | C68: 102 | E68: 23.3 | I68: 0 | M68: 24.7 | AF68: 0
B69: 2017-02-12 | C69: 103 | E69: 23.3 | I69: 0 | M69: 24.7 | AF69: 0
B70: 2017-02-13 | C70: 104 | D70: 25.8 | E70: 23.3 | F70: 1.107296137 | I70: 0 | L70: 28.2 | M70: 24.7 | N70: 1.141700405 | Q70: 0 | S70: 27.5 | T70: 24.6 | U70: 1.117886179 | X70: 0 | AA70: 26.3 | AB70: 23.8 | AC70: 1.105042017 | AF70: 0
B71: 2017-02-14 | C71: 105 | E71: 23.3 | I71: 0 | M71: 24.7 | AF71: 0
B72: 2017-02-15 | C72: 106 | E72: 23.3 | I72: 0 | M72: 24.7 | AF72: 0
B73: 2017-02-16 | C73: 107 | E73: 23.3 | I73: 0 | M73: 24.7 | AF73: 0
B74: 2017-02-17 | C74: 108 | E74: 23.3 | I74: 0 | M74: 24.7 | AF74: 0
B75: 2017-02-18 | C75: 109 | E75: 23.3 | I75: 0 | M75: 24.7 | AF75: 0
B76: 2017-02-19 | C76: 110 | E76: 23.3 | I76: 0 | M76: 24.7 | AF76: 0
B77: 2017-02-20 | C77: 111 | D77: 26.3 | E77: 23.3 | F77: =D77/E77 -> 1.128755365 | I77: 0 | L77: 28.1 | M77: 24.7 | N77: =L77/M77 -> 1.137651822 | Q77: 0 | S77: 28.3 | T77: 24.6 | U77: =S77/T77 -> 1.150406504 | X77: 0 | AA77: 26.7 | AB77: 23.8 | AC77: =AA77/AB77 -> 1.121848739 | AF77: 0
B78: 2017-02-21 | C78: 112 | E78: 23.3 | I78: 0 | M78: 24.7 | AF78: 0
B79: 2017-02-22 | C79: 113 | E79: 23.3 | I79: 0 | M79: 24.7 | AF79: 0
B80: 2017-02-23 | C80: 114 | E80: 23.3 | I80: 0 | M80: 24.7 | AF80: 0
B81: 2017-02-24 | C81: 115 | E81: 23.3 | I81: 0 | M81: 24.7 | AF81: 0
B82: 2017-02-25 | C82: 116 | E82: 23.3 | I82: 0 | M82: 24.7 | AF82: 0
B83: 2017-02-26 | C83: 117 | E83: 23.3 | I83: 0 | M83: 24.7 | AF83: 0
B84: 2017-02-27 | C84: 118 | D84: 26 | E84: 23.3 | F84: 1.115879828 | I84: 0 | L84: 29.1 | M84: 24.7 | N84: 1.178137652 | Q84: 0 | S84: 28.2 | T84: 24.6 | U84: 1.146341463 | X84: 0 | AA84: 27.1 | AB84: 23.8 | AC84: 1.138655462 | AF84: 0
B85: 2017-02-28 | C85: 119 | E85: 23.3 | I85: 0 | M85: 24.7 | AF85: 0
B86: 2017-03-01 | C86: 120 | E86: 23.3 | I86: 0 | M86: 24.7 | AF86: =(AD86*0.01)+AE86 -> 0
B87: 2017-03-02 | C87: 121 | E87: 23.3 | I87: 0 | M87: 24.7 | AF87: 0
B88: 2017-03-03 | C88: 122 | E88: 23.3 | I88: 0 | M88: 24.7 | AF88: 0
B89: 2017-03-04 | C89: 123 | E89: 23.3 | I89: 0 | M89: 24.7 | AF89: 0
B90: 2017-03-05 | C90: 124 | E90: 23.3 | I90: 0 | M90: 24.7 | AF90: 0
B91: 2017-03-06 | C91: 125 | E91: 23.3 | I91: 0 | M91: 24.7 | AF91: 0
B92: 2017-03-07 | C92: 126 | D92: 26.6 | E92: 23.3 | F92: =D92/E92 -> 1.141630901 | I92: =(G92*0.01)+H92 -> 0 | L92: 29.2 | M92: 24.7 | N92: =L92/M92 -> 1.182186235 | Q92: =(O92*0.01)+P92 -> 0 | S92: 28.7 | T92: 24.6 | U92: =S92/T92 -> 1.166666667 | X92: =(V92*0.01)+W92 -> 0 | AA92: 27.5 | AB92: 23.8 | AC92: =AA92/AB92 -> 1.155462185 | AF92: 0
B93: 2017-03-08 | C93: 127 | E93: 23.3 | I93: 0 | M93: 24.7 | Q93: 0 | T93: 24.6 | X93: 0 | AB93: 23.8 | AF93: 0
B94: 2017-03-09 | C94: 128 | E94: 23.3 | I94: 0 | M94: 24.7 | Q94: 0 | T94: 24.6 | X94: 0 | AB94: 23.8 | AF94: 0
B95: 2017-03-10 | C95: 129 | E95: 23.3 | I95: 0 | M95: 24.7 | Q95: 0 | T95: 24.6 | X95: 0 | AB95: 23.8 | AF95: 0
B96: 2017-03-11 | C96: 130 | E96: 23.3 | I96: 0 | M96: 24.7 | Q96: =(O96*0.01)+P96 -> 0 | T96: 24.6 | X96: =(V96*0.01)+W96 -> 0 | AB96: 23.8 | AF96: =(AD96*0.01)+AE96 -> 0
B97: 2017-03-12 | C97: 131 | E97: 23.3 | I97: 0 | M97: 24.7 | Q97: 0 | T97: 24.6 | X97: 0 | AB97: 23.8 | AF97: 0
B98: 2017-03-13 | C98: 132 | D98: 26.3 | E98: 23.3 | F98: =D98/E98 -> 1.128755365 | I98: 0 | L98: 28.9 | M98: 24.7 | N98: =L98/M98 -> 1.170040486 | Q98: 0 | S98: 28.6 | T98: 24.6 | U98: =S98/T98 -> 1.162601626 | X98: 0 | AA98: 27.2 | AB98: 23.8 | AC98: =AA98/AB98 -> 1.142857143 | AF98: 0
B99: 2017-03-14 | C99: 133 | E99: 23.3 | I99: 0 | M99: 24.7 | Q99: 0 | T99: 24.6 | X99: 0 | AB99: 23.8 | AF99: 0
B100: 2017-03-15 | C100: 134 | E100: 23.3 | I100: 0 | M100: 24.7 | Q100: 0 | T100: 24.6 | X100: 0 | AB100: 23.8 | AF100: 0
B101: 2017-03-16 | C101: 135 | E101: 23.3 | I101: 0 | M101: 24.7 | Q101: =(O101*0.01)+P101 -> 0 | T101: 24.6 | X101: =(V101*0.01)+W101 -> 0 | AB101: 23.8 | AF101: =(AD101*0.01)+AE101 -> 0
B102: 2017-03-17 | C102: 136 | E102: 23.3 | I102: 0 | M102: 24.7 | Q102: 0 | T102: 24.6 | X102: 0 | AB102: 23.8 | AF102: 0
B103: 2017-03-18 | C103: 137
B104: 2017-03-19 | C104: 138
B105: 2017-03-20 | C105: 139 | D105: 26.6 | E105: 23.3 | F105: =D105/E105 -> 1.141630901 | L105: 29.8 | M105: 24.7 | N105: =L105/M105 -> 1.206477733 | S105: 28.9 | T105: 24.6 | U105: =S105/T105 -> 1.174796748 | AA105: 27.6 | AB105: 23.8 | AC105: =AA105/AB105 -> 1.159663866
B106: 2017-03-21 | C106: 139
B107: 2017-03-22 | C107: 139
B108: 2017-03-23 | C108: 139
B109: 2017-03-24 | C109: 139
B110: 2017-03-25 | C110: 139
B111: 2017-03-26 | C111: 139
B112: 2017-03-27 | C112: 139
B113: 2017-03-28 | C113: 139 | D113: 28.6 | E113: 23.3 | F113: =D113/E113 -> 1.227467811 | L113: 30.2 | M113: 24.7 | N113: =L113/M113 -> 1.222672065 | S113: 29.8 | T113: 24.6 | U113: =S113/T113 -> 1.211382114 | AA113: 28.9 | AB113: 23.8 | AC113: =AA113/AB113 -> 1.214285714

Sheet Statistics1
B3: Mouse | C3: Stdev 1st 3 days
B4: W01 | C4: 0.46
B5: W02 | C5: 0.66 | G5: Implanted | H5: Control | I5: Implanted | J5: Control
B6: W03 | C6: 0.34 | E6: Day | F6: Age | G6: Weight | H6: Weight | I6: Weight | J6: Weight
B7: W04 | C7: 0.4 | E7: 2016-12-12 | F7: 41 | G7: =AVERAGE('W01-W04'!F7,'W01-W04'!N7,'W01-W04'!U7,'W01-W04'!AC7,'W05-W08'!F7,'W05-W08'!N7,'W05-W08'!U7,'W05-W08'!AC7,'W09-W12'!F7,'W09-W12'!N7,'W09-W12'!U7,'W09-W12'!AC7) -> 0.991265222 | H7: =AVERAGE('3-6-7-14'!F7,'3-6-7-14'!N7,'3-6-7-14'!U7,'3-6-7-14'!AC7) -> 0.9789358719 | I7: =AVERAGE('W01-W04'!D7,'W01-W04'!L7,'W01-W04'!S7,'W01-W04'!AA7,'W05-W08'!D7,'W05-W08'!L7,'W05-W08'!S7,'W05-W08'!AA7,'W09-W12'!D7,'W09-W12'!L7,'W09-W12'!S7,'W09-W12'!AA7) -> 21.9 | J7: =AVERAGE('3-6-7-14'!D7,'3-6-7-14'!L7,'3-6-7-14'!S7,'3-6-7-14'!AA7) -> 20.325
B8: W05 | C8: 0.26 | E8: 2016-12-13 | F8: 42 | G8: =AVERAGE('W01-W04'!F8,'W01-W04'!N8,'W01-W04'!U8,'W01-W04'!AC8,'W05-W08'!F8,'W05-W08'!N8,'W05-W08'!U8,'W05-W08'!AC8,'W09-W12'!F8,'W09-W12'!N8,'W09-W12'!U8,'W09-W12'!AC8) -> 1.01696319 | H8: =AVERAGE('3-6-7-14'!F8,'3-6-7-14'!N8,'3-6-7-14'!U8,'3-6-7-14'!AC8) -> 1.004974439 | I8: =AVERAGE('W01-W04'!D8,'W01-W04'!L8,'W01-W04'!S8,'W01-W04'!AA8,'W05-W08'!D8,'W05-W08'!L8,'W05-W08'!S8,'W05-W08'!AA8,'W09-W12'!D8,'W09-W12'!L8,'W09-W12'!S8,'W09-W12'!AA8) -> 22.46666667 | J8: =AVERAGE('3-6-7-14'!D8,'3-6-7-14'!L8,'3-6-7-14'!S8,'3-6-7-14'!AA8) -> 20.85
B9: W06 | C9: 0.41 | E9: 2016-12-14 | F9: 43 | G9: =AVERAGE('W01-W04'!F9,'W01-W04'!N9,'W01-W04'!U9,'W01-W04'!AC9,'W05-W08'!F9,'W05-W08'!N9,'W05-W08'!U9,'W05-W08'!AC9,'W09-W12'!F9,'W09-W12'!N9,'W09-W12'!U9,'W09-W12'!AC9) -> 1.002054331 | H9: =AVERAGE('3-6-7-14'!F9,'3-6-7-14'!N9,'3-6-7-14'!U9,'3-6-7-14'!AC9) -> 1.012417352 | I9: =AVERAGE('W01-W04'!D9,'W01-W04'!L9,'W01-W04'!S9,'W01-W04'!AA9,'W05-W08'!D9,'W05-W08'!L9,'W05-W08'!S9,'W05-W08'!AA9,'W09-W12'!D9,'W09-W12'!L9,'W09-W12'!S9,'W09-W12'!AA9) -> 22.13333333 | J9: =AVERAGE('3-6-7-14'!D9,'3-6-7-14'!L9,'3-6-7-14'!S9,'3-6-7-14'!AA9) -> 21
B10: W07 | C10: 0.67 | E10: 2016-12-15 | F10: 44 | G10: =AVERAGE('W01-W04'!F10,'W01-W04'!N10,'W01-W04'!U10,'W01-W04'!AC10,'W05-W08'!F10,'W05-W08'!N10,'W05-W08'!U10,'W05-W08'!AC10,'W09-W12'!F10,'W09-W12'!N10,'W09-W12'!U10,'W09-W12'!AC10) -> 0.962314775 | I10: =AVERAGE('W01-W04'!D10,'W01-W04'!L10,'W01-W04'!S10,'W01-W04'!AA10,'W05-W08'!D10,'W05-W08'!L10,'W05-W08'!S10,'W05-W08'!AA10,'W09-W12'!D10,'W09-W12'!L10,'W09-W12'!S10,'W09-W12'!AA10) -> 21.25833333
B11: W08 | C11: 0.53 | E11: 2016-12-16 | F11: 45 | G11: =AVERAGE('W01-W04'!F11,'W01-W04'!N11,'W01-W04'!U11,'W01-W04'!AC11,'W05-W08'!F11,'W05-W08'!N11,'W05-W08'!U11,'W05-W08'!AC11,'W09-W12'!F11,'W09-W12'!N11,'W09-W12'!U11,'W09-W12'!AC11) -> 0.9571986923 | H11: =AVERAGE('3-6-7-14'!F11,'3-6-7-14'!N11,'3-6-7-14'!U11,'3-6-7-14'!AC11) -> 1.019408205 | I11: =AVERAGE('W01-W04'!D11,'W01-W04'!L11,'W01-W04'!S11,'W01-W04'!AA11,'W05-W08'!D11,'W05-W08'!L11,'W05-W08'!S11,'W05-W08'!AA11,'W09-W12'!D11,'W09-W12'!L11,'W09-W12'!S11,'W09-W12'!AA11) -> 21.15 | J11: =AVERAGE('3-6-7-14'!D11,'3-6-7-14'!L11,'3-6-7-14'!S11,'3-6-7-14'!AA11) -> 21.075
B12: W09 | C12: 0.05 | E12: 2016-12-17 | F12: 46 | G12: =AVERAGE('W01-W04'!F12,'W01-W04'!N12,'W01-W04'!U12,'W01-W04'!AC12,'W05-W08'!F12,'W05-W08'!N12,'W05-W08'!U12,'W05-W08'!AC12,'W09-W12'!F12,'W09-W12'!N12,'W09-W12'!U12,'W09-W12'!AC12) -> 0.9859875868 | I12: =AVERAGE('W01-W04'!D12,'W01-W04'!L12,'W01-W04'!S12,'W01-W04'!AA12,'W05-W08'!D12,'W05-W08'!L12,'W05-W08'!S12,'W05-W08'!AA12,'W09-W12'!D12,'W09-W12'!L12,'W09-W12'!S12,'W09-W12'!AA12) -> 21.79166667
B13: W10 | C13: 0.65 | E13: 2016-12-18 | F13: 47 | G13: =AVERAGE('W01-W04'!F13,'W01-W04'!N13,'W01-W04'!U13,'W01-W04'!AC13,'W05-W08'!F13,'W05-W08'!N13,'W05-W08'!U13,'W05-W08'!AC13,'W09-W12'!F13,'W09-W12'!N13,'W09-W12'!U13,'W09-W12'!AC13) -> 1.018743325 | H13: =AVERAGE('3-6-7-14'!F13,'3-6-7-14'!N13,'3-6-7-14'!U13,'3-6-7-14'!AC13) -> 1.034711964 | I13: =AVERAGE('W01-W04'!D13,'W01-W04'!L13,'W01-W04'!S13,'W01-W04'!AA13,'W05-W08'!D13,'W05-W08'!L13,'W05-W08'!S13,'W05-W08'!AA13,'W09-W12'!D13,'W09-W12'!L13,'W09-W12'!S13,'W09-W12'!AA13) -> 22.50833333 | J13: =AVERAGE('3-6-7-14'!D13,'3-6-7-14'!L13,'3-6-7-14'!S13,'3-6-7-14'!AA13) -> 21.375
B14: W11 | C14: 0.31 | E14: 2016-12-19 | F14: 48 | G14: =AVERAGE('W01-W04'!F14,'W01-W04'!N14,'W01-W04'!U14,'W01-W04'!AC14,'W05-W08'!F14,'W05-W08'!N14,'W05-W08'!U14,'W05-W08'!AC14,'W09-W12'!F14,'W09-W12'!N14,'W09-W12'!U14,'W09-W12'!AC14) -> 1.046962352 | H14: =AVERAGE('3-6-7-14'!F14,'3-6-7-14'!N14,'3-6-7-14'!U14,'3-6-7-14'!AC14) -> 1.067078918 | I14: =AVERAGE('W01-W04'!D14,'W01-W04'!L14,'W01-W04'!S14,'W01-W04'!AA14,'W05-W08'!D14,'W05-W08'!L14,'W05-W08'!S14,'W05-W08'!AA14,'W09-W12'!D14,'W09-W12'!L14,'W09-W12'!S14,'W09-W12'!AA14) -> 23.125 | J14: =AVERAGE('3-6-7-14'!D14,'3-6-7-14'!L14,'3-6-7-14'!S14,'3-6-7-14'!AA14) -> 22.05
B15: W12 | C15: 0.17 | E15: 2016-12-20 | F15: 49 | G15: =AVERAGE('W01-W04'!F15,'W01-W04'!N15,'W01-W04'!U15,'W01-W04'!AC15,'W05-W08'!F15,'W05-W08'!N15,'W05-W08'!U15,'W05-W08'!AC15,'W09-W12'!F15,'W09-W12'!N15,'W09-W12'!U15,'W09-W12'!AC15) -> 1.069917291 | H15: =AVERAGE('3-6-7-14'!F15,'3-6-7-14'!N15,'3-6-7-14'!U15,'3-6-7-14'!AC15) -> 1.116694837 | I15: =AVERAGE('W01-W04'!D15,'W01-W04'!L15,'W01-W04'!S15,'W01-W04'!AA15,'W05-W08'!D15,'W05-W08'!L15,'W05-W08'!S15,'W05-W08'!AA15,'W09-W12'!D15,'W09-W12'!L15,'W09-W12'!S15,'W09-W12'!AA15) -> 23.63333333 | J15: =AVERAGE('3-6-7-14'!D15,'3-6-7-14'!L15,'3-6-7-14'!S15,'3-6-7-14'!AA15) -> 23.1
B16: Average stdev | C16: =AVERAGE(C4:C15) -> 0.4091666667 | E16: 2016-12-21 | F16: 50 | G16: =AVERAGE('W01-W04'!F16,'W01-W04'!N16,'W01-W04'!U16,'W01-W04'!AC16,'W05-W08'!F16,'W05-W08'!N16,'W05-W08'!U16,'W05-W08'!AC16,'W09-W12'!F16,'W09-W12'!N16,'W09-W12'!U16,'W09-W12'!AC16) -> 1.067734249 | H16: =AVERAGE('3-6-7-14'!F16,'3-6-7-14'!N16,'3-6-7-14'!U16,'3-6-7-14'!AC16) -> 1.129564059 | I16: =AVERAGE('W01-W04'!D16,'W01-W04'!L16,'W01-W04'!S16,'W01-W04'!AA16,'W05-W08'!D16,'W05-W08'!L16,'W05-W08'!S16,'W05-W08'!AA16,'W09-W12'!D16,'W09-W12'!L16,'W09-W12'!S16,'W09-W12'!AA16) -> 23.58333333 | J16: =AVERAGE('3-6-7-14'!D16,'3-6-7-14'!L16,'3-6-7-14'!S16,'3-6-7-14'!AA16) -> 23.35
B17: Range stdev | C17: 0.05 - 0.67 | E17: 2016-12-22 | F17: 51 | G17: =AVERAGE('W01-W04'!F17,'W01-W04'!N17,'W01-W04'!U17,'W01-W04'!AC17,'W05-W08'!F17,'W05-W08'!N17,'W05-W08'!U17,'W05-W08'!AC17,'W09-W12'!F17,'W09-W12'!N17,'W09-W12'!U17,'W09-W12'!AC17) -> 1.057378543 | H17: =AVERAGE('3-6-7-14'!F17,'3-6-7-14'!N17,'3-6-7-14'!U17,'3-6-7-14'!AC17) -> 1.164301125 | I17: =AVERAGE('W01-W04'!D17,'W01-W04'!L17,'W01-W04'!S17,'W01-W04'!AA17,'W05-W08'!D17,'W05-W08'!L17,'W05-W08'!S17,'W05-W08'!AA17,'W09-W12'!D17,'W09-W12'!L17,'W09-W12'!S17,'W09-W12'!AA17) -> 23.35 | J17: =AVERAGE('3-6-7-14'!D17,'3-6-7-14'!L17,'3-6-7-14'!S17,'3-6-7-14'!AA17) -> 24.025
E18: 2016-12-23 | F18: 52 | G18: =AVERAGE('W01-W04'!F18,'W01-W04'!N18,'W01-W04'!U18,'W01-W04'!AC18,'W05-W08'!F18,'W05-W08'!N18,'W05-W08'!U18,'W05-W08'!AC18,'W09-W12'!F18,'W09-W12'!N18,'W09-W12'!U18,'W09-W12'!AC18) -> 1.059479039 | H18: =AVERAGE('3-6-7-14'!F18,'3-6-7-14'!N18,'3-6-7-14'!U18,'3-6-7-14'!AC18) -> 1.144243508 | I18: =AVERAGE('W01-W04'!D18,'W01-W04'!L18,'W01-W04'!S18,'W01-W04'!AA18,'W05-W08'!D18,'W05-W08'!L18,'W05-W08'!S18,'W05-W08'!AA18,'W09-W12'!D18,'W09-W12'!L18,'W09-W12'!S18,'W09-W12'!AA18) -> 23.4 | J18: =AVERAGE('3-6-7-14'!D18,'3-6-7-14'!L18,'3-6-7-14'!S18,'3-6-7-14'!AA18) -> 23.625
E19: 2016-12-24 | F19: 53
E20: 2016-12-25 | F20: 54
E21: 2016-12-26 | F21: 55
E22: 2016-12-27 | F22: 56
E23: 2016-12-28 | F23: 57
E24: 2016-12-29 | F24: 58
E25: 2016-12-30 | F25: 59
E26: 2016-12-31 | F26: 60
E27: 2017-01-01 | F27: 61
E28: 2017-01-02 | F28: 62 | G28: =AVERAGE('W01-W04'!F28,'W01-W04'!N28,'W01-W04'!U28,'W01-W04'!AC28,'W05-W08'!F28,'W05-W08'!N28,'W05-W08'!U28,'W05-W08'!AC28,'W09-W12'!F28,'W09-W12'!N28,'W09-W12'!U28,'W09-W12'!AC28) -> 1 | H28: =AVERAGE('3-6-7-14'!F28,'3-6-7-14'!N28,'3-6-7-14'!U28,'3-6-7-14'!AC28) -> 1 | I28: =AVERAGE('W01-W04'!D28,'W01-W04'!L28,'W01-W04'!S28,'W01-W04'!AA28,'W05-W08'!D28,'W05-W08'!L28,'W05-W08'!S28,'W05-W08'!AA28,'W09-W12'!D28,'W09-W12'!L28,'W09-W12'!S28,'W09-W12'!AA28) -> 25.19166667 | J28: =AVERAGE('3-6-7-14'!D28,'3-6-7-14'!L28,'3-6-7-14'!S28,'3-6-7-14'!AA28) -> 24.1
E29: 2017-01-03 | F29: 63 | G29: =AVERAGE('W01-W04'!F29,'W01-W04'!N29,'W01-W04'!U29,'W01-W04'!AC29,'W05-W08'!F29,'W05-W08'!N29,'W05-W08'!U29,'W05-W08'!AC29,'W09-W12'!F29,'W09-W12'!N29,'W09-W12'!U29,'W09-W12'!AC29) -> 0.8867343054 | H29: =AVERAGE('3-6-7-14'!F29,'3-6-7-14'!N29,'3-6-7-14'!U29,'3-6-7-14'!AC29) -> 1.042716582 | I29: =AVERAGE('W01-W04'!D29,'W01-W04'!L29,'W01-W04'!S29,'W01-W04'!AA29,'W05-W08'!D29,'W05-W08'!L29,'W05-W08'!S29,'W05-W08'!AA29,'W09-W12'!D29,'W09-W12'!L29,'W09-W12'!S29,'W09-W12'!AA29) -> 22.33333333 | J29: =AVERAGE('3-6-7-14'!D29,'3-6-7-14'!L29,'3-6-7-14'!S29,'3-6-7-14'!AA29) -> 25.125
E30: 2017-01-04 | F30: 64 | G30: =AVERAGE('W01-W04'!F30,'W01-W04'!N30,'W01-W04'!U30,'W01-W04'!AC30,'W05-W08'!F30,'W05-W08'!N30,'W05-W08'!U30,'W05-W08'!AC30,'W09-W12'!F30,'W09-W12'!N30,'W09-W12'!U30,'W09-W12'!AC30) -> 0.8721282914 | H30: =AVERAGE('3-6-7-14'!F30,'3-6-7-14'!N30,'3-6-7-14'!U30,'3-6-7-14'!AC30) -> 1.033120745 | I30: =AVERAGE('W01-W04'!D30,'W01-W04'!L30,'W01-W04'!S30,'W01-W04'!AA30,'W05-W08'!D30,'W05-W08'!L30,'W05-W08'!S30,'W05-W08'!AA30,'W09-W12'!D30,'W09-W12'!L30,'W09-W12'!S30,'W09-W12'!AA30) -> 21.96666667 | J30: =AVERAGE('3-6-7-14'!D30,'3-6-7-14'!L30,'3-6-7-14'!S30,'3-6-7-14'!AA30) -> 24.9
E31: 2017-01-05 | F31: 65 | G31: =AVERAGE('W01-W04'!F31,'W01-W04'!N31,'W01-W04'!U31,'W01-W04'!AC31,'W05-W08'!F31,'W05-W08'!N31,'W05-W08'!U31,'W05-W08'!AC31,'W09-W12'!F31,'W09-W12'!N31,'W09-W12'!U31,'W09-W12'!AC31) -> 0.8480584032 | H31: =AVERAGE('3-6-7-14'!F31,'3-6-7-14'!N31,'3-6-7-14'!U31,'3-6-7-14'!AC31) -> 1.032070325 | I31: =AVERAGE('W01-W04'!D31,'W01-W04'!L31,'W01-W04'!S31,'W01-W04'!AA31,'W05-W08'!D31,'W05-W08'!L31,'W05-W08'!S31,'W05-W08'!AA31,'W09-W12'!D31,'W09-W12'!L31,'W09-W12'!S31,'W09-W12'!AA31) -> 21.35833333 | J31: =AVERAGE('3-6-7-14'!D31,'3-6-7-14'!L31,'3-6-7-14'!S31,'3-6-7-14'!AA31) -> 24.875
E32: 2017-01-06 | F32: 66 | G32: =AVERAGE('W01-W04'!F32,'W01-W04'!N32,'W01-W04'!U32,'W01-W04'!AC32,'W05-W08'!F32,'W05-W08'!N32,'W05-W08'!U32,'W05-W08'!AC32,'W09-W12'!F32,'W09-W12'!N32,'W09-W12'!U32,'W09-W12'!AC32) -> 0.847596576 | H32: =AVERAGE('3-6-7-14'!F32,'3-6-7-14'!N32,'3-6-7-14'!U32,'3-6-7-14'!AC32) -> 1.041528797 | I32: =AVERAGE('W01-W04'!D32,'W01-W04'!L32,'W01-W04'!S32,'W01-W04'!AA32,'W05-W08'!D32,'W05-W08'!L32,'W05-W08'!S32,'W05-W08'!AA32,'W09-W12'!D32,'W09-W12'!L32,'W09-W12'!S32,'W09-W12'!AA32) -> 21.35 | J32: =AVERAGE('3-6-7-14'!D32,'3-6-7-14'!L32,'3-6-7-14'!S32,'3-6-7-14'!AA32) -> 25.1
E33: 2017-01-07 | F33: 67 | G33: =AVERAGE('W01-W04'!F33,'W01-W04'!N33,'W01-W04'!U33,'W01-W04'!AC33,'W05-W08'!F33,'W05-W08'!N33,'W05-W08'!U33,'W05-W08'!AC33,'W09-W12'!F33,'W09-W12'!N33,'W09-W12'!U33,'W09-W12'!AC33) -> 0.8454778189 | H33: =AVERAGE('3-6-7-14'!F33,'3-6-7-14'!N33,'3-6-7-14'!U33,'3-6-7-14'!AC33) -> 1.047754073 | I33: =AVERAGE('W01-W04'!D33,'W01-W04'!L33,'W01-W04'!S33,'W01-W04'!AA33,'W05-W08'!D33,'W05-W08'!L33,'W05-W08'!S33,'W05-W08'!AA33,'W09-W12'!D33,'W09-W12'!L33,'W09-W12'!S33,'W09-W12'!AA33) -> 21.3 | J33: =AVERAGE('3-6-7-14'!D33,'3-6-7-14'!L33,'3-6-7-14'!S33,'3-6-7-14'!AA33) -> 25.25
E34: 2017-01-08 | F34: 68 | G34: =AVERAGE('W01-W04'!F34,'W01-W04'!N34,'W01-W04'!U34,'W01-W04'!AC34,'W05-W08'!F34,'W05-W08'!N34,'W05-W08'!U34,'W05-W08'!AC34,'W09-W12'!F34,'W09-W12'!N34,'W09-W12'!U34,'W09-W12'!AC34) -> 0.8635146384 | H34: =AVERAGE('3-6-7-14'!F34,'3-6-7-14'!N34,'3-6-7-14'!U34,'3-6-7-14'!AC34) -> 1.041718052 | I34: =AVERAGE('W01-W04'!D34,'W01-W04'!L34,'W01-W04'!S34,'W01-W04'!AA34,'W05-W08'!D34,'W05-W08'!L34,'W05-W08'!S34,'W05-W08'!AA34,'W09-W12'!D34,'W09-W12'!L34,'W09-W12'!S34,'W09-W12'!AA34) -> 21.75 | J34: =AVERAGE('3-6-7-14'!D34,'3-6-7-14'!L34,'3-6-7-14'!S34,'3-6-7-14'!AA34) -> 25.1
E35: 2017-01-09 | F35: 69 | G35: =AVERAGE('W01-W04'!F35,'W01-W04'!N35,'W01-W04'!U35,'W01-W04'!AC35,'W05-W08'!F35,'W05-W08'!N35,'W05-W08'!U35,'W05-W08'!AC35,'W09-W12'!F35,'W09-W12'!N35,'W09-W12'!U35,'W09-W12'!AC35) -> 0.8521538075 | H35: =AVERAGE('3-6-7-14'!F35,'3-6-7-14'!N35,'3-6-7-14'!U35,'3-6-7-14'!AC35) -> 1.053844826 | I35: =AVERAGE('W01-W04'!D35,'W01-W04'!L35,'W01-W04'!S35,'W01-W04'!AA35,'W05-W08'!D35,'W05-W08'!L35,'W05-W08'!S35,'W05-W08'!AA35,'W09-W12'!D35,'W09-W12'!L35,'W09-W12'!S35,'W09-W12'!AA35) -> 21.46666667 | J35: =AVERAGE('3-6-7-14'!D35,'3-6-7-14'!L35,'3-6-7-14'!S35,'3-6-7-14'!AA35) -> 25.4
E36: 2017-01-10 | F36: 70 | G36: =AVERAGE('W01-W04'!F36,'W01-W04'!N36,'W01-W04'!U36,'W01-W04'!AC36,'W05-W08'!F36,'W05-W08'!N36,'W05-W08'!U36,'W05-W08'!AC36,'W09-W12'!F36,'W09-W12'!N36,'W09-W12'!U36,'W09-W12'!AC36) -> 0.8581061786 | H36: =AVERAGE('3-6-7-14'!F36,'3-6-7-14'!N36,'3-6-7-14'!U36,'3-6-7-14'!AC36) -> 1.056028298 | I36: =AVERAGE('W01-W04'!D36,'W01-W04'!L36,'W01-W04'!S36,'W01-W04'!AA36,'W05-W08'!D36,'W05-W08'!L36,'W05-W08'!S36,'W05-W08'!AA36,'W09-W12'!D36,'W09-W12'!L36,'W09-W12'!S36,'W09-W12'!AA36) -> 21.61666667 | J36: =AVERAGE('3-6-7-14'!D36,'3-6-7-14'!L36,'3-6-7-14'!S36,'3-6-7-14'!AA36) -> 25.45
E37: 2017-01-11 | F37: 71 | G37: =AVERAGE('W01-W04'!F37,'W01-W04'!N37,'W01-W04'!U37,'W01-W04'!AC37,'W05-W08'!F37,'W05-W08'!N37,'W05-W08'!U37,'W05-W08'!AC37,'W09-W12'!F37,'W09-W12'!N37,'W09-W12'!U37,'W09-W12'!AC37) -> 0.8567679824 | H37: =AVERAGE('3-6-7-14'!F37,'3-6-7-14'!N37,'3-6-7-14'!U37,'3-6-7-14'!AC37) -> 1.056024184 | I37: =AVERAGE('W01-W04'!D37,'W01-W04'!L37,'W01-W04'!S37,'W01-W04'!AA37,'W05-W08'!D37,'W05-W08'!L37,'W05-W08'!S37,'W05-W08'!AA37,'W09-W12'!D37,'W09-W12'!L37,'W09-W12'!S37,'W09-W12'!AA37) -> 21.58333333 | J37: =AVERAGE('3-6-7-14'!D37,'3-6-7-14'!L37,'3-6-7-14'!S37,'3-6-7-14'!AA37) -> 25.45
E38: 2017-01-12 | F38: 72 | G38: =AVERAGE('W01-W04'!F38,'W01-W04'!N38,'W01-W04'!U38,'W01-W04'!AC38,'W05-W08'!F38,'W05-W08'!N38,'W05-W08'!U38,'W05-W08'!AC38,'W09-W12'!F38,'W09-W12'!N38,'W09-W12'!U38,'W09-W12'!AC38) -> 0.8577267751 | H38: =AVERAGE('3-6-7-14'!F38,'3-6-7-14'!N38,'3-6-7-14'!U38,'3-6-7-14'!AC38) -> 1.056883232 | I38: =AVERAGE('W01-W04'!D38,'W01-W04'!L38,'W01-W04'!S38,'W01-W04'!AA38,'W05-W08'!D38,'W05-W08'!L38,'W05-W08'!S38,'W05-W08'!AA38,'W09-W12'!D38,'W09-W12'!L38,'W09-W12'!S38,'W09-W12'!AA38) -> 21.60833333 | J38: =AVERAGE('3-6-7-14'!D38,'3-6-7-14'!L38,'3-6-7-14'!S38,'3-6-7-14'!AA38) -> 25.475
E39: 2017-01-13 | F39: 73 | G39: =AVERAGE('W01-W04'!F39,'W01-W04'!N39,'W01-W04'!U39,'W01-W04'!AC39,'W05-W08'!F39,'W05-W08'!N39,'W05-W08'!U39,'W05-W08'!AC39,'W09-W12'!F39,'W09-W12'!N39,'W09-W12'!U39,'W09-W12'!AC39) -> 0.8613808705 | H39: =AVERAGE('3-6-7-14'!F39,'3-6-7-14'!N39,'3-6-7-14'!U39,'3-6-7-14'!AC39) -> 1.068348442 | I39: =AVERAGE('W01-W04'!D39,'W01-W04'!L39,'W01-W04'!S39,'W01-W04'!AA39,'W05-W08'!D39,'W05-W08'!L39,'W05-W08'!S39,'W05-W08'!AA39,'W09-W12'!D39,'W09-W12'!L39,'W09-W12'!S39,'W09-W12'!AA39) -> 21.7 | J39: =AVERAGE('3-6-7-14'!D39,'3-6-7-14'!L39,'3-6-7-14'!S39,'3-6-7-14'!AA39) -> 25.75
E40: 2017-01-14 | F40: 74 | G40: =AVERAGE('W01-W04'!F40,'W01-W04'!N40,'W01-W04'!U40,'W01-W04'!AC40,'W05-W08'!F40,'W05-W08'!N40,'W05-W08'!U40,'W05-W08'!AC40,'W09-W12'!F40,'W09-W12'!N40,'W09-W12'!U40,'W09-W12'!AC40) -> 0.855364495 | H40: =AVERAGE('3-6-7-14'!F40,'3-6-7-14'!N40,'3-6-7-14'!U40,'3-6-7-14'!AC40) -> 1.059910892 | I40: =AVERAGE('W01-W04'!D40,'W01-W04'!L40,'W01-W04'!S40,'W01-W04'!AA40,'W05-W08'!D40,'W05-W08'!L40,'W05-W08'!S40,'W05-W08'!AA40,'W09-W12'!D40,'W09-W12'!L40,'W09-W12'!S40,'W09-W12'!AA40) -> 21.55 | J40: =AVERAGE('3-6-7-14'!D40,'3-6-7-14'!L40,'3-6-7-14'!S40,'3-6-7-14'!AA40) -> 25.55
E41: 2017-01-15 | F41: 75 | G41: =AVERAGE('W01-W04'!F41,'W01-W04'!N41,'W01-W04'!U41,'W01-W04'!AC41,'W05-W08'!F41,'W05-W08'!N41,'W05-W08'!U41,'W05-W08'!AC41,'W09-W12'!F41,'W09-W12'!N41,'W09-W12'!U41,'W09-W12'!AC41) -> 0.859658864 | H41: =AVERAGE('3-6-7-14'!F41,'3-6-7-14'!N41,'3-6-7-14'!U41,'3-6-7-14'!AC41) -> 1.058982103 | I41: =AVERAGE('W01-W04'!D41,'W01-W04'!L41,'W01-W04'!S41,'W01-W04'!AA41,'W05-W08'!D41,'W05-W08'!L41,'W05-W08'!S41,'W05-W08'!AA41,'W09-W12'!D41,'W09-W12'!L41,'W09-W12'!S41,'W09-W12'!AA41) -> 21.65833333 | J41: =AVERAGE('3-6-7-14'!D41,'3-6-7-14'!L41,'3-6-7-14'!S41,'3-6-7-14'!AA41) -> 25.525
E42: 2017-01-16 | F42: 76 | G42: =AVERAGE('W01-W04'!F42,'W01-W04'!N42,'W01-W04'!U42,'W01-W04'!AC42,'W05-W08'!F42,'W05-W08'!N42,'W05-W08'!U42,'W05-W08'!AC42,'W09-W12'!F42,'W09-W12'!N42,'W09-W12'!U42,'W09-W12'!AC42) -> 0.8545828099 | H42: =AVERAGE('3-6-7-14'!F42,'3-6-7-14'!N42,'3-6-7-14'!U42,'3-6-7-14'!AC42) -> 1.072573936 | I42: =AVERAGE('W01-W04'!D42,'W01-W04'!L42,'W01-W04'!S42,'W01-W04'!AA42,'W05-W08'!D42,'W05-W08'!L42,'W05-W08'!S42,'W05-W08'!AA42,'W09-W12'!D42,'W09-W12'!L42,'W09-W12'!S42,'W09-W12'!AA42) -> 21.53333333 | J42: =AVERAGE('3-6-7-14'!D42,'3-6-7-14'!L42,'3-6-7-14'!S42,'3-6-7-14'!AA42) -> 25.85
E43: 2017-01-17 | F43: 77 | G43: =AVERAGE('W01-W04'!F43,'W01-W04'!N43,'W01-W04'!U43,'W01-W04'!AC43,'W05-W08'!F43,'W05-W08'!N43,'W05-W08'!U43,'W05-W08'!AC43,'W09-W12'!F43,'W09-W12'!N43,'W09-W12'!U43,'W09-W12'!AC43) -> 0.8453965972 | I43: =AVERAGE('W01-W04'!D43,'W01-W04'!L43,'W01-W04'!S43,'W01-W04'!AA43,'W05-W08'!D43,'W05-W08'!L43,'W05-W08'!S43,'W05-W08'!AA43,'W09-W12'!D43,'W09-W12'!L43,'W09-W12'!S43,'W09-W12'!AA43) -> 21.3
E44: 2017-01-18 | F44: 78 | G44: =AVERAGE('W01-W04'!F44,'W01-W04'!N44,'W01-W04'!U44,'W01-W04'!AC44,'W05-W08'!F44,'W05-W08'!N44,'W05-W08'!U44,'W05-W08'!AC44,'W09-W12'!F44,'W09-W12'!N44,'W09-W12'!U44,'W09-W12'!AC44) -> 0.8660252303 | I44: =AVERAGE('W01-W04'!D44,'W01-W04'!L44,'W01-W04'!S44,'W01-W04'!AA44,'W05-W08'!D44,'W05-W08'!L44,'W05-W08'!S44,'W05-W08'!AA44,'W09-W12'!D44,'W09-W12'!L44,'W09-W12'!S44,'W09-W12'!AA44) -> 21.81666667
E45: 2017-01-19 | F45: 79 | G45: =AVERAGE('W01-W04'!F45,'W01-W04'!N45,'W01-W04'!U45,'W01-W04'!AC45,'W05-W08'!F45,'W05-W08'!N45,'W05-W08'!U45,'W05-W08'!AC45,'W09-W12'!F45,'W09-W12'!N45,'W09-W12'!U45,'W09-W12'!AC45) -> 0.861032046 | I45: =AVERAGE('W01-W04'!D45,'W01-W04'!L45,'W01-W04'!S45,'W01-W04'!AA45,'W05-W08'!D45,'W05-W08'!L45,'W05-W08'!S45,'W05-W08'!AA45,'W09-W12'!D45,'W09-W12'!L45,'W09-W12'!S45,'W09-W12'!AA45) -> 21.69166667
E46: 2017-01-20 | F46: 80 | G46: =AVERAGE('W01-W04'!F46,'W01-W04'!N46,'W01-W04'!U46,'W01-W04'!AC46,'W05-W08'!F46,'W05-W08'!N46,'W05-W08'!U46,'W05-W08'!AC46,'W09-W12'!F46,'W09-W12'!N46,'W09-W12'!U46,'W09-W12'!AC46) -> 0.8562442916 | I46: =AVERAGE('W01-W04'!D46,'W01-W04'!L46,'W01-W04'!S46,'W01-W04'!AA46,'W05-W08'!D46,'W05-W08'!L46,'W05-W08'!S46,'W05-W08'!AA46,'W09-W12'!D46,'W09-W12'!L46,'W09-W12'!S46,'W09-W12'!AA46) -> 21.56666667
E47: 2017-01-21 | F47: 81 | G47: =AVERAGE('W01-W04'!F47,'W01-W04'!N47,'W01-W04'!U47,'W01-W04'!AC47,'W05-W08'!F47,'W05-W08'!N47,'W05-W08'!U47,'W05-W08'!AC47,'W09-W12'!F47,'W09-W12'!N47,'W09-W12'!U47,'W09-W12'!AC47) -> 0.8643795805 | I47: =AVERAGE('W01-W04'!D47,'W01-W04'!L47,'W01-W04'!S47,'W01-W04'!AA47,'W05-W08'!D47,'W05-W08'!L47,'W05-W08'!S47,'W05-W08'!AA47,'W09-W12'!D47,'W09-W12'!L47,'W09-W12'!S47,'W09-W12'!AA47) -> 21.775
E48: 2017-01-22 | F48: 82 | G48: =AVERAGE('W01-W04'!F48,'W01-W04'!N48,'W01-W04'!U48,'W01-W04'!AC48,'W05-W08'!F48,'W05-W08'!N48,'W05-W08'!U48,'W05-W08'!AC48,'W09-W12'!F48,'W09-W12'!N48,'W09-W12'!U48,'W09-W12'!AC48) -> 0.8671415775 | I48: =AVERAGE('W01-W04'!D48,'W01-W04'!L48,'W01-W04'!S48,'W01-W04'!AA48,'W05-W08'!D48,'W05-W08'!L48,'W05-W08'!S48,'W05-W08'!AA48,'W09-W12'!D48,'W09-W12'!L48,'W09-W12'!S48,'W09-W12'!AA48) -> 21.84166667
E49: 2017-01-23 | F49: 83 | G49: =AVERAGE('W01-W04'!F49,'W01-W04'!N49,'W01-W04'!U49,'W01-W04'!AC49,'W05-W08'!F49,'W05-W08'!N49,'W05-W08'!U49,'W05-W08'!AC49,'W09-W12'!F49,'W09-W12'!N49,'W09-W12'!U49,'W09-W12'!AC49) -> 0.8611135266 | H49: =AVERAGE('3-6-7-14'!F49,'3-6-7-14'!N49,'3-6-7-14'!U49,'3-6-7-14'!AC49) -> 1.096315999 | I49: =AVERAGE('W01-W04'!D49,'W01-W04'!L49,'W01-W04'!S49,'W01-W04'!AA49,'W05-W08'!D49,'W05-W08'!L49,'W05-W08'!S49,'W05-W08'!AA49,'W09-W12'!D49,'W09-W12'!L49,'W09-W12'!S49,'W09-W12'!AA49) -> 21.69166667 | J49: =AVERAGE('3-6-7-14'!D49,'3-6-7-14'!L49,'3-6-7-14'!S49,'3-6-7-14'!AA49) -> 26.425
E50: 2017-01-24 | F50: 84 | G50: =AVERAGE('W01-W04'!F50,'W01-W04'!N50,'W01-W04'!U50,'W01-W04'!AC50,'W05-W08'!F50,'W05-W08'!N50,'W05-W08'!U50,'W05-W08'!AC50,'W09-W12'!F50,'W09-W12'!N50,'W09-W12'!U50,'W09-W12'!AC50) -> 0.8562673901 | I50: =AVERAGE('W01-W04'!D50,'W01-W04'!L50,'W01-W04'!S50,'W01-W04'!AA50,'W05-W08'!D50,'W05-W08'!L50,'W05-W08'!S50,'W05-W08'!AA50,'W09-W12'!D50,'W09-W12'!L50,'W09-W12'!S50,'W09-W12'!AA50) -> 21.56666667
E51: 2017-01-25 | F51: 85 | G51: =AVERAGE('W01-W04'!F51,'W01-W04'!N51,'W01-W04'!U51,'W01-W04'!AC51,'W05-W08'!F51,'W05-W08'!N51,'W05-W08'!U51,'W05-W08'!AC51,'W09-W12'!F51,'W09-W12'!N51,'W09-W12'!U51,'W09-W12'!AC51) -> 0.8639017393 | I51: =AVERAGE('W01-W04'!D51,'W01-W04'!L51,'W01-W04'!S51,'W01-W04'!AA51,'W05-W08'!D51,'W05-W08'!L51,'W05-W08'!S51,'W05-W08'!AA51,'W09-W12'!D51,'W09-W12'!L51,'W09-W12'!S51,'W09-W12'!AA51) -> 21.75833333
E52: 2017-01-26 | F52: 86 | G52: =AVERAGE('W01-W04'!F52,'W01-W04'!N52,'W01-W04'!U52,'W01-W04'!AC52,'W05-W08'!F52,'W05-W08'!N52,'W05-W08'!U52,'W05-W08'!AC52,'W09-W12'!F52,'W09-W12'!N52,'W09-W12'!U52,'W09-W12'!AC52) -> 0.8630867992 | I52: =AVERAGE('W01-W04'!D52,'W01-W04'!L52,'W01-W04'!S52,'W01-W04'!AA52,'W05-W08'!D52,'W05-W08'!L52,'W05-W08'!S52,'W05-W08'!AA52,'W09-W12'!D52,'W09-W12'!L52,'W09-W12'!S52,'W09-W12'!AA52) -> 21.74166667
E53: 2017-01-27 | F53: 87 | G53: =AVERAGE('W01-W04'!F53,'W01-W04'!N53,'W01-W04'!U53,'W01-W04'!AC53,'W05-W08'!F53,'W05-W08'!N53,'W05-W08'!U53,'W05-W08'!AC53,'W09-W12'!F53,'W09-W12'!N53,'W09-W12'!U53,'W09-W12'!AC53) -> 0.8607341411 | I53: =AVERAGE('W01-W04'!D53,'W01-W04'!L53,'W01-W04'!S53,'W01-W04'!AA53,'W05-W08'!D53,'W05-W08'!L53,'W05-W08'!S53,'W05-W08'!AA53,'W09-W12'!D53,'W09-W12'!L53,'W09-W12'!S53,'W09-W12'!AA53) -> 21.68333333
E54: 2017-01-28 | F54: 88 | G54: =AVERAGE('W01-W04'!F54,'W01-W04'!N54,'W01-W04'!U54,'W01-W04'!AC54,'W05-W08'!F54,'W05-W08'!N54,'W05-W08'!U54,'W05-W08'!AC54,'W09-W12'!F54,'W09-W12'!N54,'W09-W12'!U54,'W09-W12'!AC54) -> 0.8585863888 | I54: =AVERAGE('W01-W04'!D54,'W01-W04'!L54,'W01-W04'!S54,'W01-W04'!AA54,'W05-W08'!D54,'W05-W08'!L54,'W05-W08'!S54,'W05-W08'!AA54,'W09-W12'!D54,'W09-W12'!L54,'W09-W12'!S54,'W09-W12'!AA54) -> 21.625
E55: 2017-01-29 | F55: 89 | G55: =AVERAGE('W01-W04'!F55,'W01-W04'!N55,'W01-W04'!U55,'W01-W04'!AC55,'W05-W08'!F55,'W05-W08'!N55,'W05-W08'!U55,'W05-W08'!AC55,'W09-W12'!F55,'W09-W12'!N55,'W09-W12'!U55,'W09-W12'!AC55) -> 0.8613708545 | I55: =AVERAGE('W01-W04'!D55,'W01-W04'!L55,'W01-W04'!S55,'W01-W04'!AA55,'W05-W08'!D55,'W05-W08'!L55,'W05-W08'!S55,'W05-W08'!AA55,'W09-W12'!D55,'W09-W12'!L55,'W09-W12'!S55,'W09-W12'!AA55) -> 21.7
E56: 2017-01-30 | F56: 90 | G56: =AVERAGE('W01-W04'!F56,'W01-W04'!N56,'W01-W04'!U56,'W01-W04'!AC56,'W05-W08'!F56,'W05-W08'!N56,'W05-W08'!U56,'W05-W08'!AC56,'W09-W12'!F56,'W09-W12'!N56,'W09-W12'!U56,'W09-W12'!AC56) -> 0.8546518489 | H56: =AVERAGE('3-6-7-14'!F56,'3-6-7-14'!N56,'3-6-7-14'!U56,'3-6-7-14'!AC56) -> 1.097512013 | I56: =AVERAGE('W01-W04'!D56,'W01-W04'!L56,'W01-W04'!S56,'W01-W04'!AA56,'W05-W08'!D56,'W05-W08'!L56,'W05-W08'!S56,'W05-W08'!AA56,'W09-W12'!D56,'W09-W12'!L56,'W09-W12'!S56,'W09-W12'!AA56) -> 21.53333333 | J56: =AVERAGE('3-6-7-14'!D56,'3-6-7-14'!L56,'3-6-7-14'!S56,'3-6-7-14'!AA56) -> 26.45
E57: 2017-01-31 | F57: 91 | G57: =AVERAGE('W01-W04'!F57,'W01-W04'!N57,'W01-W04'!U57,'W01-W04'!AC57,'W05-W08'!F57,'W05-W08'!N57,'W05-W08'!U57,'W05-W08'!AC57,'W09-W12'!F57,'W09-W12'!N57,'W09-W12'!U57,'W09-W12'!AC57) -> 0.8630140317 | I57: =AVERAGE('W01-W04'!D57,'W01-W04'!L57,'W01-W04'!S57,'W01-W04'!AA57,'W05-W08'!D57,'W05-W08'!L57,'W05-W08'!S57,'W05-W08'!AA57,'W09-W12'!D57,'W09-W12'!L57,'W09-W12'!S57,'W09-W12'!AA57) -> 21.74166667
E58: 2017-02-01 | F58: 92 | G58: =AVERAGE('W01-W04'!F58,'W01-W04'!N58,'W01-W04'!U58,'W01-W04'!AC58,'W05-W08'!F58,'W05-W08'!N58,'W05-W08'!U58,'W05-W08'!AC58,'W09-W12'!F58,'W09-W12'!N58,'W09-W12'!U58,'W09-W12'!AC58) -> 0.8516884411 | I58: =AVERAGE('W01-W04'!D58,'W01-W04'!L58,'W01-W04'!S58,'W01-W04'!AA58,'W05-W08'!D58,'W05-W08'!L58,'W05-W08'!S58,'W05-W08'!AA58,'W09-W12'!D58,'W09-W12'!L58,'W09-W12'!S58,'W09-W12'!AA58) -> 21.45833333
E59: 2017-02-02 | F59: 93 | G59: =AVERAGE('W01-W04'!F59,'W01-W04'!N59,'W01-W04'!U59,'W01-W04'!AC59,'W05-W08'!F59,'W05-W08'!N59,'W05-W08'!U59,'W05-W08'!AC59,'W09-W12'!F59,'W09-W12'!N59,'W09-W12'!U59,'W09-W12'!AC59) -> 0.8488216173 | I59: =AVERAGE('W01-W04'!D59,'W01-W04'!L59,'W01-W04'!S59,'W01-W04'!AA59,'W05-W08'!D59,'W05-W08'!L59,'W05-W08'!S59,'W05-W08'!AA59,'W09-W12'!D59,'W09-W12'!L59,'W09-W12'!S59,'W09-W12'!AA59) -> 21.38333333
E60: 2017-02-03 | F60: 94 | G60: =AVERAGE('W01-W04'!F60,'W01-W04'!N60,'W01-W04'!U60,'W01-W04'!AC60,'W05-W08'!F60,'W05-W08'!N60,'W05-W08'!U60,'W05-W08'!AC60,'W09-W12'!F60,'W09-W12'!N60,'W09-W12'!U60,'W09-W12'!AC60) -> 0.8520269547 | I60: =AVERAGE('W01-W04'!D60,'W01-W04'!L60,'W01-W04'!S60,'W01-W04'!AA60,'W05-W08'!D60,'W05-W08'!L60,'W05-W08'!S60,'W05-W08'!AA60,'W09-W12'!D60,'W09-W12'!L60,'W09-W12'!S60,'W09-W12'!AA60) -> 21.46666667
E61: 2017-02-04 | F61: 95 | G61: =AVERAGE('W01-W04'!F61,'W01-W04'!N61,'W01-W04'!U61,'W01-W04'!AC61,'W05-W08'!F61,'W05-W08'!N61,'W05-W08'!U61,'W05-W08'!AC61,'W09-W12'!F61,'W09-W12'!N61,'W09-W12'!U61,'W09-W12'!AC61) -> 0.8519500993 | I61: =AVERAGE('W01-W04'!D61,'W01-W04'!L61,'W01-W04'!S61,'W01-W04'!AA61,'W05-W08'!D61,'W05-W08'!L61,'W05-W08'!S61,'W05-W08'!AA61,'W09-W12'!D61,'W09-W12'!L61,'W09-W12'!S61,'W09-W12'!AA61) -> 21.46666667
E62: 2017-02-05 | F62: 96 | G62: =AVERAGE('W01-W04'!F62,'W01-W04'!N62,'W01-W04'!U62,'W01-W04'!AC62,'W05-W08'!F62,'W05-W08'!N62,'W05-W08'!U62,'W05-W08'!AC62,'W09-W12'!F62,'W09-W12'!N62,'W09-W12'!U62,'W09-W12'!AC62) -> 0.8499649702 | I62: =AVERAGE('W01-W04'!D62,'W01-W04'!L62,'W01-W04'!S62,'W01-W04'!AA62,'W05-W08'!D62,'W05-W08'!L62,'W05-W08'!S62,'W05-W08'!AA62,'W09-W12'!D62,'W09-W12'!L62,'W09-W12'!S62,'W09-W12'!AA62) -> 21.41666667
E63: 2017-02-06 | F63: 97 | G63: =AVERAGE('W01-W04'!F63,'W01-W04'!N63,'W01-W04'!U63,'W01-W04'!AC63,'W05-W08'!F63,'W05-W08'!N63,'W05-W08'!U63,'W05-W08'!AC63,'W09-W12'!F63,'W09-W12'!N63,'W09-W12'!U63,'W09-W12'!AC63) -> 0.8540147053 | H63: =AVERAGE('3-6-7-14'!F63,'3-6-7-14'!N63,'3-6-7-14'!U63,'3-6-7-14'!AC63) -> 1.101592062 | I63: =AVERAGE('W01-W04'!D63,'W01-W04'!L63,'W01-W04'!S63,'W01-W04'!AA63,'W05-W08'!D63,'W05-W08'!L63,'W05-W08'!S63,'W05-W08'!AA63,'W09-W12'!D63,'W09-W12'!L63,'W09-W12'!S63,'W09-W12'!AA63) -> 21.51666667 | J63: =AVERAGE('3-6-7-14'!D63,'3-6-7-14'!L63,'3-6-7-14'!S63,'3-6-7-14'!AA63) -> 26.55
E64: 2017-02-07 | F64: 98 | G64: =AVERAGE('W01-W04'!F64,'W01-W04'!N64,'W01-W04'!U64,'W01-W04'!AC64,'W05-W08'!F64,'W05-W08'!N64,'W05-W08'!U64,'W05-W08'!AC64,'W09-W12'!F64,'W09-W12'!N64,'W09-W12'!U64,'W09-W12'!AC64) -> 0.852085543 | I64: =AVERAGE('W01-W04'!D64,'W01-W04'!L64,'W01-W04'!S64,'W01-W04'!AA64,'W05-W08'!D64,'W05-W08'!L64,'W05-W08'!S64,'W05-W08'!AA64,'W09-W12'!D64,'W09-W12'!L64,'W09-W12'!S64,'W09-W12'!AA64) -> 21.46666667
E65: 2017-02-08 | F65: 99 | G65: =AVERAGE('W01-W04'!F65,'W01-W04'!N65,'W01-W04'!U65,'W01-W04'!AC65,'W05-W08'!F65,'W05-W08'!N65,'W05-W08'!U65,'W05-W08'!AC65,'W09-W12'!F65,'W09-W12'!N65,'W09-W12'!U65,'W09-W12'!AC65) -> 0.8509473936 | I65: =AVERAGE('W01-W04'!D65,'W01-W04'!L65,'W01-W04'!S65,'W01-W04'!AA65,'W05-W08'!D65,'W05-W08'!L65,'W05-W08'!S65,'W05-W08'!AA65,'W09-W12'!D65,'W09-W12'!L65,'W09-W12'!S65,'W09-W12'!AA65) -> 21.43333333
E66: 2017-02-09 | F66: 100 | G66: =AVERAGE('W01-W04'!F66,'W01-W04'!N66,'W01-W04'!U66,'W01-W04'!AC66,'W05-W08'!F66,'W05-W08'!N66,'W05-W08'!U66,'W05-W08'!AC66,'W09-W12'!F66,'W09-W12'!N66,'W09-W12'!U66,'W09-W12'!AC66) -> 0.8458605755 | I66: =AVERAGE('W01-W04'!D66,'W01-W04'!L66,'W01-W04'!S66,'W01-W04'!AA66,'W05-W08'!D66,'W05-W08'!L66,'W05-W08'!S66,'W05-W08'!AA66,'W09-W12'!D66,'W09-W12'!L66,'W09-W12'!S66,'W09-W12'!AA66) -> 21.30833333
E67: 2017-02-10 | F67: 101 | G67: =AVERAGE('W01-W04'!F67,'W01-W04'!N67,'W01-W04'!U67,'W01-W04'!AC67,'W05-W08'!F67,'W05-W08'!N67,'W05-W08'!U67,'W05-W08'!AC67,'W09-W12'!F67,'W09-W12'!N67,'W09-W12'!U67,'W09-W12'!AC67) -> 0.8481806535 | I67: =AVERAGE('W01-W04'!D67,'W01-W04'!L67,'W01-W04'!S67,'W01-W04'!AA67,'W05-W08'!D67,'W05-W08'!L67,'W05-W08'!S67,'W05-W08'!AA67,'W09-W12'!D67,'W09-W12'!L67,'W09-W12'!S67,'W09-W12'!AA67) -> 21.36666667
E68: 2017-02-11 | F68: 102 | G68: =AVERAGE('W01-W04'!F68,'W01-W04'!N68,'W01-W04'!U68,'W01-W04'!AC68,'W05-W08'!F68,'W05-W08'!N68,'W05-W08'!U68,'W05-W08'!AC68,'W09-W12'!F68,'W09-W12'!N68,'W09-W12'!U68,'W09-W12'!AC68) -> 0.8458117468 | I68: =AVERAGE('W01-W04'!D68,'W01-W04'!L68,'W01-W04'!S68,'W01-W04'!AA68,'W05-W08'!D68,'W05-W08'!L68,'W05-W08'!S68,'W05-W08'!AA68,'W09-W12'!D68,'W09-W12'!L68,'W09-W12'!S68,'W09-W12'!AA68) -> 21.30833333
E69: 2017-02-12 | F69: 103 | G69: =AVERAGE('W01-W04'!F69,'W01-W04'!N69,'W01-W04'!U69,'W01-W04'!AC69,'W05-W08'!F69,'W05-W08'!N69,'W05-W08'!U69,'W05-W08'!AC69,'W09-W12'!F69,'W09-W12'!N69,'W09-W12'!U69,'W09-W12'!AC69) -> 0.84686393 | I69: =AVERAGE('W01-W04'!D69,'W01-W04'!L69,'W01-W04'!S69,'W01-W04'!AA69,'W05-W08'!D69,'W05-W08'!L69,'W05-W08'!S69,'W05-W08'!AA69,'W09-W12'!D69,'W09-W12'!L69,'W09-W12'!S69,'W09-W12'!AA69) -> 21.33333333
E70: 2017-02-13 | F70: 104 | G70: =AVERAGE('W01-W04'!F70,'W01-W04'!N70,'W01-W04'!U70,'W01-W04'!AC70,'W05-W08'!F70,'W05-W08'!N70,'W05-W08'!U70,'W05-W08'!AC70,'W09-W12'!F70,'W09-W12'!N70,'W09-W12'!U70,'W09-W12'!AC70) -> 0.8472214314 | H70: =AVERAGE('3-6-7-14'!F70,'3-6-7-14'!N70,'3-6-7-14'!U70,'3-6-7-14'!AC70) -> 1.117981184 | I70: =AVERAGE('W01-W04'!D70,'W01-W04'!L70,'W01-W04'!S70,'W01-W04'!AA70,'W05-W08'!D70,'W05-W08'!L70,'W05-W08'!S70,'W05-W08'!AA70,'W09-W12'!D70,'W09-W12'!L70,'W09-W12'!S70,'W09-W12'!AA70) -> 21.34166667 | J70: =AVERAGE('3-6-7-14'!D70,'3-6-7-14'!L70,'3-6-7-14'!S70,'3-6-7-14'!AA70) -> 26.95
E71: 2017-02-14 | F71: 105 | G71: =AVERAGE('W01-W04'!F71,'W01-W04'!N71,'W01-W04'!U71,'W01-W04'!AC71,'W05-W08'!F71,'W05-W08'!N71,'W05-W08'!U71,'W05-W08'!AC71,'W09-W12'!F71,'W09-W12'!N71,'W09-W12'!U71,'W09-W12'!AC71) -> 0.8462928291 | I71: =AVERAGE('W01-W04'!D71,'W01-W04'!L71,'W01-W04'!S71,'W01-W04'!AA71,'W05-W08'!D71,'W05-W08'!L71,'W05-W08'!S71,'W05-W08'!AA71,'W09-W12'!D71,'W09-W12'!L71,'W09-W12'!S71,'W09-W12'!AA71) -> 21.31666667
E72: 2017-02-15 | F72: 106 | G72: =AVERAGE('W01-W04'!F72,'W01-W04'!N72,'W01-W04'!U72,'W01-W04'!AC72,'W05-W08'!F72,'W05-W08'!N72,'W05-W08'!U72,'W05-W08'!AC72,'W09-W12'!F72,'W09-W12'!N72,'W09-W12'!U72,'W09-W12'!AC72) -> 0.8476042182 | I72: =AVERAGE('W01-W04'!D72,'W01-W04'!L72,'W01-W04'!S72,'W01-W04'!AA72,'W05-W08'!D72,'W05-W08'!L72,'W05-W08'!S72,'W05-W08'!AA72,'W09-W12'!D72,'W09-W12'!L72,'W09-W12'!S72,'W09-W12'!AA72) -> 21.35
E73: 2017-02-16 | F73: 107 | G73: =AVERAGE('W01-W04'!F73,'W01-W04'!N73,'W01-W04'!U73,'W01-W04'!AC73,'W05-W08'!F73,'W05-W08'!N73,'W05-W08'!U73,'W05-W08'!AC73,'W09-W12'!F73,'W09-W12'!N73,'W09-W12'!U73,'W09-W12'!AC73) -> 0.8487283953 | I73: =AVERAGE('W01-W04'!D73,'W01-W04'!L73,'W01-W04'!S73,'W01-W04'!AA73,'W05-W08'!D73,'W05-W08'!L73,'W05-W08'!S73,'W05-W08'!AA73,'W09-W12'!D73,'W09-W12'!L73,'W09-W12'!S73,'W09-W12'!AA73) -> 21.38333333
E74: 2017-02-17 | F74: 108 | G74: =AVERAGE('W01-W04'!F74,'W01-W04'!N74,'W01-W04'!U74,'W01-W04'!AC74,'W05-W08'!F74,'W05-W08'!N74,'W05-W08'!U74,'W05-W08'!AC74,'W09-W12'!F74,'W09-W12'!N74,'W09-W12'!U74,'W09-W12'!AC74) -> 0.8487386175 | I74: =AVERAGE('W01-W04'!D74,'W01-W04'!L74,'W01-W04'!S74,'W01-W04'!AA74,'W05-W08'!D74,'W05-W08'!L74,'W05-W08'!S74,'W05-W08'!AA74,'W09-W12'!D74,'W09-W12'!L74,'W09-W12'!S74,'W09-W12'!AA74) -> 21.38333333
E75: 2017-02-18 | F75: 109 | G75: =AVERAGE('W01-W04'!F75,'W01-W04'!N75,'W01-W04'!U75,'W01-W04'!AC75,'W05-W08'!F75,'W05-W08'!N75,'W05-W08'!U75,'W05-W08'!AC75,'W09-W12'!F75,'W09-W12'!N75,'W09-W12'!U75,'W09-W12'!AC75) -> 0.8540840246 | I75: =AVERAGE('W01-W04'!D75,'W01-W04'!L75,'W01-W04'!S75,'W01-W04'!AA75,'W05-W08'!D75,'W05-W08'!L75,'W05-W08'!S75,'W05-W08'!AA75,'W09-W12'!D75,'W09-W12'!L75,'W09-W12'!S75,'W09-W12'!AA75) -> 21.51666667
E76: 2017-02-19 | F76: 110 | G76: =AVERAGE('W01-W04'!F76,'W01-W04'!N76,'W01-W04'!U76,'W01-W04'!AC76,'W05-W08'!F76,'W05-W08'!N76,'W05-W08'!U76,'W05-W08'!AC76,'W09-W12'!F76,'W09-W12'!N76,'W09-W12'!U76,'W09-W12'!AC76) -> 0.8474094152 | I76: =AVERAGE('W01-W04'!D76,'W01-W04'!L76,'W01-W04'!S76,'W01-W04'!AA76,'W05-W08'!D76,'W05-W08'!L76,'W05-W08'!S76,'W05-W08'!AA76,'W09-W12'!D76,'W09-W12'!L76,'W09-W12'!S76,'W09-W12'!AA76) -> 21.35
E77: 2017-02-20 | F77: 111 | G77: =AVERAGE('W01-W04'!F77,'W01-W04'!N77,'W01-W04'!U77,'W01-W04'!AC77,'W05-W08'!F77,'W05-W08'!N77,'W05-W08'!U77,'W05-W08'!AC77,'W09-W12'!F77,'W09-W12'!N77,'W09-W12'!U77,'W09-W12'!AC77) -> 0.8548859969 | H77: =AVERAGE('3-6-7-14'!F77,'3-6-7-14'!N77,'3-6-7-14'!U77,'3-6-7-14'!AC77) -> 1.134665608 | I77: =AVERAGE('W01-W04'!D77,'W01-W04'!L77,'W01-W04'!S77,'W01-W04'!AA77,'W05-W08'!D77,'W05-W08'!L77,'W05-W08'!S77,'W05-W08'!AA77,'W09-W12'!D77,'W09-W12'!L77,'W09-W12'!S77,'W09-W12'!AA77) -> 21.54166667 | J77: =AVERAGE('3-6-7-14'!D77,'3-6-7-14'!L77,'3-6-7-14'!S77,'3-6-7-14'!AA77) -> 27.35
E78: 2017-02-21 | F78: 112 | G78: =AVERAGE('W01-W04'!F78,'W01-W04'!N78,'W01-W04'!U78,'W01-W04'!AC78,'W05-W08'!F78,'W05-W08'!N78,'W05-W08'!U78,'W05-W08'!AC78,'W09-W12'!F78,'W09-W12'!N78,'W09-W12'!U78,'W09-W12'!AC78) -> 0.8623307645 | I78: =AVERAGE('W01-W04'!D78,'W01-W04'!L78,'W01-W04'!S78,'W01-W04'!AA78,'W05-W08'!D78,'W05-W08'!L78,'W05-W08'!S78,'W05-W08'!AA78,'W09-W12'!D78,'W09-W12'!L78,'W09-W12'!S78,'W09-W12'!AA78) -> 21.725
E79: 2017-02-22 | F79: 113 | G79: =AVERAGE('W01-W04'!F79,'W01-W04'!N79,'W01-W04'!U79,'W01-W04'!AC79,'W05-W08'!F79,'W05-W08'!N79,'W05-W08'!U79,'W05-W08'!AC79,'W09-W12'!F79,'W09-W12'!N79,'W09-W12'!U79,'W09-W12'!AC79) -> 0.863307258 | I79: =AVERAGE('W01-W04'!D79,'W01-W04'!L79,'W01-W04'!S79,'W01-W04'!AA79,'W05-W08'!D79,'W05-W08'!L79,'W05-W08'!S79,'W05-W08'!AA79,'W09-W12'!D79,'W09-W12'!L79,'W09-W12'!S79,'W09-W12'!AA79) -> 21.75
E80: 2017-02-23 | F80: 114 | G80: =AVERAGE('W01-W04'!F80,'W01-W04'!N80,'W01-W04'!U80,'W01-W04'!AC80,'W05-W08'!F80,'W05-W08'!N80,'W05-W08'!U80,'W05-W08'!AC80,'W09-W12'!F80,'W09-W12'!N80,'W09-W12'!U80,'W09-W12'!AC80) -> 0.8504817913 | I80: =AVERAGE('W01-W04'!D80,'W01-W04'!L80,'W01-W04'!S80,'W01-W04'!AA80,'W05-W08'!D80,'W05-W08'!L80,'W05-W08'!S80,'W05-W08'!AA80,'W09-W12'!D80,'W09-W12'!L80,'W09-W12'!S80,'W09-W12'!AA80) -> 21.43333333
E81: 2017-02-24 | F81: 115 | G81: =AVERAGE('W01-W04'!F81,'W01-W04'!N81,'W01-W04'!U81,'W01-W04'!AC81,'W05-W08'!F81,'W05-W08'!N81,'W05-W08'!U81,'W05-W08'!AC81,'W09-W12'!F81,'W09-W12'!N81,'W09-W12'!U81,'W09-W12'!AC81) -> 0.8598157014 | I81: =AVERAGE('W01-W04'!D81,'W01-W04'!L81,'W01-W04'!S81,'W01-W04'!AA81,'W05-W08'!D81,'W05-W08'!L81,'W05-W08'!S81,'W05-W08'!AA81,'W09-W12'!D81,'W09-W12'!L81,'W09-W12'!S81,'W09-W12'!AA81) -> 21.65833333
E82: 2017-02-25 | F82: 116 | G82: =AVERAGE('W01-W04'!F82,'W01-W04'!N82,'W01-W04'!U82,'W01-W04'!AC82,'W05-W08'!F82,'W05-W08'!N82,'W05-W08'!U82,'W05-W08'!AC82,'W09-W12'!F82,'W09-W12'!N82,'W09-W12'!U82,'W09-W12'!AC82) -> 0.8520620835 | I82: =AVERAGE('W01-W04'!D82,'W01-W04'!L82,'W01-W04'!S82,'W01-W04'!AA82,'W05-W08'!D82,'W05-W08'!L82,'W05-W08'!S82,'W05-W08'!AA82,'W09-W12'!D82,'W09-W12'!L82,'W09-W12'!S82,'W09-W12'!AA82) -> 21.46666667
E83: 2017-02-26 | F83: 117 | G83: =AVERAGE('W01-W04'!F83,'W01-W04'!N83,'W01-W04'!U83,'W01-W04'!AC83,'W05-W08'!F83,'W05-W08'!N83,'W05-W08'!U83,'W05-W08'!AC83,'W09-W12'!F83,'W09-W12'!N83,'W09-W12'!U83,'W09-W12'!AC83) -> 0.849118512 | I83: =AVERAGE('W01-W04'!D83,'W01-W04'!L83,'W01-W04'!S83,'W01-W04'!AA83,'W05-W08'!D83,'W05-W08'!L83,'W05-W08'!S83,'W05-W08'!AA83,'W09-W12'!D83,'W09-W12'!L83,'W09-W12'!S83,'W09-W12'!AA83) -> 21.39166667
E84: 2017-02-27 | F84: 118 | G84: =AVERAGE('W01-W04'!F84,'W01-W04'!N84,'W01-W04'!U84,'W01-W04'!AC84,'W05-W08'!F84,'W05-W08'!N84,'W05-W08'!U84,'W05-W08'!AC84,'W09-W12'!F84,'W09-W12'!N84,'W09-W12'!U84,'W09-W12'!AC84) -> 0.8542057673 | H84: =AVERAGE('3-6-7-14'!F84,'3-6-7-14'!N84,'3-6-7-14'!U84,'3-6-7-14'!AC84) -> 1.144753601 | I84: =AVERAGE('W01-W04'!D84,'W01-W04'!L84,'W01-W04'!S84,'W01-W04'!AA84,'W05-W08'!D84,'W05-W08'!L84,'W05-W08'!S84,'W05-W08'!AA84,'W09-W12'!D84,'W09-W12'!L84,'W09-W12'!S84,'W09-W12'!AA84) -> 21.525 | J84: =AVERAGE('3-6-7-14'!D84,'3-6-7-14'!L84,'3-6-7-14'!S84,'3-6-7-14'!AA84) -> 27.6
E85: 2017-02-28 | F85: 119 | G85: =AVERAGE('W01-W04'!F85,'W01-W04'!N85,'W01-W04'!U85,'W01-W04'!AC85,'W05-W08'!F85,'W05-W08'!N85,'W05-W08'!U85,'W05-W08'!AC85,'W09-W12'!F85,'W09-W12'!N85,'W09-W12'!U85,'W09-W12'!AC85) -> 0.8538552859 | I85: =AVERAGE('W01-W04'!D85,'W01-W04'!L85,'W01-W04'!S85,'W01-W04'!AA85,'W05-W08'!D85,'W05-W08'!L85,'W05-W08'!S85,'W05-W08'!AA85,'W09-W12'!D85,'W09-W12'!L85,'W09-W12'!S85,'W09-W12'!AA85) -> 21.50833333
E86: 2017-03-01 | F86: 120 | G86: =AVERAGE('W01-W04'!F86,'W01-W04'!N86,'W01-W04'!U86,'W01-W04'!AC86,'W05-W08'!F86,'W05-W08'!N86,'W05-W08'!U86,'W05-W08'!AC86,'W09-W12'!F86,'W09-W12'!N86,'W09-W12'!U86,'W09-W12'!AC86) -> 0.8509733013 | I86: =AVERAGE('W01-W04'!D86,'W01-W04'!L86,'W01-W04'!S86,'W01-W04'!AA86,'W05-W08'!D86,'W05-W08'!L86,'W05-W08'!S86,'W05-W08'!AA86,'W09-W12'!D86,'W09-W12'!L86,'W09-W12'!S86,'W09-W12'!AA86) -> 21.44166667
E87: 2017-03-02 | F87: 121 | G87: =AVERAGE('W01-W04'!F87,'W01-W04'!N87,'W01-W04'!U87,'W01-W04'!AC87,'W05-W08'!F87,'W05-W08'!N87,'W05-W08'!U87,'W05-W08'!AC87,'W09-W12'!F87,'W09-W12'!N87,'W09-W12'!U87,'W09-W12'!AC87) -> 0.8537425354 | I87: =AVERAGE('W01-W04'!D87,'W01-W04'!L87,'W01-W04'!S87,'W01-W04'!AA87,'W05-W08'!D87,'W05-W08'!L87,'W05-W08'!S87,'W05-W08'!AA87,'W09-W12'!D87,'W09-W12'!L87,'W09-W12'!S87,'W09-W12'!AA87) -> 21.50833333
E88: 2017-03-03 | F88: 122 | G88: =AVERAGE('W01-W04'!F88,'W01-W04'!N88,'W01-W04'!U88,'W01-W04'!AC88,'W05-W08'!F88,'W05-W08'!N88,'W05-W08'!U88,'W05-W08'!AC88,'W09-W12'!F88,'W09-W12'!N88,'W09-W12'!U88,'W09-W12'!AC88) -> 0.8547554131 | I88: =AVERAGE('W01-W04'!D88,'W01-W04'!L88,'W01-W04'!S88,'W01-W04'!AA88,'W05-W08'!D88,'W05-W08'!L88,'W05-W08'!S88,'W05-W08'!AA88,'W09-W12'!D88,'W09-W12'!L88,'W09-W12'!S88,'W09-W12'!AA88) -> 21.53333333
E89: 2017-03-04 | F89: 123 | G89: =AVERAGE('W01-W04'!F89,'W01-W04'!N89,'W01-W04'!U89,'W01-W04'!AC89,'W05-W08'!F89,'W05-W08'!N89,'W05-W08'!U89,'W05-W08'!AC89,'W09-W12'!F89,'W09-W12'!N89,'W09-W12'!U89,'W09-W12'!AC89) -> 0.843768733 | I89: =AVERAGE('W01-W04'!D89,'W01-W04'!L89,'W01-W04'!S89,'W01-W04'!AA89,'W05-W08'!D89,'W05-W08'!L89,'W05-W08'!S89,'W05-W08'!AA89,'W09-W12'!D89,'W09-W12'!L89,'W09-W12'!S89,'W09-W12'!AA89) -> 21.25833333
E90: 2017-03-05 | F90: 124 | G90: =AVERAGE('W01-W04'!F90,'W01-W04'!N90,'W01-W04'!U90,'W01-W04'!AC90,'W05-W08'!F90,'W05-W08'!N90,'W05-W08'!U90,'W05-W08'!AC90,'W09-W12'!F90,'W09-W12'!N90,'W09-W12'!U90,'W09-W12'!AC90) -> 0.8509187376 | I90: =AVERAGE('W01-W04'!D90,'W01-W04'!L90,'W01-W04'!S90,'W01-W04'!AA90,'W05-W08'!D90,'W05-W08'!L90,'W05-W08'!S90,'W05-W08'!AA90,'W09-W12'!D90,'W09-W12'!L90,'W09-W12'!S90,'W09-W12'!AA90) -> 21.44166667
E91: 2017-03-06 | F91: 125 | G91: =AVERAGE('W01-W04'!F91,'W01-W04'!N91,'W01-W04'!U91,'W01-W04'!AC91,'W05-W08'!F91,'W05-W08'!N91,'W05-W08'!U91,'W05-W08'!AC91,'W09-W12'!F91,'W09-W12'!N91,'W09-W12'!U91,'W09-W12'!AC91) -> 0.8609320101 | I91: =AVERAGE('W01-W04'!D91,'W01-W04'!L91,'W01-W04'!S91,'W01-W04'!AA91,'W05-W08'!D91,'W05-W08'!L91,'W05-W08'!S91,'W05-W08'!AA91,'W09-W12'!D91,'W09-W12'!L91,'W09-W12'!S91,'W09-W12'!AA91) -> 21.69166667
E92: 2017-03-07 | F92: 126 | G92: =AVERAGE('W01-W04'!F92,'W01-W04'!N92,'W01-W04'!U92,'W01-W04'!AC92,'W05-W08'!F92,'W05-W08'!N92,'W05-W08'!U92,'W05-W08'!AC92,'W09-W12'!F92,'W09-W12'!N92,'W09-W12'!U92,'W09-W12'!AC92) -> 0.8626629676 | H92: =AVERAGE('3-6-7-14'!F92,'3-6-7-14'!N92,'3-6-7-14'!U92,'3-6-7-14'!AC92) -> 1.161486497 | I92: =AVERAGE('W01-W04'!D92,'W01-W04'!L92,'W01-W04'!S92,'W01-W04'!AA92,'W05-W08'!D92,'W05-W08'!L92,'W05-W08'!S92,'W05-W08'!AA92,'W09-W12'!D92,'W09-W12'!L92,'W09-W12'!S92,'W09-W12'!AA92) -> 21.73333333 | J92: =AVERAGE('3-6-7-14'!D92,'3-6-7-14'!L92,'3-6-7-14'!S92,'3-6-7-14'!AA92) -> 28
E93: 2017-03-08 | F93: 127 | G93: =AVERAGE('W01-W04'!F93,'W01-W04'!N93,'W01-W04'!U93,'W01-W04'!AC93,'W05-W08'!F93,'W05-W08'!N93,'W05-W08'!U93,'W05-W08'!AC93,'W09-W12'!F93,'W09-W12'!N93,'W09-W12'!U93,'W09-W12'!AC93) -> 0.9549704459 | I93: =AVERAGE('W01-W04'!D93,'W01-W04'!L93,'W01-W04'!S93,'W01-W04'!AA93,'W05-W08'!D93,'W05-W08'!L93,'W05-W08'!S93,'W05-W08'!AA93,'W09-W12'!D93,'W09-W12'!L93,'W09-W12'!S93,'W09-W12'!AA93) -> 24.025
E94: 2017-03-09 | F94: 128 | G94: =AVERAGE('W01-W04'!F94,'W01-W04'!N94,'W01-W04'!U94,'W01-W04'!AC94,'W05-W08'!F94,'W05-W08'!N94,'W05-W08'!U94,'W05-W08'!AC94,'W09-W12'!F94,'W09-W12'!N94,'W09-W12'!U94,'W09-W12'!AC94) -> 0.9669899508 | I94: =AVERAGE('W01-W04'!D94,'W01-W04'!L94,'W01-W04'!S94,'W01-W04'!AA94,'W05-W08'!D94,'W05-W08'!L94,'W05-W08'!S94,'W05-W08'!AA94,'W09-W12'!D94,'W09-W12'!L94,'W09-W12'!S94,'W09-W12'!AA94) -> 24.325
E95: 2017-03-10 | F95: 129 | G95: =AVERAGE('W01-W04'!F95,'W01-W04'!N95,'W01-W04'!U95,'W01-W04'!AC95,'W05-W08'!F95,'W05-W08'!N95,'W05-W08'!U95,'W05-W08'!AC95,'W09-W12'!F95,'W09-W12'!N95,'W09-W12'!U95,'W09-W12'!AC95) -> 1.048344541 | I95: =AVERAGE('W01-W04'!D95,'W01-W04'!L95,'W01-W04'!S95,'W01-W04'!AA95,'W05-W08'!D95,'W05-W08'!L95,'W05-W08'!S95,'W05-W08'!AA95,'W09-W12'!D95,'W09-W12'!L95,'W09-W12'!S95,'W09-W12'!AA95) -> 26.38333333
E96: 2017-03-11 | F96: 130
E97: 2017-03-12 | F97: 131
E98: 2017-03-13 | F98: 132 | G98: =AVERAGE('W01-W04'!F98,'W01-W04'!N98,'W01-W04'!U98,'W01-W04'!AC98,'W05-W08'!F98,'W05-W08'!N98,'W05-W08'!U98,'W05-W08'!AC98,'W09-W12'!F98,'W09-W12'!N98,'W09-W12'!U98,'W09-W12'!AC98) -> 1.080209869 | H98: =AVERAGE('3-6-7-14'!F98,'3-6-7-14'!N98,'3-6-7-14'!U98,'3-6-7-14'!AC98) -> 1.151063655 | I98: =AVERAGE('W01-W04'!D98,'W01-W04'!L98,'W01-W04'!S98,'W01-W04'!AA98,'W05-W08'!D98,'W05-W08'!L98,'W05-W08'!S98,'W05-W08'!AA98,'W09-W12'!D98,'W09-W12'!L98,'W09-W12'!S98,'W09-W12'!AA98) -> 27.19166667 | J98: =AVERAGE('3-6-7-14'!D98,'3-6-7-14'!L98,'3-6-7-14'!S98,'3-6-7-14'!AA98) -> 27.75
E99: 2017-03-14 | F99: 133
E100: 2017-03-15 | F100: 134 | G100: =AVERAGE('W01-W04'!F100,'W01-W04'!N100,'W01-W04'!U100,'W01-W04'!AC100,'W05-W08'!F100,'W05-W08'!N100,'W05-W08'!U100,'W05-W08'!AC100,'W09-W12'!F100,'W09-W12'!N100,'W09-W12'!U100,'W09-W12'!AC100) -> 1.081690875 | I100: =AVERAGE('W01-W04'!D100,'W01-W04'!L100,'W01-W04'!S100,'W01-W04'!AA100,'W05-W08'!D100,'W05-W08'!L100,'W05-W08'!S100,'W05-W08'!AA100,'W09-W12'!D100,'W09-W12'!L100,'W09-W12'!S100,'W09-W12'!AA100) -> 27.23333333
E101: 2017-03-16 | F101: 135
E102: 2017-03-17 | F102: 136 | G102: =AVERAGE('W01-W04'!F102,'W01-W04'!N102,'W01-W04'!U102,'W01-W04'!AC102,'W05-W08'!F102,'W05-W08'!N102,'W05-W08'!U102,'W05-W08'!AC102,'W09-W12'!F102,'W09-W12'!N102,'W09-W12'!U102,'W09-W12'!AC102) -> 1.094959719 | I102: =AVERAGE('W01-W04'!D102,'W01-W04'!L102,'W01-W04'!S102,'W01-W04'!AA102,'W05-W08'!D102,'W05-W08'!L102,'W05-W08'!S102,'W05-W08'!AA102,'W09-W12'!D102,'W09-W12'!L102,'W09-W12'!S102,'W09-W12'!AA102) -> 27.55833333
E103: 2017-03-18 | F103: 137
E104: 2017-03-19 | F104: 138
E105: 2017-03-20 | F105: 139 | G105: =AVERAGE('W01-W04'!F105,'W01-W04'!N105,'W01-W04'!U105,'W01-W04'!AC105,'W05-W08'!F105,'W05-W08'!N105,'W05-W08'!U105,'W05-W08'!AC105,'W09-W12'!F105,'W09-W12'!N105,'W09-W12'!U105,'W09-W12'!AC105) -> 1.113189957 | H105: =AVERAGE('3-6-7-14'!F105,'3-6-7-14'!N105,'3-6-7-14'!U105,'3-6-7-14'!AC105) -> 1.170642312 | I105: =AVERAGE('W01-W04'!D105,'W01-W04'!L105,'W01-W04'!S105,'W01-W04'!AA105,'W05-W08'!D105,'W05-W08'!L105,'W05-W08'!S105,'W05-W08'!AA105,'W09-W12'!D105,'W09-W12'!L105,'W09-W12'!S105,'W09-W12'!AA105) -> 28.025 | J105: =AVERAGE('3-6-7-14'!D105,'3-6-7-14'!L105,'3-6-7-14'!S105,'3-6-7-14'!AA105) -> 28.225
E106: 2017-03-21 | F106: 140
E107: 2017-03-22 | F107: 141
E108: 2017-03-23 | F108: 142
E109: 2017-03-24 | F109: 143
E110: 2017-03-25 | F110: 144
E111: 2017-03-26 | F111: 145
E112: 2017-03-27 | F112: 146
E113: 2017-03-28 | F113: 147 | G113: =AVERAGE('W01-W04'!F113,'W01-W04'!N113,'W01-W04'!U113,'W01-W04'!AC113,'W05-W08'!F113,'W05-W08'!N113,'W05-W08'!U113,'W05-W08'!AC113,'W09-W12'!F113,'W09-W12'!N113,'W09-W12'!U113,'W09-W12'!AC113) -> 1.139750756 | H113: =AVERAGE('3-6-7-14'!F113,'3-6-7-14'!N113,'3-6-7-14'!U113,'3-6-7-14'!AC113) -> 1.218951926 | I113: =AVERAGE('W01-W04'!D113,'W01-W04'!L113,'W01-W04'!S113,'W01-W04'!AA113,'W05-W08'!D113,'W05-W08'!L113,'W05-W08'!S113,'W05-W08'!AA113,'W09-W12'!D113,'W09-W12'!L113,'W09-W12'!S113,'W09-W12'!AA113) -> 28.69166667 | J113: =AVERAGE('3-6-7-14'!D113,'3-6-7-14'!L113,'3-6-7-14'!S113,'3-6-7-14'!AA113) -> 29.375

Sheet Statistics2
D5: Food-rstr | E5: Water-rstr | F5: Control | G5: Food-rstr | H5: Water-rstr | I5: Control | J5: Food-rstr | K5: Water-rstr | L5: Food-rstr | M5: Water-rstr
B6: Day | C6: Age | D6: Weight | E6: Weight | F6: Weight | G6: Weight | H6: Weight | I6: Weight | J6: Soy milk | K6: Water | L6: Total food | M6: Total water
B7: 2016-12-12 | C7: 41 | D7: =AVERAGE('W01-W04'!F7,'W01-W04'!U7,'W05-W08'!F7,'W05-W08'!U7,'W09-W12'!F7,'W09-W12'!U7) -> 0.9902763638 | E7: =AVERAGE('W01-W04'!N7,'W01-W04'!AC7,'W05-W08'!N7,'W05-W08'!AC7,'W09-W12'!N7,'W09-W12'!AC7) -> 0.9922540803 | F7: =AVERAGE('3-6-7-14'!F7,'3-6-7-14'!N7,'3-6-7-14'!U7,'3-6-7-14'!AC7) -> 0.9789358719 | G7: =AVERAGE('W01-W04'!D7,'W01-W04'!S7,'W05-W08'!D7,'W05-W08'!S7,'W09-W12'!D7,'W09-W12'!S7) -> 22.08333333 | H7: =AVERAGE('W01-W04'!L7,'W01-W04'!AA7,'W05-W08'!L7,'W05-W08'!AA7,'W09-W12'!L7,'W09-W12'!AA7) -> 21.71666667 | I7: =AVERAGE('3-6-7-14'!D7,'3-6-7-14'!L7,'3-6-7-14'!S7,'3-6-7-14'!AA7) -> 20.325
B8: 2016-12-13 | C8: 42 | D8: =AVERAGE('W01-W04'!F8,'W01-W04'!U8,'W05-W08'!F8,'W05-W08'!U8,'W09-W12'!F8,'W09-W12'!U8) -> 1.017144171 | E8: =AVERAGE('W01-W04'!N8,'W01-W04'!AC8,'W05-W08'!N8,'W05-W08'!AC8,'W09-W12'!N8,'W09-W12'!AC8) -> 1.016782209 | F8: =AVERAGE('3-6-7-14'!F8,'3-6-7-14'!N8,'3-6-7-14'!U8,'3-6-7-14'!AC8) -> 1.004974439 | G8: =AVERAGE('W01-W04'!D8,'W01-W04'!S8,'W05-W08'!D8,'W05-W08'!S8,'W09-W12'!D8,'W09-W12'!S8) -> 22.68333333 | H8: =AVERAGE('W01-W04'!L8,'W01-W04'!AA8,'W05-W08'!L8,'W05-W08'!AA8,'W09-W12'!L8,'W09-W12'!AA8) -> 22.25 | I8: =AVERAGE('3-6-7-14'!D8,'3-6-7-14'!L8,'3-6-7-14'!S8,'3-6-7-14'!AA8) -> 20.85
B9: 2016-12-14 | C9: 43 | D9: =AVERAGE('W01-W04'!F9,'W01-W04'!U9,'W05-W08'!F9,'W05-W08'!U9,'W09-W12'!F9,'W09-W12'!U9) -> 1.002443069 | E9: =AVERAGE('W01-W04'!N9,'W01-W04'!AC9,'W05-W08'!N9,'W05-W08'!AC9,'W09-W12'!N9,'W09-W12'!AC9) -> 1.001665593 | F9: =AVERAGE('3-6-7-14'!F9,'3-6-7-14'!N9,'3-6-7-14'!U9,'3-6-7-14'!AC9) -> 1.012417352 | G9: =AVERAGE('W01-W04'!D9,'W01-W04'!S9,'W05-W08'!D9,'W05-W08'!S9,'W09-W12'!D9,'W09-W12'!S9) -> 22.35 | H9: =AVERAGE('W01-W04'!L9,'W01-W04'!AA9,'W05-W08'!L9,'W05-W08'!AA9,'W09-W12'!L9,'W09-W12'!AA9) -> 21.91666667 | I9: =AVERAGE('3-6-7-14'!D9,'3-6-7-14'!L9,'3-6-7-14'!S9,'3-6-7-14'!AA9) -> 21
B10: 2016-12-15 | C10: 44 | D10: =AVERAGE('W01-W04'!F10,'W01-W04'!U10,'W05-W08'!F10,'W05-W08'!U10,'W09-W12'!F10,'W09-W12'!U10) -> 0.9644658181 | E10: =AVERAGE('W01-W04'!N10,'W01-W04'!AC10,'W05-W08'!N10,'W05-W08'!AC10,'W09-W12'!N10,'W09-W12'!AC10) -> 0.9601637319 | G10: =AVERAGE('W01-W04'!D10,'W01-W04'!S10,'W05-W08'!D10,'W05-W08'!S10,'W09-W12'!D10,'W09-W12'!S10) -> 21.5 | H10: =AVERAGE('W01-W04'!L10,'W01-W04'!AA10,'W05-W08'!L10,'W05-W08'!AA10,'W09-W12'!L10,'W09-W12'!AA10) -> 21.01666667
B11: 2016-12-16 | C11: 45 | D11: =AVERAGE('W01-W04'!F11,'W01-W04'!U11,'W05-W08'!F11,'W05-W08'!U11,'W09-W12'!F11,'W09-W12'!U11) -> 0.957222156 | E11: =AVERAGE('W01-W04'!N11,'W01-W04'!AC11,'W05-W08'!N11,'W05-W08'!AC11,'W09-W12'!N11,'W09-W12'!AC11) -> 0.9571752287 | F11: =AVERAGE('3-6-7-14'!F11,'3-6-7-14'!N11,'3-6-7-14'!U11,'3-6-7-14'!AC11) -> 1.019408205 | G11: =AVERAGE('W01-W04'!D11,'W01-W04'!S11,'W05-W08'!D11,'W05-W08'!S11,'W09-W12'!D11,'W09-W12'!S11) -> 21.35 | H11: =AVERAGE('W01-W04'!L11,'W01-W04'!AA11,'W05-W08'!L11,'W05-W08'!AA11,'W09-W12'!L11,'W09-W12'!AA11) -> 20.95 | I11: =AVERAGE('3-6-7-14'!D11,'3-6-7-14'!L11,'3-6-7-14'!S11,'3-6-7-14'!AA11) -> 21.075
B12: 2016-12-17 | C12: 46 | D12: =AVERAGE('W01-W04'!F12,'W01-W04'!U12,'W05-W08'!F12,'W05-W08'!U12,'W09-W12'!F12,'W09-W12'!U12) -> 0.9984246087 | E12: =AVERAGE('W01-W04'!N12,'W01-W04'!AC12,'W05-W08'!N12,'W05-W08'!AC12,'W09-W12'!N12,'W09-W12'!AC12) -> 0.9735505648 | G12: =AVERAGE('W01-W04'!D12,'W01-W04'!S12,'W05-W08'!D12,'W05-W08'!S12,'W09-W12'!D12,'W09-W12'!S12) -> 22.26666667 | H12: =AVERAGE('W01-W04'!L12,'W01-W04'!AA12,'W05-W08'!L12,'W05-W08'!AA12,'W09-W12'!L12,'W09-W12'!AA12) -> 21.31666667
B13: 2016-12-18 | C13: 47 | D13: =AVERAGE('W01-W04'!F13,'W01-W04'!U13,'W05-W08'!F13,'W05-W08'!U13,'W09-W12'!F13,'W09-W12'!U13) -> 1.023874088 | E13: =AVERAGE('W01-W04'!N13,'W01-W04'!AC13,'W05-W08'!N13,'W05-W08'!AC13,'W09-W12'!N13,'W09-W12'!AC13) -> 1.013612561 | F13: =AVERAGE('3-6-7-14'!F13,'3-6-7-14'!N13,'3-6-7-14'!U13,'3-6-7-14'!AC13) -> 1.034711964 | G13: =AVERAGE('W01-W04'!D13,'W01-W04'!S13,'W05-W08'!D13,'W05-W08'!S13,'W09-W12'!D13,'W09-W12'!S13) -> 22.83333333 | H13: =AVERAGE('W01-W04'!L13,'W01-W04'!AA13,'W05-W08'!L13,'W05-W08'!AA13,'W09-W12'!L13,'W09-W12'!AA13) -> 22.18333333 | I13: =AVERAGE('3-6-7-14'!D13,'3-6-7-14'!L13,'3-6-7-14'!S13,'3-6-7-14'!AA13) -> 21.375
B14: 2016-12-19 | C14: 48 | D14: =AVERAGE('W01-W04'!F14,'W01-W04'!U14,'W05-W08'!F14,'W05-W08'!U14,'W09-W12'!F14,'W09-W12'!U14) -> 1.044987029 | E14: =AVERAGE('W01-W04'!N14,'W01-W04'!AC14,'W05-W08'!N14,'W05-W08'!AC14,'W09-W12'!N14,'W09-W12'!AC14) -> 1.048937674 | F14: =AVERAGE('3-6-7-14'!F14,'3-6-7-14'!N14,'3-6-7-14'!U14,'3-6-7-14'!AC14) -> 1.067078918 | G14: =AVERAGE('W01-W04'!D14,'W01-W04'!S14,'W05-W08'!D14,'W05-W08'!S14,'W09-W12'!D14,'W09-W12'!S14) -> 23.3 | H14: =AVERAGE('W01-W04'!L14,'W01-W04'!AA14,'W05-W08'!L14,'W05-W08'!AA14,'W09-W12'!L14,'W09-W12'!AA14) -> 22.95 | I14: =AVERAGE('3-6-7-14'!D14,'3-6-7-14'!L14,'3-6-7-14'!S14,'3-6-7-14'!AA14) -> 22.05
B15: 2016-12-20 | C15: 49 | D15: =AVERAGE('W01-W04'!F15,'W01-W04'!U15,'W05-W08'!F15,'W05-W08'!U15,'W09-W12'!F15,'W09-W12'!U15) -> 1.062888052 | E15: =AVERAGE('W01-W04'!N15,'W01-W04'!AC15,'W05-W08'!N15,'W05-W08'!AC15,'W09-W12'!N15,'W09-W12'!AC15) -> 1.076946531 | F15: =AVERAGE('3-6-7-14'!F15,'3-6-7-14'!N15,'3-6-7-14'!U15,'3-6-7-14'!AC15) -> 1.116694837 | G15: =AVERAGE('W01-W04'!D15,'W01-W04'!S15,'W05-W08'!D15,'W05-W08'!S15,'W09-W12'!D15,'W09-W12'!S15) -> 23.7 | H15: =AVERAGE('W01-W04'!L15,'W01-W04'!AA15,'W05-W08'!L15,'W05-W08'!AA15,'W09-W12'!L15,'W09-W12'!AA15) -> 23.56666667 | I15: =AVERAGE('3-6-7-14'!D15,'3-6-7-14'!L15,'3-6-7-14'!S15,'3-6-7-14'!AA15) -> 23.1
B16: 2016-12-21 | C16: 50 | D16: =AVERAGE('W01-W04'!F16,'W01-W04'!U16,'W05-W08'!F16,'W05-W08'!U16,'W09-W12'!F16,'W09-W12'!U16) -> 1.062113195 | E16: =AVERAGE('W01-W04'!N16,'W01-W04'!AC16,'W05-W08'!N16,'W05-W08'!AC16,'W09-W12'!N16,'W09-W12'!AC16) -> 1.073355302 | F16: =AVERAGE('3-6-7-14'!F16,'3-6-7-14'!N16,'3-6-7-14'!U16,'3-6-7-14'!AC16) -> 1.129564059 | G16: =AVERAGE('W01-W04'!D16,'W01-W04'!S16,'W05-W08'!D16,'W05-W08'!S16,'W09-W12'!D16,'W09-W12'!S16) -> 23.68333333 | H16: =AVERAGE('W01-W04'!L16,'W01-W04'!AA16,'W05-W08'!L16,'W05-W08'!AA16,'W09-W12'!L16,'W09-W12'!AA16) -> 23.48333333 | I16: =AVERAGE('3-6-7-14'!D16,'3-6-7-14'!L16,'3-6-7-14'!S16,'3-6-7-14'!AA16) -> 23.35
B17: 2016-12-22 | C17: 51 | D17: =AVERAGE('W01-W04'!F17,'W01-W04'!U17,'W05-W08'!F17,'W05-W08'!U17,'W09-W12'!F17,'W09-W12'!U17) -> 1.038333567 | E17: =AVERAGE('W01-W04'!N17,'W01-W04'!AC17,'W05-W08'!N17,'W05-W08'!AC17,'W09-W12'!N17,'W09-W12'!AC17) -> 1.07642352 | F17: =AVERAGE('3-6-7-14'!F17,'3-6-7-14'!N17,'3-6-7-14'!U17,'3-6-7-14'!AC17) -> 1.164301125 | G17: =AVERAGE('W01-W04'!D17,'W01-W04'!S17,'W05-W08'!D17,'W05-W08'!S17,'W09-W12'!D17,'W09-W12'!S17) -> 23.15 | H17: =AVERAGE('W01-W04'!L17,'W01-W04'!AA17,'W05-W08'!L17,'W05-W08'!AA17,'W09-W12'!L17,'W09-W12'!AA17) -> 23.55 | I17: =AVERAGE('3-6-7-14'!D17,'3-6-7-14'!L17,'3-6-7-14'!S17,'3-6-7-14'!AA17) -> 24.025
B18: 2016-12-23 | C18: 52 | D18: =AVERAGE('W01-W04'!F18,'W01-W04'!U18,'W05-W08'!F18,'W05-W08'!U18,'W09-W12'!F18,'W09-W12'!U18) -> 1.041193342 | E18: =AVERAGE('W01-W04'!N18,'W01-W04'!AC18,'W05-W08'!N18,'W05-W08'!AC18,'W09-W12'!N18,'W09-W12'!AC18) -> 1.077764736 | F18: =AVERAGE('3-6-7-14'!F18,'3-6-7-14'!N18,'3-6-7-14'!U18,'3-6-7-14'!AC18) -> 1.144243508 | G18: =AVERAGE('W01-W04'!D18,'W01-W04'!S18,'W05-W08'!D18,'W05-W08'!S18,'W09-W12'!D18,'W09-W12'!S18) -> 23.21666667 | H18: =AVERAGE('W01-W04'!L18,'W01-W04'!AA18,'W05-W08'!L18,'W05-W08'!AA18,'W09-W12'!L18,'W09-W12'!AA18) -> 23.58333333 | I18: =AVERAGE('3-6-7-14'!D18,'3-6-7-14'!L18,'3-6-7-14'!S18,'3-6-7-14'!AA18) -> 23.625
B19: 2016-12-24 | C19: 53
B20: 2016-12-25 | C20: 54
B21: 2016-12-26 | C21: 55
B22: 2016-12-27 | C22: 56
B23: 2016-12-28 | C23: 57
B24: 2016-12-29 | C24: 58
B25: 2016-12-30 | C25: 59
B26: 2016-12-31 | C26: 60
B27: 2017-01-01 | C27: 61
B28: 2017-01-02 | C28: 62 | D28: =AVERAGE('W01-W04'!F28,'W01-W04'!U28,'W05-W08'!F28,'W05-W08'!U28,'W09-W12'!F28,'W09-W12'!U28) -> 1 | E28: =AVERAGE('W01-W04'!N28,'W01-W04'!AC28,'W05-W08'!N28,'W05-W08'!AC28,'W09-W12'!N28,'W09-W12'!AC28) -> 1 | F28: =AVERAGE('3-6-7-14'!F28,'3-6-7-14'!N28,'3-6-7-14'!U28,'3-6-7-14'!AC28) -> 1 | G28: =AVERAGE('W01-W04'!D28,'W01-W04'!S28,'W05-W08'!D28,'W05-W08'!S28,'W09-W12'!D28,'W09-W12'!S28) -> 24.9 | H28: =AVERAGE('W01-W04'!L28,'W01-W04'!AA28,'W05-W08'!L28,'W05-W08'!AA28,'W09-W12'!L28,'W09-W12'!AA28) -> 25.48333333 | I28: =AVERAGE('3-6-7-14'!D28,'3-6-7-14'!L28,'3-6-7-14'!S28,'3-6-7-14'!AA28) -> 24.1 | L28: =AVERAGE('W01-W04'!K28,'W01-W04'!Z28,'W05-W08'!K28,'W05-W08'!Z28,'W09-W12'!K28,'W09-W12'!Z28) -> 2 | M28: =AVERAGE('W01-W04'!R28,'W01-W04'!AG28,'W05-W08'!R28,'W05-W08'!AG28,'W09-W12'!R28,'W09-W12'!AG28) -> 1.57
B29: 2017-01-03 | C29: 63 | D29: =AVERAGE('W01-W04'!F29,'W01-W04'!U29,'W05-W08'!F29,'W05-W08'!U29,'W09-W12'!F29,'W09-W12'!U29) -> 0.8719000362 | E29: =AVERAGE('W01-W04'!N29,'W01-W04'!AC29,'W05-W08'!N29,'W05-W08'!AC29,'W09-W12'!N29,'W09-W12'!AC29) -> 0.9015685746 | F29: =AVERAGE('3-6-7-14'!F29,'3-6-7-14'!N29,'3-6-7-14'!U29,'3-6-7-14'!AC29) -> 1.042716582 | G29: =AVERAGE('W01-W04'!D29,'W01-W04'!S29,'W05-W08'!D29,'W05-W08'!S29,'W09-W12'!D29,'W09-W12'!S29) -> 21.7 | H29: =AVERAGE('W01-W04'!L29,'W01-W04'!AA29,'W05-W08'!L29,'W05-W08'!AA29,'W09-W12'!L29,'W09-W12'!AA29) -> 22.96666667 | I29: =AVERAGE('3-6-7-14'!D29,'3-6-7-14'!L29,'3-6-7-14'!S29,'3-6-7-14'!AA29) -> 25.125 | L29: =AVERAGE('W01-W04'!K29,'W01-W04'!Z29,'W05-W08'!K29,'W05-W08'!Z29,'W09-W12'!K29,'W09-W12'!Z29) -> 2.8 | M29: =AVERAGE('W01-W04'!R29,'W01-W04'!AG29,'W05-W08'!R29,'W05-W08'!AG29,'W09-W12'!R29,'W09-W12'!AG29) -> 1.675
B30: 2017-01-04 | C30: 64 | D30: =AVERAGE('W01-W04'!F30,'W01-W04'!U30,'W05-W08'!F30,'W05-W08'!U30,'W09-W12'!F30,'W09-W12'!U30) -> 0.8641921562 | E30: =AVERAGE('W01-W04'!N30,'W01-W04'!AC30,'W05-W08'!N30,'W05-W08'!AC30,'W09-W12'!N30,'W09-W12'!AC30) -> 0.8800644266 | F30: =AVERAGE('3-6-7-14'!F30,'3-6-7-14'!N30,'3-6-7-14'!U30,'3-6-7-14'!AC30) -> 1.033120745 | G30: =AVERAGE('W01-W04'!D30,'W01-W04'!S30,'W05-W08'!D30,'W05-W08'!S30,'W09-W12'!D30,'W09-W12'!S30) -> 21.51666667 | H30: =AVERAGE('W01-W04'!L30,'W01-W04'!AA30,'W05-W08'!L30,'W05-W08'!AA30,'W09-W12'!L30,'W09-W12'!AA30) -> 22.41666667 | I30: =AVERAGE('3-6-7-14'!D30,'3-6-7-14'!L30,'3-6-7-14'!S30,'3-6-7-14'!AA30) -> 24.9 | L30: =AVERAGE('W01-W04'!K30,'W01-W04'!Z30,'W05-W08'!K30,'W05-W08'!Z30,'W09-W12'!K30,'W09-W12'!Z30) -> 2.833333333 | M30: =AVERAGE('W01-W04'!R30,'W01-W04'!AG30,'W05-W08'!R30,'W05-W08'!AG30,'W09-W12'!R30,'W09-W12'!AG30) -> 1.616666667
B31: 2017-01-05 | C31: 65 | D31: =AVERAGE('W01-W04'!F31,'W01-W04'!U31,'W05-W08'!F31,'W05-W08'!U31,'W09-W12'!F31,'W09-W12'!U31) -> 0.835672125 | E31: =AVERAGE('W01-W04'!N31,'W01-W04'!AC31,'W05-W08'!N31,'W05-W08'!AC31,'W09-W12'!N31,'W09-W12'!AC31) -> 0.8604446813 | F31: =AVERAGE('3-6-7-14'!F31,'3-6-7-14'!N31,'3-6-7-14'!U31,'3-6-7-14'!AC31) -> 1.032070325 | G31: =AVERAGE('W01-W04'!D31,'W01-W04'!S31,'W05-W08'!D31,'W05-W08'!S31,'W09-W12'!D31,'W09-W12'!S31) -> 20.8 | H31: =AVERAGE('W01-W04'!L31,'W01-W04'!AA31,'W05-W08'!L31,'W05-W08'!AA31,'W09-W12'!L31,'W09-W12'!AA31) -> 21.91666667 | I31: =AVERAGE('3-6-7-14'!D31,'3-6-7-14'!L31,'3-6-7-14'!S31,'3-6-7-14'!AA31) -> 24.875 | J31: =AVERAGE('W01-W04'!H31,'W01-W04'!W31,'W05-W08'!H31,'W05-W08'!W31,'W09-W12'!H31,'W09-W12'!W31) -> 0.2666666667 | K31: =AVERAGE('W01-W04'!P31,'W01-W04'!AE31,'W05-W08'!P31,'W05-W08'!AE31,'W09-W12'!P31,'W09-W12'!AE31) -> 0.4333333333 | L31: =AVERAGE('W01-W04'!K31,'W01-W04'!Z31,'W05-W08'!K31,'W05-W08'!Z31,'W09-W12'!K31,'W09-W12'!Z31) -> 3.121146667 | M31: =AVERAGE('W01-W04'!R31,'W01-W04'!AG31,'W05-W08'!R31,'W05-W08'!AG31,'W09-W12'!R31,'W09-W12'!AG31) -> 1.763333333
B32: 2017-01-06 | C32: 66 | D32: =AVERAGE('W01-W04'!F32,'W01-W04'!U32,'W05-W08'!F32,'W05-W08'!U32,'W09-W12'!F32,'W09-W12'!U32) -> 0.8421858191 | E32: =AVERAGE('W01-W04'!N32,'W01-W04'!AC32,'W05-W08'!N32,'W05-W08'!AC32,'W09-W12'!N32,'W09-W12'!AC32) -> 0.8530073329 | F32: =AVERAGE('3-6-7-14'!F32,'3-6-7-14'!N32,'3-6-7-14'!U32,'3-6-7-14'!AC32) -> 1.041528797 | G32: =AVERAGE('W01-W04'!D32,'W01-W04'!S32,'W05-W08'!D32,'W05-W08'!S32,'W09-W12'!D32,'W09-W12'!S32) -> 20.96666667 | H32: =AVERAGE('W01-W04'!L32,'W01-W04'!AA32,'W05-W08'!L32,'W05-W08'!AA32,'W09-W12'!L32,'W09-W12'!AA32) -> 21.73333333 | I32: =AVERAGE('3-6-7-14'!D32,'3-6-7-14'!L32,'3-6-7-14'!S32,'3-6-7-14'!AA32) -> 25.1 | J32: =AVERAGE('W01-W04'!H32,'W01-W04'!W32,'W05-W08'!H32,'W05-W08'!W32,'W09-W12'!H32,'W09-W12'!W32) -> 0.575 | K32: =AVERAGE('W01-W04'!P32,'W01-W04'!AE32,'W05-W08'!P32,'W05-W08'!AE32,'W09-W12'!P32,'W09-W12'!AE32) -> 0.5783333333 | L32: =AVERAGE('W01-W04'!K32,'W01-W04'!Z32,'W05-W08'!K32,'W05-W08'!Z32,'W09-W12'!K32,'W09-W12'!Z32) -> 3.200805833 | M32: =AVERAGE('W01-W04'!R32,'W01-W04'!AG32,'W05-W08'!R32,'W05-W08'!AG32,'W09-W12'!R32,'W09-W12'!AG32) -> 1.896666667
B33: 2017-01-07 | C33: 67 | D33: =AVERAGE('W01-W04'!F33,'W01-W04'!U33,'W05-W08'!F33,'W05-W08'!U33,'W09-W12'!F33,'W09-W12'!U33) -> 0.8333108894 | E33: =AVERAGE('W01-W04'!N33,'W01-W04'!AC33,'W05-W08'!N33,'W05-W08'!AC33,'W09-W12'!N33,'W09-W12'!AC33) -> 0.8576447483 | F33: =AVERAGE('3-6-7-14'!F33,'3-6-7-14'!N33,'3-6-7-14'!U33,'3-6-7-14'!AC33) -> 1.047754073 | G33: =AVERAGE('W01-W04'!D33,'W01-W04'!S33,'W05-W08'!D33,'W05-W08'!S33,'W09-W12'!D33,'W09-W12'!S33) -> 20.75 | H33: =AVERAGE('W01-W04'!L33,'W01-W04'!AA33,'W05-W08'!L33,'W05-W08'!AA33,'W09-W12'!L33,'W09-W12'!AA33) -> 21.85 | I33: =AVERAGE('3-6-7-14'!D33,'3-6-7-14'!L33,'3-6-7-14'!S33,'3-6-7-14'!AA33) -> 25.25 | J33: =AVERAGE('W01-W04'!H33,'W01-W04'!W33,'W05-W08'!H33,'W05-W08'!W33,'W09-W12'!H33,'W09-W12'!W33) -> 0.6333333333 | K33: =AVERAGE('W01-W04'!P33,'W01-W04'!AE33,'W05-W08'!P33,'W05-W08'!AE33,'W09-W12'!P33,'W09-W12'!AE33) -> 0.72 | L33: =AVERAGE('W01-W04'!K33,'W01-W04'!Z33,'W05-W08'!K33,'W05-W08'!Z33,'W09-W12'!K33,'W09-W12'!Z33) -> 3.496056667 | M33: =AVERAGE('W01-W04'!R33,'W01-W04'!AG33,'W05-W08'!R33,'W05-W08'!AG33,'W09-W12'!R33,'W09-W12'!AG33) -> 1.808333333
B34: 2017-01-08 | C34: 68 | D34: =AVERAGE('W01-W04'!F34,'W01-W04'!U34,'W05-W08'!F34,'W05-W08'!U34,'W09-W12'!F34,'W09-W12'!U34) -> 0.8668526205 | E34: =AVERAGE('W01-W04'!N34,'W01-W04'!AC34,'W05-W08'!N34,'W05-W08'!AC34,'W09-W12'!N34,'W09-W12'!AC34) -> 0.8601766563 | F34: =AVERAGE('3-6-7-14'!F34,'3-6-7-14'!N34,'3-6-7-14'!U34,'3-6-7-14'!AC34) -> 1.041718052 | G34: =AVERAGE('W01-W04'!D34,'W01-W04'!S34,'W05-W08'!D34,'W05-W08'!S34,'W09-W12'!D34,'W09-W12'!S34) -> 21.58333333 | H34: =AVERAGE('W01-W04'!L34,'W01-W04'!AA34,'W05-W08'!L34,'W05-W08'!AA34,'W09-W12'!L34,'W09-W12'!AA34) -> 21.91666667 | I34: =AVERAGE('3-6-7-14'!D34,'3-6-7-14'!L34,'3-6-7-14'!S34,'3-6-7-14'!AA34) -> 25.1 | L34: =AVERAGE('W01-W04'!K34,'W01-W04'!Z34,'W05-W08'!K34,'W05-W08'!Z34,'W09-W12'!K34,'W09-W12'!Z34) -> 3.033333333 | M34: =AVERAGE('W01-W04'!R34,'W01-W04'!AG34,'W05-W08'!R34,'W05-W08'!AG34,'W09-W12'!R34,'W09-W12'!AG34) -> 1.696666667
B35: 2017-01-09 | C35: 69 | D35: =AVERAGE('W01-W04'!F35,'W01-W04'!U35,'W05-W08'!F35,'W05-W08'!U35,'W09-W12'!F35,'W09-W12'!U35) -> 0.840748527 | E35: =AVERAGE('W01-W04'!N35,'W01-W04'!AC35,'W05-W08'!N35,'W05-W08'!AC35,'W09-W12'!N35,'W09-W12'!AC35) -> 0.8635590881 | F35: =AVERAGE('3-6-7-14'!F35,'3-6-7-14'!N35,'3-6-7-14'!U35,'3-6-7-14'!AC35) -> 1.053844826 | G35: =AVERAGE('W01-W04'!D35,'W01-W04'!S35,'W05-W08'!D35,'W05-W08'!S35,'W09-W12'!D35,'W09-W12'!S35) -> 20.93333333 | H35: =AVERAGE('W01-W04'!L35,'W01-W04'!AA35,'W05-W08'!L35,'W05-W08'!AA35,'W09-W12'!L35,'W09-W12'!AA35) -> 22 | I35: =AVERAGE('3-6-7-14'!D35,'3-6-7-14'!L35,'3-6-7-14'!S35,'3-6-7-14'!AA35) -> 25.4 | J35: =AVERAGE('W01-W04'!H35,'W01-W04'!W35,'W05-W08'!H35,'W05-W08'!W35,'W09-W12'!H35,'W09-W12'!W35) -> 0.5083333333 | K35: =AVERAGE('W01-W04'!P35,'W01-W04'!AE35,'W05-W08'!P35,'W05-W08'!AE35,'W09-W12'!P35,'W09-W12'!AE35) -> 0.8166666667 | L35: =AVERAGE('W01-W04'!K35,'W01-W04'!Z35,'W05-W08'!K35,'W05-W08'!Z35,'W09-W12'!K35,'W09-W12'!Z35) -> 3.287185833 | M35: =AVERAGE('W01-W04'!R35,'W01-W04'!AG35,'W05-W08'!R35,'W05-W08'!AG35,'W09-W12'!R35,'W09-W12'!AG35) -> 1.736666667
B36: 2017-01-10 | C36: 70 | D36: =AVERAGE('W01-W04'!F36,'W01-W04'!U36,'W05-W08'!F36,'W05-W08'!U36,'W09-W12'!F36,'W09-W12'!U36) -> 0.8494997796 | E36: =AVERAGE('W01-W04'!N36,'W01-W04'!AC36,'W05-W08'!N36,'W05-W08'!AC36,'W09-W12'!N36,'W09-W12'!AC36) -> 0.8667125776 | F36: =AVERAGE('3-6-7-14'!F36,'3-6-7-14'!N36,'3-6-7-14'!U36,'3-6-7-14'!AC36) -> 1.056028298 | G36: =AVERAGE('W01-W04'!D36,'W01-W04'!S36,'W05-W08'!D36,'W05-W08'!S36,'W09-W12'!D36,'W09-W12'!S36) -> 21.15 | H36: =AVERAGE('W01-W04'!L36,'W01-W04'!AA36,'W05-W08'!L36,'W05-W08'!AA36,'W09-W12'!L36,'W09-W12'!AA36) -> 22.08333333 | I36: =AVERAGE('3-6-7-14'!D36,'3-6-7-14'!L36,'3-6-7-14'!S36,'3-6-7-14'!AA36) -> 25.45 | J36: =AVERAGE('W01-W04'!H36,'W01-W04'!W36,'W05-W08'!H36,'W05-W08'!W36,'W09-W12'!H36,'W09-W12'!W36) -> 0.5083333333 | K36: =AVERAGE('W01-W04'!P36,'W01-W04'!AE36,'W05-W08'!P36,'W05-W08'!AE36,'W09-W12'!P36,'W09-W12'!AE36) -> 0.625 | L36: =AVERAGE('W01-W04'!K36,'W01-W04'!Z36,'W05-W08'!K36,'W05-W08'!Z36,'W09-W12'!K36,'W09-W12'!Z36) -> 3.1538525 | M36: =AVERAGE('W01-W04'!R36,'W01-W04'!AG36,'W05-W08'!R36,'W05-W08'!AG36,'W09-W12'!R36,'W09-W12'!AG36) -> 1.675
B37: 2017-01-11 | C37: 71 | D37: =AVERAGE('W01-W04'!F37,'W01-W04'!U37,'W05-W08'!F37,'W05-W08'!U37,'W09-W12'!F37,'W09-W12'!U37) -> 0.846784842 | E37: =AVERAGE('W01-W04'!N37,'W01-W04'!AC37,'W05-W08'!N37,'W05-W08'!AC37,'W09-W12'!N37,'W09-W12'!AC37) -> 0.8667511227 | F37: =AVERAGE('3-6-7-14'!F37,'3-6-7-14'!N37,'3-6-7-14'!U37,'3-6-7-14'!AC37) -> 1.056024184 | G37: =AVERAGE('W01-W04'!D37,'W01-W04'!S37,'W05-W08'!D37,'W05-W08'!S37,'W09-W12'!D37,'W09-W12'!S37) -> 21.08333333 | H37: =AVERAGE('W01-W04'!L37,'W01-W04'!AA37,'W05-W08'!L37,'W05-W08'!AA37,'W09-W12'!L37,'W09-W12'!AA37) -> 22.08333333 | I37: =AVERAGE('3-6-7-14'!D37,'3-6-7-14'!L37,'3-6-7-14'!S37,'3-6-7-14'!AA37) -> 25.45 | J37: =AVERAGE('W01-W04'!H37,'W01-W04'!W37,'W05-W08'!H37,'W05-W08'!W37,'W09-W12'!H37,'W09-W12'!W37) -> 0.3833333333 | K37: =AVERAGE('W01-W04'!P37,'W01-W04'!AE37,'W05-W08'!P37,'W05-W08'!AE37,'W09-W12'!P37,'W09-W12'!AE37) -> 0.8133333333 | L37: =AVERAGE('W01-W04'!K37,'W01-W04'!Z37,'W05-W08'!K37,'W05-W08'!Z37,'W09-W12'!K37,'W09-W12'!Z37) -> 3.511648333 | M37: =AVERAGE('W01-W04'!R37,'W01-W04'!AG37,'W05-W08'!R37,'W05-W08'!AG37,'W09-W12'!R37,'W09-W12'!AG37) -> 1.778333333
B38: 2017-01-12 | C38: 72 | D38: =AVERAGE('W01-W04'!F38,'W01-W04'!U38,'W05-W08'!F38,'W05-W08'!U38,'W09-W12'!F38,'W09-W12'!U38) -> 0.8507980111 | E38: =AVERAGE('W01-W04'!N38,'W01-W04'!AC38,'W05-W08'!N38,'W05-W08'!AC38,'W09-W12'!N38,'W09-W12'!AC38) -> 0.864655539 | F38: =AVERAGE('3-6-7-14'!F38,'3-6-7-14'!N38,'3-6-7-14'!U38,'3-6-7-14'!AC38) -> 1.056883232 | G38: =AVERAGE('W01-W04'!D38,'W01-W04'!S38,'W05-W08'!D38,'W05-W08'!S38,'W09-W12'!D38,'W09-W12'!S38) -> 21.18333333 | H38: =AVERAGE('W01-W04'!L38,'W01-W04'!AA38,'W05-W08'!L38,'W05-W08'!AA38,'W09-W12'!L38,'W09-W12'!AA38) -> 22.03333333 | I38: =AVERAGE('3-6-7-14'!D38,'3-6-7-14'!L38,'3-6-7-14'!S38,'3-6-7-14'!AA38) -> 25.475 | J38: =AVERAGE('W01-W04'!H38,'W01-W04'!W38,'W05-W08'!H38,'W05-W08'!W38,'W09-W12'!H38,'W09-W12'!W38) -> 0.7266666667 | K38: =AVERAGE('W01-W04'!P38,'W01-W04'!AE38,'W05-W08'!P38,'W05-W08'!AE38,'W09-W12'!P38,'W09-W12'!AE38) -> 0.8166666667 | L38: =AVERAGE('W01-W04'!K38,'W01-W04'!Z38,'W05-W08'!K38,'W05-W08'!Z38,'W09-W12'!K38,'W09-W12'!Z38) -> 3.161791333 | M38: =AVERAGE('W01-W04'!R38,'W01-W04'!AG38,'W05-W08'!R38,'W05-W08'!AG38,'W09-W12'!R38,'W09-W12'!AG38) -> 1.683333333
B39: 2017-01-13 | C39: 73 | D39: =AVERAGE('W01-W04'!F39,'W01-W04'!U39,'W05-W08'!F39,'W05-W08'!U39,'W09-W12'!F39,'W09-W12'!U39) -> 0.856181428 | E39: =AVERAGE('W01-W04'!N39,'W01-W04'!AC39,'W05-W08'!N39,'W05-W08'!AC39,'W09-W12'!N39,'W09-W12'!AC39) -> 0.866580313 | F39: =AVERAGE('3-6-7-14'!F39,'3-6-7-14'!N39,'3-6-7-14'!U39,'3-6-7-14'!AC39) -> 1.068348442 | G39: =AVERAGE('W01-W04'!D39,'W01-W04'!S39,'W05-W08'!D39,'W05-W08'!S39,'W09-W12'!D39,'W09-W12'!S39) -> 21.31666667 | H39: =AVERAGE('W01-W04'!L39,'W01-W04'!AA39,'W05-W08'!L39,'W05-W08'!AA39,'W09-W12'!L39,'W09-W12'!AA39) -> 22.08333333 | I39: =AVERAGE('3-6-7-14'!D39,'3-6-7-14'!L39,'3-6-7-14'!S39,'3-6-7-14'!AA39) -> 25.75 | J39: =AVERAGE('W01-W04'!H39,'W01-W04'!W39,'W05-W08'!H39,'W05-W08'!W39,'W09-W12'!H39,'W09-W12'!W39) -> 1.291666667 | K39: =AVERAGE('W01-W04'!P39,'W01-W04'!AE39,'W05-W08'!P39,'W05-W08'!AE39,'W09-W12'!P39,'W09-W12'!AE39) -> 0.875 | L39: =AVERAGE('W01-W04'!K39,'W01-W04'!Z39,'W05-W08'!K39,'W05-W08'!Z39,'W09-W12'!K39,'W09-W12'!Z39) -> 2.655554167 | M39: =AVERAGE('W01-W04'!R39,'W01-W04'!AG39,'W05-W08'!R39,'W05-W08'!AG39,'W09-W12'!R39,'W09-W12'!AG39) -> 1.65
B40: 2017-01-14 | C40: 74 | D40: =AVERAGE('W01-W04'!F40,'W01-W04'!U40,'W05-W08'!F40,'W05-W08'!U40,'W09-W12'!F40,'W09-W12'!U40) -> 0.844213768 | E40: =AVERAGE('W01-W04'!N40,'W01-W04'!AC40,'W05-W08'!N40,'W05-W08'!AC40,'W09-W12'!N40,'W09-W12'!AC40) -> 0.8665152221 | F40: =AVERAGE('3-6-7-14'!F40,'3-6-7-14'!N40,'3-6-7-14'!U40,'3-6-7-14'!AC40) -> 1.059910892 | G40: =AVERAGE('W01-W04'!D40,'W01-W04'!S40,'W05-W08'!D40,'W05-W08'!S40,'W09-W12'!D40,'W09-W12'!S40) -> 21.01666667 | H40: =AVERAGE('W01-W04'!L40,'W01-W04'!AA40,'W05-W08'!L40,'W05-W08'!AA40,'W09-W12'!L40,'W09-W12'!AA40) -> 22.08333333 | I40: =AVERAGE('3-6-7-14'!D40,'3-6-7-14'!L40,'3-6-7-14'!S40,'3-6-7-14'!AA40) -> 25.55 | J40: =AVERAGE('W01-W04'!H40,'W01-W04'!W40,'W05-W08'!H40,'W05-W08'!W40,'W09-W12'!H40,'W09-W12'!W40) -> 0.9916666667 | K40: =AVERAGE('W01-W04'!P40,'W01-W04'!AE40,'W05-W08'!P40,'W05-W08'!AE40,'W09-W12'!P40,'W09-W12'!AE40) -> 0.7333333333 | L40: =AVERAGE('W01-W04'!K40,'W01-W04'!Z40,'W05-W08'!K40,'W05-W08'!Z40,'W09-W12'!K40,'W09-W12'!Z40) -> 3.519264167 | M40: =AVERAGE('W01-W04'!R40,'W01-W04'!AG40,'W05-W08'!R40,'W05-W08'!AG40,'W09-W12'!R40,'W09-W12'!AG40) -> 1.658333333
B41: 2017-01-15 | C41: 75 | D41: =AVERAGE('W01-W04'!F41,'W01-W04'!U41,'W05-W08'!F41,'W05-W08'!U41,'W09-W12'!F41,'W09-W12'!U41) -> 0.8541336533 | E41: =AVERAGE('W01-W04'!N41,'W01-W04'!AC41,'W05-W08'!N41,'W05-W08'!AC41,'W09-W12'!N41,'W09-W12'!AC41) -> 0.8651840747 | F41: =AVERAGE('3-6-7-14'!F41,'3-6-7-14'!N41,'3-6-7-14'!U41,'3-6-7-14'!AC41) -> 1.058982103 | G41: =AVERAGE('W01-W04'!D41,'W01-W04'!S41,'W05-W08'!D41,'W05-W08'!S41,'W09-W12'!D41,'W09-W12'!S41) -> 21.26666667 | H41: =AVERAGE('W01-W04'!L41,'W01-W04'!AA41,'W05-W08'!L41,'W05-W08'!AA41,'W09-W12'!L41,'W09-W12'!AA41) -> 22.05 | I41: =AVERAGE('3-6-7-14'!D41,'3-6-7-14'!L41,'3-6-7-14'!S41,'3-6-7-14'!AA41) -> 25.525 | J41: =AVERAGE('W01-W04'!H41,'W01-W04'!W41,'W05-W08'!H41,'W05-W08'!W41,'W09-W12'!H41,'W09-W12'!W41) -> 1.725 | K41: =AVERAGE('W01-W04'!P41,'W01-W04'!AE41,'W05-W08'!P41,'W05-W08'!AE41,'W09-W12'!P41,'W09-W12'!AE41) -> 0.8416666667 | L41: =AVERAGE('W01-W04'!K41,'W01-W04'!Z41,'W05-W08'!K41,'W05-W08'!Z41,'W09-W12'!K41,'W09-W12'!Z41) -> 3.135750833 | M41: =AVERAGE('W01-W04'!R41,'W01-W04'!AG41,'W05-W08'!R41,'W05-W08'!AG41,'W09-W12'!R41,'W09-W12'!AG41) -> 1.65
B42: 2017-01-16 | C42: 76 | D42: =AVERAGE('W01-W04'!F42,'W01-W04'!U42,'W05-W08'!F42,'W05-W08'!U42,'W09-W12'!F42,'W09-W12'!U42) -> 0.8472515888 | E42: =AVERAGE('W01-W04'!N42,'W01-W04'!AC42,'W05-W08'!N42,'W05-W08'!AC42,'W09-W12'!N42,'W09-W12'!AC42) -> 0.8619140311 | F42: =AVERAGE('3-6-7-14'!F42,'3-6-7-14'!N42,'3-6-7-14'!U42,'3-6-7-14'!AC42) -> 1.072573936 | G42: =AVERAGE('W01-W04'!D42,'W01-W04'!S42,'W05-W08'!D42,'W05-W08'!S42,'W09-W12'!D42,'W09-W12'!S42) -> 21.1 | H42: =AVERAGE('W01-W04'!L42,'W01-W04'!AA42,'W05-W08'!L42,'W05-W08'!AA42,'W09-W12'!L42,'W09-W12'!AA42) -> 21.96666667 | I42: =AVERAGE('3-6-7-14'!D42,'3-6-7-14'!L42,'3-6-7-14'!S42,'3-6-7-14'!AA42) -> 25.85 | J42: =AVERAGE('W01-W04'!H42,'W01-W04'!W42,'W05-W08'!H42,'W05-W08'!W42,'W09-W12'!H42,'W09-W12'!W42) -> 1.708333333 | K42: =AVERAGE('W01-W04'!P42,'W01-W04'!AE42,'W05-W08'!P42,'W05-W08'!AE42,'W09-W12'!P42,'W09-W12'!AE42) -> 0.8166666667 | L42: =AVERAGE('W01-W04'!K42,'W01-W04'!Z42,'W05-W08'!K42,'W05-W08'!Z42,'W09-W12'!K42,'W09-W12'!Z42) -> 3.2490125 | M42: =AVERAGE('W01-W04'!R42,'W01-W04'!AG42,'W05-W08'!R42,'W05-W08'!AG42,'W09-W12'!R42,'W09-W12'!AG42) -> 1.666666667
B43: 2017-01-17 | C43: 77 | D43: =AVERAGE('W01-W04'!F43,'W01-W04'!U43,'W05-W08'!F43,'W05-W08'!U43,'W09-W12'!F43,'W09-W12'!U43) -> 0.8340558577 | E43: =AVERAGE('W01-W04'!N43,'W01-W04'!AC43,'W05-W08'!N43,'W05-W08'!AC43,'W09-W12'!N43,'W09-W12'!AC43) -> 0.8567373367 | G43: =AVERAGE('W01-W04'!D43,'W01-W04'!S43,'W05-W08'!D43,'W05-W08'!S43,'W09-W12'!D43,'W09-W12'!S43) -> 20.76666667 | H43: =AVERAGE('W01-W04'!L43,'W01-W04'!AA43,'W05-W08'!L43,'W05-W08'!AA43,'W09-W12'!L43,'W09-W12'!AA43) -> 21.83333333 | J43: =AVERAGE('W01-W04'!H43,'W01-W04'!W43,'W05-W08'!H43,'W05-W08'!W43,'W09-W12'!H43,'W09-W12'!W43) -> 2.1 | K43: =AVERAGE('W01-W04'!P43,'W01-W04'!AE43,'W05-W08'!P43,'W05-W08'!AE43,'W09-W12'!P43,'W09-W12'!AE43) -> 0.4033333333 | L43: =AVERAGE('W01-W04'!K43,'W01-W04'!Z43,'W05-W08'!K43,'W05-W08'!Z43,'W09-W12'!K43,'W09-W12'!Z43) -> 3.687363333 | M43: =AVERAGE('W01-W04'!R43,'W01-W04'!AG43,'W05-W08'!R43,'W05-W08'!AG43,'W09-W12'!R43,'W09-W12'!AG43) -> 1.675
B44: 2017-01-18 | C44: 78 | D44: =AVERAGE('W01-W04'!F44,'W01-W04'!U44,'W05-W08'!F44,'W05-W08'!U44,'W09-W12'!F44,'W09-W12'!U44) -> 0.8714684518 | E44: =AVERAGE('W01-W04'!N44,'W01-W04'!AC44,'W05-W08'!N44,'W05-W08'!AC44,'W09-W12'!N44,'W09-W12'!AC44) -> 0.8605820089 | G44: =AVERAGE('W01-W04'!D44,'W01-W04'!S44,'W05-W08'!D44,'W05-W08'!S44,'W09-W12'!D44,'W09-W12'!S44) -> 21.7 | H44: =AVERAGE('W01-W04'!L44,'W01-W04'!AA44,'W05-W08'!L44,'W05-W08'!AA44,'W09-W12'!L44,'W09-W12'!AA44) -> 21.93333333 | J44: =AVERAGE('W01-W04'!H44,'W01-W04'!W44,'W05-W08'!H44,'W05-W08'!W44,'W09-W12'!H44,'W09-W12'!W44) -> 2.118333333 | K44: =AVERAGE('W01-W04'!P44,'W01-W04'!AE44,'W05-W08'!P44,'W05-W08'!AE44,'W09-W12'!P44,'W09-W12'!AE44) -> 0.2183333333 | L44: =AVERAGE('W01-W04'!K44,'W01-W04'!Z44,'W05-W08'!K44,'W05-W08'!Z44,'W09-W12'!K44,'W09-W12'!Z44) -> 3.325 | M44: =AVERAGE('W01-W04'!R44,'W01-W04'!AG44,'W05-W08'!R44,'W05-W08'!AG44,'W09-W12'!R44,'W09-W12'!AG44) -> 1.633333333
B45: 2017-01-19 | C45: 79 | D45: =AVERAGE('W01-W04'!F45,'W01-W04'!U45,'W05-W08'!F45,'W05-W08'!U45,'W09-W12'!F45,'W09-W12'!U45) -> 0.8601536482 | E45: =AVERAGE('W01-W04'!N45,'W01-W04'!AC45,'W05-W08'!N45,'W05-W08'!AC45,'W09-W12'!N45,'W09-W12'!AC45) -> 0.8619104439 | G45: =AVERAGE('W01-W04'!D45,'W01-W04'!S45,'W05-W08'!D45,'W05-W08'!S45,'W09-W12'!D45,'W09-W12'!S45) -> 21.41666667 | H45: =AVERAGE('W01-W04'!L45,'W01-W04'!AA45,'W05-W08'!L45,'W05-W08'!AA45,'W09-W12'!L45,'W09-W12'!AA45) -> 21.96666667 | J45: =AVERAGE('W01-W04'!H45,'W01-W04'!W45,'W05-W08'!H45,'W05-W08'!W45,'W09-W12'!H45,'W09-W12'!W45) -> 2.431666667 | K45: =AVERAGE('W01-W04'!P45,'W01-W04'!AE45,'W05-W08'!P45,'W05-W08'!AE45,'W09-W12'!P45,'W09-W12'!AE45) -> 0.3566666667 | L45: =AVERAGE('W01-W04'!K45,'W01-W04'!Z45,'W05-W08'!K45,'W05-W08'!Z45,'W09-W12'!K45,'W09-W12'!Z45) -> 3.366666667 | M45: =AVERAGE('W01-W04'!R45,'W01-W04'!AG45,'W05-W08'!R45,'W05-W08'!AG45,'W09-W12'!R45,'W09-W12'!AG45) -> 1.55
B46: 2017-01-20 | C46: 80 | D46: =AVERAGE('W01-W04'!F46,'W01-W04'!U46,'W05-W08'!F46,'W05-W08'!U46,'W09-W12'!F46,'W09-W12'!U46) -> 0.8660994231 | E46: =AVERAGE('W01-W04'!N46,'W01-W04'!AC46,'W05-W08'!N46,'W05-W08'!AC46,'W09-W12'!N46,'W09-W12'!AC46) -> 0.8463891601 | G46: =AVERAGE('W01-W04'!D46,'W01-W04'!S46,'W05-W08'!D46,'W05-W08'!S46,'W09-W12'!D46,'W09-W12'!S46) -> 21.56666667 | H46: =AVERAGE('W01-W04'!L46,'W01-W04'!AA46,'W05-W08'!L46,'W05-W08'!AA46,'W09-W12'!L46,'W09-W12'!AA46) -> 21.56666667 | J46: =AVERAGE('W01-W04'!H46,'W01-W04'!W46,'W05-W08'!H46,'W05-W08'!W46,'W09-W12'!H46,'W09-W12'!W46) -> 2.121666667 | K46: =AVERAGE('W01-W04'!P46,'W01-W04'!AE46,'W05-W08'!P46,'W05-W08'!AE46,'W09-W12'!P46,'W09-W12'!AE46) -> 0.3133333333 | L46: =AVERAGE('W01-W04'!K46,'W01-W04'!Z46,'W05-W08'!K46,'W05-W08'!Z46,'W09-W12'!K46,'W09-W12'!Z46) -> 3.316666667 | M46: =AVERAGE('W01-W04'!R46,'W01-W04'!AG46,'W05-W08'!R46,'W05-W08'!AG46,'W09-W12'!R46,'W09-W12'!AG46) -> 1.608333333
B47: 2017-01-21 | C47: 81 | D47: =AVERAGE('W01-W04'!F47,'W01-W04'!U47,'W05-W08'!F47,'W05-W08'!U47,'W09-W12'!F47,'W09-W12'!U47) -> 0.8681120612 | E47: =AVERAGE('W01-W04'!N47,'W01-W04'!AC47,'W05-W08'!N47,'W05-W08'!AC47,'W09-W12'!N47,'W09-W12'!AC47) -> 0.8606470999 | G47: =AVERAGE('W01-W04'!D47,'W01-W04'!S47,'W05-W08'!D47,'W05-W08'!S47,'W09-W12'!D47,'W09-W12'!S47) -> 21.61666667 | H47: =AVERAGE('W01-W04'!L47,'W01-W04'!AA47,'W05-W08'!L47,'W05-W08'!AA47,'W09-W12'!L47,'W09-W12'!AA47) -> 21.93333333 | J47: =AVERAGE('W01-W04'!H47,'W01-W04'!W47,'W05-W08'!H47,'W05-W08'!W47,'W09-W12'!H47,'W09-W12'!W47) -> 2.355 | K47: =AVERAGE('W01-W04'!P47,'W01-W04'!AE47,'W05-W08'!P47,'W05-W08'!AE47,'W09-W12'!P47,'W09-W12'!AE47) -> 0.3033333333 | L47: =AVERAGE('W01-W04'!K47,'W01-W04'!Z47,'W05-W08'!K47,'W05-W08'!Z47,'W09-W12'!K47,'W09-W12'!Z47) -> 3.281666667 | M47: =AVERAGE('W01-W04'!R47,'W01-W04'!AG47,'W05-W08'!R47,'W05-W08'!AG47,'W09-W12'!R47,'W09-W12'!AG47) -> 1.566666667
B48: 2017-01-22 | C48: 82 | D48: =AVERAGE('W01-W04'!F48,'W01-W04'!U48,'W05-W08'!F48,'W05-W08'!U48,'W09-W12'!F48,'W09-W12'!U48) -> 0.8735612565 | E48: =AVERAGE('W01-W04'!N48,'W01-W04'!AC48,'W05-W08'!N48,'W05-W08'!AC48,'W09-W12'!N48,'W09-W12'!AC48) -> 0.8607218985 | G48: =AVERAGE('W01-W04'!D48,'W01-W04'!S48,'W05-W08'!D48,'W05-W08'!S48,'W09-W12'!D48,'W09-W12'!S48) -> 21.75 | H48: =AVERAGE('W01-W04'!L48,'W01-W04'!AA48,'W05-W08'!L48,'W05-W08'!AA48,'W09-W12'!L48,'W09-W12'!AA48) -> 21.93333333 | L48: =AVERAGE('W01-W04'!K48,'W01-W04'!Z48,'W05-W08'!K48,'W05-W08'!Z48,'W09-W12'!K48,'W09-W12'!Z48) -> 3.23 | M48: =AVERAGE('W01-W04'!R48,'W01-W04'!AG48,'W05-W08'!R48,'W05-W08'!AG48,'W09-W12'!R48,'W09-W12'!AG48) -> 1.55
B49: 2017-01-23 | C49: 83 | D49: =AVERAGE('W01-W04'!F49,'W01-W04'!U49,'W05-W08'!F49,'W05-W08'!U49,'W09-W12'!F49,'W09-W12'!U49) -> 0.8641373198 | E49: =AVERAGE('W01-W04'!N49,'W01-W04'!AC49,'W05-W08'!N49,'W05-W08'!AC49,'W09-W12'!N49,'W09-W12'!AC49) -> 0.8580897334 | F49: =AVERAGE('3-6-7-14'!F49,'3-6-7-14'!N49,'3-6-7-14'!U49,'3-6-7-14'!AC49) -> 1.096315999 | G49: =AVERAGE('W01-W04'!D49,'W01-W04'!S49,'W05-W08'!D49,'W05-W08'!S49,'W09-W12'!D49,'W09-W12'!S49) -> 21.51666667 | H49: =AVERAGE('W01-W04'!L49,'W01-W04'!AA49,'W05-W08'!L49,'W05-W08'!AA49,'W09-W12'!L49,'W09-W12'!AA49) -> 21.86666667 | I49: =AVERAGE('3-6-7-14'!D49,'3-6-7-14'!L49,'3-6-7-14'!S49,'3-6-7-14'!AA49) -> 26.425 | J49: =AVERAGE('W01-W04'!H49,'W01-W04'!W49,'W05-W08'!H49,'W05-W08'!W49,'W09-W12'!H49,'W09-W12'!W49) -> 2.428333333 | K49: =AVERAGE('W01-W04'!P49,'W01-W04'!AE49,'W05-W08'!P49,'W05-W08'!AE49,'W09-W12'!P49,'W09-W12'!AE49) -> 0.5766666667 | L49: =AVERAGE('W01-W04'!K49,'W01-W04'!Z49,'W05-W08'!K49,'W05-W08'!Z49,'W09-W12'!K49,'W09-W12'!Z49) -> 3.291666667 | M49: =AVERAGE('W01-W04'!R49,'W01-W04'!AG49,'W05-W08'!R49,'W05-W08'!AG49,'W09-W12'!R49,'W09-W12'!AG49) -> 1.371666667
B50: 2017-01-24 | C50: 84 | D50: =AVERAGE('W01-W04'!F50,'W01-W04'!U50,'W05-W08'!F50,'W05-W08'!U50,'W09-W12'!F50,'W09-W12'!U50) -> 0.8653766884 | E50: =AVERAGE('W01-W04'!N50,'W01-W04'!AC50,'W05-W08'!N50,'W05-W08'!AC50,'W09-W12'!N50,'W09-W12'!AC50) -> 0.8471580919 | G50: =AVERAGE('W01-W04'!D50,'W01-W04'!S50,'W05-W08'!D50,'W05-W08'!S50,'W09-W12'!D50,'W09-W12'!S50) -> 21.55 | H50: =AVERAGE('W01-W04'!L50,'W01-W04'!AA50,'W05-W08'!L50,'W05-W08'!AA50,'W09-W12'!L50,'W09-W12'!AA50) -> 21.58333333 | J50: =AVERAGE('W01-W04'!H50,'W01-W04'!W50,'W05-W08'!H50,'W05-W08'!W50,'W09-W12'!H50,'W09-W12'!W50) -> 2.345 | K50: =AVERAGE('W01-W04'!P50,'W01-W04'!AE50,'W05-W08'!P50,'W05-W08'!AE50,'W09-W12'!P50,'W09-W12'!AE50) -> 0.66 | L50: =AVERAGE('W01-W04'!K50,'W01-W04'!Z50,'W05-W08'!K50,'W05-W08'!Z50,'W09-W12'!K50,'W09-W12'!Z50) -> 3.233333333 | M50: =AVERAGE('W01-W04'!R50,'W01-W04'!AG50,'W05-W08'!R50,'W05-W08'!AG50,'W09-W12'!R50,'W09-W12'!AG50) -> 1.625
B51: 2017-01-25 | C51: 85 | D51: =AVERAGE('W01-W04'!F51,'W01-W04'!U51,'W05-W08'!F51,'W05-W08'!U51,'W09-W12'!F51,'W09-W12'!U51) -> 0.8755264585 | E51: =AVERAGE('W01-W04'!N51,'W01-W04'!AC51,'W05-W08'!N51,'W05-W08'!AC51,'W09-W12'!N51,'W09-W12'!AC51) -> 0.85227702 | G51: =AVERAGE('W01-W04'!D51,'W01-W04'!S51,'W05-W08'!D51,'W05-W08'!S51,'W09-W12'!D51,'W09-W12'!S51) -> 21.8 | H51: =AVERAGE('W01-W04'!L51,'W01-W04'!AA51,'W05-W08'!L51,'W05-W08'!AA51,'W09-W12'!L51,'W09-W12'!AA51) -> 21.71666667 | J51: =AVERAGE('W01-W04'!H51,'W01-W04'!W51,'W05-W08'!H51,'W05-W08'!W51,'W09-W12'!H51,'W09-W12'!W51) -> 1.95 | K51: =AVERAGE('W01-W04'!P51,'W01-W04'!AE51,'W05-W08'!P51,'W05-W08'!AE51,'W09-W12'!P51,'W09-W12'!AE51) -> 0.4983333333 | L51: =AVERAGE('W01-W04'!K51,'W01-W04'!Z51,'W05-W08'!K51,'W05-W08'!Z51,'W09-W12'!K51,'W09-W12'!Z51) -> 3.183333333 | M51: =AVERAGE('W01-W04'!R51,'W01-W04'!AG51,'W05-W08'!R51,'W05-W08'!AG51,'W09-W12'!R51,'W09-W12'!AG51) -> 1.625
B52: 2017-01-26 | C52: 86 | D52: =AVERAGE('W01-W04'!F52,'W01-W04'!U52,'W05-W08'!F52,'W05-W08'!U52,'W09-W12'!F52,'W09-W12'!U52) -> 0.8700658598 | E52: =AVERAGE('W01-W04'!N52,'W01-W04'!AC52,'W05-W08'!N52,'W05-W08'!AC52,'W09-W12'!N52,'W09-W12'!AC52) -> 0.8561077386 | G52: =AVERAGE('W01-W04'!D52,'W01-W04'!S52,'W05-W08'!D52,'W05-W08'!S52,'W09-W12'!D52,'W09-W12'!S52) -> 21.66666667 | H52: =AVERAGE('W01-W04'!L52,'W01-W04'!AA52,'W05-W08'!L52,'W05-W08'!AA52,'W09-W12'!L52,'W09-W12'!AA52) -> 21.81666667 | J52: =AVERAGE('W01-W04'!H52,'W01-W04'!W52,'W05-W08'!H52,'W05-W08'!W52,'W09-W12'!H52,'W09-W12'!W52) -> 2.173333333 | K52: =AVERAGE('W01-W04'!P52,'W01-W04'!AE52,'W05-W08'!P52,'W05-W08'!AE52,'W09-W12'!P52,'W09-W12'!AE52) -> 0.38 | L52: =AVERAGE('W01-W04'!K52,'W01-W04'!Z52,'W05-W08'!K52,'W05-W08'!Z52,'W09-W12'!K52,'W09-W12'!Z52) -> 3.158333333 | M52: =AVERAGE('W01-W04'!R52,'W01-W04'!AG52,'W05-W08'!R52,'W05-W08'!AG52,'W09-W12'!R52,'W09-W12'!AG52) -> 1.6
B53: 2017-01-27 | C53: 87 | D53: =AVERAGE('W01-W04'!F53,'W01-W04'!U53,'W05-W08'!F53,'W05-W08'!U53,'W09-W12'!F53,'W09-W12'!U53) -> 0.8627843037 | E53: =AVERAGE('W01-W04'!N53,'W01-W04'!AC53,'W05-W08'!N53,'W05-W08'!AC53,'W09-W12'!N53,'W09-W12'!AC53) -> 0.8586839784 | G53: =AVERAGE('W01-W04'!D53,'W01-W04'!S53,'W05-W08'!D53,'W05-W08'!S53,'W09-W12'!D53,'W09-W12'!S53) -> 21.48333333 | H53: =AVERAGE('W01-W04'!L53,'W01-W04'!AA53,'W05-W08'!L53,'W05-W08'!AA53,'W09-W12'!L53,'W09-W12'!AA53) -> 21.88333333 | J53: =AVERAGE('W01-W04'!H53,'W01-W04'!W53,'W05-W08'!H53,'W05-W08'!W53,'W09-W12'!H53,'W09-W12'!W53) -> 1.39825 | K53: =AVERAGE('W01-W04'!P53,'W01-W04'!AE53,'W05-W08'!P53,'W05-W08'!AE53,'W09-W12'!P53,'W09-W12'!AE53) -> 0.6612 | L53: =AVERAGE('W01-W04'!K53,'W01-W04'!Z53,'W05-W08'!K53,'W05-W08'!Z53,'W09-W12'!K53,'W09-W12'!Z53) -> 3.116666667 | M53: =AVERAGE('W01-W04'!R53,'W01-W04'!AG53,'W05-W08'!R53,'W05-W08'!AG53,'W09-W12'!R53,'W09-W12'!AG53) -> 1.55
B54: 2017-01-28 | C54: 88 | D54: =AVERAGE('W01-W04'!F54,'W01-W04'!U54,'W05-W08'!F54,'W05-W08'!U54,'W09-W12'!F54,'W09-W12'!U54) -> 0.8696062474 | E54: =AVERAGE('W01-W04'!N54,'W01-W04'!AC54,'W05-W08'!N54,'W05-W08'!AC54,'W09-W12'!N54,'W09-W12'!AC54) -> 0.8475665301 | G54: =AVERAGE('W01-W04'!D54,'W01-W04'!S54,'W05-W08'!D54,'W05-W08'!S54,'W09-W12'!D54,'W09-W12'!S54) -> 21.65 | H54: =AVERAGE('W01-W04'!L54,'W01-W04'!AA54,'W05-W08'!L54,'W05-W08'!AA54,'W09-W12'!L54,'W09-W12'!AA54) -> 21.6 | J54: =AVERAGE('W01-W04'!H54,'W01-W04'!W54,'W05-W08'!H54,'W05-W08'!W54,'W09-W12'!H54,'W09-W12'!W54) -> 1.72975 | K54: =AVERAGE('W01-W04'!P54,'W01-W04'!AE54,'W05-W08'!P54,'W05-W08'!AE54,'W09-W12'!P54,'W09-W12'!AE54) -> 0.7667 | L54: =AVERAGE('W01-W04'!K54,'W01-W04'!Z54,'W05-W08'!K54,'W05-W08'!Z54,'W09-W12'!K54,'W09-W12'!Z54) -> 3.033333333 | M54: =AVERAGE('W01-W04'!R54,'W01-W04'!AG54,'W05-W08'!R54,'W05-W08'!AG54,'W09-W12'!R54,'W09-W12'!AG54) -> 1.6
B55: 2017-01-29 | C55: 89 | D55: =AVERAGE('W01-W04'!F55,'W01-W04'!U55,'W05-W08'!F55,'W05-W08'!U55,'W09-W12'!F55,'W09-W12'!U55) -> 0.8733409912 | E55: =AVERAGE('W01-W04'!N55,'W01-W04'!AC55,'W05-W08'!N55,'W05-W08'!AC55,'W09-W12'!N55,'W09-W12'!AC55) -> 0.8494007177 | G55: =AVERAGE('W01-W04'!D55,'W01-W04'!S55,'W05-W08'!D55,'W05-W08'!S55,'W09-W12'!D55,'W09-W12'!S55) -> 21.75 | H55: =AVERAGE('W01-W04'!L55,'W01-W04'!AA55,'W05-W08'!L55,'W05-W08'!AA55,'W09-W12'!L55,'W09-W12'!AA55) -> 21.65 | L55: =AVERAGE('W01-W04'!K55,'W01-W04'!Z55,'W05-W08'!K55,'W05-W08'!Z55,'W09-W12'!K55,'W09-W12'!Z55) -> 2.95 | M55: =AVERAGE('W01-W04'!R55,'W01-W04'!AG55,'W05-W08'!R55,'W05-W08'!AG55,'W09-W12'!R55,'W09-W12'!AG55) -> 1.583333333
B56: 2017-01-30 | C56: 90 | D56: =AVERAGE('W01-W04'!F56,'W01-W04'!U56,'W05-W08'!F56,'W05-W08'!U56,'W09-W12'!F56,'W09-W12'!U56) -> 0.8526199878 | E56: =AVERAGE('W01-W04'!N56,'W01-W04'!AC56,'W05-W08'!N56,'W05-W08'!AC56,'W09-W12'!N56,'W09-W12'!AC56) -> 0.85668371 | F56: =AVERAGE('3-6-7-14'!F56,'3-6-7-14'!N56,'3-6-7-14'!U56,'3-6-7-14'!AC56) -> 1.097512013 | G56: =AVERAGE('W01-W04'!D56,'W01-W04'!S56,'W05-W08'!D56,'W05-W08'!S56,'W09-W12'!D56,'W09-W12'!S56) -> 21.23333333 | H56: =AVERAGE('W01-W04'!L56,'W01-W04'!AA56,'W05-W08'!L56,'W05-W08'!AA56,'W09-W12'!L56,'W09-W12'!AA56) -> 21.83333333 | I56: =AVERAGE('3-6-7-14'!D56,'3-6-7-14'!L56,'3-6-7-14'!S56,'3-6-7-14'!AA56) -> 26.45 | J56: =AVERAGE('W01-W04'!H56,'W01-W04'!W56,'W05-W08'!H56,'W05-W08'!W56,'W09-W12'!H56,'W09-W12'!W56) -> 0.8018333333 | K56: =AVERAGE('W01-W04'!P56,'W01-W04'!AE56,'W05-W08'!P56,'W05-W08'!AE56,'W09-W12'!P56,'W09-W12'!AE56) -> 0.9697 | L56: =AVERAGE('W01-W04'!K56,'W01-W04'!Z56,'W05-W08'!K56,'W05-W08'!Z56,'W09-W12'!K56,'W09-W12'!Z56) -> 3.008333333 | M56: =AVERAGE('W01-W04'!R56,'W01-W04'!AG56,'W05-W08'!R56,'W05-W08'!AG56,'W09-W12'!R56,'W09-W12'!AG56) -> 1.671666667
B57: 2017-01-31 | C57: 91 | D57: =AVERAGE('W01-W04'!F57,'W01-W04'!U57,'W05-W08'!F57,'W05-W08'!U57,'W09-W12'!F57,'W09-W12'!U57) -> 0.8720514015 | E57: =AVERAGE('W01-W04'!N57,'W01-W04'!AC57,'W05-W08'!N57,'W05-W08'!AC57,'W09-W12'!N57,'W09-W12'!AC57) -> 0.8539766619 | G57: =AVERAGE('W01-W04'!D57,'W01-W04'!S57,'W05-W08'!D57,'W05-W08'!S57,'W09-W12'!D57,'W09-W12'!S57) -> 21.71666667 | H57: =AVERAGE('W01-W04'!L57,'W01-W04'!AA57,'W05-W08'!L57,'W05-W08'!AA57,'W09-W12'!L57,'W09-W12'!AA57) -> 21.76666667 | J57: =AVERAGE('W01-W04'!H57,'W01-W04'!W57,'W05-W08'!H57,'W05-W08'!W57,'W09-W12'!H57,'W09-W12'!W57) -> 0.7281666667 | K57: =AVERAGE('W01-W04'!P57,'W01-W04'!AE57,'W05-W08'!P57,'W05-W08'!AE57,'W09-W12'!P57,'W09-W12'!AE57) -> 0.9834 | L57: =AVERAGE('W01-W04'!K57,'W01-W04'!Z57,'W05-W08'!K57,'W05-W08'!Z57,'W09-W12'!K57,'W09-W12'!Z57) -> 2.933333333 | M57: =AVERAGE('W01-W04'!R57,'W01-W04'!AG57,'W05-W08'!R57,'W05-W08'!AG57,'W09-W12'!R57,'W09-W12'!AG57) -> 1.613333333
B58: 2017-02-01 | C58: 92 | D58: =AVERAGE('W01-W04'!F58,'W01-W04'!U58,'W05-W08'!F58,'W05-W08'!U58,'W09-W12'!F58,'W09-W12'!U58) -> 0.8566810421 | E58: =AVERAGE('W01-W04'!N58,'W01-W04'!AC58,'W05-W08'!N58,'W05-W08'!AC58,'W09-W12'!N58,'W09-W12'!AC58) -> 0.8466958401 | G58: =AVERAGE('W01-W04'!D58,'W01-W04'!S58,'W05-W08'!D58,'W05-W08'!S58,'W09-W12'!D58,'W09-W12'!S58) -> 21.33333333 | H58: =AVERAGE('W01-W04'!L58,'W01-W04'!AA58,'W05-W08'!L58,'W05-W08'!AA58,'W09-W12'!L58,'W09-W12'!AA58) -> 21.58333333 | J58: =AVERAGE('W01-W04'!H58,'W01-W04'!W58,'W05-W08'!H58,'W05-W08'!W58,'W09-W12'!H58,'W09-W12'!W58) -> 0.7465833333 | K58: =AVERAGE('W01-W04'!P58,'W01-W04'!AE58,'W05-W08'!P58,'W05-W08'!AE58,'W09-W12'!P58,'W09-W12'!AE58) -> 1.1832 | L58: =AVERAGE('W01-W04'!K58,'W01-W04'!Z58,'W05-W08'!K58,'W05-W08'!Z58,'W09-W12'!K58,'W09-W12'!Z58) -> 2.966666667 | M58: =AVERAGE('W01-W04'!R58,'W01-W04'!AG58,'W05-W08'!R58,'W05-W08'!AG58,'W09-W12'!R58,'W09-W12'!AG58) -> 1.838333333
B59: 2017-02-02 | C59: 93 | D59: =AVERAGE('W01-W04'!F59,'W01-W04'!U59,'W05-W08'!F59,'W05-W08'!U59,'W09-W12'!F59,'W09-W12'!U59) -> 0.8502094196 | E59: =AVERAGE('W01-W04'!N59,'W01-W04'!AC59,'W05-W08'!N59,'W05-W08'!AC59,'W09-W12'!N59,'W09-W12'!AC59) -> 0.8474338149 | G59: =AVERAGE('W01-W04'!D59,'W01-W04'!S59,'W05-W08'!D59,'W05-W08'!S59,'W09-W12'!D59,'W09-W12'!S59) -> 21.16666667 | H59: =AVERAGE('W01-W04'!L59,'W01-W04'!AA59,'W05-W08'!L59,'W05-W08'!AA59,'W09-W12'!L59,'W09-W12'!AA59) -> 21.6 | J59: =AVERAGE('W01-W04'!H59,'W01-W04'!W59,'W05-W08'!H59,'W05-W08'!W59,'W09-W12'!H59,'W09-W12'!W59) -> 0.8868333333 | K59: =AVERAGE('W01-W04'!P59,'W01-W04'!AE59,'W05-W08'!P59,'W05-W08'!AE59,'W09-W12'!P59,'W09-W12'!AE59) -> 0.9512 | L59: =AVERAGE('W01-W04'!K59,'W01-W04'!Z59,'W05-W08'!K59,'W05-W08'!Z59,'W09-W12'!K59,'W09-W12'!Z59) -> 2.975 | M59: =AVERAGE('W01-W04'!R59,'W01-W04'!AG59,'W05-W08'!R59,'W05-W08'!AG59,'W09-W12'!R59,'W09-W12'!AG59) -> 1.773333333
B60: 2017-02-03 | C60: 94 | D60: =AVERAGE('W01-W04'!F60,'W01-W04'!U60,'W05-W08'!F60,'W05-W08'!U60,'W09-W12'!F60,'W09-W12'!U60) -> 0.8536609995 | E60: =AVERAGE('W01-W04'!N60,'W01-W04'!AC60,'W05-W08'!N60,'W05-W08'!AC60,'W09-W12'!N60,'W09-W12'!AC60) -> 0.8503929098 | G60: =AVERAGE('W01-W04'!D60,'W01-W04'!S60,'W05-W08'!D60,'W05-W08'!S60,'W09-W12'!D60,'W09-W12'!S60) -> 21.25 | H60: =AVERAGE('W01-W04'!L60,'W01-W04'!AA60,'W05-W08'!L60,'W05-W08'!AA60,'W09-W12'!L60,'W09-W12'!AA60) -> 21.68333333 | J60: =AVERAGE('W01-W04'!H60,'W01-W04'!W60,'W05-W08'!H60,'W05-W08'!W60,'W09-W12'!H60,'W09-W12'!W60) -> 1.046916667 | K60: =AVERAGE('W01-W04'!P60,'W01-W04'!AE60,'W05-W08'!P60,'W05-W08'!AE60,'W09-W12'!P60,'W09-W12'!AE60) -> 0.9058 | L60: =AVERAGE('W01-W04'!K60,'W01-W04'!Z60,'W05-W08'!K60,'W05-W08'!Z60,'W09-W12'!K60,'W09-W12'!Z60) -> 2.966666667 | M60: =AVERAGE('W01-W04'!R60,'W01-W04'!AG60,'W05-W08'!R60,'W05-W08'!AG60,'W09-W12'!R60,'W09-W12'!AG60) -> 1.816666667
B61: 2017-02-04 | C61: 95 | D61: =AVERAGE('W01-W04'!F61,'W01-W04'!U61,'W05-W08'!F61,'W05-W08'!U61,'W09-W12'!F61,'W09-W12'!U61) -> 0.8501164301 | E61: =AVERAGE('W01-W04'!N61,'W01-W04'!AC61,'W05-W08'!N61,'W05-W08'!AC61,'W09-W12'!N61,'W09-W12'!AC61) -> 0.8537837685 | G61: =AVERAGE('W01-W04'!D61,'W01-W04'!S61,'W05-W08'!D61,'W05-W08'!S61,'W09-W12'!D61,'W09-W12'!S61) -> 21.16666667 | H61: =AVERAGE('W01-W04'!L61,'W01-W04'!AA61,'W05-W08'!L61,'W05-W08'!AA61,'W09-W12'!L61,'W09-W12'!AA61) -> 21.76666667 | J61: =AVERAGE('W01-W04'!H61,'W01-W04'!W61,'W05-W08'!H61,'W05-W08'!W61,'W09-W12'!H61,'W09-W12'!W61) -> 0.9746666667 | K61: =AVERAGE('W01-W04'!P61,'W01-W04'!AE61,'W05-W08'!P61,'W05-W08'!AE61,'W09-W12'!P61,'W09-W12'!AE61) -> 0.4854 | L61: =AVERAGE('W01-W04'!K61,'W01-W04'!Z61,'W05-W08'!K61,'W05-W08'!Z61,'W09-W12'!K61,'W09-W12'!Z61) -> 2.958333333 | M61: =AVERAGE('W01-W04'!R61,'W01-W04'!AG61,'W05-W08'!R61,'W05-W08'!AG61,'W09-W12'!R61,'W09-W12'!AG61) -> 1.775
B62: 2017-02-05 | C62: 96 | D62: =AVERAGE('W01-W04'!F62,'W01-W04'!U62,'W05-W08'!F62,'W05-W08'!U62,'W09-W12'!F62,'W09-W12'!U62) -> 0.8427874893 | E62: =AVERAGE('W01-W04'!N62,'W01-W04'!AC62,'W05-W08'!N62,'W05-W08'!AC62,'W09-W12'!N62,'W09-W12'!AC62) -> 0.8571424511 | G62: =AVERAGE('W01-W04'!D62,'W01-W04'!S62,'W05-W08'!D62,'W05-W08'!S62,'W09-W12'!D62,'W09-W12'!S62) -> 20.98333333 | H62: =AVERAGE('W01-W04'!L62,'W01-W04'!AA62,'W05-W08'!L62,'W05-W08'!AA62,'W09-W12'!L62,'W09-W12'!AA62) -> 21.85 | L62: =AVERAGE('W01-W04'!K62,'W01-W04'!Z62,'W05-W08'!K62,'W05-W08'!Z62,'W09-W12'!K62,'W09-W12'!Z62) -> 3.008333333 | M62: =AVERAGE('W01-W04'!R62,'W01-W04'!AG62,'W05-W08'!R62,'W05-W08'!AG62,'W09-W12'!R62,'W09-W12'!AG62) -> 1.758333333
B63: 2017-02-06 | C63: 97 | D63: =AVERAGE('W01-W04'!F63,'W01-W04'!U63,'W05-W08'!F63,'W05-W08'!U63,'W09-W12'!F63,'W09-W12'!U63) -> 0.8409009675 | E63: =AVERAGE('W01-W04'!N63,'W01-W04'!AC63,'W05-W08'!N63,'W05-W08'!AC63,'W09-W12'!N63,'W09-W12'!AC63) -> 0.8671284431 | F63: =AVERAGE('3-6-7-14'!F63,'3-6-7-14'!N63,'3-6-7-14'!U63,'3-6-7-14'!AC63) -> 1.101592062 | G63: =AVERAGE('W01-W04'!D63,'W01-W04'!S63,'W05-W08'!D63,'W05-W08'!S63,'W09-W12'!D63,'W09-W12'!S63) -> 20.93333333 | H63: =AVERAGE('W01-W04'!L63,'W01-W04'!AA63,'W05-W08'!L63,'W05-W08'!AA63,'W09-W12'!L63,'W09-W12'!AA63) -> 22.1 | I63: =AVERAGE('3-6-7-14'!D63,'3-6-7-14'!L63,'3-6-7-14'!S63,'3-6-7-14'!AA63) -> 26.55 | J63: =AVERAGE('W01-W04'!H63,'W01-W04'!W63,'W05-W08'!H63,'W05-W08'!W63,'W09-W12'!H63,'W09-W12'!W63) -> 1.02 | K63: =AVERAGE('W01-W04'!P63,'W01-W04'!AE63,'W05-W08'!P63,'W05-W08'!AE63,'W09-W12'!P63,'W09-W12'!AE63) -> 0.4887 | L63: =AVERAGE('W01-W04'!K63,'W01-W04'!Z63,'W05-W08'!K63,'W05-W08'!Z63,'W09-W12'!K63,'W09-W12'!Z63) -> 3.033333333 | M63: =AVERAGE('W01-W04'!R63,'W01-W04'!AG63,'W05-W08'!R63,'W05-W08'!AG63,'W09-W12'!R63,'W09-W12'!AG63) -> 1.5
B64: 2017-02-07 | C64: 98 | D64: =AVERAGE('W01-W04'!F64,'W01-W04'!U64,'W05-W08'!F64,'W05-W08'!U64,'W09-W12'!F64,'W09-W12'!U64) -> 0.8476192638 | E64: =AVERAGE('W01-W04'!N64,'W01-W04'!AC64,'W05-W08'!N64,'W05-W08'!AC64,'W09-W12'!N64,'W09-W12'!AC64) -> 0.8565518223 | G64: =AVERAGE('W01-W04'!D64,'W01-W04'!S64,'W05-W08'!D64,'W05-W08'!S64,'W09-W12'!D64,'W09-W12'!S64) -> 21.1 | H64: =AVERAGE('W01-W04'!L64,'W01-W04'!AA64,'W05-W08'!L64,'W05-W08'!AA64,'W09-W12'!L64,'W09-W12'!AA64) -> 21.83333333 | J64: =AVERAGE('W01-W04'!H64,'W01-W04'!W64,'W05-W08'!H64,'W05-W08'!W64,'W09-W12'!H64,'W09-W12'!W64) -> 1.025666667 | K64: =AVERAGE('W01-W04'!P64,'W01-W04'!AE64,'W05-W08'!P64,'W05-W08'!AE64,'W09-W12'!P64,'W09-W12'!AE64) -> 0.9038 | L64: =AVERAGE('W01-W04'!K64,'W01-W04'!Z64,'W05-W08'!K64,'W05-W08'!Z64,'W09-W12'!K64,'W09-W12'!Z64) -> 3.041666667 | M64: =AVERAGE('W01-W04'!R64,'W01-W04'!AG64,'W05-W08'!R64,'W05-W08'!AG64,'W09-W12'!R64,'W09-W12'!AG64) -> 1.623333333
B65: 2017-02-08 | C65: 99 | D65: =AVERAGE('W01-W04'!F65,'W01-W04'!U65,'W05-W08'!F65,'W05-W08'!U65,'W09-W12'!F65,'W09-W12'!U65) -> 0.8543700418 | E65: =AVERAGE('W01-W04'!N65,'W01-W04'!AC65,'W05-W08'!N65,'W05-W08'!AC65,'W09-W12'!N65,'W09-W12'!AC65) -> 0.8475247455 | G65: =AVERAGE('W01-W04'!D65,'W01-W04'!S65,'W05-W08'!D65,'W05-W08'!S65,'W09-W12'!D65,'W09-W12'!S65) -> 21.26666667 | H65: =AVERAGE('W01-W04'!L65,'W01-W04'!AA65,'W05-W08'!L65,'W05-W08'!AA65,'W09-W12'!L65,'W09-W12'!AA65) -> 21.6 | J65: =AVERAGE('W01-W04'!H65,'W01-W04'!W65,'W05-W08'!H65,'W05-W08'!W65,'W09-W12'!H65,'W09-W12'!W65) -> 1.014333333 | K65: =AVERAGE('W01-W04'!P65,'W01-W04'!AE65,'W05-W08'!P65,'W05-W08'!AE65,'W09-W12'!P65,'W09-W12'!AE65) -> 0.8737 | L65: =AVERAGE('W01-W04'!K65,'W01-W04'!Z65,'W05-W08'!K65,'W05-W08'!Z65,'W09-W12'!K65,'W09-W12'!Z65) -> 3.013333333 | M65: =AVERAGE('W01-W04'!R65,'W01-W04'!AG65,'W05-W08'!R65,'W05-W08'!AG65,'W09-W12'!R65,'W09-W12'!AG65) -> 1.666666667
B66: 2017-02-09 | C66: 100 | D66: =AVERAGE('W01-W04'!F66,'W01-W04'!U66,'W05-W08'!F66,'W05-W08'!U66,'W09-W12'!F66,'W09-W12'!U66) -> 0.8468472832 | E66: =AVERAGE('W01-W04'!N66,'W01-W04'!AC66,'W05-W08'!N66,'W05-W08'!AC66,'W09-W12'!N66,'W09-W12'!AC66) -> 0.8448738678 | G66: =AVERAGE('W01-W04'!D66,'W01-W04'!S66,'W05-W08'!D66,'W05-W08'!S66,'W09-W12'!D66,'W09-W12'!S66) -> 21.08333333 | H66: =AVERAGE('W01-W04'!L66,'W01-W04'!AA66,'W05-W08'!L66,'W05-W08'!AA66,'W09-W12'!L66,'W09-W12'!AA66) -> 21.53333333 | J66: =AVERAGE('W01-W04'!H66,'W01-W04'!W66,'W05-W08'!H66,'W05-W08'!W66,'W09-W12'!H66,'W09-W12'!W66) -> 1.014333333 | K66: =AVERAGE('W01-W04'!P66,'W01-W04'!AE66,'W05-W08'!P66,'W05-W08'!AE66,'W09-W12'!P66,'W09-W12'!AE66) -> 0.9468 | L66: =AVERAGE('W01-W04'!K66,'W01-W04'!Z66,'W05-W08'!K66,'W05-W08'!Z66,'W09-W12'!K66,'W09-W12'!Z66) -> 3.046666667 | M66: =AVERAGE('W01-W04'!R66,'W01-W04'!AG66,'W05-W08'!R66,'W05-W08'!AG66,'W09-W12'!R66,'W09-W12'!AG66) -> 1.705
B67: 2017-02-10 | C67: 101 | D67: =AVERAGE('W01-W04'!F67,'W01-W04'!U67,'W05-W08'!F67,'W05-W08'!U67,'W09-W12'!F67,'W09-W12'!U67) -> 0.8554279942 | E67: =AVERAGE('W01-W04'!N67,'W01-W04'!AC67,'W05-W08'!N67,'W05-W08'!AC67,'W09-W12'!N67,'W09-W12'!AC67) -> 0.8409333127 | G67: =AVERAGE('W01-W04'!D67,'W01-W04'!S67,'W05-W08'!D67,'W05-W08'!S67,'W09-W12'!D67,'W09-W12'!S67) -> 21.3 | H67: =AVERAGE('W01-W04'!L67,'W01-W04'!AA67,'W05-W08'!L67,'W05-W08'!AA67,'W09-W12'!L67,'W09-W12'!AA67) -> 21.43333333 | J67: =AVERAGE('W01-W04'!H67,'W01-W04'!W67,'W05-W08'!H67,'W05-W08'!W67,'W09-W12'!H67,'W09-W12'!W67) -> 1.061083333 | K67: =AVERAGE('W01-W04'!P67,'W01-W04'!AE67,'W05-W08'!P67,'W05-W08'!AE67,'W09-W12'!P67,'W09-W12'!AE67) -> 1.0035 | L67: =AVERAGE('W01-W04'!K67,'W01-W04'!Z67,'W05-W08'!K67,'W05-W08'!Z67,'W09-W12'!K67,'W09-W12'!Z67) -> 3 | M67: =AVERAGE('W01-W04'!R67,'W01-W04'!AG67,'W05-W08'!R67,'W05-W08'!AG67,'W09-W12'!R67,'W09-W12'!AG67) -> 1.746666667
B68: 2017-02-11 | C68: 102 | D68: =AVERAGE('W01-W04'!F68,'W01-W04'!U68,'W05-W08'!F68,'W05-W08'!U68,'W09-W12'!F68,'W09-W12'!U68) -> 0.8572457335 | E68: =AVERAGE('W01-W04'!N68,'W01-W04'!AC68,'W05-W08'!N68,'W05-W08'!AC68,'W09-W12'!N68,'W09-W12'!AC68) -> 0.8343777601 | G68: =AVERAGE('W01-W04'!D68,'W01-W04'!S68,'W05-W08'!D68,'W05-W08'!S68,'W09-W12'!D68,'W09-W12'!S68) -> 21.35 | H68: =AVERAGE('W01-W04'!L68,'W01-W04'!AA68,'W05-W08'!L68,'W05-W08'!AA68,'W09-W12'!L68,'W09-W12'!AA68) -> 21.26666667 | J68: =AVERAGE('W01-W04'!H68,'W01-W04'!W68,'W05-W08'!H68,'W05-W08'!W68,'W09-W12'!H68,'W09-W12'!W68) -> 1.120583333 | K68: =AVERAGE('W01-W04'!P68,'W01-W04'!AE68,'W05-W08'!P68,'W05-W08'!AE68,'W09-W12'!P68,'W09-W12'!AE68) -> 1.1585 | L68: =AVERAGE('W01-W04'!K68,'W01-W04'!Z68,'W05-W08'!K68,'W05-W08'!Z68,'W09-W12'!K68,'W09-W12'!Z68) -> 2.978333333 | M68: =AVERAGE('W01-W04'!R68,'W01-W04'!AG68,'W05-W08'!R68,'W05-W08'!AG68,'W09-W12'!R68,'W09-W12'!AG68) -> 1.831666667
B69: 2017-02-12 | C69: 103 | D69: =AVERAGE('W01-W04'!F69,'W01-W04'!U69,'W05-W08'!F69,'W05-W08'!U69,'W09-W12'!F69,'W09-W12'!U69) -> 0.860669746 | E69: =AVERAGE('W01-W04'!N69,'W01-W04'!AC69,'W05-W08'!N69,'W05-W08'!AC69,'W09-W12'!N69,'W09-W12'!AC69) -> 0.8330581141 | G69: =AVERAGE('W01-W04'!D69,'W01-W04'!S69,'W05-W08'!D69,'W05-W08'!S69,'W09-W12'!D69,'W09-W12'!S69) -> 21.43333333 | H69: =AVERAGE('W01-W04'!L69,'W01-W04'!AA69,'W05-W08'!L69,'W05-W08'!AA69,'W09-W12'!L69,'W09-W12'!AA69) -> 21.23333333 | J69: =AVERAGE('W01-W04'!H69,'W01-W04'!W69,'W05-W08'!H69,'W05-W08'!W69,'W09-W12'!H69,'W09-W12'!W69) -> 1.120583333 | K69: =AVERAGE('W01-W04'!P69,'W01-W04'!AE69,'W05-W08'!P69,'W05-W08'!AE69,'W09-W12'!P69,'W09-W12'!AE69) -> 1.1683 | L69: =AVERAGE('W01-W04'!K69,'W01-W04'!Z69,'W05-W08'!K69,'W05-W08'!Z69,'W09-W12'!K69,'W09-W12'!Z69) -> 2.933333333 | M69: =AVERAGE('W01-W04'!R69,'W01-W04'!AG69,'W05-W08'!R69,'W05-W08'!AG69,'W09-W12'!R69,'W09-W12'!AG69) -> 1.876666667
B70: 2017-02-13 | C70: 104 | D70: =AVERAGE('W01-W04'!F70,'W01-W04'!U70,'W05-W08'!F70,'W05-W08'!U70,'W09-W12'!F70,'W09-W12'!U70) -> 0.861978796 | E70: =AVERAGE('W01-W04'!N70,'W01-W04'!AC70,'W05-W08'!N70,'W05-W08'!AC70,'W09-W12'!N70,'W09-W12'!AC70) -> 0.8324640667 | F70: =AVERAGE('3-6-7-14'!F70,'3-6-7-14'!N70,'3-6-7-14'!U70,'3-6-7-14'!AC70) -> 1.117981184 | G70: =AVERAGE('W01-W04'!D70,'W01-W04'!S70,'W05-W08'!D70,'W05-W08'!S70,'W09-W12'!D70,'W09-W12'!S70) -> 21.46666667 | H70: =AVERAGE('W01-W04'!L70,'W01-W04'!AA70,'W05-W08'!L70,'W05-W08'!AA70,'W09-W12'!L70,'W09-W12'!AA70) -> 21.21666667 | I70: =AVERAGE('3-6-7-14'!D70,'3-6-7-14'!L70,'3-6-7-14'!S70,'3-6-7-14'!AA70) -> 26.95 | J70: =AVERAGE('W01-W04'!H70,'W01-W04'!W70,'W05-W08'!H70,'W05-W08'!W70,'W09-W12'!H70,'W09-W12'!W70) -> 1.165916667 | K70: =AVERAGE('W01-W04'!P70,'W01-W04'!AE70,'W05-W08'!P70,'W05-W08'!AE70,'W09-W12'!P70,'W09-W12'!AE70) -> 1.2094 | L70: =AVERAGE('W01-W04'!K70,'W01-W04'!Z70,'W05-W08'!K70,'W05-W08'!Z70,'W09-W12'!K70,'W09-W12'!Z70) -> 2.883333333 | M70: =AVERAGE('W01-W04'!R70,'W01-W04'!AG70,'W05-W08'!R70,'W05-W08'!AG70,'W09-W12'!R70,'W09-W12'!AG70) -> 1.983333333
B71: 2017-02-14 | C71: 105 | D71: =AVERAGE('W01-W04'!F71,'W01-W04'!U71,'W05-W08'!F71,'W05-W08'!U71,'W09-W12'!F71,'W09-W12'!U71) -> 0.8573877525 | E71: =AVERAGE('W01-W04'!N71,'W01-W04'!AC71,'W05-W08'!N71,'W05-W08'!AC71,'W09-W12'!N71,'W09-W12'!AC71) -> 0.8351979057 | G71: =AVERAGE('W01-W04'!D71,'W01-W04'!S71,'W05-W08'!D71,'W05-W08'!S71,'W09-W12'!D71,'W09-W12'!S71) -> 21.35 | H71: =AVERAGE('W01-W04'!L71,'W01-W04'!AA71,'W05-W08'!L71,'W05-W08'!AA71,'W09-W12'!L71,'W09-W12'!AA71) -> 21.28333333 | J71: =AVERAGE('W01-W04'!H71,'W01-W04'!W71,'W05-W08'!H71,'W05-W08'!W71,'W09-W12'!H71,'W09-W12'!W71) -> 1.241 | K71: =AVERAGE('W01-W04'!P71,'W01-W04'!AE71,'W05-W08'!P71,'W05-W08'!AE71,'W09-W12'!P71,'W09-W12'!AE71) -> 1.2929 | L71: =AVERAGE('W01-W04'!K71,'W01-W04'!Z71,'W05-W08'!K71,'W05-W08'!Z71,'W09-W12'!K71,'W09-W12'!Z71) -> 2.875 | M71: =AVERAGE('W01-W04'!R71,'W01-W04'!AG71,'W05-W08'!R71,'W05-W08'!AG71,'W09-W12'!R71,'W09-W12'!AG71) -> 2.091666667
B72: 2017-02-15 | C72: 106 | D72: =AVERAGE('W01-W04'!F72,'W01-W04'!U72,'W05-W08'!F72,'W05-W08'!U72,'W09-W12'!F72,'W09-W12'!U72) -> 0.858728771 | E72: =AVERAGE('W01-W04'!N72,'W01-W04'!AC72,'W05-W08'!N72,'W05-W08'!AC72,'W09-W12'!N72,'W09-W12'!AC72) -> 0.8364796655 | G72: =AVERAGE('W01-W04'!D72,'W01-W04'!S72,'W05-W08'!D72,'W05-W08'!S72,'W09-W12'!D72,'W09-W12'!S72) -> 21.38333333 | H72: =AVERAGE('W01-W04'!L72,'W01-W04'!AA72,'W05-W08'!L72,'W05-W08'!AA72,'W09-W12'!L72,'W09-W12'!AA72) -> 21.31666667 | J72: =AVERAGE('W01-W04'!H72,'W01-W04'!W72,'W05-W08'!H72,'W05-W08'!W72,'W09-W12'!H72,'W09-W12'!W72) -> 1.248083333 | K72: =AVERAGE('W01-W04'!P72,'W01-W04'!AE72,'W05-W08'!P72,'W05-W08'!AE72,'W09-W12'!P72,'W09-W12'!AE72) -> 1.1746 | L72: =AVERAGE('W01-W04'!K72,'W01-W04'!Z72,'W05-W08'!K72,'W05-W08'!Z72,'W09-W12'!K72,'W09-W12'!Z72) -> 2.841666667 | M72: =AVERAGE('W01-W04'!R72,'W01-W04'!AG72,'W05-W08'!R72,'W05-W08'!AG72,'W09-W12'!R72,'W09-W12'!AG72) -> 2.158333333
B73: 2017-02-16 | C73: 107 | D73: =AVERAGE('W01-W04'!F73,'W01-W04'!U73,'W05-W08'!F73,'W05-W08'!U73,'W09-W12'!F73,'W09-W12'!U73) -> 0.8539192059 | E73: =AVERAGE('W01-W04'!N73,'W01-W04'!AC73,'W05-W08'!N73,'W05-W08'!AC73,'W09-W12'!N73,'W09-W12'!AC73) -> 0.8435375847 | G73: =AVERAGE('W01-W04'!D73,'W01-W04'!S73,'W05-W08'!D73,'W05-W08'!S73,'W09-W12'!D73,'W09-W12'!S73) -> 21.26666667 | H73: =AVERAGE('W01-W04'!L73,'W01-W04'!AA73,'W05-W08'!L73,'W05-W08'!AA73,'W09-W12'!L73,'W09-W12'!AA73) -> 21.5 | J73: =AVERAGE('W01-W04'!H73,'W01-W04'!W73,'W05-W08'!H73,'W05-W08'!W73,'W09-W12'!H73,'W09-W12'!W73) -> 1.323166667 | K73: =AVERAGE('W01-W04'!P73,'W01-W04'!AE73,'W05-W08'!P73,'W05-W08'!AE73,'W09-W12'!P73,'W09-W12'!AE73) -> 1.0897 | L73: =AVERAGE('W01-W04'!K73,'W01-W04'!Z73,'W05-W08'!K73,'W05-W08'!Z73,'W09-W12'!K73,'W09-W12'!Z73) -> 2.841666667 | M73: =AVERAGE('W01-W04'!R73,'W01-W04'!AG73,'W05-W08'!R73,'W05-W08'!AG73,'W09-W12'!R73,'W09-W12'!AG73) -> 2.191666667
B74: 2017-02-17 | C74: 108 | D74: =AVERAGE('W01-W04'!F74,'W01-W04'!U74,'W05-W08'!F74,'W05-W08'!U74,'W09-W12'!F74,'W09-W12'!U74) -> 0.8520096271 | E74: =AVERAGE('W01-W04'!N74,'W01-W04'!AC74,'W05-W08'!N74,'W05-W08'!AC74,'W09-W12'!N74,'W09-W12'!AC74) -> 0.8454676078 | G74: =AVERAGE('W01-W04'!D74,'W01-W04'!S74,'W05-W08'!D74,'W05-W08'!S74,'W09-W12'!D74,'W09-W12'!S74) -> 21.21666667 | H74: =AVERAGE('W01-W04'!L74,'W01-W04'!AA74,'W05-W08'!L74,'W05-W08'!AA74,'W09-W12'!L74,'W09-W12'!AA74) -> 21.55 | J74: =AVERAGE('W01-W04'!H74,'W01-W04'!W74,'W05-W08'!H74,'W05-W08'!W74,'W09-W12'!H74,'W09-W12'!W74) -> 1.445 | K74: =AVERAGE('W01-W04'!P74,'W01-W04'!AE74,'W05-W08'!P74,'W05-W08'!AE74,'W09-W12'!P74,'W09-W12'!AE74) -> 1.1833 | L74: =AVERAGE('W01-W04'!K74,'W01-W04'!Z74,'W05-W08'!K74,'W05-W08'!Z74,'W09-W12'!K74,'W09-W12'!Z74) -> 2.85 | M74: =AVERAGE('W01-W04'!R74,'W01-W04'!AG74,'W05-W08'!R74,'W05-W08'!AG74,'W09-W12'!R74,'W09-W12'!AG74) -> 2.25
B75: 2017-02-18 | C75: 109 | D75: =AVERAGE('W01-W04'!F75,'W01-W04'!U75,'W05-W08'!F75,'W05-W08'!U75,'W09-W12'!F75,'W09-W12'!U75) -> 0.8573089744 | E75: =AVERAGE('W01-W04'!N75,'W01-W04'!AC75,'W05-W08'!N75,'W05-W08'!AC75,'W09-W12'!N75,'W09-W12'!AC75) -> 0.8508590748 | G75: =AVERAGE('W01-W04'!D75,'W01-W04'!S75,'W05-W08'!D75,'W05-W08'!S75,'W09-W12'!D75,'W09-W12'!S75) -> 21.35 | H75: =AVERAGE('W01-W04'!L75,'W01-W04'!AA75,'W05-W08'!L75,'W05-W08'!AA75,'W09-W12'!L75,'W09-W12'!AA75) -> 21.68333333 | J75: =AVERAGE('W01-W04'!H75,'W01-W04'!W75,'W05-W08'!H75,'W05-W08'!W75,'W09-W12'!H75,'W09-W12'!W75) -> 1.443583333 | K75: =AVERAGE('W01-W04'!P75,'W01-W04'!AE75,'W05-W08'!P75,'W05-W08'!AE75,'W09-W12'!P75,'W09-W12'!AE75) -> 1.121 | L75: =AVERAGE('W01-W04'!K75,'W01-W04'!Z75,'W05-W08'!K75,'W05-W08'!Z75,'W09-W12'!K75,'W09-W12'!Z75) -> 2.825 | M75: =AVERAGE('W01-W04'!R75,'W01-W04'!AG75,'W05-W08'!R75,'W05-W08'!AG75,'W09-W12'!R75,'W09-W12'!AG75) -> 2.233333333
B76: 2017-02-19 | C76: 110 | D76: =AVERAGE('W01-W04'!F76,'W01-W04'!U76,'W05-W08'!F76,'W05-W08'!U76,'W09-W12'!F76,'W09-W12'!U76) -> 0.8439300837 | E76: =AVERAGE('W01-W04'!N76,'W01-W04'!AC76,'W05-W08'!N76,'W05-W08'!AC76,'W09-W12'!N76,'W09-W12'!AC76) -> 0.8508887467 | G76: =AVERAGE('W01-W04'!D76,'W01-W04'!S76,'W05-W08'!D76,'W05-W08'!S76,'W09-W12'!D76,'W09-W12'!S76) -> 21.01666667 | H76: =AVERAGE('W01-W04'!L76,'W01-W04'!AA76,'W05-W08'!L76,'W05-W08'!AA76,'W09-W12'!L76,'W09-W12'!AA76) -> 21.68333333 | L76: =AVERAGE('W01-W04'!K76,'W01-W04'!Z76,'W05-W08'!K76,'W05-W08'!Z76,'W09-W12'!K76,'W09-W12'!Z76) -> 2.875 | M76: =AVERAGE('W01-W04'!R76,'W01-W04'!AG76,'W05-W08'!R76,'W05-W08'!AG76,'W09-W12'!R76,'W09-W12'!AG76) -> 2.233333333
B77: 2017-02-20 | C77: 111 | D77: =AVERAGE('W01-W04'!F77,'W01-W04'!U77,'W05-W08'!F77,'W05-W08'!U77,'W09-W12'!F77,'W09-W12'!U77) -> 0.8412584078 | E77: =AVERAGE('W01-W04'!N77,'W01-W04'!AC77,'W05-W08'!N77,'W05-W08'!AC77,'W09-W12'!N77,'W09-W12'!AC77) -> 0.868513586 | F77: =AVERAGE('3-6-7-14'!F77,'3-6-7-14'!N77,'3-6-7-14'!U77,'3-6-7-14'!AC77) -> 1.134665608 | G77: =AVERAGE('W01-W04'!D77,'W01-W04'!S77,'W05-W08'!D77,'W05-W08'!S77,'W09-W12'!D77,'W09-W12'!S77) -> 20.95 | H77: =AVERAGE('W01-W04'!L77,'W01-W04'!AA77,'W05-W08'!L77,'W05-W08'!AA77,'W09-W12'!L77,'W09-W12'!AA77) -> 22.13333333 | I77: =AVERAGE('3-6-7-14'!D77,'3-6-7-14'!L77,'3-6-7-14'!S77,'3-6-7-14'!AA77) -> 27.35 | J77: =AVERAGE('W01-W04'!H77,'W01-W04'!W77,'W05-W08'!H77,'W05-W08'!W77,'W09-W12'!H77,'W09-W12'!W77) -> 1.428 | K77: =AVERAGE('W01-W04'!P77,'W01-W04'!AE77,'W05-W08'!P77,'W05-W08'!AE77,'W09-W12'!P77,'W09-W12'!AE77) -> 1.1181 | L77: =AVERAGE('W01-W04'!K77,'W01-W04'!Z77,'W05-W08'!K77,'W05-W08'!Z77,'W09-W12'!K77,'W09-W12'!Z77) -> 2.933333333 | M77: =AVERAGE('W01-W04'!R77,'W01-W04'!AG77,'W05-W08'!R77,'W05-W08'!AG77,'W09-W12'!R77,'W09-W12'!AG77) -> 2.175
B78: 2017-02-21 | C78: 112 | D78: =AVERAGE('W01-W04'!F78,'W01-W04'!U78,'W05-W08'!F78,'W05-W08'!U78,'W09-W12'!F78,'W09-W12'!U78) -> 0.8560875591 | E78: =AVERAGE('W01-W04'!N78,'W01-W04'!AC78,'W05-W08'!N78,'W05-W08'!AC78,'W09-W12'!N78,'W09-W12'!AC78) -> 0.8685739699 | G78: =AVERAGE('W01-W04'!D78,'W01-W04'!S78,'W05-W08'!D78,'W05-W08'!S78,'W09-W12'!D78,'W09-W12'!S78) -> 21.31666667 | H78: =AVERAGE('W01-W04'!L78,'W01-W04'!AA78,'W05-W08'!L78,'W05-W08'!AA78,'W09-W12'!L78,'W09-W12'!AA78) -> 22.13333333 | J78: =AVERAGE('W01-W04'!H78,'W01-W04'!W78,'W05-W08'!H78,'W05-W08'!W78,'W09-W12'!H78,'W09-W12'!W78) -> 1.527166667 | K78: =AVERAGE('W01-W04'!P78,'W01-W04'!AE78,'W05-W08'!P78,'W05-W08'!AE78,'W09-W12'!P78,'W09-W12'!AE78) -> 1.0861 | L78: =AVERAGE('W01-W04'!K78,'W01-W04'!Z78,'W05-W08'!K78,'W05-W08'!Z78,'W09-W12'!K78,'W09-W12'!Z78) -> 2.866666667 | M78: =AVERAGE('W01-W04'!R78,'W01-W04'!AG78,'W05-W08'!R78,'W05-W08'!AG78,'W09-W12'!R78,'W09-W12'!AG78) -> 2.153333333
B79: 2017-02-22 | C79: 113 | D79: =AVERAGE('W01-W04'!F79,'W01-W04'!U79,'W05-W08'!F79,'W05-W08'!U79,'W09-W12'!F79,'W09-W12'!U79) -> 0.8553317518 | E79: =AVERAGE('W01-W04'!N79,'W01-W04'!AC79,'W05-W08'!N79,'W05-W08'!AC79,'W09-W12'!N79,'W09-W12'!AC79) -> 0.8712827642 | G79: =AVERAGE('W01-W04'!D79,'W01-W04'!S79,'W05-W08'!D79,'W05-W08'!S79,'W09-W12'!D79,'W09-W12'!S79) -> 21.3 | H79: =AVERAGE('W01-W04'!L79,'W01-W04'!AA79,'W05-W08'!L79,'W05-W08'!AA79,'W09-W12'!L79,'W09-W12'!AA79) -> 22.2 | J79: =AVERAGE('W01-W04'!H79,'W01-W04'!W79,'W05-W08'!H79,'W05-W08'!W79,'W09-W12'!H79,'W09-W12'!W79) -> 1.494583333 | K79: =AVERAGE('W01-W04'!P79,'W01-W04'!AE79,'W05-W08'!P79,'W05-W08'!AE79,'W09-W12'!P79,'W09-W12'!AE79) -> 1.1739 | L79: =AVERAGE('W01-W04'!K79,'W01-W04'!Z79,'W05-W08'!K79,'W05-W08'!Z79,'W09-W12'!K79,'W09-W12'!Z79) -> 2.858333333 | M79: =AVERAGE('W01-W04'!R79,'W01-W04'!AG79,'W05-W08'!R79,'W05-W08'!AG79,'W09-W12'!R79,'W09-W12'!AG79) -> 2.15
B80: 2017-02-23 | C80: 114 | D80: =AVERAGE('W01-W04'!F80,'W01-W04'!U80,'W05-W08'!F80,'W05-W08'!U80,'W09-W12'!F80,'W09-W12'!U80) -> 0.8368725876 | E80: =AVERAGE('W01-W04'!N80,'W01-W04'!AC80,'W05-W08'!N80,'W05-W08'!AC80,'W09-W12'!N80,'W09-W12'!AC80) -> 0.8640909949 | G80: =AVERAGE('W01-W04'!D80,'W01-W04'!S80,'W05-W08'!D80,'W05-W08'!S80,'W09-W12'!D80,'W09-W12'!S80) -> 20.85 | H80: =AVERAGE('W01-W04'!L80,'W01-W04'!AA80,'W05-W08'!L80,'W05-W08'!AA80,'W09-W12'!L80,'W09-W12'!AA80) -> 22.01666667 | J80: =AVERAGE('W01-W04'!H80,'W01-W04'!W80,'W05-W08'!H80,'W05-W08'!W80,'W09-W12'!H80,'W09-W12'!W80) -> 1.37225 | K80: =AVERAGE('W01-W04'!P80,'W01-W04'!AE80,'W05-W08'!P80,'W05-W08'!AE80,'W09-W12'!P80,'W09-W12'!AE80) -> 1.1182 | L80: =AVERAGE('W01-W04'!K80,'W01-W04'!Z80,'W05-W08'!K80,'W05-W08'!Z80,'W09-W12'!K80,'W09-W12'!Z80) -> 3.008333333 | M80: =AVERAGE('W01-W04'!R80,'W01-W04'!AG80,'W05-W08'!R80,'W05-W08'!AG80,'W09-W12'!R80,'W09-W12'!AG80) -> 2.081666667
B81: 2017-02-24 | C81: 115 | D81: =AVERAGE('W01-W04'!F81,'W01-W04'!U81,'W05-W08'!F81,'W05-W08'!U81,'W09-W12'!F81,'W09-W12'!U81) -> 0.8568374247 | E81: =AVERAGE('W01-W04'!N81,'W01-W04'!AC81,'W05-W08'!N81,'W05-W08'!AC81,'W09-W12'!N81,'W09-W12'!AC81) -> 0.8627939781 | G81: =AVERAGE('W01-W04'!D81,'W01-W04'!S81,'W05-W08'!D81,'W05-W08'!S81,'W09-W12'!D81,'W09-W12'!S81) -> 21.33333333 | H81: =AVERAGE('W01-W04'!L81,'W01-W04'!AA81,'W05-W08'!L81,'W05-W08'!AA81,'W09-W12'!L81,'W09-W12'!AA81) -> 21.98333333 | J81: =AVERAGE('W01-W04'!H81,'W01-W04'!W81,'W05-W08'!H81,'W05-W08'!W81,'W09-W12'!H81,'W09-W12'!W81) -> 1.484666667 | K81: =AVERAGE('W01-W04'!P81,'W01-W04'!AE81,'W05-W08'!P81,'W05-W08'!AE81,'W09-W12'!P81,'W09-W12'!AE81) -> 1.161 | L81: =AVERAGE('W01-W04'!K81,'W01-W04'!Z81,'W05-W08'!K81,'W05-W08'!Z81,'W09-W12'!K81,'W09-W12'!Z81) -> 2.858333333 | M81: =AVERAGE('W01-W04'!R81,'W01-W04'!AG81,'W05-W08'!R81,'W05-W08'!AG81,'W09-W12'!R81,'W09-W12'!AG81) -> 2.021666667
B82: 2017-02-25 | C82: 116 | D82: =AVERAGE('W01-W04'!F82,'W01-W04'!U82,'W05-W08'!F82,'W05-W08'!U82,'W09-W12'!F82,'W09-W12'!U82) -> 0.8452882522 | E82: =AVERAGE('W01-W04'!N82,'W01-W04'!AC82,'W05-W08'!N82,'W05-W08'!AC82,'W09-W12'!N82,'W09-W12'!AC82) -> 0.8588359147 | G82: =AVERAGE('W01-W04'!D82,'W01-W04'!S82,'W05-W08'!D82,'W05-W08'!S82,'W09-W12'!D82,'W09-W12'!S82) -> 21.05 | H82: =AVERAGE('W01-W04'!L82,'W01-W04'!AA82,'W05-W08'!L82,'W05-W08'!AA82,'W09-W12'!L82,'W09-W12'!AA82) -> 21.88333333 | J82: =AVERAGE('W01-W04'!H82,'W01-W04'!W82,'W05-W08'!H82,'W05-W08'!W82,'W09-W12'!H82,'W09-W12'!W82) -> 1.294833333 | K82: =AVERAGE('W01-W04'!P82,'W01-W04'!AE82,'W05-W08'!P82,'W05-W08'!AE82,'W09-W12'!P82,'W09-W12'!AE82) -> 1.3376 | L82: =AVERAGE('W01-W04'!K82,'W01-W04'!Z82,'W05-W08'!K82,'W05-W08'!Z82,'W09-W12'!K82,'W09-W12'!Z82) -> 2.9 | M82: =AVERAGE('W01-W04'!R82,'W01-W04'!AG82,'W05-W08'!R82,'W05-W08'!AG82,'W09-W12'!R82,'W09-W12'!AG82) -> 1.996666667
B83: 2017-02-26 | C83: 117 | D83: =AVERAGE('W01-W04'!F83,'W01-W04'!U83,'W05-W08'!F83,'W05-W08'!U83,'W09-W12'!F83,'W09-W12'!U83) -> 0.8466787577 | E83: =AVERAGE('W01-W04'!N83,'W01-W04'!AC83,'W05-W08'!N83,'W05-W08'!AC83,'W09-W12'!N83,'W09-W12'!AC83) -> 0.8515582663 | G83: =AVERAGE('W01-W04'!D83,'W01-W04'!S83,'W05-W08'!D83,'W05-W08'!S83,'W09-W12'!D83,'W09-W12'!S83) -> 21.08333333 | H83: =AVERAGE('W01-W04'!L83,'W01-W04'!AA83,'W05-W08'!L83,'W05-W08'!AA83,'W09-W12'!L83,'W09-W12'!AA83) -> 21.7 | L83: =AVERAGE('W01-W04'!K83,'W01-W04'!Z83,'W05-W08'!K83,'W05-W08'!Z83,'W09-W12'!K83,'W09-W12'!Z83) -> 2.916666667 | M83: =AVERAGE('W01-W04'!R83,'W01-W04'!AG83,'W05-W08'!R83,'W05-W08'!AG83,'W09-W12'!R83,'W09-W12'!AG83) -> 2
B84: 2017-02-27 | C84: 118 | D84: =AVERAGE('W01-W04'!F84,'W01-W04'!U84,'W05-W08'!F84,'W05-W08'!U84,'W09-W12'!F84,'W09-W12'!U84) -> 0.8419329875 | E84: =AVERAGE('W01-W04'!N84,'W01-W04'!AC84,'W05-W08'!N84,'W05-W08'!AC84,'W09-W12'!N84,'W09-W12'!AC84) -> 0.866478547 | F84: =AVERAGE('3-6-7-14'!F84,'3-6-7-14'!N84,'3-6-7-14'!U84,'3-6-7-14'!AC84) -> 1.144753601 | G84: =AVERAGE('W01-W04'!D84,'W01-W04'!S84,'W05-W08'!D84,'W05-W08'!S84,'W09-W12'!D84,'W09-W12'!S84) -> 20.96666667 | H84: =AVERAGE('W01-W04'!L84,'W01-W04'!AA84,'W05-W08'!L84,'W05-W08'!AA84,'W09-W12'!L84,'W09-W12'!AA84) -> 22.08333333 | I84: =AVERAGE('3-6-7-14'!D84,'3-6-7-14'!L84,'3-6-7-14'!S84,'3-6-7-14'!AA84) -> 27.6 | J84: =AVERAGE('W01-W04'!H84,'W01-W04'!W84,'W05-W08'!H84,'W05-W08'!W84,'W09-W12'!H84,'W09-W12'!W84) -> 1.3515 | K84: =AVERAGE('W01-W04'!P84,'W01-W04'!AE84,'W05-W08'!P84,'W05-W08'!AE84,'W09-W12'!P84,'W09-W12'!AE84) -> 1.2822 | L84: =AVERAGE('W01-W04'!K84,'W01-W04'!Z84,'W05-W08'!K84,'W05-W08'!Z84,'W09-W12'!K84,'W09-W12'!Z84) -> 2.95 | M84: =AVERAGE('W01-W04'!R84,'W01-W04'!AG84,'W05-W08'!R84,'W05-W08'!AG84,'W09-W12'!R84,'W09-W12'!AG84) -> 1.995
B85: 2017-02-28 | C85: 119 | D85: =AVERAGE('W01-W04'!F85,'W01-W04'!U85,'W05-W08'!F85,'W05-W08'!U85,'W09-W12'!F85,'W09-W12'!U85) -> 0.8502745565 | E85: =AVERAGE('W01-W04'!N85,'W01-W04'!AC85,'W05-W08'!N85,'W05-W08'!AC85,'W09-W12'!N85,'W09-W12'!AC85) -> 0.8574360153 | G85: =AVERAGE('W01-W04'!D85,'W01-W04'!S85,'W05-W08'!D85,'W05-W08'!S85,'W09-W12'!D85,'W09-W12'!S85) -> 21.16666667 | H85: =AVERAGE('W01-W04'!L85,'W01-W04'!AA85,'W05-W08'!L85,'W05-W08'!AA85,'W09-W12'!L85,'W09-W12'!AA85) -> 21.85 | J85: =AVERAGE('W01-W04'!H85,'W01-W04'!W85,'W05-W08'!H85,'W05-W08'!W85,'W09-W12'!H85,'W09-W12'!W85) -> 1.38125 | K85: =AVERAGE('W01-W04'!P85,'W01-W04'!AE85,'W05-W08'!P85,'W05-W08'!AE85,'W09-W12'!P85,'W09-W12'!AE85) -> 1.2766 | L85: =AVERAGE('W01-W04'!K85,'W01-W04'!Z85,'W05-W08'!K85,'W05-W08'!Z85,'W09-W12'!K85,'W09-W12'!Z85) -> 2.941666667 | M85: =AVERAGE('W01-W04'!R85,'W01-W04'!AG85,'W05-W08'!R85,'W05-W08'!AG85,'W09-W12'!R85,'W09-W12'!AG85) -> 2.078333333
B86: 2017-03-01 | C86: 120 | D86: =AVERAGE('W01-W04'!F86,'W01-W04'!U86,'W05-W08'!F86,'W05-W08'!U86,'W09-W12'!F86,'W09-W12'!U86) -> 0.8414896479 | E86: =AVERAGE('W01-W04'!N86,'W01-W04'!AC86,'W05-W08'!N86,'W05-W08'!AC86,'W09-W12'!N86,'W09-W12'!AC86) -> 0.8604569548 | G86: =AVERAGE('W01-W04'!D86,'W01-W04'!S86,'W05-W08'!D86,'W05-W08'!S86,'W09-W12'!D86,'W09-W12'!S86) -> 20.95 | H86: =AVERAGE('W01-W04'!L86,'W01-W04'!AA86,'W05-W08'!L86,'W05-W08'!AA86,'W09-W12'!L86,'W09-W12'!AA86) -> 21.93333333 | J86: =AVERAGE('W01-W04'!H86,'W01-W04'!W86,'W05-W08'!H86,'W05-W08'!W86,'W09-W12'!H86,'W09-W12'!W86) -> 1.123416667 | K86: =AVERAGE('W01-W04'!P86,'W01-W04'!AE86,'W05-W08'!P86,'W05-W08'!AE86,'W09-W12'!P86,'W09-W12'!AE86) -> 1.3063 | L86: =AVERAGE('W01-W04'!K86,'W01-W04'!Z86,'W05-W08'!K86,'W05-W08'!Z86,'W09-W12'!K86,'W09-W12'!Z86) -> 2.991666667 | M86: =AVERAGE('W01-W04'!R86,'W01-W04'!AG86,'W05-W08'!R86,'W05-W08'!AG86,'W09-W12'!R86,'W09-W12'!AG86) -> 2.076666667
B87: 2017-03-02 | C87: 121 | D87: =AVERAGE('W01-W04'!F87,'W01-W04'!U87,'W05-W08'!F87,'W05-W08'!U87,'W09-W12'!F87,'W09-W12'!U87) -> 0.8496256053 | E87: =AVERAGE('W01-W04'!N87,'W01-W04'!AC87,'W05-W08'!N87,'W05-W08'!AC87,'W09-W12'!N87,'W09-W12'!AC87) -> 0.8578594655 | G87: =AVERAGE('W01-W04'!D87,'W01-W04'!S87,'W05-W08'!D87,'W05-W08'!S87,'W09-W12'!D87,'W09-W12'!S87) -> 21.15 | H87: =AVERAGE('W01-W04'!L87,'W01-W04'!AA87,'W05-W08'!L87,'W05-W08'!AA87,'W09-W12'!L87,'W09-W12'!AA87) -> 21.86666667 | J87: =AVERAGE('W01-W04'!H87,'W01-W04'!W87,'W05-W08'!H87,'W05-W08'!W87,'W09-W12'!H87,'W09-W12'!W87) -> 1.150333333 | K87: =AVERAGE('W01-W04'!P87,'W01-W04'!AE87,'W05-W08'!P87,'W05-W08'!AE87,'W09-W12'!P87,'W09-W12'!AE87) -> 1.1887 | L87: =AVERAGE('W01-W04'!K87,'W01-W04'!Z87,'W05-W08'!K87,'W05-W08'!Z87,'W09-W12'!K87,'W09-W12'!Z87) -> 2.958333333 | M87: =AVERAGE('W01-W04'!R87,'W01-W04'!AG87,'W05-W08'!R87,'W05-W08'!AG87,'W09-W12'!R87,'W09-W12'!AG87) -> 2.095
B88: 2017-03-03 | C88: 122 | D88: =AVERAGE('W01-W04'!F88,'W01-W04'!U88,'W05-W08'!F88,'W05-W08'!U88,'W09-W12'!F88,'W09-W12'!U88) -> 0.850892964 | E88: =AVERAGE('W01-W04'!N88,'W01-W04'!AC88,'W05-W08'!N88,'W05-W08'!AC88,'W09-W12'!N88,'W09-W12'!AC88) -> 0.8586178623 | G88: =AVERAGE('W01-W04'!D88,'W01-W04'!S88,'W05-W08'!D88,'W05-W08'!S88,'W09-W12'!D88,'W09-W12'!S88) -> 21.18333333 | H88: =AVERAGE('W01-W04'!L88,'W01-W04'!AA88,'W05-W08'!L88,'W05-W08'!AA88,'W09-W12'!L88,'W09-W12'!AA88) -> 21.88333333 | J88: =AVERAGE('W01-W04'!H88,'W01-W04'!W88,'W05-W08'!H88,'W05-W08'!W88,'W09-W12'!H88,'W09-W12'!W88) -> 1.224 | K88: =AVERAGE('W01-W04'!P88,'W01-W04'!AE88,'W05-W08'!P88,'W05-W08'!AE88,'W09-W12'!P88,'W09-W12'!AE88) -> 1.2191 | L88: =AVERAGE('W01-W04'!K88,'W01-W04'!Z88,'W05-W08'!K88,'W05-W08'!Z88,'W09-W12'!K88,'W09-W12'!Z88) -> 2.95 | M88: =AVERAGE('W01-W04'!R88,'W01-W04'!AG88,'W05-W08'!R88,'W05-W08'!AG88,'W09-W12'!R88,'W09-W12'!AG88) -> 2.07
B89: 2017-03-04 | C89: 123 | D89: =AVERAGE('W01-W04'!F89,'W01-W04'!U89,'W05-W08'!F89,'W05-W08'!U89,'W09-W12'!F89,'W09-W12'!U89) -> 0.8341344295 | E89: =AVERAGE('W01-W04'!N89,'W01-W04'!AC89,'W05-W08'!N89,'W05-W08'!AC89,'W09-W12'!N89,'W09-W12'!AC89) -> 0.8534030365 | G89: =AVERAGE('W01-W04'!D89,'W01-W04'!S89,'W05-W08'!D89,'W05-W08'!S89,'W09-W12'!D89,'W09-W12'!S89) -> 20.76666667 | H89: =AVERAGE('W01-W04'!L89,'W01-W04'!AA89,'W05-W08'!L89,'W05-W08'!AA89,'W09-W12'!L89,'W09-W12'!AA89) -> 21.75 | L89: =AVERAGE('W01-W04'!K89,'W01-W04'!Z89,'W05-W08'!K89,'W05-W08'!Z89,'W09-W12'!K89,'W09-W12'!Z89) -> 3.066666667 | M89: =AVERAGE('W01-W04'!R89,'W01-W04'!AG89,'W05-W08'!R89,'W05-W08'!AG89,'W09-W12'!R89,'W09-W12'!AG89) -> 2.033333333
B90: 2017-03-05 | C90: 124 | D90: =AVERAGE('W01-W04'!F90,'W01-W04'!U90,'W05-W08'!F90,'W05-W08'!U90,'W09-W12'!F90,'W09-W12'!U90) -> 0.8373990003 | E90: =AVERAGE('W01-W04'!N90,'W01-W04'!AC90,'W05-W08'!N90,'W05-W08'!AC90,'W09-W12'!N90,'W09-W12'!AC90) -> 0.8644384748 | G90: =AVERAGE('W01-W04'!D90,'W01-W04'!S90,'W05-W08'!D90,'W05-W08'!S90,'W09-W12'!D90,'W09-W12'!S90) -> 20.85 | H90: =AVERAGE('W01-W04'!L90,'W01-W04'!AA90,'W05-W08'!L90,'W05-W08'!AA90,'W09-W12'!L90,'W09-W12'!AA90) -> 22.03333333 | L90: =AVERAGE('W01-W04'!K90,'W01-W04'!Z90,'W05-W08'!K90,'W05-W08'!Z90,'W09-W12'!K90,'W09-W12'!Z90) -> 3.075 | M90: =AVERAGE('W01-W04'!R90,'W01-W04'!AG90,'W05-W08'!R90,'W05-W08'!AG90,'W09-W12'!R90,'W09-W12'!AG90) -> 1.975
B91: 2017-03-06 | C91: 125 | D91: =AVERAGE('W01-W04'!F91,'W01-W04'!U91,'W05-W08'!F91,'W05-W08'!U91,'W09-W12'!F91,'W09-W12'!U91) -> 0.8475347739 | E91: =AVERAGE('W01-W04'!N91,'W01-W04'!AC91,'W05-W08'!N91,'W05-W08'!AC91,'W09-W12'!N91,'W09-W12'!AC91) -> 0.8743292464 | G91: =AVERAGE('W01-W04'!D91,'W01-W04'!S91,'W05-W08'!D91,'W05-W08'!S91,'W09-W12'!D91,'W09-W12'!S91) -> 21.1 | H91: =AVERAGE('W01-W04'!L91,'W01-W04'!AA91,'W05-W08'!L91,'W05-W08'!AA91,'W09-W12'!L91,'W09-W12'!AA91) -> 22.28333333 | J91: =AVERAGE('W01-W04'!H91,'W01-W04'!W91,'W05-W08'!H91,'W05-W08'!W91,'W09-W12'!H91,'W09-W12'!W91) -> 1.70425 | K91: =AVERAGE('W01-W04'!P91,'W01-W04'!AE91,'W05-W08'!P91,'W05-W08'!AE91,'W09-W12'!P91,'W09-W12'!AE91) -> 0.7523333333 | L91: =AVERAGE('W01-W04'!K91,'W01-W04'!Z91,'W05-W08'!K91,'W05-W08'!Z91,'W09-W12'!K91,'W09-W12'!Z91) -> 3.041666667 | M91: =AVERAGE('W01-W04'!R91,'W01-W04'!AG91,'W05-W08'!R91,'W05-W08'!AG91,'W09-W12'!R91,'W09-W12'!AG91) -> 1.8
B92: 2017-03-07 | C92: 126 | D92: =AVERAGE('W01-W04'!F92,'W01-W04'!U92,'W05-W08'!F92,'W05-W08'!U92,'W09-W12'!F92,'W09-W12'!U92) -> 0.8661384185 | E92: =AVERAGE('W01-W04'!N92,'W01-W04'!AC92,'W05-W08'!N92,'W05-W08'!AC92,'W09-W12'!N92,'W09-W12'!AC92) -> 0.8591875168 | F92: =AVERAGE('3-6-7-14'!F92,'3-6-7-14'!N92,'3-6-7-14'!U92,'3-6-7-14'!AC92) -> 1.161486497 | G92: =AVERAGE('W01-W04'!D92,'W01-W04'!S92,'W05-W08'!D92,'W05-W08'!S92,'W09-W12'!D92,'W09-W12'!S92) -> 21.56666667 | H92: =AVERAGE('W01-W04'!L92,'W01-W04'!AA92,'W05-W08'!L92,'W05-W08'!AA92,'W09-W12'!L92,'W09-W12'!AA92) -> 21.9 | I92: =AVERAGE('3-6-7-14'!D92,'3-6-7-14'!L92,'3-6-7-14'!S92,'3-6-7-14'!AA92) -> 28 | J92: =AVERAGE('W01-W04'!H92,'W01-W04'!W92,'W05-W08'!H92,'W05-W08'!W92,'W09-W12'!H92,'W09-W12'!W92) -> 1.735416667 | K92: =AVERAGE('W01-W04'!P92,'W01-W04'!AE92,'W05-W08'!P92,'W05-W08'!AE92,'W09-W12'!P92,'W09-W12'!AE92) -> 1.2064 | M92: =AVERAGE('W01-W04'!R92,'W01-W04'!AG92,'W05-W08'!R92,'W05-W08'!AG92,'W09-W12'!R92,'W09-W12'!AG92) -> 1.898333333
B93: 2017-03-08 | C93: 127 | D93: =AVERAGE('W01-W04'!F93,'W01-W04'!U93,'W05-W08'!F93,'W05-W08'!U93,'W09-W12'!F93,'W09-W12'!U93) -> 1.05787147 | E93: =AVERAGE('W01-W04'!N93,'W01-W04'!AC93,'W05-W08'!N93,'W05-W08'!AC93,'W09-W12'!N93,'W09-W12'!AC93) -> 0.8520694219 | G93: =AVERAGE('W01-W04'!D93,'W01-W04'!S93,'W05-W08'!D93,'W05-W08'!S93,'W09-W12'!D93,'W09-W12'!S93) -> 26.33333333 | H93: =AVERAGE('W01-W04'!L93,'W01-W04'!AA93,'W05-W08'!L93,'W05-W08'!AA93,'W09-W12'!L93,'W09-W12'!AA93) -> 21.71666667 | K93: =AVERAGE('W01-W04'!P93,'W01-W04'!AE93,'W05-W08'!P93,'W05-W08'!AE93,'W09-W12'!P93,'W09-W12'!AE93) -> 1.2496 | M93: =AVERAGE('W01-W04'!R93,'W01-W04'!AG93,'W05-W08'!R93,'W05-W08'!AG93,'W09-W12'!R93,'W09-W12'!AG93) -> 2.091666667
B94: 2017-03-09 | C94: 128 | D94: =AVERAGE('W01-W04'!F94,'W01-W04'!U94,'W05-W08'!F94,'W05-W08'!U94,'W09-W12'!F94,'W09-W12'!U94) -> 1.081871407 | E94: =AVERAGE('W01-W04'!N94,'W01-W04'!AC94,'W05-W08'!N94,'W05-W08'!AC94,'W09-W12'!N94,'W09-W12'!AC94) -> 0.8521084942 | G94: =AVERAGE('W01-W04'!D94,'W01-W04'!S94,'W05-W08'!D94,'W05-W08'!S94,'W09-W12'!D94,'W09-W12'!S94) -> 26.93333333 | H94: =AVERAGE('W01-W04'!L94,'W01-W04'!AA94,'W05-W08'!L94,'W05-W08'!AA94,'W09-W12'!L94,'W09-W12'!AA94) -> 21.71666667 | J94: =AVERAGE('W01-W04'!H94,'W01-W04'!W94,'W05-W08'!H94,'W05-W08'!W94,'W09-W12'!H94,'W09-W12'!W94) -> 0.1841666667 | K94: =AVERAGE('W01-W04'!P94,'W01-W04'!AE94,'W05-W08'!P94,'W05-W08'!AE94,'W09-W12'!P94,'W09-W12'!AE94) -> 1.9657
B95: 2017-03-10 | C95: 129 | D95: =AVERAGE('W01-W04'!F95,'W01-W04'!U95,'W05-W08'!F95,'W05-W08'!U95,'W09-W12'!F95,'W09-W12'!U95) -> 1.1063894 | E95: =AVERAGE('W01-W04'!N95,'W01-W04'!AC95,'W05-W08'!N95,'W05-W08'!AC95,'W09-W12'!N95,'W09-W12'!AC95) -> 0.9902996829 | G95: =AVERAGE('W01-W04'!D95,'W01-W04'!S95,'W05-W08'!D95,'W05-W08'!S95,'W09-W12'!D95,'W09-W12'!S95) -> 27.53333333 | H95: =AVERAGE('W01-W04'!L95,'W01-W04'!AA95,'W05-W08'!L95,'W05-W08'!AA95,'W09-W12'!L95,'W09-W12'!AA95) -> 25.23333333
B96: 2017-03-11 | C96: 130
B97: 2017-03-12 | C97: 131
B98: 2017-03-13 | C98: 132 | D98: =AVERAGE('W01-W04'!F98,'W01-W04'!U98,'W05-W08'!F98,'W05-W08'!U98,'W09-W12'!F98,'W09-W12'!U98) -> 1.110070776 | E98: =AVERAGE('W01-W04'!N98,'W01-W04'!AC98,'W05-W08'!N98,'W05-W08'!AC98,'W09-W12'!N98,'W09-W12'!AC98) -> 1.050348962 | F98: =AVERAGE('3-6-7-14'!F98,'3-6-7-14'!N98,'3-6-7-14'!U98,'3-6-7-14'!AC98) -> 1.151063655 | G98: =AVERAGE('W01-W04'!D98,'W01-W04'!S98,'W05-W08'!D98,'W05-W08'!S98,'W09-W12'!D98,'W09-W12'!S98) -> 27.61666667 | H98: =AVERAGE('W01-W04'!L98,'W01-W04'!AA98,'W05-W08'!L98,'W05-W08'!AA98,'W09-W12'!L98,'W09-W12'!AA98) -> 26.76666667 | I98: =AVERAGE('3-6-7-14'!D98,'3-6-7-14'!L98,'3-6-7-14'!S98,'3-6-7-14'!AA98) -> 27.75
B99: 2017-03-14 | C99: 133
B100: 2017-03-15 | C100: 134 | D100: =AVERAGE('W01-W04'!F100,'W01-W04'!U100,'W05-W08'!F100,'W05-W08'!U100,'W09-W12'!F100,'W09-W12'!U100) -> 1.106546946 | E100: =AVERAGE('W01-W04'!N100,'W01-W04'!AC100,'W05-W08'!N100,'W05-W08'!AC100,'W09-W12'!N100,'W09-W12'!AC100) -> 1.056834804 | G100: =AVERAGE('W01-W04'!D100,'W01-W04'!S100,'W05-W08'!D100,'W05-W08'!S100,'W09-W12'!D100,'W09-W12'!S100) -> 27.53333333 | H100: =AVERAGE('W01-W04'!L100,'W01-W04'!AA100,'W05-W08'!L100,'W05-W08'!AA100,'W09-W12'!L100,'W09-W12'!AA100) -> 26.93333333
B101: 2017-03-16 | C101: 135
B102: 2017-03-17 | C102: 136 | D102: =AVERAGE('W01-W04'!F102,'W01-W04'!U102,'W05-W08'!F102,'W05-W08'!U102,'W09-W12'!F102,'W09-W12'!U102) -> 1.120536186 | E102: =AVERAGE('W01-W04'!N102,'W01-W04'!AC102,'W05-W08'!N102,'W05-W08'!AC102,'W09-W12'!N102,'W09-W12'!AC102) -> 1.069383251 | G102: =AVERAGE('W01-W04'!D102,'W01-W04'!S102,'W05-W08'!D102,'W05-W08'!S102,'W09-W12'!D102,'W09-W12'!S102) -> 27.86666667 | H102: =AVERAGE('W01-W04'!L102,'W01-W04'!AA102,'W05-W08'!L102,'W05-W08'!AA102,'W09-W12'!L102,'W09-W12'!AA102) -> 27.25
B103: 2017-03-18 | C103: 137
B104: 2017-03-19 | C104: 138
B105: 2017-03-20 | C105: 139 | D105: =AVERAGE('W01-W04'!F105,'W01-W04'!U105,'W05-W08'!F105,'W05-W08'!U105,'W09-W12'!F105,'W09-W12'!U105) -> 1.141203715 | E105: =AVERAGE('W01-W04'!N105,'W01-W04'!AC105,'W05-W08'!N105,'W05-W08'!AC105,'W09-W12'!N105,'W09-W12'!AC105) -> 1.085176199 | F105: =AVERAGE('3-6-7-14'!F105,'3-6-7-14'!N105,'3-6-7-14'!U105,'3-6-7-14'!AC105) -> 1.170642312 | G105: =AVERAGE('W01-W04'!D105,'W01-W04'!S105,'W05-W08'!D105,'W05-W08'!S105,'W09-W12'!D105,'W09-W12'!S105) -> 28.4 | H105: =AVERAGE('W01-W04'!L105,'W01-W04'!AA105,'W05-W08'!L105,'W05-W08'!AA105,'W09-W12'!L105,'W09-W12'!AA105) -> 27.65 | I105: =AVERAGE('3-6-7-14'!D105,'3-6-7-14'!L105,'3-6-7-14'!S105,'3-6-7-14'!AA105) -> 28.225
B106: 2017-03-21 | C106: 140
B107: 2017-03-22 | C107: 141
B108: 2017-03-23 | C108: 142
B109: 2017-03-24 | C109: 143
B110: 2017-03-25 | C110: 144
B111: 2017-03-26 | C111: 145
B112: 2017-03-27 | C112: 146
B113: 2017-03-28 | C113: 147 | D113: =AVERAGE('W01-W04'!F113,'W01-W04'!U113,'W05-W08'!F113,'W05-W08'!U113,'W09-W12'!F113,'W09-W12'!U113) -> 1.163122652 | E113: =AVERAGE('W01-W04'!N113,'W01-W04'!AC113,'W05-W08'!N113,'W05-W08'!AC113,'W09-W12'!N113,'W09-W12'!AC113) -> 1.11637886 | F113: =AVERAGE('3-6-7-14'!F113,'3-6-7-14'!N113,'3-6-7-14'!U113,'3-6-7-14'!AC113) -> 1.218951926 | G113: =AVERAGE('W01-W04'!D113,'W01-W04'!S113,'W05-W08'!D113,'W05-W08'!S113,'W09-W12'!D113,'W09-W12'!S113) -> 28.93333333 | H113: =AVERAGE('W01-W04'!L113,'W01-W04'!AA113,'W05-W08'!L113,'W05-W08'!AA113,'W09-W12'!L113,'W09-W12'!AA113) -> 28.45 | I113: =AVERAGE('3-6-7-14'!D113,'3-6-7-14'!L113,'3-6-7-14'!S113,'3-6-7-14'!AA113) -> 29.375

Sheet Diet
C2: kcal
C3: Per gram/ml
B4: Mouse chow | C4: 3.279
B5: Infant soy milk | C5: =D12 -> 0.67
B7: soy to chow ratio | C7: =C5/C4 -> 0.2043305886
C9: amount ml | D9: kcal | E9: gram
B10: Infant soy milk | C10: 100 | D10: 67 | E10: =4.3*3.33333 -> 14.333319
C11: =C10/E10 -> 6.976751163 | D11: =D10/E10 -> 4.674423279 | E11: 1
C12: 1 | D12: =D10/C10 -> 0.67 | E12: =E10/C10 -> 0.14333319

Sheet Handling period
C2: W01 | D2: W03 | E2: W05 | F2: W07 | G2: W09 | H2: W11
A3: Soy milk | B3: 2017-01-05 | C3: 0 | D3: 0.4 | E3: 0.4 | F3: 0.4 | G3: 0.1 | H3: 0.3 | J3: =AVERAGE(C3:H3) -> 0.2666666667
B4: 2017-01-06 | C4: 0.6 | D4: 0.6 | E4: 0.7 | F4: 0.5 | G4: 0.25 | H4: 0.8 | J4: =AVERAGE(C4:H4) -> 0.575
B5: 2017-01-07 | C5: 0.6 | D5: 0.8 | E5: 0.7 | F5: 0.55 | G5: 0.35 | H5: 0.8 | J5: 0.6333333333
B6: 2017-01-09 | C6: 0.5 | D6: 0.5 | E6: 0.5 | F6: 0.55 | G6: 0.3 | H6: 0.7 | I6: =AVERAGE(C3:H6) -> 0.4958333333 | J6: 0.5083333333
A7: Sweetened | B7: 2017-01-10 | C7: 0.4 | D7: 0.65 | E7: 0.65 | F7: 0.5 | G7: 0.3 | H7: 0.55 | J7: 0.5083333333
B8: 2017-01-11 | C8: 0.35 | D8: 0.5 | E8: 0.45 | F8: 0.45 | G8: 0.15 | H8: 0.4 | I8: =AVERAGE(C7:H8) -> 0.4458333333 | J8: 0.3833333333 | K8: =AVERAGE(C3:H8) -> 0.4791666667
A9: Baby milk | B9: 2017-01-12 | C9: 0.95 | D9: 0.68 | E9: 0.55 | F9: 0.65 | G9: 0.6 | H9: 0.93 | J9: 0.7266666667
B10: 2017-01-13 | C10: 1.25 | D10: 1.45 | E10: 1.4 | F10: 1.4 | G10: 0.85 | H10: 1.4 | J10: 1.291666667
B11: 2017-01-14 | C11: 1 | D11: 1.2 | E11: 1 | F11: 1 | G11: 0.75 | H11: 1 | J11: 0.9916666667
B12: 2017-01-15 | C12: 1.3 | D12: 1.8 | E12: 1.75 | F12: 1.75 | G12: 1.8 | H12: 1.95 | J12: 1.725
B13: 2017-01-16 | C13: 1.35 | D13: 1.7 | E13: 2 | F13: 1.7 | G13: 1.6 | H13: 1.9 | I13: =AVERAGE(C9:H13) -> 1.288666667 | J13: 1.708333333
C15: W02 | D15: W04 | E15: W06 | F15: W08 | G15: W10 | H15: W12
A16: Water | B16: 2017-01-05 | C16: 0.5 | D16: 0.5 | E16: 0.4 | F16: 0.4 | G16: 0.4 | H16: 0.4 | J16: 0.4333333333
B17: 2017-01-06 | C17: 0.97 | D17: 0.5 | E17: 0.4 | F17: 0.7 | G17: 0.5 | H17: 0.4 | J17: 0.5783333333
B18: 2017-01-07 | C18: 1 | D18: 0.7 | E18: 0.5 | F18: 0.75 | G18: 0.8 | H18: 0.57 | J18: 0.72
B19: 2017-01-09 | C19: 0.95 | D19: 0.75 | E19: 0.7 | F19: 0.8 | G19: 1 | H19: 0.7 | I19: =AVERAGE(C16:H19) -> 0.6370833333 | J19: 0.8166666667
B20: 2017-01-10 | C20: 0.75 | D20: 0.65 | E20: 0.6 | F20: 0.45 | G20: 0.75 | H20: 0.55 | J20: 0.625
B21: 2017-01-11 | C21: 1 | D21: 1 | E21: 0.75 | F21: 0.83 | G21: 0.6 | H21: 0.7 | I21: =AVERAGE(C20:H21) -> 0.7191666667 | J21: 0.8133333333
B22: 2017-01-12 | C22: 1 | D22: 0.6 | E22: 0.95 | F22: 0.85 | G22: 0.7 | H22: 0.8 | J22: 0.8166666667
B23: 2017-01-13 | C23: 1.3 | D23: 0.6 | E23: 0.9 | F23: 0.9 | G23: 0.9 | H23: 0.65 | J23: 0.875
B24: 2017-01-14 | C24: 1 | D24: 0.6 | E24: 0.85 | F24: 0.65 | G24: 0.8 | H24: 0.5 | J24: 0.7333333333
B25: 2017-01-15 | C25: 1.3 | D25: 0.55 | E25: 1 | F25: 0.6 | G25: 1 | H25: 0.6 | J25: 0.8416666667
B26: 2017-01-16 | C26: 1.1 | D26: 0.7 | E26: 0.9 | F26: 0.7 | G26: 0.9 | H26: 0.6 | I26: =AVERAGE(C22:H26) -> 0.8166666667 | J26: 0.8166666667
